Workbook

Sheet Read Me First
A1: Listing and Description of All Available Macros in this Workbook
C3: This workbook contain a number of macros for calculating robust correlation coefficients between two variables, X and Y. This spreadsheet contains a list of the macros available. Each macro is demonstrated in the associated worksheet listed. Other worksheets are provided as well. These include: Simulated Data Specifications - the parameters used to create various (X,Y) combinations of random variables. Simulated Data - 1,000 observations of various (X,Y) variables, to be used for testing purposes. Results Summary - The results of each of the macros listed below, applied to the various simulated (X,Y) variables. Notes are embedded in each worksheet discussing important aspects of each correlation measure. In some cases the correlation formulas are too complex to be illustrated in a single worksheet, so only the macro results are provided.
C13: Worksheet | D13: Related Macro | E13: Statistical Procedure | F13: Comments
C14: Pearson's Correlation | D14: =CORREL(X, Y) | E14: Pearson's Product Moment Correlation Coefficient | F14: This is just the standard function already in Excel, shown for comparison purposes, Pearson (1896)
C15: Spearman's Correlation | D15: =Spearman(X, Y) | E15: Spearman's Rank Correlation Coefficient | F15: A member of the rank-based family of correlation coefficients, Spearman (1904)
C16: Quadrant Correlation | D16: =QuadCorr(X, Y) | E16: Quadrant Correlation Coefficient, aka Quadrant Count Ratio | F16: A member of the rank-based family of correlation coefficients, Blomqvist (1950)
C17: Kendall's Tau Correlation | D17: =KendTau(X, Y, ties) | E17: Kendall's Tau Rank Correlation Coefficient | F17: If 'ties' set to TRUE then the macro calculates Kendall's tau-b, adjusting for ties, Kendall (1949)
C18: Goodman-Kruskal Gamma | D18: =GKGamma(X, Y) | E18: Goodman and Kruskal's Gamma Rank Correlation Coefficient | F18: A member of the rank-based family of correlation coefficients, Goodman and Kruskal (1954)
C19: Correlation Median Estimator | D19: =CorrMed(X, Y) | E19: Correlation Median Estimator | F19: As discussed by Pasman and Shevylakov (1987)
C20: Tukey BiWeight MidCorrelation | D20: =BiWeight(X, Y) | E20: Tukey's BiWeight MidCorrelation Coefficient | F20: A type of M-estimator or Maximum Likelihood-type Estimator, Wilcox (1997)
C21: Fisher Yates Normal Scores | D21: =ScoreCorr(X, Y) | E21: Fisher and Yates Normal Scores Correlation Coefficient | F21: As described in Fieller and Pearson (1961)
C22: Bivariate Alpha-Trimmed | D22: =BVTCorr(X, Y, alpha) | E22: Bivariate Alpha-Trimmed Correlation Coefficient | F22: As described in Wilcox (1994)
C23: Univariate Alpha-Winsorized | D23: =UVWCorr(X, Y, alpha) | E23: Univariate Alpha-Winsorized Pearson Correlation Coefficient | F23: As described in Wilcox (1993)
C24: Median Correlation Coefficient | D24: =MedCorr(X, Y) | E24: Median Correlation Coefficient | F24: As discussed by Shevylakov (2011)
C25: MAD Correlation (Gideon) | D25: =MADCorr_G(X, Y) | E25: MAD Correlation Coefficient (Gideon) | F25: As desribed by Gideon (2007)
C26: MAD Correlation (Shevylakov)) | D26: =MADCorr_S(X, Y) | E26: MAD Correlation Coefficient (Shevylakov) | F26: As discussed by Pasman and Shevylakov (1987)
C27: Absolute Value Correlation | D27: =AVCorr(X, Y) | E27: Absolute Value Correlation Coefficient | F27: As desribed by Gideon (2007)
C28: Footrule Correlation | D28: =FootCorr(X, Y) | E28: Spearman's Footrule Rank Correlation Coefficient | F28: A member of the rank-based family of correlation coefficients, Spearman (1906)
C29: Percentage Bend Correlation | D29: =PBCorr(X,Y, bend) | E29: Percentage Bend Correlation | F29: Requires a "Bend" value between (0,1), Wilcox recommend bend = 0.2, Wilcox (1994)
E31: Citation | F31: Published Article
E32: Wilcox (1994) | F32: Wilcox, R.R., (1994). The Percentage Bend Correlation Coefficient. Psychometrika, 59, 601-616
E33: Wilcox (1993) | F33: Wilcox, R.R., (1993). Some Results on a Winsorized Correlation Coefficient, British Journal of Mathematical and Statistical Psychology, 4, 167-183.
E34: Shevylakov and Smirnov (2011) | F34: Shevylakov, G. and P. Smirnov, (2011). Robust Estimation of the Correlation Coefficient: An Attempt of Survey. Austrian Journal of Statistics, 40, 147-156.
E35: Blomqvist (1950) | F35: Blomqvist, N. (1950). On a Measure of Dependence Between Two Random Variables. The Annals of Mathematical Statistics, 21, 593-600.
E36: Spearman (1904) | F36: Spearman, C. (1904). The Proof and Measurement of Association Between Two Things. American Journal of Psychology, 15, 88-93.
E37: Pasman and Shevylakov (1987) | F37: Pasman, V.R., and Shevylakov, G.L. (1987). Robust Methods of Estimation of a Correlation Coefficient. Automation and Remote Control,??, 332-340.
E38: Kendall (1949) | F38: Kendall, M.G. (1949). Rank and Product-Moment Correlation, Biometrika, 51, 42-46.
E39: Gideon (2007) | F39: Gideon, R.A. (2007). The Correlation Coefficients. Journal of Modern Applied Statistical Methods, 6, 517-529.
E40: Spearman (1906) | F40: Spearman, C. (1906). 'Footrule' for Measuring Correlations, British Journal of Psychology, 2, 89-108.
E41: Fieller and Pearson (1961) | F41: Fieller, E.C., and Pearson, E.S., (1961). Tests for Rank Correlation Coefficients.I., Biometrika, 48, 29-40
E42: Wilcox (1997) | F42: Wilcox, R.R., (1997). Introduction to Robust Estimation and Hypothesis Testing.
E43: Goodman and Kruskal (1954) | F43: Goodman, L.A. and Kruskal, W.H. (1954). Measures of Association for Cross Classification. Journal of the American Statistical Association, 49 (268), 732-764.

Sheet Simulated Data Specifications
A1: Parameters and Processes for Creating the Simulated Data Set
I4: Notes:
B5: Table 1: Formulas to calculate correlated bivariate normal RVs: | I5: 1. Simulated data set contains 1,000 observations
B6: X = μ1 + σ1∙N1(0,1) | I6: of various data necessary to perform the required
B7: Y = μ2 + σ2[N1(0,1)∙ρ + N2(0,1)∙ρ∙sqrt(1-ρ2)] | I7: simulations.
I8: 2. 1,000 replications of two independent uniform
B9: Table 2: Population Parameters | I9: random variables were simulated in the range of
C10: Mean (μ) | D10: Std. Dev. (σ) | I10: (0,1) using Excel's Rand() function.
B11: U1(0,1) | C11: 0.5 | D11: =SQRT(1/12) -> 0.2886751346 | E11: Correlation = | G11: 0 | I11: 3. 1,000 replications of two independent standard
B12: U2(0,1) | C12: 0.5 | D12: =SQRT(1/12) -> 0.2886751346 | I12: normal random variables with mean zero and SD
B13: N1(0,1) | C13: 0 | D13: 1 | E13: Correlation = | G13: 0 | I13: of one were simulated using the Box-Muller method.
B14: N2(0,1) | C14: 0 | D14: 1 | I14: 4. The two independent standard normal random
B15: X(μ,σ;ρ) | C15: 70 | D15: 3 | E15: Correlation (ρ) = | G15: 0.5 | I15: variables (X, Y) were converted into two correlated
B16: Y(μ,σ;ρ) | C16: 162 | D16: 14 | I16: random normal variables with mean mu and SD sigma
I17: using the formulas in Table 1 and the mu/sigma
B18: Table 3: Sample Parameters, N=1000 | I18: parameters for X and Y listed in Table 2.
C19: Mean | D19: Std. Dev. | I19: 5. The univariate ranks of the correlated random
B20: U1(0,1) | C20: =AVERAGE('Simulated Data'!B4:B1003) -> 0.4984542158 | D20: =_xlfn.STDEV.S('Simulated Data'!B$4:B$1003) -> 0.2876308249 | E20: Correlation = | G20: =CORREL('Simulated Data'!B$4:B$1003,'Simulated Data'!C$4:C$1003) -> 0.01564319636 | I20: variables (X, Y), each variable value ranked from 1 to
B21: U2(0,1) | C21: =AVERAGE('Simulated Data'!C4:C1003) -> 0.4994850885 | D21: =_xlfn.STDEV.S('Simulated Data'!C$4:C$1003) -> 0.2864441698 | I21: 1,000, are provided.
B22: N1(0,1) | C22: =AVERAGE('Simulated Data'!D4:D1003) -> -0.00299098748 | D22: =_xlfn.STDEV.S('Simulated Data'!D$4:D$1003) -> 0.9859980179 | E22: Correlation = | G22: =CORREL('Simulated Data'!D$4:D$1003,'Simulated Data'!E$4:E$1003) -> -0.02362857226 | I22: 6. Using the correlated random normal variables (X,Y),
B23: N2(0,1) | C23: =AVERAGE('Simulated Data'!E4:E1003) -> 0.004267364224 | D23: =_xlfn.STDEV.S('Simulated Data'!E$4:E$1003) -> 1.006896922 | I23: 2% of the X values and 1% of the Y values were changed
B24: X | C24: =AVERAGE('Simulated Data'!F4:F1003) -> 69.99102704 | D24: =_xlfn.STDEV.S('Simulated Data'!F$4:F$1003) -> 2.957994054 | E24: Correlation = | G24: =CORREL('Simulated Data'!F$4:F$1003,'Simulated Data'!G$4:G$1003) -> 0.4764347174 | I24: to be duplicates of their nearest neighbor. The values
B25: Y | C25: =AVERAGE('Simulated Data'!G4:G1003) -> 162.0308021 | D25: =_xlfn.STDEV.S('Simulated Data'!G$4:G$1003) -> 13.88129125 | I25: chosen to be duplicated were those that were already
B26: X2% | C26: =AVERAGE('Simulated Data'!J4:J1003) -> 69.99102704 | D26: =_xlfn.STDEV.S('Simulated Data'!J$4:J$1003) -> 2.957994054 | E26: Correlation = | G26: =CORREL('Simulated Data'!J$4:J$1003,'Simulated Data'!K$4:K$1003) -> 0.4764347557 | I26: the closest in value to each other.
B27: Y1% | C27: =AVERAGE('Simulated Data'!K4:K1003) -> 162.0308021 | D27: =_xlfn.STDEV.S('Simulated Data'!K$4:K$1003) -> 13.88129125 | I27: 7. The univariate ranks of the correlated normal random
I28: variables with duplicates, each variable value ranked from
I29: 1 to 1,000, are provided.

Sheet Simulated Data
A1: Sample Data Set to Be Used to Test Robust Correlation Statistics
B2: Uniform Distributed Random Variables | D2: Standard Normal Random Variables | F2: Bivariate (Correlated) Normal RVs | H2: Bivariate (Correlated) Normal RVs as Ranks | J2: Bivariate Normal RVs with Induced Duplicates | L2: Bivariate Normal RVs with Duplicates as Ranks
A3: Observation Number | B3: U1(0,1) | C3: U2(0,1) | D3: N1(0,1) | E3: N2(0,1) | F3: X | G3: Y | H3: Xrnk | I3: Yrnk | J3: X2% | K3: Y1% | L3: Xrnk(2%) | M3: Yrnk(1%)
A4: 1 | B4: 0.3227098802 | C4: 0.2644734665 | D4: -0.136584137 | E4: 1.497780992 | F4: 69.59024759 | G4: 179.2035405 | H4: =_xlfn.RANK.AVG(F4,F$4:F$1003,1) -> 452 | I4: =_xlfn.RANK.AVG(G4,G$4:G$1003,1) -> 892 | J4: 69.59024759 | K4: 179.2035405 | L4: =_xlfn.RANK.AVG(J4,J$4:J$1003,1) -> 452 | M4: 892
A5: 2 | B5: 0.01181691748 | C5: 0.864753509 | D5: 1.966807044 | E5: -2.237882086 | F5: 75.90042113 | G5: 148.634771 | H5: =_xlfn.RANK.AVG(F5,F$4:F$1003,1) -> 977 | I5: =_xlfn.RANK.AVG(G5,G$4:G$1003,1) -> 171 | J5: 75.90042113 | K5: 148.634771 | L5: =_xlfn.RANK.AVG(J5,J$4:J$1003,1) -> 977 | M5: =_xlfn.RANK.AVG(K5,K$4:K$1003,1) -> 171
A6: 3 | B6: 0.617433931 | C6: 0.6774567964 | D6: -0.4322691438 | E6: -0.8817651662 | F6: 68.70319257 | G6: 148.2832815 | H6: 350 | I6: 162 | J6: 68.70319257 | K6: 148.2832815 | L6: 350 | M6: 162
A7: 4 | B7: 0.9861983156 | C7: 0.8550657026 | D7: 0.102238363 | E7: -0.1316926096 | F7: 70.30671509 | G7: 161.1189805 | H7: 544 | I7: 482 | J7: 70.30671509 | K7: 161.1189805 | L7: 544 | M7: 482
A8: 5 | B8: 0.4281532219 | C8: 0.3672300605 | D8: -0.8749744318 | E8: 0.9648668553 | F8: 67.3750767 | G8: 167.5735679 | H8: 190 | I8: 656 | J8: 67.3750767 | K8: 167.5735679 | L8: 190 | M8: 656
A9: 6 | B9: 0.9409372159 | C9: 0.203152468 | D9: 0.1012337229 | E9: 0.3339303188 | F9: 70.30370117 | G9: 166.757326 | H9: 543 | I9: 634 | J9: 70.30370117 | K9: 166.757326 | L9: 543 | M9: 634
A10: 7 | B10: 0.6149211397 | C10: 0.8715722387 | D10: 0.6821453325 | E10: -0.7121799214 | F10: 72.046436 | G10: 158.1402947 | H10: 757 | I10: 392 | J10: 72.046436 | K10: 158.1402947 | L10: 757 | M10: 392
A11: 8 | B11: 0.719292989 | C11: 0.7276437272 | D11: -0.1136537935 | E11: -0.8037759846 | F11: 69.65903862 | G11: 151.4591575 | H11: 458 | I11: 226 | J11: 69.65903862 | K11: 151.4591575 | L11: 458 | M11: 226
A12: 9 | B12: 0.1849151361 | C12: 0.107971776 | D12: 1.430482872 | E12: 1.153011413 | F12: 74.29144862 | G12: 185.9929006 | H12: 923 | I12: 956 | J12: 74.29144862 | K12: 185.9929006 | L12: 923 | M12: 956
A13: 10 | B13: 0.3286339112 | C13: 0.5377102307 | D13: -1.450170509 | E13: -0.3501817457 | F13: 65.64948847 | G13: 147.6030784 | H13: 69 | I13: 153 | J13: 65.64948847 | K13: 147.6030784 | L13: 69 | M13: 153
A14: 11 | B14: 0.8536790992 | C14: 0.7256374507 | D14: -0.08576761803 | E14: -0.5559170364 | F14: 69.74269715 | G14: 154.6594908 | H14: 464 | I14: 300 | J14: 69.74269715 | K14: 154.6594908 | L14: 464 | M14: 300
A15: 12 | B15: 0.8537596287 | C15: 0.7427813998 | D15: -0.02549602974 | E15: -0.5617482822 | F15: 69.92351191 | G15: 155.0106918 | H15: 488 | I15: 311 | J15: 69.92351191 | K15: 155.0106918 | L15: 488 | M15: 311
A16: 13 | B16: 0.8872148615 | C16: 0.08302663257 | D16: 0.4241475172 | E16: 0.243793084 | F16: 71.27244255 | G16: 167.9248667 | H16: 656 | I16: 661 | J16: 71.27244255 | K16: 167.9248667 | L16: 656 | M16: 661
A17: 14 | B17: 0.4693352993 | C17: 0.3306483972 | D17: -0.5969384823 | E17: 1.075425559 | F17: 68.20918455 | G17: 170.8602726 | H17: 281 | I17: 735 | J17: 68.20918455 | K17: 170.8602726 | L17: 281 | M17: 735
A18: 15 | B18: 0.5470394944 | C18: 0.1472475526 | D18: 0.6608901624 | E18: 0.8773213482 | F18: 71.98267049 | G18: 177.2631872 | H18: 748 | I18: 860 | J18: 71.98267049 | K18: 177.2631872 | L18: 748 | M18: 860
A19: 16 | B19: 0.06120373749 | C19: 0.375518985 | D19: -1.676832052 | E19: 1.665931665 | F19: 64.96950385 | G19: 170.4605236 | H19: 47 | I19: 727 | J19: 64.96950385 | K19: 170.4605236 | L19: 47 | M19: 727
A20: 17 | B20: 0.7103750922 | C20: 0.4695752298 | D20: -0.8119322874 | E20: 0.1571313456 | F20: 67.56420314 | G20: 158.2215903 | H20: 204 | I20: 396 | J20: 67.56420314 | K20: 158.2215903 | L20: 204 | M20: 396
A21: 18 | B21: 0.7352390212 | C21: 0.0101417902 | D21: 0.7827035838 | E21: 0.04994364107 | F21: 72.34811075 | G21: 168.0844596 | H21: 788 | I21: 668 | J21: 72.34811075 | K21: 168.0844596 | L21: 788 | M21: 668
A22: 19 | B22: 0.208296901 | C22: 0.1395038243 | D22: 1.133332576 | E22: 1.36130044 | F22: 73.39999773 | G22: 186.4382187 | H22: 874 | I22: 957 | J22: 73.39999773 | K22: 186.4382187 | L22: 874 | M22: 957
A23: 20 | B23: 0.3101968427 | C23: 0.7719438109 | D23: 0.2102929442 | E23: -1.515543893 | F23: 70.63087883 | G23: 145.0970574 | H23: 580 | I23: 111 | J23: 70.63087883 | K23: 145.0970574 | L23: 580 | M23: 111
A24: 21 | B24: 0.1368513553 | C24: 0.7531836097 | D24: 0.0398921845 | E24: -1.994023193 | F24: 70.11967655 | G24: 138.1029989 | H24: 512 | I24: 36 | J24: 70.11967655 | K24: 138.1029989 | L24: 512 | M24: 36
A25: 22 | B25: 0.3367580177 | C25: 0.5847850691 | D25: -1.270944908 | E25: -0.749319926 | F25: 66.18716528 | G25: 144.0183644 | H25: 105 | I25: 99 | J25: 66.18716528 | K25: 144.0183644 | L25: 105 | M25: 99
A26: 23 | B26: 0.07047966791 | C26: 0.1578341782 | D26: 1.26048023 | E26: 1.927706308 | F26: 73.78144069 | G26: 194.1955585 | H26: 901 | I26: 991 | J26: 73.78144069 | K26: 194.1955585 | L26: 901 | M26: 991
A27: 24 | B27: 0.5879089226 | C27: 0.4443484392 | D27: -0.9683392917 | E27: 0.3531083253 | F27: 67.09498212 | G27: 159.5028359 | H27: 173 | I27: 439 | J27: 67.09498212 | K27: 159.5028359 | L27: 173 | M27: 439
A28: 25 | B28: 0.9782815818 | C28: 0.7343499895 | D28: -0.02057326215 | E28: -0.2085478598 | F28: 69.93828021 | G28: 159.3274787 | H28: 490 | I28: 432 | J28: 69.93828021 | K28: 159.3274787 | L28: 490 | M28: 432
A29: 26 | B29: 0.6996779832 | C29: 0.3042645004 | D29: -0.2826048779 | E29: 0.7964952169 | F29: 69.15218537 | G29: 169.6787571 | H29: 396 | I29: 709 | J29: 69.15218537 | K29: 169.6787571 | L29: 396 | M29: 709
A30: 27 | B30: 0.8336573669 | C30: 0.2518432711 | D30: -0.006986020496 | E30: 0.6031722636 | F30: 69.97904194 | G30: 169.2641729 | H30: 494 | I30: 695 | J30: 69.97904194 | K30: 169.2641729 | L30: 494 | M30: 695
A31: 28 | B31: 0.2822605449 | C31: 0.5056805759 | D31: -1.589537026 | E31: -0.05675803582 | F31: 65.23138892 | G31: 150.1850862 | H31: 55 | I31: 196 | J31: 65.23138892 | K31: 150.1850862 | L31: 55 | M31: 196
A32: 29 | B32: 0.9508363497 | C32: 0.4118179999 | D32: -0.2700271818 | E32: 0.1670686931 | F32: 69.18991845 | G32: 162.13541 | H32: 399 | I32: 522 | J32: 69.18991845 | K32: 162.1352869 | L32: 399 | M32: 521.5
A33: 30 | B33: 0.3989260797 | C33: 0.2216023187 | D33: 0.2406155664 | E33: 1.334189805 | F33: 70.7218467 | G33: 179.8605007 | H33: 592 | I33: 902 | J33: 70.7218467 | K33: 179.8605007 | L33: 592 | M33: 902
A34: 31 | B34: 0.5821903396 | C34: 0.976488143 | D34: 1.02882227 | E34: -0.1531026421 | F34: 73.08646681 | G34: 167.345485 | H34: 857 | I34: 650 | J34: 73.08646681 | K34: 167.345485 | L34: 857 | M34: 650
A35: 32 | B35: 0.543872972 | C35: 0.1195475498 | D35: 0.8066825879 | E35: 0.7532213061 | F35: 72.42004776 | G35: 176.7791011 | H35: 799 | I35: 854 | J35: 72.42004776 | K35: 176.7791011 | L35: 799 | M35: 854
A36: 33 | B36: 0.08651938781 | C36: 0.5916059406 | D36: -1.855945713 | E36: -1.204258701 | F36: 64.43216286 | G36: 134.4075192 | H36: 30 | I36: 19 | J36: 64.43216286 | K36: 134.4075192 | L36: 30 | M36: 19
A37: 34 | B37: 0.9122652403 | C37: 0.7842842318 | D37: 0.09160192019 | E37: -0.4186383682 | F37: 70.27480576 | G37: 157.565493 | H37: 532 | I37: 376 | J37: 70.27480576 | K37: 157.565493 | L37: 532 | M37: 376
A38: 35 | B38: 0.2664055806 | C38: 0.6877331661 | D38: -0.6202287672 | E38: -1.503591388 | F38: 68.1393137 | G38: 139.4283219 | H38: 270 | I38: 50 | J38: 68.1393137 | K38: 139.4283219 | L38: 270 | M38: 50
A39: 36 | B39: 0.3130615919 | C39: 0.03362696569 | D39: 1.490153018 | E39: 0.319616397 | F39: 74.47045905 | G39: 176.306214 | H39: 937 | I39: 845 | J39: 74.47045905 | K39: 176.306214 | L39: 937 | M39: 845
A40: 37 | B40: 0.331961533 | C40: 0.5999138021 | D40: -1.201930205 | E40: -0.8722592191 | F40: 66.39420939 | G40: 143.0109076 | H40: 113 | I40: 89 | J40: 66.39420939 | K40: 143.0109076 | L40: 113 | M40: 89
A41: 38 | B41: 0.8582642767 | C41: 0.0658267577 | D41: 0.5062691043 | E41: 0.2222116522 | F41: 71.51880731 | G41: 168.2380568 | H41: 686 | I41: 672 | J41: 71.51880731 | K41: 168.2380568 | L41: 686 | M41: 672
A42: 39 | B42: 0.6663919998 | C42: 0.8173735406 | D42: 0.370111215 | E42: -0.8214451139 | F42: 71.11033365 | G42: 154.6312858 | H42: 637 | I42: 297 | J42: 71.11033365 | K42: 154.6312858 | L42: 637 | M42: 297
A43: 40 | B43: 0.3774014828 | C43: 0.2565346691 | D43: -0.05730272376 | E43: 1.394850469 | F43: 69.82809183 | G43: 178.5105441 | H43: 479 | I43: 882 | J43: 69.82809183 | K43: 178.5105441 | L43: 479 | M43: 882
A44: 41 | B44: 0.653465465 | C44: 0.1909200924 | D44: 0.3346159268 | E44: 0.8596297857 | F44: 71.00384778 | G44: 174.7647687 | H44: 620 | I44: 815 | J44: 71.00384778 | K44: 174.7647687 | L44: 620 | M44: 815
A45: 42 | B45: 0.6734102014 | C45: 0.3709409012 | D45: -0.6125689492 | E45: 0.6446398444 | F45: 68.16229315 | G45: 165.5278601 | H45: 273 | I45: 610 | J45: 68.16229315 | K45: 165.5278601 | L45: 273 | M45: 610
A46: 43 | B46: 0.3211053883 | C46: 0.7293766045 | D46: -0.1947715147 | E46: -1.494669145 | F46: 69.41568546 | G46: 142.5146991 | H46: 421 | I46: 81 | J46: 69.41568546 | K46: 142.5146991 | L46: 421 | M46: 81
A47: 44 | B47: 0.596172457 | C47: 0.2045457062 | D47: 0.2865428491 | E47: 0.9758810319 | F47: 70.85962855 | G47: 175.8377286 | H47: 606 | I47: 836 | J47: 70.85962855 | K47: 175.8377286 | L47: 606 | M47: 836
A48: 45 | B48: 0.444319115 | C48: 0.3372232352 | D48: -0.6636399592 | E48: 1.087201223 | F48: 68.00908012 | G48: 170.5361346 | H48: 250 | I48: 730 | J48: 68.00908012 | K48: 170.5361346 | L48: 250 | M48: 730
A49: 46 | B49: 0.7674428113 | C49: 0.9036132964 | D49: 0.5981868837 | E49: -0.4141920842 | F49: 71.79456065 | G49: 161.165496 | H49: 719 | I49: 484 | J49: 71.79456065 | K49: 161.165496 | L49: 719 | M49: 484
A50: 47 | B50: 0.7469186299 | C50: 0.5327059745 | D50: -0.7478623426 | E50: -0.1558844906 | F50: 67.75641297 | G50: 154.8749646 | H50: 222 | I50: 307 | J50: 67.75634656 | K50: 154.8749646 | L50: 221.5 | M50: 307
A51: 48 | B51: 0.9030123511 | C51: 0.485372756 | D51: -0.4497994033 | E51: 0.04145590923 | F51: 68.65060179 | G51: 159.3540304 | H51: 345 | I51: 434 | J51: 68.65060179 | K51: 159.3540304 | L51: 345 | M51: 434
A52: 49 | B52: 0.1712748954 | C52: 0.2024994727 | D52: 0.5523770274 | E52: 1.795508422 | F52: 71.65713108 | G52: 187.6360219 | H52: 703 | I52: 965 | J52: 71.65713108 | K52: 187.6360219 | L52: 703 | M52: 965
A53: 50 | B53: 0.7457642261 | C53: 0.3247521285 | D53: -0.346674305 | E53: 0.6830142644 | F53: 68.95997709 | G53: 167.8543877 | H53: 369 | I53: 659 | J53: 68.95997709 | K53: 167.8543877 | L53: 369 | M53: 659
A54: 51 | B54: 0.790330498 | C54: 0.3866322858 | D54: -0.5192084612 | E54: 0.4483644857 | F54: 68.44237462 | G54: 163.8016713 | H54: 312 | I54: 562 | J54: 68.44237462 | K54: 163.8016713 | L54: 312 | M54: 562
A55: 52 | B55: 0.6461154167 | C55: 0.9468314001 | D55: 0.8829707786 | E55: -0.3064585767 | F55: 72.64891234 | G55: 164.4651827 | H55: 813 | I55: 587 | J55: 72.64891234 | K55: 164.4651827 | L55: 813 | M55: 587
A56: 53 | B56: 0.1119530501 | C56: 0.4397183742 | D56: -1.94436772 | E56: 0.7738123478 | F56: 64.16689684 | G56: 157.7714021 | H56: 23 | I56: 382 | J56: 64.16689684 | K56: 157.7714021 | L56: 23 | M56: 382
A57: 54 | B57: 0.987883779 | C57: 0.523732802 | D57: -0.154409595 | E57: -0.023197382 | F57: 69.53677122 | G57: 160.6378795 | H57: 442 | I57: 469 | J57: 69.53677122 | K57: 160.6378795 | L57: 442 | M57: 469
A58: 55 | B58: 0.382643851 | C58: 0.6924103118 | D58: -0.4906856615 | E58: -1.296352117 | F58: 68.52794302 | G58: 142.8477662 | H58: 330 | I58: 87 | J58: 68.52794302 | K58: 142.8477662 | L58: 330 | M58: 87
A59: 56 | B59: 0.09971269775 | C59: 0.7128977991 | D59: -0.4960583662 | E59: -2.089222487 | F59: 68.5118249 | G59: 133.197115 | H59: 328 | I59: 13 | J59: 68.5118249 | K59: 133.197115 | L59: 328 | M59: 13
A60: 57 | B60: 0.3785742443 | C60: 0.2393195796 | D60: 0.09346381973 | E60: 1.390665545 | F60: 70.28039146 | G60: 179.5151704 | H60: 536 | I60: 896 | J60: 70.28039146 | K60: 179.5151704 | L60: 536 | M60: 896
A61: 58 | B61: 0.8652382663 | C61: 0.6374742403 | D61: -0.3495034961 | E61: -0.4090819252 | F61: 68.95148951 | G61: 154.5936208 | H61: 368 | I61: 295 | J61: 68.95148951 | K61: 154.5936208 | L61: 368 | M61: 295
A62: 59 | B62: 0.09244443624 | C62: 0.9433739784 | D62: 2.045594986 | E62: -0.7601553549 | F62: 76.13678496 | G62: 167.102771 | H62: 983 | I62: 643 | J62: 76.13678496 | K62: 167.102771 | L62: 983 | M62: 643
A63: 60 | B63: 0.5957075891 | C63: 0.9213299933 | D63: 0.8960118221 | E63: -0.4828804449 | F63: 72.68803547 | G63: 162.4174685 | H63: 818 | I63: 530 | J63: 72.68803547 | K63: 162.4174685 | L63: 818 | M63: 530
A64: 61 | B64: 0.9105508553 | C64: 0.002838952022 | D64: 0.4328411136 | E64: 0.007721692311 | F64: 71.29852334 | G64: 165.1235083 | H64: 661 | I64: 600 | J64: 71.29852334 | K64: 165.1235083 | L64: 661 | M64: 600
A65: 62 | B65: 0.3883332894 | C65: 0.04479169734 | D65: 1.321309094 | E65: 0.3820011886 | F65: 73.96392728 | G65: 175.8806819 | H65: 906 | I65: 838 | J65: 73.96392728 | K65: 175.8806819 | L65: 906 | M65: 838
A66: 63 | B66: 0.3470799783 | C66: 0.3119199255 | D66: -0.5518198536 | E66: 1.346066466 | F66: 68.34454044 | G66: 174.4574496 | H66: 298 | I66: 806 | J66: 68.34454044 | K66: 174.4574496 | L66: 298 | M66: 806
A67: 64 | B67: 0.9991611144 | C67: 0.6942473397 | D67: -0.01405995873 | E67: -0.03848107079 | F67: 69.95782012 | G67: 161.4350221 | H67: 493 | I67: 494 | J67: 69.95782012 | K67: 161.4350221 | L67: 493 | M67: 494
A68: 65 | B68: 0.5678947178 | C68: 0.8344165966 | D68: 0.5381505624 | E68: -0.9176232556 | F68: 71.61445169 | G68: 154.6414632 | H68: 696 | I68: 299 | J68: 71.61445169 | K68: 154.6414632 | L68: 696 | M68: 299
A69: 66 | B69: 0.2346918612 | C69: 0.1586807511 | D69: 0.9242018628 | E69: 1.429970148 | F69: 72.77260559 | G69: 185.8068797 | H69: =_xlfn.RANK.AVG(F69,F$4:F$1003,1) -> 825 | I69: =_xlfn.RANK.AVG(G69,G$4:G$1003,1) -> 954 | J69: 72.77260559 | K69: 185.8068797 | L69: =_xlfn.RANK.AVG(J69,J$4:J$1003,1) -> 825 | M69: =_xlfn.RANK.AVG(K69,K$4:K$1003,1) -> 954
A70: 67 | B70: 0.4432619648 | C70: 0.3583376152 | D70: -0.8027959813 | E70: 0.9913159409 | F70: 67.59161206 | G70: 168.3994952 | H70: 206 | I70: 676 | J70: 67.59161206 | K70: 168.3994952 | L70: 206 | M70: 676
A71: 68 | B71: 0.328754684 | C71: 0.227682513 | D71: 0.2084754578 | E71: 1.476964752 | F71: 70.62542637 | G71: 181.3665741 | H71: 579 | I71: 916 | J71: 70.62542637 | K71: 181.3665741 | L71: 579 | M71: 916
A72: 69 | B72: 0.6594090782 | C72: 0.7831404105 | D72: 0.18865616 | E72: -0.8928780518 | F72: 70.56596848 | G72: 152.4950221 | H72: 567 | I72: 251 | J72: 70.56589321 | K72: 152.4950221 | L72: 566.5 | M72: 251
A73: 70 | B73: 0.9529068209 | C73: 0.8774256836 | D73: 0.222953637 | E73: -0.2162590692 | F73: 70.66886091 | G73: 160.9386736 | H73: 586 | I73: 478 | J73: 70.66886091 | K73: 160.9386736 | L73: 586 | M73: 478
A74: 71 | B74: 0.6314332276 | C74: 0.2577908757 | D74: -0.04692180686 | E74: 0.9577705895 | F74: 69.85923458 | G74: 173.2838986 | H74: 482 | I74: 792 | J74: 69.85923458 | K74: 173.2838986 | L74: 482 | M74: 792
A75: 72 | B75: 0.3042085896 | C75: 0.8535236046 | D75: 0.9342148463 | E75: -1.227732034 | F75: 72.80264454 | G75: 153.6540441 | H75: 829 | I75: 275 | J75: 72.80264454 | K75: 153.6540441 | L75: 829 | M75: 275
A76: 73 | B76: 0.9665952742 | C76: 0.5228743644 | D76: -0.2579860964 | E76: -0.03733619405 | F76: 69.22604171 | G76: 159.74142 | H76: 405 | I76: 446 | J76: 69.22604171 | K76: 159.74142 | L76: 405 | M76: 446
A77: 74 | B77: 0.07974307614 | C77: 0.3335158406 | D77: -1.126720448 | E77: 1.946379139 | F77: 66.61983866 | G77: 177.7115498 | H77: 128 | I77: 869 | J77: 66.61983866 | K77: 177.7115498 | L77: 128 | M77: 869
A78: 75 | B78: 0.1457110495 | C78: 0.364404493 | D78: -1.292450498 | E78: 1.47710229 | F78: 66.12264851 | G78: 170.86176 | H78: 102 | I78: 736 | J78: 66.12264851 | K78: 170.86176 | L78: 102 | M78: 736
A79: 76 | B79: 0.1826553067 | C79: 0.9535940264 | D79: 1.766160762 | E79: -0.5300802849 | F79: 75.29848228 | G79: 167.9362434 | H79: 970 | I79: 662 | J79: 75.29848228 | K79: 167.9362434 | L79: 970 | M79: 662
A80: 77 | B80: 0.01274526965 | C80: 0.977974306 | D80: 2.925602088 | E80: -0.4074832397 | F80: 78.77680626 | G80: 177.5387429 | H80: 997 | I80: 864 | J80: 78.77680626 | K80: 177.5387429 | L80: 997 | M80: 864
A81: 78 | B81: 0.1251432089 | C81: 0.01373238244 | D81: 2.031188045 | E81: 0.1756934242 | F81: 76.09356413 | G81: 178.3484859 | H81: 981 | I81: 880 | J81: 76.09356413 | K81: 178.3484859 | L81: 981 | M81: 880
A82: 79 | B82: 0.2561253269 | C82: 0.4057915871 | D82: -1.36970044 | E82: 0.9209220905 | F82: 65.89089868 | G82: 163.5776839 | H82: 84 | I82: 558 | J82: 65.89089868 | K82: 163.5776839 | L82: 84 | M82: 558
A83: 80 | B83: 0.4426390003 | C83: 0.7619257628 | D83: 0.09557703356 | E83: -1.273132557 | F83: 70.2867311 | G83: 147.2331273 | H83: 538 | I83: 146 | J83: 70.2867311 | K83: 147.2332266 | L83: 538 | M83: 146.5
A84: 81 | B84: 0.816341682 | C84: 0.9492651242 | D84: 0.6049639713 | E84: -0.1996576093 | F84: 71.81489191 | G84: 163.8140279 | H84: 721 | I84: 563 | J84: 71.81489191 | K84: 163.8140279 | L84: 721 | M84: 563
A85: 82 | B85: 0.5266293918 | C85: 0.238118538 | D85: 0.08446518768 | E85: 1.12932815 | F85: 70.25339556 | G85: 176.2836325 | H85: 531 | I85: 844 | J85: 70.25339556 | K85: 176.2836325 | L85: 531 | M85: 844
A86: 83 | B86: 0.9615175375 | C86: 0.6205765291 | D86: -0.2035257272 | E86: -0.1925155245 | F86: 69.38942282 | G86: 158.2411932 | H86: 416 | I86: 397 | J86: 69.38942282 | K86: 158.2411932 | L86: 416 | M86: 397
A87: 84 | B87: 0.09601338249 | C87: 0.1990013823 | D87: 0.6818778026 | E87: 2.054647915 | F87: 72.04563341 | G87: 191.6844267 | H87: 756 | I87: 983 | J87: 72.04563341 | K87: 191.6844267 | L87: 756 | M87: 983
A88: 85 | B88: 0.9385253197 | C88: 0.2656736483 | D88: -0.035023776 | E88: 0.3544915007 | F88: 69.89492867 | G88: 166.0528146 | H88: 484 | I88: 616 | J88: 69.89492867 | K88: 166.0528146 | L88: 484 | M88: 616
A89: 86 | B89: 0.3223382174 | C89: 0.6131450166 | D89: -1.140259786 | E89: -0.9818938129 | F89: 66.57922064 | G89: 142.1133517 | H89: 121 | I89: 75 | J89: 66.57922064 | K89: 142.1133517 | L89: 121 | M89: 75
A90: 87 | B90: 0.694845604 | C90: 0.1076918746 | D90: 0.6653023002 | E90: 0.5343258093 | F90: 71.9959069 | G90: 173.1354722 | H90: 750 | I90: 790 | J90: 71.9959069 | K90: 173.1354722 | L90: 750 | M90: 790
A91: 88 | B91: 0.5538131104 | C91: 0.479721428 | D91: -1.078319502 | E91: 0.1381413838 | F91: 66.76504149 | G91: 156.1266388 | H91: 148 | I91: 341 | J91: 66.76504149 | K91: 156.1266388 | L91: 148 | M91: 341
A92: 89 | B92: 0.9113087276 | C92: 0.9254867927 | D92: 0.3846061029 | E92: -0.194487137 | F92: 71.15381831 | G92: 162.3342115 | H92: 643 | I92: 529 | J92: 71.15381831 | K92: 162.3342115 | L92: 643 | M92: 529
A93: 90 | B93: 0.6704653781 | C93: 0.3913681515 | D93: -0.6938554031 | E93: 0.5640311221 | F93: 67.91843379 | G93: 163.9815261 | H93: 238 | I93: 572 | J93: 67.91843379 | K93: 163.9814083 | L93: 238 | M93: 571.5
A94: 91 | B94: 0.7672666611 | C94: 0.7141029014 | D94: -0.16278853 | E94: -0.7094657392 | F94: 69.51163441 | G94: 152.2586653 | H94: 436 | I94: 243 | J94: 69.51163441 | K94: 152.2586653 | L94: 436 | M94: 243
A95: 92 | B95: 0.1783115364 | C95: 0.7794049205 | D95: 0.3411442139 | E95: -1.825394953 | F95: 71.02343264 | G95: 142.2562719 | H95: 625 | I95: 78 | J95: 71.0234844 | K95: 142.2562719 | L95: 625.5 | M95: 78
A96: 93 | B96: 0.7488532369 | C96: 0.9025111574 | D96: 0.6222680862 | E96: -0.4372721682 | F96: 71.86680426 | G96: 161.0542333 | H96: 729 | I96: 481 | J96: 71.86680426 | K96: 161.0542333 | L96: 729 | M96: 481
A97: 94 | B97: 0.842488909 | C97: 0.7285189639 | D97: -0.07878245622 | E97: -0.5801576399 | F97: 69.76365263 | G97: 154.4144852 | H97: 467 | I97: 294 | J97: 69.76365263 | K97: 154.4144852 | L97: 467 | M97: 294
A98: 95 | B98: 0.2441396166 | C98: 0.08520510605 | D98: 1.44433652 | E98: 0.8566925078 | F98: 74.33300956 | G98: 182.4972003 | H98: 925 | I98: 930 | J98: 74.33300956 | K98: 182.4972003 | L98: 925 | M98: 930
A99: 96 | B99: 0.5877303739 | C99: 0.9654692164 | D99: 1.006835011 | E99: -0.2219396982 | F99: 73.02050503 | G99: 166.3569692 | H99: 854 | I99: 623 | J99: 73.02050503 | K99: 166.3569692 | L99: 854 | M99: 623
A100: 97 | B100: 0.4571136364 | C100: 0.01950337317 | D100: 1.241874743 | E100: 0.1529498151 | F100: 73.72562423 | G100: 172.5475412 | H100: 896 | I100: 778 | J100: 73.72562423 | K100: 172.5475412 | L100: 896 | M100: 778
A101: 98 | B101: 0.1062562195 | C101: 0.1587051554 | D101: 1.149120838 | E101: 1.778573915 | F101: 73.44736251 | G101: 191.6079086 | H101: 876 | I101: 980 | J101: 73.44736251 | K101: 191.6079086 | L101: 876 | M101: 980
A102: 99 | B102: 0.3136199681 | C102: 0.5532014331 | D102: -1.438581225 | E102: -0.499630561 | F102: 65.68425633 | G102: 145.8722328 | H102: 71 | I102: 122 | J102: 65.68425633 | K102: 145.8722328 | L102: 71 | M102: 122
A103: 100 | B103: 0.4900599452 | C103: 0.4160274025 | D103: -1.031924403 | E103: 0.6013211646 | F103: 66.90422679 | G103: 162.0671608 | H103: 157 | I103: 517 | J103: 66.90422679 | K103: 162.0671608 | L103: 157 | M103: 517
A104: 101 | B104: 0.9951325895 | C104: 0.2557197119 | D104: -0.003549392826 | E104: 0.09872178905 | F104: 69.98935182 | G104: 163.1720923 | H104: 497 | I104: 548 | J104: 69.98935182 | K104: 163.1720923 | L104: 497 | M104: 548
A105: 102 | B105: 0.02187903951 | C105: 0.4973060523 | D105: -2.764464217 | E105: 0.04679737452 | F105: 61.70660735 | G105: 143.2161385 | H105: 2 | I105: 93 | J105: 61.70660735 | K105: 143.2161385 | L105: 2 | M105: 93
A106: 103 | B106: 0.2435890825 | C106: 0.8467531593 | D106: 0.959912933 | E106: -1.379533357 | F106: 72.8797388 | G106: 151.9934375 | H106: 840 | I106: 234 | J106: 72.8797388 | K106: 151.9934375 | L106: 840 | M106: 234
A107: 104 | B107: 0.1262094636 | C107: 0.8236373161 | D107: 0.9081368793 | E107: -1.820690005 | F107: 72.72441064 | G107: 146.282265 | H107: 822 | I107: 129 | J107: 72.72441064 | K107: 146.282265 | L107: 822 | M107: 129
A108: 105 | B108: 0.116443836 | C108: 0.1301421574 | D108: 1.418270523 | E108: 1.513010627 | F108: 74.25481157 | G108: 190.2721726 | H108: 920 | I108: 976 | J108: 74.25481157 | K108: 190.2721726 | L108: 920 | M108: 976
A109: 106 | B109: 0.8603155646 | C109: 0.1368439797 | D109: 0.3579739629 | E109: 0.4156521201 | F109: 71.07392189 | G109: 169.5453319 | H109: 632 | I109: 705 | J109: 71.07392189 | K109: 169.5453319 | L109: 632 | M109: 705
A110: 107 | B110: 0.8410269659 | C110: 0.9383056538 | D110: 0.5447817731 | E110: -0.2224318562 | F110: 71.63434532 | G110: 163.1166295 | H110: 700 | I110: 544 | J110: 71.63434532 | K110: 163.1166295 | L110: 700 | M110: 544
A111: 108 | B111: 0.1318698709 | C111: 0.09985104375 | D111: 1.62959964 | E111: 1.181644766 | F111: 74.88879892 | G111: 187.7338789 | H111: 958 | I111: 966 | J111: 74.88879892 | K111: 187.7338789 | L111: 958 | M111: 966
A112: 109 | B112: 0.05651102893 | C112: 0.6873083731 | D112: -0.9200403357 | E112: -2.213631563 | F112: 67.23987899 | G112: 128.7208613 | H112: 182 | I112: 6 | J112: 67.23987899 | K112: 128.7208613 | L112: 182 | M112: 6
A113: 110 | B113: 0.7911114075 | C113: 0.3857517933 | D113: -0.5156345428 | E113: 0.4502821037 | F113: 68.45309637 | G113: 163.8499386 | H113: 315 | I113: 566 | J113: 68.45309637 | K113: 163.8499386 | L113: 315 | M113: 566
A114: 111 | B114: 0.5658488814 | C114: 0.7230376642 | D114: -0.1799254279 | E114: -1.0518951 | F114: 69.46022372 | G114: 147.9869717 | H114: 425 | I114: 155 | J114: 69.46022372 | K114: 147.9869717 | L114: 425 | M114: 155
A115: 112 | B115: 0.08559963363 | C115: 0.6741349019 | D115: -1.017328871 | E115: -1.970073735 | F115: 66.94801339 | G115: 130.9928233 | H115: 161 | I115: 9 | J115: 66.94801339 | K115: 130.9928233 | L115: 161 | M115: 9
A116: 113 | B116: 0.7704218639 | C116: 0.3690825111 | D116: -0.4913656468 | E116: 0.5293334291 | F116: 68.52590306 | G116: 164.9782672 | H116: 329 | I116: 597 | J116: 68.52590306 | K116: 164.9782672 | L116: 329 | M116: 597
A117: 114 | B117: 0.5145935642 | C117: 0.8947752907 | D117: 0.9098264525 | E117: -0.7077934709 | F117: 72.72947936 | G117: 159.7872454 | H117: 823 | I117: 448 | J117: 72.72947936 | K117: 159.7872454 | L117: 823 | M117: 448
A118: 115 | B118: 0.7169493297 | C118: 0.468211789 | D118: -0.7995641754 | E118: 0.1618559572 | F118: 67.60130747 | G118: 158.36545 | H118: 207 | I118: 401 | J118: 67.60130747 | K118: 158.36545 | L118: 207 | M118: 401
A119: 116 | B119: 0.918874095 | C119: 0.3214674653 | D119: -0.1785704945 | E119: 0.3705737645 | F119: 69.46428852 | G119: 165.2429747 | H119: 427 | I119: 606 | J119: 69.46428852 | K119: 165.2429747 | L119: 427 | M119: 606
A120: 117 | B120: 0.3127874286 | C120: 0.1410498208 | D120: 0.9640587683 | E120: 1.181123877 | F120: 72.8921763 | G120: 183.0687773 | H120: 842 | I120: 934 | J120: 72.8921763 | K120: 183.0687773 | L120: 842 | M120: 934
A121: 118 | B121: 0.8555470302 | C121: 0.3020676285 | D121: -0.1795022974 | E121: 0.5289681952 | F121: 69.46149311 | G121: 167.1568824 | H121: 426 | I121: 644 | J121: 69.46149311 | K121: 167.1568824 | L121: 426 | M121: 644
A122: 119 | B122: 0.753053493 | C122: 0.2402331614 | D122: 0.04618957101 | E122: 0.7517343622 | F122: 70.13856871 | G122: 171.4376218 | H122: 515 | I122: 750 | J122: 70.13856871 | K122: 171.4376218 | L122: 515 | M122: 750
A123: 120 | B123: 0.3919168559 | C123: 0.9800017447 | D123: 1.357935163 | E123: -0.1715319815 | F123: 74.07380549 | G123: 169.4258314 | H123: 911 | I123: 701 | J123: 74.07380549 | K123: 169.4258314 | L123: 911 | M123: 701
A124: 121 | B124: 0.4792005779 | C124: 0.7981729273 | D124: 0.3615577929 | E124: -1.157820373 | F124: 71.08467338 | G124: 150.4930786 | H124: 635 | I124: 203 | J124: 71.08467338 | K124: 150.4930786 | L124: 635 | M124: 203
A125: 122 | B125: 0.3785174883 | C125: 0.3040163957 | D125: -0.4640560091 | E125: 1.31439645 | F125: 68.60783197 | G125: 174.687818 | H125: 340 | I125: 812 | J125: 68.60783197 | K125: 174.687818 | L125: 340 | M125: 812
A126: 123 | B126: 0.4266820367 | C126: 0.4037667442 | D126: -1.073752332 | E126: 0.7419489906 | F126: 66.778743 | G126: 163.4793871 | H126: 149 | I126: 553 | J126: 66.778743 | K126: 163.4793871 | L126: 149 | M126: 553
A127: 124 | B127: 0.515612494 | C127: 0.1651269458 | D127: 0.5851159463 | E127: 0.9911805496 | F127: 71.75534784 | G127: 178.1132371 | H127: 713 | I127: 879 | J127: 71.75534784 | K127: 178.1132371 | L127: 713 | M127: 879
A128: 125 | B128: 0.09099561345 | C128: 0.7657876092 | D128: 0.2168341608 | E128: -2.178731489 | F128: 70.65050248 | G128: 137.1021237 | H128: 582 | I128: 30 | J128: 70.65050248 | K128: 137.1021237 | L128: 582 | M128: 30
A129: 126 | B129: 0.9506921061 | C129: 0.6654054169 | D129: -0.1611822309 | E129: -0.2741356275 | F129: 69.51645331 | G129: 157.5480065 | H129: 438 | I129: 375 | J129: 69.51645331 | K129: 157.5480065 | L129: 438 | M129: 375
A130: 127 | B130: 0.7278011166 | C130: 0.6374139746 | D130: -0.5180378429 | E130: -0.6058809392 | F130: 68.44588647 | G130: 151.0278191 | H130: 313 | I130: 220 | J130: 68.44588647 | K130: 151.0278191 | L130: 313 | M130: 220
A131: 128 | B131: 0.5300014359 | C131: 0.1803175555 | D131: 0.4777465785 | E131: 1.020543646 | F131: 71.43323974 | G131: 177.7176602 | H131: 677 | I131: 870 | J131: 71.4332846 | K131: 177.7176602 | L131: 677.5 | M131: 870
A132: 129 | B132: 0.48980333 | C132: 0.7753767748 | D132: 0.189698106 | E132: -1.179625915 | F132: 70.56909432 | G132: 149.0256826 | H132: 568 | I132: 175 | J132: 70.56909432 | K132: 149.0256826 | L132: 568 | M132: 175
A133: 130 | B133: 0.3420015971 | C133: 0.123411149 | D133: 1.046117041 | E133: 1.025435947 | F133: 73.13835112 | G133: 181.7555694 | H133: =_xlfn.RANK.AVG(F133,F$4:F$1003,1) -> 862 | I133: =_xlfn.RANK.AVG(G133,G$4:G$1003,1) -> 922 | J133: 73.13835112 | K133: 181.7555694 | L133: =_xlfn.RANK.AVG(J133,J$4:J$1003,1) -> 862 | M133: =_xlfn.RANK.AVG(K133,K$4:K$1003,1) -> 922
A134: 131 | B134: 0.7869681811 | C134: 0.4454669579 | D134: -0.651958783 | E134: 0.2325611085 | F134: 68.04412365 | G134: 160.2559421 | H134: 260 | I134: 463 | J134: 68.04412365 | K134: 160.2559421 | L134: 260 | M134: 463
A135: 132 | B135: 0.2075731497 | C135: 0.9075972734 | D135: 1.482720183 | E135: -0.9726683941 | F135: 74.44816055 | G135: 160.5860637 | H135: 934 | I135: 468 | J135: 74.44816055 | K135: 160.5860637 | L135: 934 | M135: 468
A136: 133 | B136: 0.7160905994 | C136: 0.8402695233 | D136: 0.439072227 | E136: -0.6892842291 | F136: 71.31721668 | G136: 156.7163784 | H136: 663 | I136: 355 | J136: 71.31721668 | K136: 156.7163784 | L136: 663 | M136: 355
A137: 134 | B137: 0.3059204667 | C137: 0.4661573415 | D137: -1.504445199 | E137: 0.3248151634 | F137: 65.4866644 | G137: 155.4070582 | H137: 64 | I137: 321 | J137: 65.4866644 | K137: 155.4070582 | L137: 64 | M137: 321
A138: 135 | B138: 0.616734699 | C138: 0.123456027 | D138: 0.7019210173 | E138: 0.6884326774 | F138: 72.10576305 | G138: 175.2602497 | H138: 763 | I138: 831 | J138: 72.10576305 | K138: 175.2602497 | L138: 763 | M138: 831
A139: 136 | B139: 0.547907625 | C139: 0.4079404147 | D139: -0.9185011023 | E139: 0.5997106575 | F139: 67.24449669 | G139: 162.8415976 | H139: 183 | I139: 537 | J139: 67.24449669 | K139: 162.8415976 | L139: 183 | M139: 537
A140: 137 | B140: 0.250730834 | C140: 0.1477683209 | D140: 0.9964681665 | E140: 1.331841497 | F140: 72.9894045 | G140: 185.1229971 | H140: 851 | I140: 948 | J140: 72.9894045 | K140: 185.1229971 | L140: 851 | M140: 948
A141: 138 | B141: 0.8894230341 | C141: 0.8136918944 | D141: 0.1886059779 | E141: -0.4458614029 | F141: 70.56581793 | G141: 157.9144596 | H141: 566 | I141: 383 | J141: 70.56589321 | K141: 157.9144596 | L141: 566.5 | M141: 383
A142: 139 | B142: 0.1938996377 | C142: 0.1069318347 | D142: 1.417632127 | E142: 1.127452138 | F142: 74.25289638 | G142: 185.5930556 | H142: 918 | I142: 950 | J142: 74.25289638 | K142: 185.5930556 | L142: 918 | M142: 950
A143: 140 | B143: 0.485097812 | C143: 0.893743295 | D143: 0.9445744792 | E143: -0.7447070037 | F143: 72.83372344 | G143: 159.5829288 | H143: 832 | I143: 442 | J143: 72.83372344 | K143: 159.5829288 | L143: 832 | M143: 442
A144: 141 | B144: 0.8720659764 | C144: 0.6905998006 | D144: -0.1907827925 | E144: -0.4872189651 | F144: 69.42765162 | G144: 154.7573044 | H144: 422 | I144: 302 | J144: 69.42765162 | K144: 154.7573044 | L144: 422 | M144: 302
A145: 142 | B145: 0.9811741775 | C145: 0.009953256801 | D145: 0.1945818642 | E145: 0.01218468014 | F145: 70.58374559 | G145: 163.5098044 | H145: 570 | I145: 555 | J145: 70.58374559 | K145: 163.5098044 | L145: 570 | M145: 555
A146: 143 | B146: 0.997238452 | C146: 0.07649096929 | D146: 0.06594399832 | E146: 0.03438204825 | F146: 70.19783199 | G146: 162.8784682 | H146: 528 | I146: 538 | J146: 70.19783199 | K146: 162.8784682 | L146: 528 | M146: 538
A147: 144 | B147: 0.9025140689 | C147: 0.6968017673 | D147: -0.1485891292 | E147: -0.4278589379 | F147: 69.55423261 | G147: 155.7723622 | H147: 446 | I147: 330 | J147: 69.55423261 | K147: 155.7723622 | L147: 446 | M147: 330
A148: 145 | B148: 0.3033562804 | C148: 0.5048673431 | D148: -1.543847154 | E148: -0.04722930548 | F148: 65.36845854 | G148: 150.620445 | H148: 60 | I148: 207 | J148: 65.36845854 | K148: 150.620445 | L148: 60 | M148: 207
A149: 146 | B149: 0.09985121643 | C149: 0.4319613773 | D149: -1.953471932 | E149: 0.8899974621 | F149: 64.1395842 | G149: 159.1163422 | H149: 21 | I149: 429 | J149: 64.1395842 | K149: 159.1163422 | L149: 21 | M149: 429
A150: 147 | B150: 0.8434603717 | C150: 0.7655770555 | D150: 0.05701911327 | E150: -0.5807181232 | F150: 70.17105734 | G150: 155.3583007 | H150: 521 | I150: 319 | J150: 70.17105734 | K150: 155.3583007 | L150: 521 | M150: 319
A151: 148 | B151: 0.8118360087 | C151: 0.8375504539 | D151: 0.3375459055 | E151: -0.5504331019 | F151: 71.01263772 | G151: 157.6891746 | H151: 622 | I151: 379 | J151: 71.01263772 | K151: 157.6891746 | L151: 622 | M151: 379
A152: 149 | B152: 0.3852053599 | C152: 0.2675303188 | D152: -0.1518362619 | E152: 1.372917739 | F152: 69.54449121 | G152: 177.5828891 | H152: 444 | I152: 867 | J152: 69.54449121 | K152: 177.5828891 | L152: 444 | M152: 867
A153: 150 | B153: 0.3480832663 | C153: 0.08643631828 | D153: 1.24376092 | E153: 0.7507901746 | F153: 73.73128276 | G153: 179.8091735 | H153: 897 | I153: 901 | J153: 73.73128276 | K153: 179.8091735 | L153: 897 | M153: 901
A154: 151 | B154: 0.8096603214 | C154: 0.9726408213 | D154: 0.6402536547 | E154: -0.1111584848 | F154: 71.92076096 | G154: 165.1340506 | H154: 740 | I154: 601 | J154: 71.92076096 | K154: 165.1340506 | L154: 740 | M154: 601
A155: 152 | B155: 0.1372717617 | C155: 0.3612354488 | D155: -1.282193203 | E155: 1.525636229 | F155: 66.15342039 | G155: 171.5220038 | H155: 103 | I155: 754 | J155: 66.15342039 | K155: 171.5220038 | L155: 103 | M155: 754
A156: 153 | B156: 0.4862462348 | C156: 0.8827534092 | D156: 0.8894838751 | E156: -0.8067829267 | F156: 72.66845163 | G156: 158.444664 | H156: 815 | I156: 407 | J156: 72.66845163 | K156: 158.444664 | L156: 815 | M156: 407
A157: 154 | B157: 0.957974233 | C157: 0.7127423492 | D157: -0.06797341707 | E157: -0.2850410683 | F157: 69.79607975 | G157: 158.0682468 | H157: 474 | I157: 389 | J157: 69.79607975 | K157: 158.0682468 | L157: 474 | M157: 389
A158: 155 | B158: 0.01379063112 | C158: 0.6080279548 | D158: -2.27826336 | E158: -1.837674537 | F158: 63.16520992 | G158: 123.7715368 | H158: 7 | I158: 3 | J158: 63.16520992 | K158: 123.7715368 | L158: 7 | M158: 3
A159: 156 | B159: 0.819695881 | C159: 0.1409894249 | D159: 0.3989248792 | E159: 0.4883673918 | F159: 71.19677464 | G159: 170.7136141 | H159: 648 | I159: 731 | J159: 71.19677464 | K159: 170.7136141 | L159: 648 | M159: 731
A160: 157 | B160: 0.7435855857 | C160: 0.7631986536 | D160: 0.06376339854 | E160: -0.7671225747 | F160: 70.1912902 | G160: 153.1454769 | H160: 525 | I160: 265 | J160: 70.1912902 | K160: 153.1454769 | L160: 525 | M160: 265
A161: 158 | B161: 0.356738065 | C161: 0.4589205568 | D161: -1.388233028 | E161: 0.3664914959 | F161: 65.83530092 | G161: 156.725842 | H161: 80 | I161: 356 | J161: 65.83530092 | K161: 156.725842 | L161: 80 | M161: 356
A162: 159 | B162: 0.1058631837 | C162: 0.7745415106 | D162: 0.3254922719 | E162: -2.094103689 | F162: 70.97647682 | G162: 138.888788 | H162: 617 | I162: 44 | J162: 70.97647682 | K162: 138.888788 | L162: 617 | M162: 44
A163: 160 | B163: 0.1488867875 | C163: 0.8614062628 | D163: 1.257299919 | E163: -1.492760888 | F163: 73.77189976 | G163: 152.7023355 | H163: 899 | I163: 258 | J163: 73.77189976 | K163: 152.7023355 | L163: 899 | M163: 258
A164: 161 | B164: 0.4735233677 | C164: 0.7030958121 | D164: -0.3551590393 | E164: -1.170029953 | F164: 68.93452288 | G164: 145.3280275 | H164: 367 | I164: 113 | J164: 68.93452288 | K164: 145.3280275 | L164: 367 | M164: 113
A165: 162 | B165: 0.3153546714 | C165: 0.4176594882 | D165: -1.320420381 | E165: 0.7514018126 | F165: 66.03873886 | G165: 161.8673202 | H165: 95 | I165: 507 | J165: 66.03873886 | K165: 161.8673202 | L165: 95 | M165: 507
A166: 163 | B166: 0.6223399493 | C166: 0.7143690308 | D166: -0.2162224865 | E166: -0.9496238323 | F166: 69.35133254 | G166: 148.9728655 | H166: 413 | I166: 174 | J166: 69.35133254 | K166: 148.9728655 | L166: 413 | M166: 174
A167: 164 | B167: 0.5375122442 | C167: 0.4847058945 | D167: -1.109133557 | E167: 0.1069122566 | F167: 66.67259933 | G167: 155.5323073 | H167: 135 | I167: 322 | J167: 66.67259933 | K167: 155.5323073 | L167: 135 | M167: 322
A168: 165 | B168: 0.1540583982 | C168: 0.1858912411 | D168: 0.7581824429 | E168: 1.779327531 | F168: 72.27454733 | G168: 188.8804769 | H168: 781 | I168: 971 | J168: 72.27454733 | K168: 188.8804769 | L168: 781 | M168: 971
A169: 166 | B169: 0.3561517512 | C169: 0.0279402044 | D169: 1.414854326 | E169: 0.2509660926 | F169: 74.24456298 | G169: 174.9467824 | H169: 917 | I169: 823 | J169: 74.24456298 | K169: 174.9467824 | L169: 917 | M169: 823
A170: 167 | B170: 0.5750834105 | C170: 0.1389929429 | D170: 0.6756172753 | E170: 0.8062392147 | F170: 72.02685183 | G170: 176.5044519 | H170: 753 | I170: 850 | J170: 72.02697125 | K170: 176.5044519 | L170: 754 | M170: 850
A171: 168 | B171: 0.4587133196 | C171: 0.8835912681 | D171: 0.9291414128 | E171: -0.8338800364 | F171: 72.78742424 | G171: 158.3937318 | H171: 828 | I171: 403 | J171: 72.78742424 | K171: 158.3937318 | L171: 828 | M171: 403
A172: 169 | B172: 0.4906164008 | C172: 0.02492750667 | D172: 1.178784677 | E172: 0.1861507985 | F172: 73.53635403 | G172: 172.5084512 | H172: 885 | I172: 777 | J172: 73.53635403 | K172: 172.5084512 | L172: 885 | M172: 777
A173: 170 | B173: 0.2764562859 | C173: 0.54410473 | D173: -1.542380878 | E173: -0.4387098856 | F173: 65.37285737 | G173: 145.8842592 | H173: 61 | I173: 123 | J173: 65.37285737 | K173: 145.8842592 | L173: 61 | M173: 123
A174: 171 | B174: 0.7453836591 | C174: 0.4633715174 | D174: -0.7464109766 | E174: 0.1748801958 | F174: 67.76076707 | G174: 158.8954329 | H174: 223 | I174: 421 | J174: 67.76076707 | K174: 158.8954329 | L174: 223 | M174: 421
A175: 172 | B175: 0.6432869696 | C175: 0.110107245 | D175: 0.7233576023 | E175: 0.5992349222 | F175: 72.17007281 | G175: 174.3288405 | H175: 771 | I175: 804 | J175: 72.17007281 | K175: 174.3288405 | L175: 771 | M175: 804
A176: 173 | B176: 0.5433697589 | C176: 0.3307450044 | D176: -0.5366239853 | E176: 0.965383431 | F176: 68.39012804 | G176: 169.9482842 | H176: 305 | I176: 717 | J176: 68.39012804 | K176: 169.9482842 | L176: 305 | M176: 717
A177: 174 | B177: 0.5789846008 | C177: 0.8903254189 | D177: 0.8068913911 | E177: -0.6647443711 | F177: 72.42067417 | G177: 159.5886426 | H177: 800 | I177: 443 | J177: 72.42067417 | K177: 159.5886426 | L177: 800 | M177: 443
A178: 175 | B178: 0.005537646 | C178: 0.2451973061 | D178: 0.09726491156 | E178: 3.222252488 | F178: 70.29179473 | G178: 201.7485895 | H178: 539 | I178: 999 | J178: 70.29179473 | K178: 201.7485895 | L178: 539 | M178: 999
A179: 176 | B179: 0.9118550226 | C179: 0.2522800013 | D179: -0.006153970585 | E179: 0.4295470458 | F179: 69.98153809 | G179: 167.1649034 | H179: 495 | I179: 645 | J179: 69.98153809 | K179: 167.1649034 | L179: 495 | M179: 645
A180: 177 | B180: 0.2154376677 | C180: 0.5229978086 | D180: -1.733928152 | E180: -0.252310277 | F180: 64.79821554 | G180: 146.8034034 | H180: 41 | I180: 139 | J180: 64.79821554 | K180: 146.8034034 | L180: 41 | M180: 139
A181: 178 | B181: 0.1707143063 | C181: 0.9094888916 | D181: 1.584346004 | E181: -1.012608229 | F181: 74.75303801 | G181: 160.8131997 | H181: 951 | I181: 474 | J181: 74.75303801 | K181: 160.8131997 | L181: 951 | M181: 474
A182: 179 | B182: 0.09904323048 | C182: 0.1387730554 | D182: 1.38347558 | E182: 1.646327132 | F182: 74.15042674 | G182: 191.6449847 | H182: 914 | I182: 982 | J182: 74.15042674 | K182: 191.6449847 | L182: 914 | M182: 982
A183: 180 | B183: 0.3961517841 | C183: 0.7634035747 | D183: 0.1144715646 | E183: -1.356028007 | F183: 70.34341469 | G183: 146.3603351 | H183: 550 | I183: 132 | J183: 70.34341328 | K183: 146.3603351 | L183: 550 | M183: 132
A184: 181 | B184: 0.7392711724 | C184: 0.9633788915 | D184: 0.7568046843 | E184: -0.1772783979 | F184: 72.27041405 | G184: 165.1482464 | H184: 780 | I184: 602 | J184: 72.27041405 | K184: 165.1482464 | L184: 780 | M184: 602
A185: 182 | B185: 0.3722914724 | C185: 0.1161141769 | D185: 1.047941027 | E185: 0.9370037411 | F185: 73.14382308 | G185: 180.6961538 | H185: 863 | I185: 910 | J185: 73.14382308 | K185: 180.6961538 | L185: 863 | M185: 910
A186: 183 | B186: 0.5317382936 | C186: 0.8661269344 | D186: 0.7492158849 | E186: -0.8377847205 | F186: 72.24764765 | G186: 157.0869113 | H186: 778 | I186: 364 | J186: 72.24764765 | K186: 157.0869113 | L186: 778 | M186: 364
A187: 184 | B187: 0.6107437762 | C187: 0.6685883215 | D187: -0.4861070221 | E187: -0.8659419621 | F187: 68.54167893 | G187: 148.0982625 | H187: 333 | I187: 158 | J187: 68.54167893 | K187: 148.0982514 | L187: 333 | M187: 157.5
A188: 185 | B188: 0.7709340322 | C188: 0.6277782949 | D188: -0.5010704449 | E188: -0.5188770087 | F188: 68.49678867 | G188: 152.2014575 | H188: 322 | I188: 241 | J188: 68.49678867 | K188: 152.2014575 | L188: 322 | M188: 241
A189: 186 | B189: 0.05089113162 | C189: 0.9126840115 | D189: 2.082357489 | E189: -1.272760973 | F189: 76.24707247 | G189: 161.1450957 | H189: 986 | I189: 483 | J189: 76.24707247 | K189: 161.1450957 | L189: 986 | M189: 483
A190: 187 | B190: 0.3529374097 | C190: 0.4394929057 | D190: -1.340186967 | E190: 0.5355632432 | F190: 65.9794391 | G190: 159.1120505 | H190: 91 | I190: 428 | J190: 65.9794391 | K190: 159.1120505 | L190: 91 | M190: 428
A191: 188 | B191: 0.8941843284 | C191: 0.9064353472 | D191: 0.3935536663 | E191: -0.2623017234 | F191: 71.180661 | G191: 161.5746363 | H191: 646 | I191: 499 | J191: 71.180661 | K191: 161.5746363 | L191: 646 | M191: 499
A192: 189 | B192: 0.7576029763 | C192: 0.4711091448 | D192: -0.7328690621 | E192: 0.1345160022 | F192: 67.80139281 | G192: 158.5008364 | H192: 229 | I192: 409 | J192: 67.80132254 | K192: 158.5008364 | L192: 228.5 | M192: 409
A193: 190 | B193: 0.8680620777 | C193: 0.5418840111 | D193: -0.513647814 | E193: -0.1383835994 | F193: 68.45905656 | G193: 156.7266533 | H193: 317 | I193: 357 | J193: 68.45905656 | K193: 156.7266533 | L193: 317 | M193: 357
A194: 191 | B194: 0.3567370844 | C194: 0.6176200783 | D194: -1.061230602 | E194: -0.9671101603 | F194: 66.81630819 | G194: 142.8457982 | H194: 152 | I194: 86 | J194: 66.81630819 | K194: 142.8457982 | L194: 152 | M194: 86
A195: 192 | B195: 0.5826041224 | C195: 0.557217114 | D195: -0.9730161191 | E195: -0.3656970731 | F195: 67.08095164 | G195: 150.7550458 | H195: 171 | I195: 213 | J195: 67.08095164 | K195: 150.7550458 | L195: 171 | M195: 213
A196: 193 | B196: 0.9862954293 | C196: 0.8458502535 | D196: 0.09411079366 | E196: -0.1369008726 | F196: 70.28233238 | G196: 160.9989407 | H196: 537 | I196: 480 | J196: 70.28233238 | K196: 160.9989407 | L196: 537 | M196: 480
A197: 194 | B197: 0.5235166094 | C197: 0.4108254323 | D197: -0.9637449712 | E197: 0.6046227532 | F197: 67.10876509 | G197: 162.5844465 | H197: =_xlfn.RANK.AVG(F197,F$4:F$1003,1) -> 176 | I197: =_xlfn.RANK.AVG(G197,G$4:G$1003,1) -> 533 | J197: 67.10876509 | K197: 162.5844465 | L197: =_xlfn.RANK.AVG(J197,J$4:J$1003,1) -> 176 | M197: =_xlfn.RANK.AVG(K197,K$4:K$1003,1) -> 533
A198: 195 | B198: 0.361279151 | C198: 0.6453276874 | D198: -0.8722692074 | E198: -1.12931622 | F198: 67.38319238 | G198: 142.201884 | H198: 191 | I198: 76 | J198: 67.38319238 | K198: 142.201884 | L198: 191 | M198: 76
A199: 196 | B199: 0.4981771988 | C199: 0.1504970066 | D199: 0.6908993335 | E199: 0.9572131422 | F199: 72.072698 | G199: 178.4418879 | H199: 759 | I199: 881 | J199: 72.072698 | K199: 178.4418879 | L199: 759 | M199: 881
A200: 197 | B200: 0.1839591823 | C200: 0.1210304069 | D200: 1.33321453 | E200: 1.268314543 | F200: 73.99964359 | G200: 186.7099983 | H200: 908 | I200: 960 | J200: 73.99964359 | K200: 186.7099983 | L200: 908 | M200: 960
... 803 more rows

Sheet Results Summary
A1: Summary of Macro Results Compared with Output from the R Statistical Package
C3: U1(0,1) & U2(0,1) | D3: N1(0,1) & N2(0,1) | E3: X & Y | F3: Xrnk & Yrnk | G3: X2% & Y1% | H3: Xrnk2% & Yrnk1%
B4: MACRO PROCEDURE | C4: Estimates From the Macros Included in this Workbook
B5: Pearson's Correlation | C5: 0.01564319636 | D5: -0.02362857226 | E5: 0.4764347174 | F5: 0.4505496185 | G5: 0.4764347557 | H5: 0.4505707722
B6: Spearman's Correlation | C6: 0.01641509242 | D6: -0.02084115284 | E6: 0.4505496185 | F6: 0.4505496185 | G6: 0.4505707722 | H6: 0.4505707722
B7: Quadrant Correlation | C7: 0.02 | D7: 0.004 | E7: 0.3 | F7: 0.3 | G7: 0.3 | H7: 0.3
B8: Kendall's Tau-a Correlation | C8: 0.01114714715 | D8: -0.01344944945 | E8: 0.3121881882 | F8: 0.3121881882 | G8: 0.3122102102 | H8: 0.3122102102
B9: Kendall's Tau-b Correlation | C9: 0.01114714715 | D9: -0.01344944945 | E9: 0.3121881882 | F9: 0.3121881882 | G9: 0.3122205238 | H9: 0.3122205238
B10: Goodman-Kruskal Gamma | C10: 0.01114714715 | D10: -0.01344944945 | E10: 0.3121881882 | F10: 0.3121881882 | G10: 0.3122308381 | H10: 0.3122308381
B11: Correlation Median Estimator | C11: 0.006884551672 | D11: 0.001034364956 | E11: 0.318789587 | F11: 0.321384 | G11: 0.3187944596 | H11: 0.321384
B12: Tukey BiWeight MidCorrelation | C12: 0.01681616991 | D12: -0.02224664079 | E12: 0.4651696651 | F12: 0.4457079734 | G12: 0.4651693445 | H12: 0.4457303061
B13: Fisher Yates Normal Scores | C13: -0.002759795024 | D13: -0.02417178578 | E13: 0.4751965909 | F13: 0.4751965909 | G13: 0.4752030196 | H13: 0.4752030196
B14: Bivariate Alpha-Trimmed | C14: 0.02162318195 | D14: -0.02651371222 | E14: 0.4677841203 | F14: 0.4562855114 | G14: 0.4677841255 | H14: 0.4563092209
B15: Univariate Alpha-Winsorized | C15: 0.01850096984 | D15: -0.02257191187 | E15: 0.462652869 | F15: 0.4450384813 | G15: 0.462652933 | H15: 0.4450605584
B16: Median Correlation Coefficient | C16: 0.04561684883 | D16: -0.03399823228 | E16: 0.4694290879 | F16: 0.5991544461 | G16: 0.4694108112 | H16: 0.5991544461
B17: MAD Correlation (Gideon) | C17: 0.02682943762 | D17: -0.02273715937 | E17: 0.3347212507 | F17: 0.378 | G17: 0.334713659 | H17: 0.378
B18: MAD Correlation (Shevylakov)) | C18: 0.02759565703 | D18: -0.01738755471 | E18: 0.4643991191 | F18: 0.6058814558 | G18: 0.4644153155 | H18: 0.6058814558
B19: Absolute Value Correlation | C19: 0.01183643995 | D19: -0.01502744358 | E19: 0.3428299593 | F19: 0.352052 | G19: 0.3428300409 | H19: 0.352078
B20: Footrule Correlation | C20: 0.008673008673 | D20: 0.000249000249 | E20: 0.2893952894 | F20: 0.2893952894 | G20: 0.2894072894 | H20: 0.2894072894
B21: Percentage Bend Correlation | C21: 0.02045752706 | D21: -0.02267205487 | E21: 0.447057435 | F21: 0.4351772201 | G21: 0.447057523 | H21: 0.4352019385
B22: MACRO PROCEDURE | C22: Estimates From the R Statistical Package
B23: Pearson's Correlation | C23: 0.01564319636 | D23: -0.02362857226 | E23: 0.4764347174 | F23: 0.4505496185 | G23: 0.4764347557 | H23: 0.4505707722
B24: Spearman's Correlation | C24: 0.01641509242 | D24: -0.02084115284 | E24: 0.4505496185 | F24: 0.4505496185 | G24: 0.4505707722 | H24: 0.4505707722
B25: Kendall's Tau-b Correlation | C25: 0.01114714715 | D25: -0.01344944945 | E25: 0.3121881882 | F25: 0.3121881882 | G25: 0.3122205238 | H25: 0.3122205238
B26: Percentage Bend Correlation | C26: 0.02045752706 | D26: -0.02267205487 | E26: 0.447057435 | F26: 0.4351772201 | G26: 0.447057523 | H26: 0.4352019385

Sheet Pearson's Correlation
A1: Calculating the Pearson Product Moment Correlation Coefficient
A3: Observation Number | B3: X | C3: Y | D3: X-Xmean | E3: Y-Ymean | F3: (X-Xmean)2 | G3: (Y-Ymean)2 | H3: (X-Xmean)∙(Y-Ymean) | K3: Comparison of Manually Calculated Correlation with Macro Calculation | P3: Pearson Correlation Applied to the Paired Data Series From the "Simulated Data" Worksheet
A4: 1 | B4: 69.59024759 | C4: 179.2035405 | D4: -0.4007794487 | E4: 17.17273835 | F4: 0.1606241665 | G4: 294.9029424 | H4: -6.882480607 | K4: Calculated Pearson = | M4: =M16/(SQRT(M14)*SQRT(M15)) -> 0.4764347174
A5: 2 | B5: 75.90042113 | C5: 148.634771 | D5: 5.909394094 | E5: -13.39603114 | F5: 34.92093856 | G5: 179.4536504 | H5: -79.16242732 | K5: Excel Pearson = | M5: =CORREL(B4:B1003,C4:C1003) -> 0.4764347174 | P5: U1(0,1), U2(0,1) | Q5: =CORREL('Simulated Data'!$B$4:$B$1003,'Simulated Data'!$C$4:$C$1003) -> 0.01564319636
A6: 3 | B6: 68.70319257 | C6: 148.2832815 | D6: -1.287834469 | E6: -13.74752061 | F6: 1.65851762 | G6: 188.994323 | H6: 17.70453091 | P6: N1(0,1), N2(0,1) | Q6: =CORREL('Simulated Data'!$D$4:$D$1003,'Simulated Data'!$E$4:$E$1003) -> -0.02362857226
A7: 4 | B7: 70.30671509 | C7: 161.1189805 | D7: 0.3156880515 | E7: -0.9118216233 | F7: 0.09965894588 | G7: 0.8314186728 | H7: -0.2878511916 | P7: X, Y (Correlated) | Q7: =CORREL('Simulated Data'!$F$4:$F$1003,'Simulated Data'!$G$4:$G$1003) -> 0.4764347174
A8: 5 | B8: 67.3750767 | C8: 167.5735679 | D8: -2.615950333 | E8: 5.542765759 | F8: 6.843196145 | G8: 30.72225226 | H8: -14.49959993 | P8: Ranks of (X, Y) | Q8: =CORREL('Simulated Data'!$H$4:$H$1003,'Simulated Data'!$I$4:$I$1003) -> 0.4505496185
A9: 6 | B9: 70.30370117 | C9: 166.757326 | D9: 0.3126741312 | E9: 4.72652388 | F9: 0.09776511233 | G9: 22.34002799 | H9: 1.477861748 | P9: (X, Y) with duplicates | Q9: =CORREL('Simulated Data'!$J$4:$J$1003,'Simulated Data'!$K$4:$K$1003) -> 0.4764347557
A10: 7 | B10: 72.046436 | C10: 158.1402947 | D10: 2.05540896 | E10: -3.890507458 | F10: 4.224705992 | G10: 15.13604828 | H10: -7.996583888 | K10: Intermediate Calculations for the Pearson Correlation | P10: Ranks of (X, Y) with duplicates | Q10: =CORREL('Simulated Data'!$L$4:$L$1003,'Simulated Data'!$M$4:$M$1003) -> 0.4505707722
A11: 8 | B11: 69.65903862 | C11: 151.4591575 | D11: -0.3319884182 | E11: -10.57164459 | F11: 0.1102163098 | G11: 111.7596693 | H11: 3.509663564
A12: 9 | B12: 74.29144862 | C12: 185.9929006 | D12: 4.300421578 | E12: 23.96209842 | F12: 18.49362575 | G12: 574.1821608 | H12: 103.0471251 | K12: Mean X = | M12: 69.99102704
A13: 10 | B13: 65.64948847 | C13: 147.6030784 | D13: -4.341538563 | E13: -14.42772372 | F13: 18.8489571 | G13: 208.1592117 | H13: 62.63851891 | K13: Mean Y = | M13: 162.0308021
A14: 11 | B14: 69.74269715 | C14: 154.6594908 | D14: -0.2483298916 | E14: -7.371311319 | F14: 0.06166773508 | G14: 54.33623056 | H14: 1.830516941 | K14: Sum of (X - Xmean)2 = | M14: 8740.979094
A15: 12 | B15: 69.92351191 | C15: 155.0106918 | D15: -0.06751512676 | E15: -7.020110298 | F15: 0.004558292342 | G15: 49.28194859 | H15: 0.4739636366 | K15: Sum of (Y - Ymean)2 = | M15: 192497.5565
A16: 13 | B16: 71.27244255 | C16: 167.9248667 | D16: 1.281415514 | E16: 5.894064547 | F16: 1.642025719 | G16: 34.73999689 | H16: 7.552745751 | K16: Sum of Cross-Product = | M16: 19543.21689
A17: 14 | B17: 68.20918455 | C17: 170.8602726 | D17: -1.781842484 | E17: 8.829470448 | F17: 3.174962639 | G17: 77.95954839 | H17: -15.73272556 | P17: Notes:
A18: 15 | B18: 71.98267049 | C18: 177.2631872 | D18: 1.99164345 | E18: 15.23238505 | F18: 3.96664363 | G18: 232.0255545 | H18: 30.33747992 | P18: 1. The CORREL function is provided by Excel. It can also be called by using the PEARSON function. This spreadsheet simply shows the manual calculations used by the formula. 2. The Pearson Correlation is the most commonly used measure of association in statistical research. 3. The Pearson Correlation can serve as a useful benchmark for the other correlation formulas provided in this workbook.
A19: 16 | B19: 64.96950385 | C19: 170.4605236 | D19: -5.021523192 | E19: 8.429721513 | F19: 25.21569517 | G19: 71.06020478 | H19: -42.33004208
A20: 17 | B20: 67.56420314 | C20: 158.2215903 | D20: -2.4268239 | E20: -3.809211822 | F20: 5.88947424 | G20: 14.51009471 | H20: 9.244286289
A21: 18 | B21: 72.34811075 | C21: 168.0844596 | D21: 2.357083714 | E21: 6.053657424 | F21: 5.555843634 | G21: 36.64676821 | H21: 14.26897732
A22: 19 | B22: 73.39999773 | C22: 186.4382187 | D22: 3.408970691 | E22: 24.40741659 | F22: 11.62108117 | G22: 595.7219846 | H22: 83.2041678
A23: 20 | B23: 70.63087883 | C23: 145.0970574 | D23: 0.6398517951 | E23: -16.93374468 | F23: 0.4094103197 | G23: 286.751709 | H23: -10.83508693
A24: 21 | B24: 70.11967655 | C24: 138.1029989 | D24: 0.128649516 | E24: -23.92780321 | F24: 0.01655069796 | G24: 572.5397664 | H24: -3.078300301
A25: 22 | B25: 66.18716528 | C25: 144.0183644 | D25: -3.80386176 | E25: -18.01243776 | F25: 14.46936429 | G25: 324.4479142 | H25: 68.51682322
A26: 23 | B26: 73.78144069 | C26: 194.1955585 | D26: 3.790413652 | E26: 32.16475635 | F26: 14.36723566 | G26: 1034.571551 | H26: 121.9177316
A27: 24 | B27: 67.09498212 | C27: 159.5028359 | D27: -2.896044913 | E27: -2.527966252 | F27: 8.387076137 | G27: 6.390613371 | H27: 7.321103803
A28: 25 | B28: 69.93828021 | C28: 159.3274787 | D28: -0.052746824 | E28: -2.703323388 | F28: 0.002782227442 | G28: 7.307957338 | H28: 0.1425917229
A29: 26 | B29: 69.15218537 | C29: 169.6787571 | D29: -0.8388416711 | E29: 7.647955012 | F29: 0.7036553492 | G29: 58.49121586 | H29: -6.415423363
A30: 27 | B30: 69.97904194 | C30: 169.2641729 | D30: -0.01198509905 | E30: 7.233370772 | F30: 0.0001436425991 | G30: 52.32165272 | H30: -0.08669266513
A31: 28 | B31: 65.23138892 | C31: 150.1850862 | D31: -4.759638117 | E31: -11.84571593 | F31: 22.654155 | G31: 140.3209858 | H31: 56.38132105
A32: 29 | B32: 69.18991845 | C32: 162.13541 | D32: -0.8011085829 | E32: 0.1046078516 | F32: 0.6417749616 | G32: 0.01094280261 | H32: -0.08380224774
A33: 30 | B33: 70.7218467 | C33: 179.8605007 | D33: 0.7308196617 | E33: 17.82969854 | F33: 0.5340973779 | G33: 317.89815 | H33: 13.03029425
A34: 31 | B34: 73.08646681 | C34: 167.345485 | D34: 3.095439771 | E34: 5.314682873 | F34: 9.581747377 | G34: 28.24585404 | H34: 16.45128074
A35: 32 | B35: 72.42004776 | C35: 176.7791011 | D35: 2.429020726 | E35: 14.74829899 | F35: 5.900141689 | G35: 217.512323 | H35: 35.82392392
A36: 33 | B36: 64.43216286 | C36: 134.4075192 | D36: -5.558864176 | E36: -27.62328291 | F36: 30.90097092 | G36: 763.0457585 | H36: 153.5540778
A37: 34 | B37: 70.27480576 | C37: 157.565493 | D37: 0.283778723 | E37: -4.465309154 | F37: 0.08053036363 | G37: 19.93898584 | H37: -1.267159729
A38: 35 | B38: 68.1393137 | C38: 139.4283219 | D38: -1.851713339 | E38: -22.60248024 | F38: 3.42884229 | G38: 510.872113 | H38: 41.85331416
A39: 36 | B39: 74.47045905 | C39: 176.306214 | D39: 4.479432015 | E39: 14.27541186 | F39: 20.06531118 | G39: 203.7873839 | H39: 63.94573693
A40: 37 | B40: 66.39420939 | C40: 143.0109076 | D40: -3.596817652 | E40: -19.01989456 | F40: 12.93709722 | G40: 361.7563889 | H40: 68.41109248
A41: 38 | B41: 71.51880731 | C41: 168.2380568 | D41: 1.527780275 | E41: 6.207254702 | F41: 2.334112569 | G41: 38.53001094 | H41: 9.483321297
A42: 39 | B42: 71.11033365 | C42: 154.6312858 | D42: 1.119306608 | E42: -7.399516335 | F42: 1.252847282 | G42: 54.75284199 | H42: -8.282327526
A43: 40 | B43: 69.82809183 | C43: 178.5105441 | D43: -0.1629352088 | E43: 16.47974198 | F43: 0.02654788228 | G43: 271.5818957 | H43: -2.685130201
A44: 41 | B44: 71.00384778 | C44: 174.7647687 | D44: 1.012820743 | E44: 12.73396661 | F44: 1.025805857 | G44: 162.1539056 | H44: 12.89722552
A45: 42 | B45: 68.16229315 | C45: 165.5278601 | D45: -1.828733885 | E45: 3.497057968 | F45: 3.344267623 | G45: 12.22941443 | H45: -6.395188404
A46: 43 | B46: 69.41568546 | C46: 142.5146991 | D46: -0.5753415816 | E46: -19.51610303 | F46: 0.3310179355 | G46: 380.8782773 | H46: 11.22842558
A47: 44 | B47: 70.85962855 | C47: 175.8377286 | D47: 0.8686015097 | E47: 13.80692652 | F47: 0.7544685826 | G47: 190.6312199 | H47: 11.99271722
A48: 45 | B48: 68.00908012 | C48: 170.5361346 | D48: -1.981946915 | E48: 8.505332449 | F48: 3.928113575 | G48: 72.34068006 | H48: -16.85711741
A49: 46 | B49: 71.79456065 | C49: 161.165496 | D49: 1.803533614 | E49: -0.8653060805 | F49: 3.252733496 | G49: 0.7487546129 | H49: -1.560608602
A50: 47 | B50: 67.75641297 | C50: 154.8749646 | D50: -2.234614065 | E50: -7.155837532 | F50: 4.99350002 | G50: 51.20601078 | H50: 15.9905352
A51: 48 | B51: 68.65060179 | C51: 159.3540304 | D51: -1.340425248 | E51: -2.676771765 | F51: 1.796739844 | G51: 7.165107082 | H51: 3.588012456
A52: 49 | B52: 71.65713108 | C52: 187.6360219 | D52: 1.666104045 | E52: 25.60521975 | F52: 2.775902687 | G52: 655.6272787 | H52: 42.66096019
A53: 50 | B53: 68.95997709 | C53: 167.8543877 | D53: -1.031049953 | E53: 5.823585594 | F53: 1.063064005 | G53: 33.91414917 | H53: -6.00440765
A54: 51 | B54: 68.44237462 | C54: 163.8016713 | D54: -1.548652421 | E54: 1.770869129 | F54: 2.398324321 | G54: 3.135977472 | H54: -2.742460764
A55: 52 | B55: 72.64891234 | C55: 164.4651827 | D55: 2.657885298 | E55: 2.434380544 | F55: 7.064354259 | G55: 5.926208632 | H55: 6.470304258
A56: 53 | B56: 64.16689684 | C56: 157.7714021 | D56: -5.824130199 | E56: -4.259400059 | F56: 33.92049257 | G56: 18.14248886 | H56: 24.80730051
A57: 54 | B57: 69.53677122 | C57: 160.6378795 | D57: -0.4542558225 | E57: -1.392922604 | F57: 0.2063483522 | G57: 1.94023338 | H57: 0.6327432029
A58: 55 | B58: 68.52794302 | C58: 142.8477662 | D58: -1.463084022 | E58: -19.18303588 | F58: 2.140614856 | G58: 367.9888657 | H58: 28.0663933
A59: 56 | B59: 68.5118249 | C59: 133.197115 | D59: -1.479202136 | E59: -28.83368716 | F59: 2.18803896 | G59: 831.3815151 | H59: 42.65085164
A60: 57 | B60: 70.28039146 | C60: 179.5151704 | D60: 0.2893644216 | E60: 17.48436827 | F60: 0.08373176851 | G60: 305.7031337 | H60: 5.059354111
A61: 58 | B61: 68.95148951 | C61: 154.5936208 | D61: -1.039537526 | E61: -7.437181354 | F61: 1.080638267 | G61: 55.31166649 | H61: 7.731229103
A62: 59 | B62: 76.13678496 | C62: 167.102771 | D62: 6.145757919 | E62: 5.071968896 | F62: 37.7703404 | G62: 25.72486848 | H62: 31.17109301
A63: 60 | B63: 72.68803547 | C63: 162.4174685 | D63: 2.697008429 | E63: 0.3866663739 | F63: 7.273854464 | G63: 0.1495108847 | H63: 1.042842469
A64: 61 | B64: 71.29852334 | C64: 165.1235083 | D64: 1.307496303 | E64: 3.09270621 | F64: 1.709546583 | G64: 9.564831702 | H64: 4.043701937
A65: 62 | B65: 73.96392728 | C65: 175.8806819 | D65: 3.972900244 | E65: 13.8498798 | F65: 15.78393635 | G65: 191.8191704 | H65: 55.02419083
A66: 63 | B66: 68.34454044 | C66: 174.4574496 | D66: -1.646486598 | E66: 12.42664746 | F66: 2.710918118 | G66: 154.4215671 | H66: -20.4603085
A67: 64 | B67: 69.95782012 | C67: 161.4350221 | D67: -0.03320691375 | E67: -0.5957800285 | F67: 0.001102699121 | G67: 0.3549538424 | H67: 0.01978401602
A68: 65 | B68: 71.61445169 | C68: 154.6414632 | D68: 1.62342465 | E68: -7.389338898 | F68: 2.635507593 | G68: 54.60232935 | H68: -11.99603491
A69: 66 | B69: 72.77260559 | C69: 185.8068797 | D69: 2.781578551 | E69: 23.77607756 | F69: 7.737179234 | G69: 565.3018642 | H69: 66.13502737
A70: 67 | B70: 67.59161206 | C70: 168.3994952 | D70: -2.399414981 | E70: 6.368693034 | F70: 5.757192253 | G70: 40.56025096 | H70: -15.28113748
A71: 68 | B71: 70.62542637 | C71: 181.3665741 | D71: 0.6343993358 | E71: 19.33577202 | F71: 0.4024625173 | G71: 373.8720795 | H71: 12.26660093
A72: 69 | B72: 70.56596848 | C72: 152.4950221 | D72: 0.5749414426 | E72: -9.535780063 | F72: 0.3305576624 | G72: 90.93110142 | H72: -5.482515146
A73: 70 | B73: 70.66886091 | C73: 160.9386736 | D73: 0.6778338735 | E73: -1.092128539 | F73: 0.4594587601 | G73: 1.192744745 | H73: -0.7402817176
A74: 71 | B74: 69.85923458 | C74: 173.2838986 | D74: -0.1317924581 | E74: 11.25309648 | F74: 0.01736925202 | G74: 126.6321805 | H74: -1.483073247
A75: 72 | B75: 72.80264454 | C75: 153.6540441 | D75: 2.811617501 | E75: -8.376758027 | F75: 7.905192974 | G75: 70.17007505 | H75: -23.55223947
A76: 73 | B76: 69.22604171 | C76: 159.74142 | D76: -0.7649853268 | E76: -2.289382099 | F76: 0.5852025502 | G76: 5.241270397 | H76: 1.751343713
A77: 74 | B77: 66.61983866 | C77: 177.7115498 | D77: -3.37118838 | E77: 15.68074766 | F77: 11.36491109 | G77: 245.8858472 | H77: -52.8627543
A78: 75 | B78: 66.12264851 | C78: 170.86176 | D78: -3.868378531 | E78: 8.830957881 | F78: 14.96435246 | G78: 77.9858171 | H78: -34.16148787
A79: 76 | B79: 75.29848228 | C79: 167.9362434 | D79: 5.307455247 | E79: 5.905441303 | F79: 28.1690812 | G79: 34.87423698 | H79: 31.34286543
A80: 77 | B80: 78.77680626 | C80: 177.5387429 | D80: 8.785779227 | E80: 15.50794077 | F80: 77.18991662 | G80: 240.4962268 | H80: 136.2493438
A81: 78 | B81: 76.09356413 | C81: 178.3484859 | D81: 6.102537096 | E81: 16.31768374 | F81: 37.24095901 | G81: 266.2668028 | H81: 99.57927037
A82: 79 | B82: 65.89089868 | C82: 163.5776839 | D82: -4.100128357 | E82: 1.546881745 | F82: 16.81105255 | G82: 2.392843133 | H82: -6.342413708
A83: 80 | B83: 70.2867311 | C83: 147.2331273 | D83: 0.2957040631 | E83: -14.79767481 | F83: 0.08744089295 | G83: 218.9711799 | H83: -4.375732567
A84: 81 | B84: 71.81489191 | C84: 163.8140279 | D84: 1.823864876 | E84: 1.783225807 | F84: 3.326483088 | G84: 3.179894278 | H84: 3.252362916
A85: 82 | B85: 70.25339556 | C85: 176.2836325 | D85: 0.2623685255 | E85: 14.25283032 | F85: 0.06883724316 | G85: 203.1431722 | H85: 3.739494076
A86: 83 | B86: 69.38942282 | C86: 158.2411932 | D86: -0.6016042193 | E86: -3.789608908 | F86: 0.3619276366 | G86: 14.36113568 | H86: 2.279844708
A87: 84 | B87: 72.04563341 | C87: 191.6844267 | D87: 2.05460637 | E87: 29.65362455 | F87: 4.221407337 | G87: 879.3374491 | H87: 60.92652591
A88: 85 | B88: 69.89492867 | C88: 166.0528146 | D88: -0.09609836555 | E88: 4.022012469 | F88: 0.009234895862 | G88: 16.1765843 | H88: -0.3865088245
A89: 86 | B89: 66.57922064 | C89: 142.1133517 | D89: -3.411806396 | E89: -19.91745043 | F89: 11.64042289 | G89: 396.7048318 | H89: 67.95448479
A90: 87 | B90: 71.9959069 | C90: 173.1354722 | D90: 2.004879863 | E90: 11.10467012 | F90: 4.019543265 | G90: 123.3136985 | H90: 22.26352951
A91: 88 | B91: 66.76504149 | C91: 156.1266388 | D91: -3.225985543 | E91: -5.904163376 | F91: 10.40698273 | G91: 34.85914517 | H91: 19.0467457
A92: 89 | B92: 71.15381831 | C92: 162.3342115 | D92: 1.162791271 | E92: 0.3034093719 | F92: 1.35208354 | G92: 0.09205724694 | H92: 0.3528017692
A93: 90 | B93: 67.91843379 | C93: 163.9815261 | D93: -2.072593247 | E93: 1.950723973 | F93: 4.295642767 | G93: 3.805324018 | H93: -4.043057332
A94: 91 | B94: 69.51163441 | C94: 152.2586653 | D94: -0.4793926276 | E94: -9.772136785 | F94: 0.2298172914 | G94: 95.49465735 | H94: 4.684690331
A95: 92 | B95: 71.02343264 | C95: 142.2562719 | D95: 1.032405604 | E95: -19.77453025 | F95: 1.065861331 | G95: 391.0320465 | H95: -20.41533584
A96: 93 | B96: 71.86680426 | C96: 161.0542333 | D96: 1.875777221 | E96: -0.9765688106 | F96: 3.518540182 | G96: 0.9536866419 | H96: -1.83182553
A97: 94 | B97: 69.76365263 | C97: 154.4144852 | D97: -0.2273744062 | E97: -7.616316883 | F97: 0.05169912061 | G97: 58.00828287 | H97: 1.731755529
A98: 95 | B98: 74.33300956 | C98: 182.4972003 | D98: 4.341982523 | E98: 20.46639816 | F98: 18.85281223 | G98: 418.8734537 | H98: 88.86474313
A99: 96 | B99: 73.02050503 | C99: 166.3569692 | D99: 3.029477994 | E99: 4.326167111 | F99: 9.177736918 | G99: 18.71572187 | H99: 13.10602806
A100: 97 | B100: 73.72562423 | C100: 172.5475412 | D100: 3.734597192 | E100: 10.51673903 | F100: 13.94721618 | G100: 110.6017998 | H100: 39.27578404
A101: 98 | B101: 73.44736251 | C101: 191.6079086 | D101: 3.456335477 | E101: 29.57710644 | F101: 11.94625493 | G101: 874.8052255 | H101: 102.2284023
A102: 99 | B102: 65.68425633 | C102: 145.8722328 | D102: -4.306770711 | E102: -16.15856932 | F102: 18.54827396 | G102: 261.0993624 | H102: 69.59125308
A103: 100 | B103: 66.90422679 | C103: 162.0671608 | D103: -3.086800246 | E103: 0.03635871155 | F103: 9.528335761 | G103: 0.001321955906 | H103: -0.1122320798
A104: 101 | B104: 69.98935182 | C104: 163.1720923 | D104: -0.001675216037 | E104: 1.141290202 | F104: 2.806348769e-06 | G104: 1.302543325 | H104: -0.001911907649
A105: 102 | B105: 61.70660735 | C105: 143.2161385 | D105: -8.284419689 | E105: -18.81466364 | F105: 68.63160958 | G105: 353.9915677 | H105: 155.8685699
A106: 103 | B106: 72.8797388 | C106: 151.9934375 | D106: 2.888711761 | E106: -10.03736466 | F106: 8.344655641 | G106: 100.7486892 | H106: -28.99505334
A107: 104 | B107: 72.72441064 | C107: 146.282265 | D107: 2.7333836 | E107: -15.74853713 | F107: 7.471385907 | G107: 248.0164217 | H107: -43.04679312
A108: 105 | B108: 74.25481157 | C108: 190.2721726 | D108: 4.26378453 | E108: 28.24137048 | F108: 18.17985852 | G108: 797.5750066 | H108: 120.4151186
A109: 106 | B109: 71.07392189 | C109: 169.5453319 | D109: 1.082894851 | E109: 7.514529743 | F109: 1.172661259 | G109: 56.46815725 | H109: 8.137445567
A110: 107 | B110: 71.63434532 | C110: 163.1166295 | D110: 1.643318282 | E110: 1.085827349 | F110: 2.700494975 | G110: 1.179021033 | H110: 1.784359934
A111: 108 | B111: 74.88879892 | C111: 187.7338789 | D111: 4.897771882 | E111: 25.70307674 | F111: 23.98816941 | G111: 660.6481541 | H111: 125.8878066
A112: 109 | B112: 67.23987899 | C112: 128.7208613 | D112: -2.751148045 | E112: -33.30994083 | F112: 7.568815564 | G112: 1109.552158 | H112: 91.64057859
A113: 110 | B113: 68.45309637 | C113: 163.8499386 | D113: -1.537930666 | E113: 1.819136441 | F113: 2.365230733 | G113: 3.309257391 | H113: -2.797705718
A114: 111 | B114: 69.46022372 | C114: 147.9869717 | D114: -0.5308033212 | E114: -14.04383043 | F114: 0.2817521658 | G114: 197.229173 | H114: 7.454511832
A115: 112 | B115: 66.94801339 | C115: 130.9928233 | D115: -3.043013651 | E115: -31.03797885 | F115: 9.25993208 | G115: 963.3561309 | H115: 94.44899333
A116: 113 | B116: 68.52590306 | C116: 164.9782672 | D116: -1.465123978 | E116: 2.947465097 | F116: 2.14658827 | G116: 8.687550496 | H116: -4.318401787
A117: 114 | B117: 72.72947936 | C117: 159.7872454 | D117: 2.73845232 | E117: -2.243556733 | F117: 7.499121108 | G117: 5.033546812 | H117: -6.143873139
A118: 115 | B118: 67.60130747 | C118: 158.36545 | D118: -2.389719564 | E118: -3.665352167 | F118: 5.710759593 | G118: 13.43480651 | H118: 8.75916378
A119: 116 | B119: 69.46428852 | C119: 165.2429747 | D119: -0.526738521 | E119: 3.212172526 | F119: 0.2774534695 | G119: 10.31805234 | H119: -1.691975006
A120: 117 | B120: 72.8921763 | C120: 183.0687773 | D120: 2.901149267 | E120: 21.03797521 | F120: 8.416667071 | G120: 442.5964008 | H120: 61.03430636
A121: 118 | B121: 69.46149311 | C121: 167.1568824 | D121: -0.5295339299 | E121: 5.126080317 | F121: 0.2804061829 | G121: 26.27669942 | H121: -2.714433455
A122: 119 | B122: 70.13856871 | C122: 171.4376218 | D122: 0.1475416755 | E122: 9.406819632 | F122: 0.021768546 | G122: 88.48825559 | H122: 1.387897929
A123: 120 | B123: 74.07380549 | C123: 169.4258314 | D123: 4.082778452 | E123: 7.395029262 | F123: 16.66907989 | G123: 54.68645779 | H123: 30.19226612
A124: 121 | B124: 71.08467338 | C124: 150.4930786 | D124: 1.093646341 | E124: -11.53772356 | F124: 1.196062319 | G124: 133.1190649 | H124: -12.61818915
A125: 122 | B125: 68.60783197 | C125: 174.687818 | D125: -1.383195065 | E125: 12.65701583 | F125: 1.913228587 | G125: 160.2000497 | H125: -17.50712183
A126: 123 | B126: 66.778743 | C126: 163.4793871 | D126: -3.212284035 | E126: 1.448584983 | F126: 10.31876872 | G126: 2.098398454 | H126: -4.653266415
A127: 124 | B127: 71.75534784 | C127: 178.1132371 | D127: 1.764320801 | E127: 16.082435 | F127: 3.11282789 | G127: 258.6447154 | H127: 28.3745746
A128: 125 | B128: 70.65050248 | C128: 137.1021237 | D128: 0.6594754448 | E128: -24.92867845 | F128: 0.4349078623 | G128: 621.4390093 | H128: -16.43985131
A129: 126 | B129: 69.51645331 | C129: 157.5480065 | D129: -0.4745737303 | E129: -4.482795591 | F129: 0.2252202255 | G129: 20.09545631 | H129: 2.127417026
A130: 127 | B130: 68.44588647 | C130: 151.0278191 | D130: -1.545140566 | E130: -11.00298302 | F130: 2.387459369 | G130: 121.0656353 | H130: 17.00115541
A131: 128 | B131: 71.43323974 | C131: 177.7176602 | D131: 1.442212698 | E131: 15.68685804 | F131: 2.079977466 | G131: 246.0775152 | H131: 22.62378586
A132: 129 | B132: 70.56909432 | C132: 149.0256826 | D132: 0.5780672805 | E132: -13.00511952 | F132: 0.3341617808 | G132: 169.1331338 | H132: -7.517834075
A133: 130 | B133: 73.13835112 | C133: 181.7555694 | D133: 3.147324086 | E133: 19.72476727 | F133: 9.9056489 | G133: 389.066444 | H133: 62.08023512
A134: 131 | B134: 68.04412365 | C134: 160.2559421 | D134: -1.946903387 | E134: -1.77486002 | F134: 3.790432797 | G134: 3.150128089 | H134: 3.455480983
A135: 132 | B135: 74.44816055 | C135: 160.5860637 | D135: 4.457133511 | E135: -1.444738391 | F135: 19.86603914 | G135: 2.087269019 | H135: -6.439391898
A136: 133 | B136: 71.31721668 | C136: 156.7163784 | D136: 1.326189643 | E136: -5.31442368 | F136: 1.75877897 | G136: 28.24309905 | H136: -7.047933645
A137: 134 | B137: 65.4866644 | C137: 155.4070582 | D137: -4.504362634 | E137: -6.62374396 | F137: 20.28928274 | G137: 43.87398404 | H137: 29.83574479
A138: 135 | B138: 72.10576305 | C138: 175.2602497 | D138: 2.114736014 | E138: 13.22944762 | F138: 4.472108411 | G138: 175.0182842 | H138: 27.97678932
A139: 136 | B139: 67.24449669 | C139: 162.8415976 | D139: -2.746530344 | E139: 0.8107954552 | F139: 7.543428933 | G139: 0.6573892702 | H139: -2.226874321
A140: 137 | B140: 72.9894045 | C140: 185.1229971 | D140: 2.998377462 | E140: 23.09219502 | F140: 8.990267403 | G140: 533.2494707 | H140: 69.23911708
A141: 138 | B141: 70.56581793 | C141: 157.9144596 | D141: 0.574790896 | E141: -4.116342505 | F141: 0.3303845742 | G141: 16.94427562 | H141: -2.366036197
A142: 139 | B142: 74.25289638 | C142: 185.5930556 | D142: 4.261869342 | E142: 23.56225346 | F142: 18.16353029 | G142: 555.1797883 | H142: 100.4192457
A143: 140 | B143: 72.83372344 | C143: 159.5829288 | D143: 2.8426964 | E143: -2.447873345 | F143: 8.080922823 | G143: 5.992083911 | H143: -6.958560744
A144: 141 | B144: 69.42765162 | C144: 154.7573044 | D144: -0.5633754151 | E144: -7.27349769 | F144: 0.3173918583 | G144: 52.90376865 | H144: 4.09770978
A145: 142 | B145: 70.58374559 | C145: 163.5098044 | D145: 0.5927185551 | E145: 1.479002316 | F145: 0.3513152856 | G145: 2.187447851 | H145: 0.8766321157
A146: 143 | B146: 70.19783199 | C146: 162.8784682 | D146: 0.2068049574 | E146: 0.8476660401 | F146: 0.04276829041 | G146: 0.7185377155 | H146: 0.1753015393
A147: 144 | B147: 69.55423261 | C147: 155.7723622 | D147: -0.4367944253 | E147: -6.258439967 | F147: 0.1907893699 | G147: 39.16807082 | H147: 2.733651688
A148: 145 | B148: 65.36845854 | C148: 150.620445 | D148: -4.6225685 | E148: -11.41035711 | F148: 21.36813954 | G148: 130.1962493 | H148: 52.74515733
A149: 146 | B149: 64.1395842 | C149: 159.1163422 | D149: -5.851442835 | E149: -2.914459895 | F149: 34.23938325 | G149: 8.494076482 | H149: 17.05379547
A150: 147 | B150: 70.17105734 | C150: 155.3583007 | D150: 0.1800303023 | E150: -6.672501396 | F150: 0.03241090973 | G150: 44.52227488 | H150: -1.201252443
A151: 148 | B151: 71.01263772 | C151: 157.6891746 | D151: 1.021610679 | E151: -4.341627482 | F151: 1.043688379 | G151: 18.84972919 | H151: -4.435452999
A152: 149 | B152: 69.54449121 | C152: 177.5828891 | D152: -0.4465358233 | E152: 15.55208699 | F152: 0.1993942415 | G152: 241.8674097 | H152: -6.944563968
A153: 150 | B153: 73.73128276 | C153: 179.8091735 | D153: 3.740255724 | E153: 17.77837141 | F153: 13.98951288 | G153: 316.07049 | H153: 66.49565543
A154: 151 | B154: 71.92076096 | C154: 165.1340506 | D154: 1.929733927 | E154: 3.10324845 | F154: 3.723873028 | G154: 9.630150944 | H154: 5.988443817
A155: 152 | B155: 66.15342039 | C155: 171.5220038 | D155: -3.837606646 | E155: 9.491201686 | F155: 14.72722477 | G155: 90.08290944 | H155: -36.42349867
A156: 153 | B156: 72.66845163 | C156: 158.444664 | D156: 2.677424588 | E156: -3.586138142 | F156: 7.168602423 | G156: 12.86038677 | H156: -9.601614435
A157: 154 | B157: 69.79607975 | C157: 158.0682468 | D157: -0.1949472888 | E157: -3.962555336 | F157: 0.0380044454 | G157: 15.70184479 | H157: 0.7724894194
A158: 155 | B158: 63.16520992 | C158: 123.7715368 | D158: -6.825817119 | E158: -38.25926531 | F158: 46.59177934 | G158: 1463.771382 | H158: 261.1507481
A159: 156 | B159: 71.19677464 | C159: 170.7136141 | D159: 1.2057476 | E159: 8.682811972 | F159: 1.453827275 | G159: 75.39122374 | H159: 10.4692797
A160: 157 | B160: 70.1912902 | C160: 153.1454769 | D160: 0.2002631581 | E160: -8.885325264 | F160: 0.04010533248 | G160: 78.94900505 | H160: -1.779403298
A161: 158 | B161: 65.83530092 | C161: 156.725842 | D161: -4.155726121 | E161: -5.304960084 | F161: 17.27005959 | G161: 28.14260149 | H161: 22.04596119
A162: 159 | B162: 70.97647682 | C162: 138.888788 | D162: 0.9854497782 | E162: -23.14201412 | F162: 0.9711112654 | G162: 535.5528175 | H162: -22.80529268
A163: 160 | B163: 73.77189976 | C163: 152.7023355 | D163: 3.78087272 | E163: -9.328466603 | F163: 14.29499853 | G163: 87.02028916 | H163: -35.2697449
A164: 161 | B164: 68.93452288 | C164: 145.3280275 | D164: -1.056504155 | E164: -16.70277467 | F164: 1.11620103 | G164: 278.9826818 | H164: 17.64655085
A165: 162 | B165: 66.03873886 | C165: 161.8673202 | D165: -3.952288179 | E165: -0.1634819784 | F165: 15.62058185 | G165: 0.02672635726 | H165: 0.6461278907
A166: 163 | B166: 69.35133254 | C166: 148.9728655 | D166: -0.639694497 | E166: -13.05793661 | F166: 0.4092090494 | G166: 170.5097086 | H166: 8.353090194
A167: 164 | B167: 66.67259933 | C167: 155.5323073 | D167: -3.318427709 | E167: -6.498494808 | F167: 11.01196246 | G167: 42.23043477 | H167: 21.56478524
A168: 165 | B168: 72.27454733 | C168: 188.8804769 | D168: 2.283520291 | E168: 26.84967478 | F168: 5.21446492 | G168: 720.9050356 | H168: 61.31177716
A169: 166 | B169: 74.24456298 | C169: 174.9467824 | D169: 4.25353594 | E169: 12.91598031 | F169: 18.09256799 | G169: 166.8225475 | H169: 54.93858647
A170: 167 | B170: 72.02685183 | C170: 176.5044519 | D170: 2.035824788 | E170: 14.47364978 | F170: 4.144582568 | G170: 209.4865379 | H170: 29.46581499
A171: 168 | B171: 72.78742424 | C171: 158.3937318 | D171: 2.796397201 | E171: -3.637070372 | F171: 7.819837305 | G171: 13.22828089 | H171: -10.17069341
A172: 169 | B172: 73.53635403 | C172: 172.5084512 | D172: 3.545326994 | E172: 10.4776491 | F172: 12.5693435 | G172: 109.7811306 | H172: 37.14669218
A173: 170 | B173: 65.37285737 | C173: 145.8842592 | D173: -4.618169672 | E173: -16.14654296 | F173: 21.32749112 | G173: 260.7108495 | H173: 74.56747499
A174: 171 | B174: 67.76076707 | C174: 158.8954329 | D174: -2.230259967 | E174: -3.135369275 | F174: 4.974059523 | G174: 9.830540489 | H174: 6.992688577
A175: 172 | B175: 72.17007281 | C175: 174.3288405 | D175: 2.179045769 | E175: 12.2980384 | F175: 4.748240465 | G175: 151.2417486 | H175: 26.79798855
A176: 173 | B176: 68.39012804 | C176: 169.9482842 | D176: -1.600898993 | E176: 7.917482032 | F176: 2.562877587 | G176: 62.68652173 | H176: -12.67508902
A177: 174 | B177: 72.42067417 | C177: 159.5886426 | D177: 2.429647136 | E177: -2.442159565 | F177: 5.903185204 | G177: 5.96414334 | H177: -5.933585992
A178: 175 | B178: 70.29179473 | C178: 201.7485895 | D178: 0.3007676971 | E178: 39.71778741 | F178: 0.09046120763 | G178: 1577.502637 | H178: 11.94582746
A179: 176 | B179: 69.98153809 | C179: 167.1649034 | D179: -0.009488949313 | E179: 5.13410123 | F179: 9.004015907e-05 | G179: 26.35899544 | H179: -0.04871722634
A180: 177 | B180: 64.79821554 | C180: 146.8034034 | D180: -5.192811494 | E180: -15.22739873 | F180: 26.96529121 | G180: 231.873672 | H180: 79.07301113
A181: 178 | B181: 74.75303801 | C181: 160.8131997 | D181: 4.762010975 | E181: -1.217602401 | F181: 22.67674853 | G181: 1.482555607 | H181: -5.798235996
A182: 179 | B182: 74.15042674 | C182: 191.6449847 | D182: 4.159399701 | E182: 29.6141826 | F182: 17.30060587 | G182: 876.999811 | H182: 123.1772222
A183: 180 | B183: 70.34341469 | C183: 146.3603351 | D183: 0.3523876561 | E183: -15.67046701 | F183: 0.1241770602 | G183: 245.5635364 | H183: -5.522079141
A184: 181 | B184: 72.27041405 | C184: 165.1482464 | D184: 2.279387015 | E184: 3.117444315 | F184: 5.195605166 | G184: 9.718459057 | H184: 7.105862093
A185: 182 | B185: 73.14382308 | C185: 180.6961538 | D185: 3.152796044 | E185: 18.66535167 | F185: 9.940122894 | G185: 348.3953528 | H185: 58.84804689
A186: 183 | B186: 72.24764765 | C186: 157.0869113 | D186: 2.256620617 | E186: -4.943890847 | F186: 5.092336609 | G186: 24.44205671 | H186: -11.15648601
A187: 184 | B187: 68.54167893 | C187: 148.0982625 | D187: -1.449348104 | E187: -13.93253961 | F187: 2.100609926 | G187: 194.1156599 | H187: 20.19309986
A188: 185 | B188: 68.49678867 | C188: 152.2014575 | D188: -1.494238372 | E188: -9.829344637 | F188: 2.232748313 | G188: 96.616016 | H188: 14.68738393
A189: 186 | B189: 76.24707247 | C189: 161.1450957 | D189: 6.256045428 | E189: -0.8857064016 | F189: 39.1381044 | G189: 0.7844758298 | H189: -5.541019485
A190: 187 | B190: 65.9794391 | C190: 159.1120505 | D190: -4.011587939 | E190: -2.918751665 | F190: 16.09283779 | G190: 8.51911128 | H190: 11.70882898
A191: 188 | B191: 71.180661 | C191: 161.5746363 | D191: 1.189633961 | E191: -0.4561658478 | F191: 1.415228962 | G191: 0.2080872807 | H191: -0.5426703846
A192: 189 | B192: 67.80139281 | C192: 158.5008364 | D192: -2.189634224 | E192: -3.529965711 | F192: 4.794498034 | G192: 12.46065792 | H192: 7.729333731
A193: 190 | B193: 68.45905656 | C193: 156.7266533 | D193: -1.53197048 | E193: -5.304148804 | F193: 2.346933551 | G193: 28.13399453 | H193: 8.125799387
A194: 191 | B194: 66.81630819 | C194: 142.8457982 | D194: -3.174718844 | E194: -19.18500388 | F194: 10.07883974 | G194: 368.064374 | H194: 60.90699336
A195: 192 | B195: 67.08095164 | C195: 150.7550458 | D195: -2.910075395 | E195: -11.27575634 | F195: 8.468538804 | G195: 127.142681 | H195: 32.81330108
A196: 193 | B196: 70.28233238 | C196: 160.9989407 | D196: 0.2913053434 | E196: -1.031861443 | F196: 0.0848588031 | G196: 1.064738037 | H196: -0.3005867519
A197: 194 | B197: 67.10876509 | C197: 162.5844465 | D197: -2.882261951 | E197: 0.5536443677 | F197: 8.307433955 | G197: 0.3065220858 | H197: -1.595748095
A198: 195 | B198: 67.38319238 | C198: 142.201884 | D198: -2.60783466 | E198: -19.82891808 | F198: 6.800801612 | G198: 393.1859923 | H198: 51.71053984
A199: 196 | B199: 72.072698 | C199: 178.4418879 | D199: 2.081670963 | E199: 16.41108578 | F199: 4.333353998 | G199: 269.3237364 | H199: 34.16248073
A200: 197 | B200: 73.99964359 | C200: 186.7099983 | D200: 4.008616552 | E200: 24.67919618 | F200: 16.06900666 | G200: 609.062724 | H200: 98.92943428
A201: 198 | B201: 69.01831506 | C201: 148.5578991 | D201: -0.972711976 | E201: -13.47290299 | F201: 0.9461685882 | G201: 181.5191149 | H201: 13.10525409
... 802 more rows

Sheet Spearman's Correlation
A1: Calculating the Spearman Correlation Coefficient
A3: Observation Number | B3: X | C3: Y | D3: Xrnk | E3: Yrnk | H3: Comparison of Manually Calculated Correlation with Macro Calculation | M3: Spearman Correlation Applied to the Paired Data Series From the "Simulated Data" Worksheet
A4: 1 | B4: 69.59024759 | C4: 179.2035405 | D4: 452 | E4: 892 | H4: Calculated Spearman = | J4: =CORREL(D4:D1003,E4:E1003) -> 0.4505496185
A5: 2 | B5: 75.90042113 | C5: 148.634771 | D5: 977 | E5: 171 | H5: VBA Spearman = | J5: =spearman(B4:B1003,C4:C1003) -> 0.4505496185 | M5: U1(0,1), U2(0,1) | N5: =spearman('Simulated Data'!$B$4:$B$1003,'Simulated Data'!$C$4:$C$1003) -> 0.01641509242
A6: 3 | B6: 68.70319257 | C6: 148.2832815 | D6: 350 | E6: 162 | M6: N1(0,1), N2(0,1) | N6: =spearman('Simulated Data'!$D$4:$D$1003,'Simulated Data'!$E$4:$E$1003) -> -0.02084115284
A7: 4 | B7: 70.30671509 | C7: 161.1189805 | D7: 544 | E7: 482 | M7: X, Y (Correlated) | N7: =spearman('Simulated Data'!$F$4:$F$1003,'Simulated Data'!$G$4:$G$1003) -> 0.4505496185
A8: 5 | B8: 67.3750767 | C8: 167.5735679 | D8: 190 | E8: 656 | M8: Ranks of (X, Y) | N8: =spearman('Simulated Data'!$H$4:$H$1003,'Simulated Data'!$I$4:$I$1003) -> 0.4505496185
A9: 6 | B9: 70.30370117 | C9: 166.757326 | D9: 543 | E9: 634 | M9: (X, Y) with duplicates | N9: =spearman('Simulated Data'!$J$4:$J$1003,'Simulated Data'!$K$4:$K$1003) -> 0.4505707722
A10: 7 | B10: 72.046436 | C10: 158.1402947 | D10: 757 | E10: 392 | M10: Ranks of (X, Y) with duplicates | N10: =spearman('Simulated Data'!$L$4:$L$1003,'Simulated Data'!$M$4:$M$1003) -> 0.4505707722
A11: 8 | B11: 69.65903862 | C11: 151.4591575 | D11: 458 | E11: 226
A12: 9 | B12: 74.29144862 | C12: 185.9929006 | D12: 923 | E12: 956
A13: 10 | B13: 65.64948847 | C13: 147.6030784 | D13: 69 | E13: 153
A14: 11 | B14: 69.74269715 | C14: 154.6594908 | D14: 464 | E14: 300 | M14: Notes:
A15: 12 | B15: 69.92351191 | C15: 155.0106918 | D15: 488 | E15: 311 | M15: 1. The Spearman correlation is simply the Pearson correlation applied to the ranks of the X and Y variable. 2. In the event either the X or Y variable leads to tied ranks, the average rank of the tied values becomes the ranks for each tie. 3. Note that the Spearman's correlation macro returns the same value whether it is applied to the original X and Y values or to the ranked versions of the X and Y variables. 4. Spearman's Rank Correlation is a non-parametric estimator. 5. For normally distributed data, the Spearman's correlation must be adjusted by sin(0.5prS) to be a consistent estimator of ρ in the multivariate normal CDF.
A16: 13 | B16: 71.27244255 | C16: 167.9248667 | D16: 656 | E16: 661
A17: 14 | B17: 68.20918455 | C17: 170.8602726 | D17: 281 | E17: 735
A18: 15 | B18: 71.98267049 | C18: 177.2631872 | D18: 748 | E18: 860
A19: 16 | B19: 64.96950385 | C19: 170.4605236 | D19: 47 | E19: 727
A20: 17 | B20: 67.56420314 | C20: 158.2215903 | D20: 204 | E20: 396
A21: 18 | B21: 72.34811075 | C21: 168.0844596 | D21: 788 | E21: 668
A22: 19 | B22: 73.39999773 | C22: 186.4382187 | D22: 874 | E22: 957
A23: 20 | B23: 70.63087883 | C23: 145.0970574 | D23: 580 | E23: 111
A24: 21 | B24: 70.11967655 | C24: 138.1029989 | D24: 512 | E24: 36
A25: 22 | B25: 66.18716528 | C25: 144.0183644 | D25: 105 | E25: 99
A26: 23 | B26: 73.78144069 | C26: 194.1955585 | D26: 901 | E26: 991
A27: 24 | B27: 67.09498212 | C27: 159.5028359 | D27: 173 | E27: 439
A28: 25 | B28: 69.93828021 | C28: 159.3274787 | D28: 490 | E28: 432
A29: 26 | B29: 69.15218537 | C29: 169.6787571 | D29: 396 | E29: 709
A30: 27 | B30: 69.97904194 | C30: 169.2641729 | D30: 494 | E30: 695
A31: 28 | B31: 65.23138892 | C31: 150.1850862 | D31: 55 | E31: 196
A32: 29 | B32: 69.18991845 | C32: 162.13541 | D32: 399 | E32: 522
A33: 30 | B33: 70.7218467 | C33: 179.8605007 | D33: 592 | E33: 902
A34: 31 | B34: 73.08646681 | C34: 167.345485 | D34: 857 | E34: 650
A35: 32 | B35: 72.42004776 | C35: 176.7791011 | D35: 799 | E35: 854
A36: 33 | B36: 64.43216286 | C36: 134.4075192 | D36: 30 | E36: 19
A37: 34 | B37: 70.27480576 | C37: 157.565493 | D37: 532 | E37: 376
A38: 35 | B38: 68.1393137 | C38: 139.4283219 | D38: 270 | E38: 50
A39: 36 | B39: 74.47045905 | C39: 176.306214 | D39: 937 | E39: 845
A40: 37 | B40: 66.39420939 | C40: 143.0109076 | D40: 113 | E40: 89
A41: 38 | B41: 71.51880731 | C41: 168.2380568 | D41: 686 | E41: 672
A42: 39 | B42: 71.11033365 | C42: 154.6312858 | D42: 637 | E42: 297
A43: 40 | B43: 69.82809183 | C43: 178.5105441 | D43: 479 | E43: 882
A44: 41 | B44: 71.00384778 | C44: 174.7647687 | D44: 620 | E44: 815
A45: 42 | B45: 68.16229315 | C45: 165.5278601 | D45: 273 | E45: 610
A46: 43 | B46: 69.41568546 | C46: 142.5146991 | D46: 421 | E46: 81
A47: 44 | B47: 70.85962855 | C47: 175.8377286 | D47: 606 | E47: 836
A48: 45 | B48: 68.00908012 | C48: 170.5361346 | D48: 250 | E48: 730
A49: 46 | B49: 71.79456065 | C49: 161.165496 | D49: 719 | E49: 484
A50: 47 | B50: 67.75641297 | C50: 154.8749646 | D50: 222 | E50: 307
A51: 48 | B51: 68.65060179 | C51: 159.3540304 | D51: 345 | E51: 434
A52: 49 | B52: 71.65713108 | C52: 187.6360219 | D52: 703 | E52: 965
A53: 50 | B53: 68.95997709 | C53: 167.8543877 | D53: 369 | E53: 659
A54: 51 | B54: 68.44237462 | C54: 163.8016713 | D54: 312 | E54: 562
A55: 52 | B55: 72.64891234 | C55: 164.4651827 | D55: 813 | E55: 587
A56: 53 | B56: 64.16689684 | C56: 157.7714021 | D56: 23 | E56: 382
A57: 54 | B57: 69.53677122 | C57: 160.6378795 | D57: 442 | E57: 469
A58: 55 | B58: 68.52794302 | C58: 142.8477662 | D58: 330 | E58: 87
A59: 56 | B59: 68.5118249 | C59: 133.197115 | D59: 328 | E59: 13
A60: 57 | B60: 70.28039146 | C60: 179.5151704 | D60: 536 | E60: 896
A61: 58 | B61: 68.95148951 | C61: 154.5936208 | D61: 368 | E61: 295
A62: 59 | B62: 76.13678496 | C62: 167.102771 | D62: 983 | E62: 643
A63: 60 | B63: 72.68803547 | C63: 162.4174685 | D63: 818 | E63: 530
A64: 61 | B64: 71.29852334 | C64: 165.1235083 | D64: 661 | E64: 600
A65: 62 | B65: 73.96392728 | C65: 175.8806819 | D65: 906 | E65: 838
A66: 63 | B66: 68.34454044 | C66: 174.4574496 | D66: 298 | E66: 806
A67: 64 | B67: 69.95782012 | C67: 161.4350221 | D67: 493 | E67: 494
A68: 65 | B68: 71.61445169 | C68: 154.6414632 | D68: 696 | E68: 299
A69: 66 | B69: 72.77260559 | C69: 185.8068797 | D69: 825 | E69: 954
A70: 67 | B70: 67.59161206 | C70: 168.3994952 | D70: 206 | E70: 676
A71: 68 | B71: 70.62542637 | C71: 181.3665741 | D71: 579 | E71: 916
A72: 69 | B72: 70.56596848 | C72: 152.4950221 | D72: 567 | E72: 251
A73: 70 | B73: 70.66886091 | C73: 160.9386736 | D73: 586 | E73: 478
A74: 71 | B74: 69.85923458 | C74: 173.2838986 | D74: 482 | E74: 792
A75: 72 | B75: 72.80264454 | C75: 153.6540441 | D75: 829 | E75: 275
A76: 73 | B76: 69.22604171 | C76: 159.74142 | D76: 405 | E76: 446
A77: 74 | B77: 66.61983866 | C77: 177.7115498 | D77: 128 | E77: 869
A78: 75 | B78: 66.12264851 | C78: 170.86176 | D78: 102 | E78: 736
A79: 76 | B79: 75.29848228 | C79: 167.9362434 | D79: 970 | E79: 662
A80: 77 | B80: 78.77680626 | C80: 177.5387429 | D80: 997 | E80: 864
A81: 78 | B81: 76.09356413 | C81: 178.3484859 | D81: 981 | E81: 880
A82: 79 | B82: 65.89089868 | C82: 163.5776839 | D82: 84 | E82: 558
A83: 80 | B83: 70.2867311 | C83: 147.2331273 | D83: 538 | E83: 146
A84: 81 | B84: 71.81489191 | C84: 163.8140279 | D84: 721 | E84: 563
A85: 82 | B85: 70.25339556 | C85: 176.2836325 | D85: 531 | E85: 844
A86: 83 | B86: 69.38942282 | C86: 158.2411932 | D86: 416 | E86: 397
A87: 84 | B87: 72.04563341 | C87: 191.6844267 | D87: 756 | E87: 983
A88: 85 | B88: 69.89492867 | C88: 166.0528146 | D88: 484 | E88: 616
A89: 86 | B89: 66.57922064 | C89: 142.1133517 | D89: 121 | E89: 75
A90: 87 | B90: 71.9959069 | C90: 173.1354722 | D90: 750 | E90: 790
A91: 88 | B91: 66.76504149 | C91: 156.1266388 | D91: 148 | E91: 341
A92: 89 | B92: 71.15381831 | C92: 162.3342115 | D92: 643 | E92: 529
A93: 90 | B93: 67.91843379 | C93: 163.9815261 | D93: 238 | E93: 572
A94: 91 | B94: 69.51163441 | C94: 152.2586653 | D94: 436 | E94: 243
A95: 92 | B95: 71.02343264 | C95: 142.2562719 | D95: 625 | E95: 78
A96: 93 | B96: 71.86680426 | C96: 161.0542333 | D96: 729 | E96: 481
A97: 94 | B97: 69.76365263 | C97: 154.4144852 | D97: 467 | E97: 294
A98: 95 | B98: 74.33300956 | C98: 182.4972003 | D98: 925 | E98: 930
A99: 96 | B99: 73.02050503 | C99: 166.3569692 | D99: 854 | E99: 623
A100: 97 | B100: 73.72562423 | C100: 172.5475412 | D100: 896 | E100: 778
A101: 98 | B101: 73.44736251 | C101: 191.6079086 | D101: 876 | E101: 980
A102: 99 | B102: 65.68425633 | C102: 145.8722328 | D102: 71 | E102: 122
A103: 100 | B103: 66.90422679 | C103: 162.0671608 | D103: 157 | E103: 517
A104: 101 | B104: 69.98935182 | C104: 163.1720923 | D104: 497 | E104: 548
A105: 102 | B105: 61.70660735 | C105: 143.2161385 | D105: 2 | E105: 93
A106: 103 | B106: 72.8797388 | C106: 151.9934375 | D106: 840 | E106: 234
A107: 104 | B107: 72.72441064 | C107: 146.282265 | D107: 822 | E107: 129
A108: 105 | B108: 74.25481157 | C108: 190.2721726 | D108: 920 | E108: 976
A109: 106 | B109: 71.07392189 | C109: 169.5453319 | D109: 632 | E109: 705
A110: 107 | B110: 71.63434532 | C110: 163.1166295 | D110: 700 | E110: 544
A111: 108 | B111: 74.88879892 | C111: 187.7338789 | D111: 958 | E111: 966
A112: 109 | B112: 67.23987899 | C112: 128.7208613 | D112: 182 | E112: 6
A113: 110 | B113: 68.45309637 | C113: 163.8499386 | D113: 315 | E113: 566
A114: 111 | B114: 69.46022372 | C114: 147.9869717 | D114: 425 | E114: 155
A115: 112 | B115: 66.94801339 | C115: 130.9928233 | D115: 161 | E115: 9
A116: 113 | B116: 68.52590306 | C116: 164.9782672 | D116: 329 | E116: 597
A117: 114 | B117: 72.72947936 | C117: 159.7872454 | D117: 823 | E117: 448
A118: 115 | B118: 67.60130747 | C118: 158.36545 | D118: 207 | E118: 401
A119: 116 | B119: 69.46428852 | C119: 165.2429747 | D119: 427 | E119: 606
A120: 117 | B120: 72.8921763 | C120: 183.0687773 | D120: 842 | E120: 934
A121: 118 | B121: 69.46149311 | C121: 167.1568824 | D121: 426 | E121: 644
A122: 119 | B122: 70.13856871 | C122: 171.4376218 | D122: 515 | E122: 750
A123: 120 | B123: 74.07380549 | C123: 169.4258314 | D123: 911 | E123: 701
A124: 121 | B124: 71.08467338 | C124: 150.4930786 | D124: 635 | E124: 203
A125: 122 | B125: 68.60783197 | C125: 174.687818 | D125: 340 | E125: 812
A126: 123 | B126: 66.778743 | C126: 163.4793871 | D126: 149 | E126: 553
A127: 124 | B127: 71.75534784 | C127: 178.1132371 | D127: 713 | E127: 879
A128: 125 | B128: 70.65050248 | C128: 137.1021237 | D128: 582 | E128: 30
A129: 126 | B129: 69.51645331 | C129: 157.5480065 | D129: 438 | E129: 375
A130: 127 | B130: 68.44588647 | C130: 151.0278191 | D130: 313 | E130: 220
A131: 128 | B131: 71.43323974 | C131: 177.7176602 | D131: 677 | E131: 870
A132: 129 | B132: 70.56909432 | C132: 149.0256826 | D132: 568 | E132: 175
A133: 130 | B133: 73.13835112 | C133: 181.7555694 | D133: 862 | E133: 922
A134: 131 | B134: 68.04412365 | C134: 160.2559421 | D134: 260 | E134: 463
A135: 132 | B135: 74.44816055 | C135: 160.5860637 | D135: 934 | E135: 468
A136: 133 | B136: 71.31721668 | C136: 156.7163784 | D136: 663 | E136: 355
A137: 134 | B137: 65.4866644 | C137: 155.4070582 | D137: 64 | E137: 321
A138: 135 | B138: 72.10576305 | C138: 175.2602497 | D138: 763 | E138: 831
A139: 136 | B139: 67.24449669 | C139: 162.8415976 | D139: 183 | E139: 537
A140: 137 | B140: 72.9894045 | C140: 185.1229971 | D140: 851 | E140: 948
A141: 138 | B141: 70.56581793 | C141: 157.9144596 | D141: 566 | E141: 383
A142: 139 | B142: 74.25289638 | C142: 185.5930556 | D142: 918 | E142: 950
A143: 140 | B143: 72.83372344 | C143: 159.5829288 | D143: 832 | E143: 442
A144: 141 | B144: 69.42765162 | C144: 154.7573044 | D144: 422 | E144: 302
A145: 142 | B145: 70.58374559 | C145: 163.5098044 | D145: 570 | E145: 555
A146: 143 | B146: 70.19783199 | C146: 162.8784682 | D146: 528 | E146: 538
A147: 144 | B147: 69.55423261 | C147: 155.7723622 | D147: 446 | E147: 330
A148: 145 | B148: 65.36845854 | C148: 150.620445 | D148: 60 | E148: 207
A149: 146 | B149: 64.1395842 | C149: 159.1163422 | D149: 21 | E149: 429
A150: 147 | B150: 70.17105734 | C150: 155.3583007 | D150: 521 | E150: 319
A151: 148 | B151: 71.01263772 | C151: 157.6891746 | D151: 622 | E151: 379
A152: 149 | B152: 69.54449121 | C152: 177.5828891 | D152: 444 | E152: 867
A153: 150 | B153: 73.73128276 | C153: 179.8091735 | D153: 897 | E153: 901
A154: 151 | B154: 71.92076096 | C154: 165.1340506 | D154: 740 | E154: 601
A155: 152 | B155: 66.15342039 | C155: 171.5220038 | D155: 103 | E155: 754
A156: 153 | B156: 72.66845163 | C156: 158.444664 | D156: 815 | E156: 407
A157: 154 | B157: 69.79607975 | C157: 158.0682468 | D157: 474 | E157: 389
A158: 155 | B158: 63.16520992 | C158: 123.7715368 | D158: 7 | E158: 3
A159: 156 | B159: 71.19677464 | C159: 170.7136141 | D159: 648 | E159: 731
A160: 157 | B160: 70.1912902 | C160: 153.1454769 | D160: 525 | E160: 265
A161: 158 | B161: 65.83530092 | C161: 156.725842 | D161: 80 | E161: 356
A162: 159 | B162: 70.97647682 | C162: 138.888788 | D162: 617 | E162: 44
A163: 160 | B163: 73.77189976 | C163: 152.7023355 | D163: 899 | E163: 258
A164: 161 | B164: 68.93452288 | C164: 145.3280275 | D164: 367 | E164: 113
A165: 162 | B165: 66.03873886 | C165: 161.8673202 | D165: 95 | E165: 507
A166: 163 | B166: 69.35133254 | C166: 148.9728655 | D166: 413 | E166: 174
A167: 164 | B167: 66.67259933 | C167: 155.5323073 | D167: 135 | E167: 322
A168: 165 | B168: 72.27454733 | C168: 188.8804769 | D168: 781 | E168: 971
A169: 166 | B169: 74.24456298 | C169: 174.9467824 | D169: 917 | E169: 823
A170: 167 | B170: 72.02685183 | C170: 176.5044519 | D170: 753 | E170: 850
A171: 168 | B171: 72.78742424 | C171: 158.3937318 | D171: 828 | E171: 403
A172: 169 | B172: 73.53635403 | C172: 172.5084512 | D172: 885 | E172: 777
A173: 170 | B173: 65.37285737 | C173: 145.8842592 | D173: 61 | E173: 123
A174: 171 | B174: 67.76076707 | C174: 158.8954329 | D174: 223 | E174: 421
A175: 172 | B175: 72.17007281 | C175: 174.3288405 | D175: 771 | E175: 804
A176: 173 | B176: 68.39012804 | C176: 169.9482842 | D176: 305 | E176: 717
A177: 174 | B177: 72.42067417 | C177: 159.5886426 | D177: 800 | E177: 443
A178: 175 | B178: 70.29179473 | C178: 201.7485895 | D178: 539 | E178: 999
A179: 176 | B179: 69.98153809 | C179: 167.1649034 | D179: 495 | E179: 645
A180: 177 | B180: 64.79821554 | C180: 146.8034034 | D180: 41 | E180: 139
A181: 178 | B181: 74.75303801 | C181: 160.8131997 | D181: 951 | E181: 474
A182: 179 | B182: 74.15042674 | C182: 191.6449847 | D182: 914 | E182: 982
A183: 180 | B183: 70.34341469 | C183: 146.3603351 | D183: 550 | E183: 132
A184: 181 | B184: 72.27041405 | C184: 165.1482464 | D184: 780 | E184: 602
A185: 182 | B185: 73.14382308 | C185: 180.6961538 | D185: 863 | E185: 910
A186: 183 | B186: 72.24764765 | C186: 157.0869113 | D186: 778 | E186: 364
A187: 184 | B187: 68.54167893 | C187: 148.0982625 | D187: 333 | E187: 158
A188: 185 | B188: 68.49678867 | C188: 152.2014575 | D188: 322 | E188: 241
A189: 186 | B189: 76.24707247 | C189: 161.1450957 | D189: 986 | E189: 483
A190: 187 | B190: 65.9794391 | C190: 159.1120505 | D190: 91 | E190: 428
A191: 188 | B191: 71.180661 | C191: 161.5746363 | D191: 646 | E191: 499
A192: 189 | B192: 67.80139281 | C192: 158.5008364 | D192: 229 | E192: 409
A193: 190 | B193: 68.45905656 | C193: 156.7266533 | D193: 317 | E193: 357
A194: 191 | B194: 66.81630819 | C194: 142.8457982 | D194: 152 | E194: 86
A195: 192 | B195: 67.08095164 | C195: 150.7550458 | D195: 171 | E195: 213
A196: 193 | B196: 70.28233238 | C196: 160.9989407 | D196: 537 | E196: 480
A197: 194 | B197: 67.10876509 | C197: 162.5844465 | D197: 176 | E197: 533
A198: 195 | B198: 67.38319238 | C198: 142.201884 | D198: 191 | E198: 76
A199: 196 | B199: 72.072698 | C199: 178.4418879 | D199: 759 | E199: 881
A200: 197 | B200: 73.99964359 | C200: 186.7099983 | D200: 908 | E200: 960
A201: 198 | B201: 69.01831506 | C201: 148.5578991 | D201: 379 | E201: 168
... 803 more rows

Sheet Quadrant Correlation
A1: Calculating the Quadrant (Sign) Correlation Coefficient
A3: Observation Number | B3: X | C3: Y | D3: (X-Xmed)∙(Y-Ymed) | E3: Sign of Column D | H3: Comparison of Manually Calculated Correlation with Macro Calculation | M3: Quadrant Correlation Applied to the Paired Data Series From the "Simulated Data" Worksheet
A4: 1 | B4: 69.59024759 | C4: 179.2035405 | D4: =(B4-$J$10)*(C4-$J$11) -> -7.727020118 | E4: =SIGN(D4) -> -1 | H4: Calculated Quadrant = | J4: =J13/J12 -> 0.3
A5: 2 | B5: 75.90042113 | C5: 148.634771 | D5: -76.15545922 | E5: =SIGN(D5) -> -1 | H5: VBA Quadrant = | J5: =QuadCorr(B4:B1003,C4:C1003) -> 0.3 | M5: U1(0,1), U2(0,1) | N5: =QuadCorr('Simulated Data'!$B$4:$B$1003,'Simulated Data'!$C$4:$C$1003) -> 0.02
A6: 3 | B6: 68.70319257 | C6: 148.2832815 | D6: 17.66805694 | E6: 1 | M6: N1(0,1), N2(0,1) | N6: =QuadCorr('Simulated Data'!$D$4:$D$1003,'Simulated Data'!$E$4:$E$1003) -> 0.004
A7: 4 | B7: 70.30671509 | C7: 161.1189805 | D7: -0.1351029939 | E7: -1 | M7: X, Y (Correlated) | N7: =QuadCorr('Simulated Data'!$F$4:$F$1003,'Simulated Data'!$G$4:$G$1003) -> 0.3
A8: 5 | B8: 67.3750767 | C8: 167.5735679 | D8: -15.83935176 | E8: -1 | H8: Intermediate Calculations for the Quadrant Correlation | M8: Ranks of (X, Y) | N8: =QuadCorr('Simulated Data'!$H$4:$H$1003,'Simulated Data'!$I$4:$I$1003) -> 0.3
A9: 6 | B9: 70.30370117 | C9: 166.757326 | D9: 1.41327499 | E9: 1 | M9: (X, Y) with duplicates | N9: =QuadCorr('Simulated Data'!$J$4:$J$1003,'Simulated Data'!$K$4:$K$1003) -> 0.3
A10: 7 | B10: 72.046436 | C10: 158.1402947 | D10: -6.990776556 | E10: -1 | H10: Median (X) = | J10: 70.02934587 | M10: Ranks of (X, Y) with duplicates | N10: =QuadCorr('Simulated Data'!$L$4:$L$1003,'Simulated Data'!$M$4:$M$1003) -> 0.3
A11: 8 | B11: 69.65903862 | C11: 151.4591575 | D11: 3.757474446 | E11: 1 | H11: Median (Y) = | J11: 161.6060677
A12: 9 | B12: 74.29144862 | C12: 185.9929006 | D12: 103.9391871 | E12: 1 | H12: Number of Obs = | J12: 1000
A13: 10 | B13: 65.64948847 | C13: 147.6030784 | D13: 61.33109628 | E13: 1 | H13: Sum of Signs (Col. D) = | J13: 300
A14: 11 | B14: 69.74269715 | C14: 154.6594908 | D14: 1.991227432 | E14: 1 | M14: Notes:
A15: 12 | B15: 69.92351191 | C15: 155.0106918 | D15: 0.6980147681 | E15: 1 | M15: 1. The Quadrant Correlation is a count of the observations in the first and third quadrants minus the sum of the observations in the second and fourth quadrants, after medians have been subtracted. 2. In the event any of the values of X or Y equal their respective median the observation is not counted in the numerator. 3. Note that the Quadrant Correlation macro returns the same value whether it is applied to the original X and Y values or to the ranked versions of the X and Y variables. 4. The Quadrant Correlation is a non-parametric estimator.
A16: 13 | B16: 71.27244255 | C16: 167.9248667 | D16: 7.854878008 | E16: 1
A17: 14 | B17: 68.20918455 | C17: 170.8602726 | D17: -16.84414576 | E17: -1
A18: 15 | B18: 71.98267049 | C18: 177.2631872 | D18: 30.58343685 | E18: 1
A19: 16 | B19: 64.96950385 | C19: 170.4605236 | D19: -44.80214829 | E19: -1
A20: 17 | B20: 67.56420314 | C20: 158.2215903 | D20: 8.343219872 | E20: 1
A21: 18 | B21: 72.34811075 | C21: 168.0844596 | D21: 15.02186748 | E21: 1
A22: 19 | B22: 73.39999773 | C22: 186.4382187 | D22: 83.70053587 | E22: 1
A23: 20 | B23: 70.63087883 | C23: 145.0970574 | D23: -9.930713785 | E23: -1
A24: 21 | B24: 70.11967655 | C24: 138.1029989 | D24: -2.123048172 | E24: -1
A25: 22 | B25: 66.18716528 | C25: 144.0183644 | D25: 67.57513251 | E25: 1
A26: 23 | B26: 73.78144069 | C26: 194.1955585 | D26: 122.2788594 | E26: 1
A27: 24 | B27: 67.09498212 | C27: 159.5028359 | D27: 6.17164723 | E27: 1
A28: 25 | B28: 69.93828021 | C28: 159.3274787 | D28: 0.207501209 | E28: 1
A29: 26 | B29: 69.15218537 | C29: 169.6787571 | D29: -7.081044364 | E29: -1
A30: 27 | B30: 69.97904194 | C30: 169.2641729 | D30: -0.3852328305 | E30: -1
A31: 28 | B31: 65.23138892 | C31: 150.1850862 | D31: 54.79737761 | E31: 1
A32: 29 | B32: 69.18991845 | C32: 162.13541 | D32: -0.444344421 | E32: -1
A33: 30 | B33: 70.7218467 | C33: 179.8605007 | D33: 12.64120989 | E33: 1
A34: 31 | B34: 73.08646681 | C34: 167.345485 | D34: 17.54609277 | E34: 1
A35: 32 | B35: 72.42004776 | C35: 176.7791011 | D35: 36.27419965 | E35: 1
A36: 33 | B36: 64.43216286 | C36: 134.4075192 | D36: 152.2352535 | E36: 1
A37: 34 | B37: 70.27480576 | C37: 157.565493 | D37: -0.9917990143 | E37: -1
A38: 35 | B38: 68.1393137 | C38: 139.4283219 | D38: 41.91665317 | E38: 1
A39: 36 | B39: 74.47045905 | C39: 176.306214 | D39: 65.28501341 | E39: 1
A40: 37 | B40: 66.39420939 | C40: 143.0109076 | D40: 67.5959451 | E40: 1
A41: 38 | B41: 71.51880731 | C41: 168.2380568 | D41: 9.878092066 | E41: 1
A42: 39 | B42: 71.11033365 | C42: 154.6312858 | D42: -7.53965395 | E42: -1
A43: 40 | B43: 69.82809183 | C43: 178.5105441 | D43: -3.402094261 | E43: -1
A44: 41 | B44: 71.00384778 | C44: 174.7647687 | D44: 12.82317925 | E44: 1
A45: 42 | B45: 68.16229315 | C45: 165.5278601 | D45: -7.32219316 | E45: -1
A46: 43 | B46: 69.41568546 | C46: 142.5146991 | D46: 11.71561724 | E46: 1
A47: 44 | B47: 70.85962855 | C47: 175.8377286 | D47: 11.81630149 | E47: 1
A48: 45 | B48: 68.00908012 | C48: 170.5361346 | D48: -18.04110826 | E48: -1
A49: 46 | B49: 71.79456065 | C49: 161.165496 | D49: -0.7777035972 | E49: -1
A50: 47 | B50: 67.75641297 | C50: 154.8749646 | D50: 15.29934572 | E50: 1
A51: 48 | B51: 68.65060179 | C51: 159.3540304 | D51: 3.10498316 | E51: 1
A52: 49 | B52: 71.65713108 | C52: 187.6360219 | D52: 42.37117438 | E52: 1
A53: 50 | B53: 68.95997709 | C53: 167.8543877 | D53: -6.681758412 | E53: -1
A54: 51 | B54: 68.44237462 | C54: 163.8016713 | D54: -3.484359733 | E54: -1
A55: 52 | B55: 72.64891234 | C55: 164.4651827 | D55: 7.489641682 | E55: 1
A56: 53 | B56: 64.16689684 | C56: 157.7714021 | D56: 22.48053185 | E56: 1
A57: 54 | B57: 69.53677122 | C57: 160.6378795 | D57: 0.4769049621 | E57: 1
A58: 55 | B58: 68.52794302 | C58: 142.8477662 | D58: 28.16376743 | E58: 1
A59: 56 | B59: 68.5118249 | C59: 133.197115 | D59: 43.11118159 | E59: 1
A60: 57 | B60: 70.28039146 | C60: 179.5151704 | D60: 4.496001164 | E60: 1
A61: 58 | B61: 68.95148951 | C61: 154.5936208 | D61: 7.558410538 | E61: 1
A62: 59 | B62: 76.13678496 | C62: 167.102771 | D62: 33.57078068 | E62: 1
A63: 60 | B63: 72.68803547 | C63: 162.4174685 | D63: 2.157262858 | E63: 1
A64: 61 | B64: 71.29852334 | C64: 165.1235083 | D64: 4.464256395 | E64: 1
A65: 62 | B65: 73.96392728 | C65: 175.8806819 | D65: 56.16463172 | E65: 1
A66: 63 | B66: 68.34454044 | C66: 174.4574496 | D66: -21.65207804 | E66: -1
A67: 64 | B67: 69.95782012 | C67: 161.4350221 | D67: 0.01223416515 | E67: 1
A68: 65 | B68: 71.61445169 | C68: 154.6414632 | D68: =(B68-$J$10)*(C68-$J$11) -> -11.03963504 | E68: -1
A69: 66 | B69: 72.77260559 | C69: 185.8068797 | D69: 66.38911257 | E69: =SIGN(D69) -> 1
A70: 67 | B70: 67.59161206 | C70: 168.3994952 | D70: -16.56056785 | E70: -1
A71: 68 | B71: 70.62542637 | C71: 181.3665741 | D71: 11.77885255 | E71: 1
A72: 69 | B72: 70.56596848 | C72: 152.4950221 | D72: -4.889193055 | E72: -1
A73: 70 | B73: 70.66886091 | C73: 160.9386736 | D73: -0.4268085714 | E73: -1
A74: 71 | B74: 69.85923458 | C74: 173.2838986 | D74: -1.986530935 | E74: -1
A75: 72 | B75: 72.80264454 | C75: 153.6540441 | D75: -22.05333644 | E75: -1
A76: 73 | B76: 69.22604171 | C76: 159.74142 | D76: 1.49787924 | E76: 1
A77: 74 | B77: 66.61983866 | C77: 177.7115498 | D77: -54.9117574 | E77: -1
A78: 75 | B78: 66.12264851 | C78: 170.86176 | D78: -36.15918876 | E78: -1
A79: 76 | B79: 75.29848228 | C79: 167.9362434 | D79: 33.35455941 | E79: 1
A80: 77 | B80: 78.77680626 | C80: 177.5387429 | D80: 139.3704451 | E80: 1
A81: 78 | B81: 76.09356413 | C81: 178.3484859 | D81: 101.529678 | E81: 1
A82: 79 | B82: 65.89089868 | C82: 163.5776839 | D82: -8.159429405 | E82: -1
A83: 80 | B83: 70.2867311 | C83: 147.2331273 | D83: -3.699382519 | E83: -1
A84: 81 | B84: 71.81489191 | C84: 163.8140279 | D84: 3.942414648 | E84: 1
A85: 82 | B85: 70.25339556 | C85: 176.2836325 | D85: 3.288503816 | E85: 1
A86: 83 | B86: 69.38942282 | C86: 158.2411932 | D86: 2.153260762 | E86: 1
A87: 84 | B87: 72.04563341 | C87: 191.6844267 | D87: 60.64662024 | E87: 1
A88: 85 | B88: 69.89492867 | C88: 166.0528146 | D88: -0.5977192758 | E88: -1
A89: 86 | B89: 66.57922064 | C89: 142.1133517 | D89: 67.25231136 | E89: 1
A90: 87 | B90: 71.9959069 | C90: 173.1354722 | D90: 22.67327763 | E90: 1
A91: 88 | B91: 66.76504149 | C91: 156.1266388 | D91: 17.88652392 | E91: 1
A92: 89 | B92: 71.15381831 | C92: 162.3342115 | D92: 0.8187776277 | E92: 1
A93: 90 | B93: 67.91843379 | C93: 163.9815261 | D93: -5.014383835 | E93: -1
A94: 91 | B94: 69.51163441 | C94: 152.2586653 | D94: 4.839257362 | E94: 1
A95: 92 | B95: 71.02343264 | C95: 142.2562719 | D95: -19.23537598 | E95: -1
A96: 93 | B96: 71.86680426 | C96: 161.0542333 | D96: -1.013972719 | E96: -1
A97: 94 | B97: 69.76365263 | C97: 154.4144852 | D97: 1.910754864 | E97: 1
A98: 95 | B98: 74.33300956 | C98: 182.4972003 | D98: 89.90840868 | E98: 1
A99: 96 | B99: 73.02050503 | C99: 166.3569692 | D99: 14.21070263 | E99: 1
A100: 97 | B100: 73.72562423 | C100: 172.5475412 | D100: 40.4427315 | E100: 1
A101: 98 | B101: 73.44736251 | C101: 191.6079086 | D101: 102.5467913 | E101: 1
A102: 99 | B102: 65.68425633 | C102: 145.8722328 | D102: 68.36492154 | E102: 1
A103: 100 | B103: 66.90422679 | C103: 162.0671608 | D103: -1.440970959 | E103: -1
A104: 101 | B104: 69.98935182 | C104: 163.1720923 | D104: -0.06263167125 | E104: -1
A105: 102 | B105: 61.70660735 | C105: 143.2161385 | D105: 153.0545723 | E105: 1
A106: 103 | B106: 72.8797388 | C106: 151.9934375 | D106: -27.3997732 | E106: -1
A107: 104 | B107: 72.72441064 | C107: 146.282265 | D107: -41.29864072 | E107: -1
A108: 105 | B108: 74.25481157 | C108: 190.2721726 | D108: 121.1276428 | E108: 1
A109: 106 | B109: 71.07392189 | C109: 169.5453319 | D109: 8.293164922 | E109: 1
A110: 107 | B110: 71.63434532 | C110: 163.1166295 | D110: 2.42445081 | E110: 1
A111: 108 | B111: 74.88879892 | C111: 187.7338789 | D111: 126.9668716 | E111: 1
A112: 109 | B112: 67.23987899 | C112: 128.7208613 | D112: 91.73219416 | E112: 1
A113: 110 | B113: 68.45309637 | C113: 163.8499386 | D113: -3.536900336 | E113: -1
A114: 111 | B114: 69.46022372 | C114: 147.9869717 | D114: 7.750929302 | E114: 1
A115: 112 | B115: 66.94801339 | C115: 130.9928233 | D115: 94.32958459 | E115: 1
A116: 113 | B116: 68.52590306 | C116: 164.9782672 | D116: -5.069909139 | E116: -1
A117: 114 | B117: 72.72947936 | C117: 159.7872454 | D117: -4.911063014 | E117: -1
A118: 115 | B118: 67.60130747 | C118: 158.36545 | D118: 7.868344318 | E118: 1
A119: 116 | B119: 69.46428852 | C119: 165.2429747 | D119: -2.055061031 | E119: -1
A120: 117 | B120: 72.8921763 | C120: 183.0687773 | D120: 61.44409826 | E120: 1
A121: 118 | B121: 69.46149311 | C121: 167.1568824 | D121: -3.152045507 | E121: -1
A122: 119 | B122: 70.13856871 | C122: 171.4376218 | D122: 1.073830245 | E122: 1
A123: 120 | B123: 74.07380549 | C123: 169.4258314 | D123: 31.62671843 | E123: 1
A124: 121 | B124: 71.08467338 | C124: 150.4930786 | D124: -11.72784309 | E124: -1
A125: 122 | B125: 68.60783197 | C125: 174.687818 | D125: -18.59588984 | E125: -1
A126: 123 | B126: 66.778743 | C126: 163.4793871 | D126: -6.089417446 | E126: -1
A127: 124 | B127: 71.75534784 | C127: 178.1132371 | D127: 28.49140685 | E127: 1
A128: 125 | B128: 70.65050248 | C128: 137.1021237 | D128: -15.22078676 | E128: -1
A129: 126 | B129: 69.51645331 | C129: 157.5480065 | D129: 2.081349408 | E129: 1
A130: 127 | B130: 68.44588647 | C130: 151.0278191 | D130: 16.7502272 | E130: 1
A131: 128 | B131: 71.43323974 | C131: 177.7176602 | D131: 22.61896576 | E131: 1
A132: 129 | B132: 70.56909432 | C132: 149.0256826 | D132: =(B132-$J$10)*(C132-$J$11) -> -6.790243282 | E132: -1
A133: 130 | B133: 73.13835112 | C133: 181.7555694 | D133: 62.64490655 | E133: =SIGN(D133) -> 1
A134: 131 | B134: 68.04412365 | C134: 160.2559421 | D134: 2.680299335 | E134: 1
A135: 132 | B135: 74.44816055 | C135: 160.5860637 | D135: -4.507208495 | E135: -1
A136: 133 | B136: 71.31721668 | C136: 156.7163784 | D136: -6.297288047 | E136: -1
A137: 134 | B137: 65.4866644 | C137: 155.4070582 | D137: 28.16012575 | E137: 1
A138: 135 | B138: 72.10576305 | C138: 175.2602497 | D138: 28.35177814 | E138: 1
A139: 136 | B139: 67.24449669 | C139: 162.8415976 | D139: -3.440764374 | E139: -1
A140: 137 | B140: 72.9894045 | C140: 185.1229971 | D140: 69.61148983 | E140: 1
A141: 138 | B141: 70.56581793 | C141: 157.9144596 | D141: -1.98044459 | E141: -1
A142: 139 | B142: 74.25289638 | C142: 185.5930556 | D142: 101.3102548 | E142: 1
A143: 140 | B143: 72.83372344 | C143: 159.5829288 | D143: -5.673645395 | E143: -1
A144: 141 | B144: 69.42765162 | C144: 154.7573044 | D144: 4.120861487 | E144: 1
A145: 142 | B145: 70.58374559 | C145: 163.5098044 | D145: 1.055431113 | E145: 1
A146: 143 | B146: 70.19783199 | C146: 162.8784682 | D146: 0.2143818185 | E146: 1
A147: 144 | B147: 69.55423261 | C147: 155.7723622 | D147: 2.771670868 | E147: 1
A148: 145 | B148: 65.36845854 | C148: 150.620445 | D148: 51.20274964 | E148: 1
A149: 146 | B149: 64.1395842 | C149: 159.1163422 | D149: 14.66388965 | E149: 1
A150: 147 | B150: 70.17105734 | C150: 155.3583007 | D150: -0.8853802151 | E150: -1
A151: 148 | B151: 71.01263772 | C151: 157.6891746 | D151: -3.85144899 | E151: -1
A152: 149 | B152: 69.54449121 | C152: 177.5828891 | D152: -7.746436312 | E152: -1
A153: 150 | B153: 73.73128276 | C153: 179.8091735 | D153: 67.38674896 | E153: 1
A154: 151 | B154: 71.92076096 | C154: 165.1340506 | D154: 6.672880047 | E154: 1
A155: 152 | B155: 66.15342039 | C155: 171.5220038 | D155: -38.43342945 | E155: -1
A156: 153 | B156: 72.66845163 | C156: 158.444664 | D156: -8.343278731 | E156: -1
A157: 154 | B157: 69.79607975 | C157: 158.0682468 | D157: 0.8252537761 | E157: 1
A158: 155 | B158: 63.16520992 | C158: 123.7715368 | D158: 259.7013638 | E158: 1
A159: 156 | B159: 71.19677464 | C159: 170.7136141 | D159: 10.63241163 | E159: 1
A160: 157 | B160: 70.1912902 | C160: 153.1454769 | D160: -1.370144643 | E160: -1
A161: 158 | B161: 65.83530092 | C161: 156.725842 | D161: 20.46788581 | E161: 1
A162: 159 | B162: 70.97647682 | C162: 138.888788 | D162: -21.51623851 | E162: -1
A163: 160 | B163: 73.77189976 | C163: 152.7023355 | D163: -33.32269744 | E163: -1
A164: 161 | B164: 68.93452288 | C164: 145.3280275 | D164: 17.82157273 | E164: 1
A165: 162 | B165: 66.03873886 | C165: 161.8673202 | D165: -1.042555845 | E165: -1
A166: 163 | B166: 69.35133254 | C166: 148.9728655 | D166: 8.565479529 | E166: 1
A167: 164 | B167: 66.67259933 | C167: 155.5323073 | D167: 20.38807419 | E167: 1
A168: 165 | B168: 72.27454733 | C168: 188.8804769 | D168: 61.23654321 | E168: 1
A169: 166 | B169: 74.24456298 | C169: 174.9467824 | D169: 56.23400894 | E169: 1
A170: 167 | B170: 72.02685183 | C170: 176.5044519 | D170: 29.75961111 | E170: 1
A171: 168 | B171: 72.78742424 | C171: 158.3937318 | D171: -8.859874276 | E171: -1
A172: 169 | B172: 73.53635403 | C172: 172.5084512 | D172: 38.23474795 | E172: 1
A173: 170 | B173: 65.37285737 | C173: 145.8842592 | D173: 73.20842076 | E173: 1
A174: 171 | B174: 67.76076707 | C174: 158.8954329 | D174: 6.149288766 | E174: 1
A175: 172 | B175: 72.17007281 | C175: 174.3288405 | D175: 27.23598245 | E175: 1
A176: 173 | B176: 68.39012804 | C176: 169.9482842 | D176: -13.67470996 | E176: -1
A177: 174 | B177: 72.42067417 | C177: 159.5886426 | D177: -4.824325829 | E177: -1
A178: 175 | B178: 70.29179473 | C178: 201.7485895 | D178: 10.53535912 | E178: 1
A179: 176 | B179: 69.98153809 | C179: 167.1649034 | D179: -0.2657556245 | E179: -1
A180: 177 | B180: 64.79821554 | C180: 146.8034034 | D180: 77.4346662 | E180: 1
A181: 178 | B181: 74.75303801 | C181: 160.8131997 | D181: -3.745264226 | E181: -1
A182: 179 | B182: 74.15042674 | C182: 191.6449847 | D182: 123.7928061 | E182: 1
A183: 180 | B183: 70.34341469 | C183: 146.3603351 | D183: -4.788209238 | E183: -1
A184: 181 | B184: 72.27041405 | C184: 165.1482464 | D184: 7.938264057 | E184: 1
A185: 182 | B185: 73.14382308 | C185: 180.6961538 | D185: 59.45563801 | E185: 1
A186: 183 | B186: 72.24764765 | C186: 157.0869113 | D186: -10.02485274 | E186: -1
A187: 184 | B187: 68.54167893 | C187: 148.0982625 | D187: 20.09511521 | E187: 1
A188: 185 | B188: 68.49678867 | C188: 152.2014575 | D188: 14.41310318 | E188: 1
A189: 186 | B189: 76.24707247 | C189: 161.1450957 | D189: -2.866197719 | E189: -1
A190: 187 | B190: 65.9794391 | C190: 159.1120505 | D190: 10.10053732 | E190: 1
A191: 188 | B191: 71.180661 | C191: 161.5746363 | D191: -0.03618747286 | E191: -1
A192: 189 | B192: 67.80139281 | C192: 158.5008364 | D192: 6.918309548 | E192: 1
A193: 190 | B193: 68.45905656 | C193: 156.7266533 | D193: 7.662092269 | E193: 1
A194: 191 | B194: 66.81630819 | C194: 142.8457982 | D194: 60.27745268 | E194: 1
A195: 192 | B195: 67.08095164 | C195: 150.7550458 | D195: 31.99309042 | E195: 1
A196: 193 | B196: 70.28233238 | C196: 160.9989407 | D196: =(B196-$J$10)*(C196-$J$11) -> -0.1535949435 | E196: -1
A197: 194 | B197: 67.10876509 | C197: 162.5844465 | D197: -2.857434304 | E197: =SIGN(D197) -> -1
A198: 195 | B198: 67.38319238 | C198: 142.201884 | D198: 51.34644842 | E198: 1
A199: 196 | B199: 72.072698 | C199: 178.4418879 | D199: 34.40150901 | E199: 1
A200: 197 | B200: 73.99964359 | C200: 186.7099983 | D200: 99.67007831 | E200: 1
A201: 198 | B201: 69.01831506 | C201: 148.5578991 | D201: 13.19210046 | E201: 1
... 802 more rows

Sheet Kendall's Tau Correlation
A1: Calculating the Kendall Tau Correlation Coefficient
A3: Observation Number | B3: X | C3: Y | F3: Comparison of Manually Calculated Correlation with Macro Calculation | K3: Kendall Tau Correlation Applied to the Paired Data Series From the "Simulated Data" Worksheet
A4: 1 | B4: 69.59024759 | C4: 179.2035405 | F4: Calculated Kendall Tau(a) = | H4: =(H13-H14)/H17 -> 0.3121881882
A5: 2 | B5: 75.90042113 | C5: 148.634771 | F5: VBA Kendall Tau(a) = | H5: =kendtau($B$4:$B$1003,$C$4:$C$1003,FALSE) -> 0.3121881882 | L5: Kendall Tau(a) | M5: Kendall Tau(b)
A6: 3 | B6: 68.70319257 | C6: 148.2832815 | F6: Calculated Kendall Tau(b) = | H6: =(H13-H14)/SQRT((H17-H15)*(H17-H16)) -> 0.3121881882 | K6: U1(0,1), U2(0,1) | L6: 0.01114714715 | M6: 0.01114714715
A7: 4 | B7: 70.30671509 | C7: 161.1189805 | F7: VBA Kendall Tau(b) = | H7: =kendtau($B$4:$B$1003,$C$4:$C$1003,TRUE) -> 0.3121881882 | K7: N1(0,1), N2(0,1) | L7: -0.01344944945 | M7: -0.01344944945
A8: 5 | B8: 67.3750767 | C8: 167.5735679 | K8: X, Y (Correlated) | L8: 0.3121881882 | M8: 0.3121881882
A9: 6 | B9: 70.30370117 | C9: 166.757326 | K9: Ranks of (X, Y) | L9: 0.3121881882 | M9: 0.3121881882
A10: 7 | B10: 72.046436 | C10: 158.1402947 | K10: (X, Y) with duplicates | L10: 0.3122102102 | M10: 0.3122205238
A11: 8 | B11: 69.65903862 | C11: 151.4591575 | F11: Intermediate Calculations for the Kendall Tau Correlation | K11: Ranks of (X, Y) with duplicates | L11: 0.3122102102 | M11: 0.3122205238
A12: 9 | B12: 74.29144862 | C12: 185.9929006
A13: 10 | B13: 65.64948847 | C13: 147.6030784 | F13: # of Concordant Pairs = | H13: 327719
A14: 11 | B14: 69.74269715 | C14: 154.6594908 | F14: # of Discordant Pairs = | H14: 171781 | K14: Notes:
A15: 12 | B15: 69.92351191 | C15: 155.0106918 | F15: # of Ties in X = | H15: 0 | K15: 1. Kendall's Tau is too complicated to show as a manual example, so only the intermediate and final results of the macro are shown in this worksheet. 2. In addition to the X and Y variable, the macro requires you to enter "True" or "False" for the "ties" variable. If "True" then the macro calculates Kendall's Tau-a, if "False" the macro calculates Kendall's Tau-b.
A16: 13 | B16: 71.27244255 | C16: 167.9248667 | F16: # of Ties in Y = | H16: 0
A17: 14 | B17: 68.20918455 | C17: 170.8602726 | F17: # of Unique Pairs = | H17: =COMBIN(1000,2) -> 499500
A18: 15 | B18: 71.98267049 | C18: 177.2631872
A19: 16 | B19: 64.96950385 | C19: 170.4605236
A20: 17 | B20: 67.56420314 | C20: 158.2215903
A21: 18 | B21: 72.34811075 | C21: 168.0844596
A22: 19 | B22: 73.39999773 | C22: 186.4382187
A23: 20 | B23: 70.63087883 | C23: 145.0970574
A24: 21 | B24: 70.11967655 | C24: 138.1029989
A25: 22 | B25: 66.18716528 | C25: 144.0183644
A26: 23 | B26: 73.78144069 | C26: 194.1955585
A27: 24 | B27: 67.09498212 | C27: 159.5028359
A28: 25 | B28: 69.93828021 | C28: 159.3274787
A29: 26 | B29: 69.15218537 | C29: 169.6787571
A30: 27 | B30: 69.97904194 | C30: 169.2641729
A31: 28 | B31: 65.23138892 | C31: 150.1850862
A32: 29 | B32: 69.18991845 | C32: 162.13541
A33: 30 | B33: 70.7218467 | C33: 179.8605007
A34: 31 | B34: 73.08646681 | C34: 167.345485
A35: 32 | B35: 72.42004776 | C35: 176.7791011
A36: 33 | B36: 64.43216286 | C36: 134.4075192
A37: 34 | B37: 70.27480576 | C37: 157.565493
A38: 35 | B38: 68.1393137 | C38: 139.4283219
A39: 36 | B39: 74.47045905 | C39: 176.306214
A40: 37 | B40: 66.39420939 | C40: 143.0109076
A41: 38 | B41: 71.51880731 | C41: 168.2380568
A42: 39 | B42: 71.11033365 | C42: 154.6312858
A43: 40 | B43: 69.82809183 | C43: 178.5105441
A44: 41 | B44: 71.00384778 | C44: 174.7647687
A45: 42 | B45: 68.16229315 | C45: 165.5278601
A46: 43 | B46: 69.41568546 | C46: 142.5146991
A47: 44 | B47: 70.85962855 | C47: 175.8377286
A48: 45 | B48: 68.00908012 | C48: 170.5361346
A49: 46 | B49: 71.79456065 | C49: 161.165496
A50: 47 | B50: 67.75641297 | C50: 154.8749646
A51: 48 | B51: 68.65060179 | C51: 159.3540304
A52: 49 | B52: 71.65713108 | C52: 187.6360219
A53: 50 | B53: 68.95997709 | C53: 167.8543877
A54: 51 | B54: 68.44237462 | C54: 163.8016713
A55: 52 | B55: 72.64891234 | C55: 164.4651827
A56: 53 | B56: 64.16689684 | C56: 157.7714021
A57: 54 | B57: 69.53677122 | C57: 160.6378795
A58: 55 | B58: 68.52794302 | C58: 142.8477662
A59: 56 | B59: 68.5118249 | C59: 133.197115
A60: 57 | B60: 70.28039146 | C60: 179.5151704
A61: 58 | B61: 68.95148951 | C61: 154.5936208
A62: 59 | B62: 76.13678496 | C62: 167.102771
A63: 60 | B63: 72.68803547 | C63: 162.4174685
A64: 61 | B64: 71.29852334 | C64: 165.1235083
A65: 62 | B65: 73.96392728 | C65: 175.8806819
A66: 63 | B66: 68.34454044 | C66: 174.4574496
A67: 64 | B67: 69.95782012 | C67: 161.4350221
A68: 65 | B68: 71.61445169 | C68: 154.6414632
A69: 66 | B69: 72.77260559 | C69: 185.8068797
A70: 67 | B70: 67.59161206 | C70: 168.3994952
A71: 68 | B71: 70.62542637 | C71: 181.3665741
A72: 69 | B72: 70.56596848 | C72: 152.4950221
A73: 70 | B73: 70.66886091 | C73: 160.9386736
A74: 71 | B74: 69.85923458 | C74: 173.2838986
A75: 72 | B75: 72.80264454 | C75: 153.6540441
A76: 73 | B76: 69.22604171 | C76: 159.74142
A77: 74 | B77: 66.61983866 | C77: 177.7115498
A78: 75 | B78: 66.12264851 | C78: 170.86176
A79: 76 | B79: 75.29848228 | C79: 167.9362434
A80: 77 | B80: 78.77680626 | C80: 177.5387429
A81: 78 | B81: 76.09356413 | C81: 178.3484859
A82: 79 | B82: 65.89089868 | C82: 163.5776839
A83: 80 | B83: 70.2867311 | C83: 147.2331273
A84: 81 | B84: 71.81489191 | C84: 163.8140279
A85: 82 | B85: 70.25339556 | C85: 176.2836325
A86: 83 | B86: 69.38942282 | C86: 158.2411932
A87: 84 | B87: 72.04563341 | C87: 191.6844267
A88: 85 | B88: 69.89492867 | C88: 166.0528146
A89: 86 | B89: 66.57922064 | C89: 142.1133517
A90: 87 | B90: 71.9959069 | C90: 173.1354722
A91: 88 | B91: 66.76504149 | C91: 156.1266388
A92: 89 | B92: 71.15381831 | C92: 162.3342115
A93: 90 | B93: 67.91843379 | C93: 163.9815261
A94: 91 | B94: 69.51163441 | C94: 152.2586653
A95: 92 | B95: 71.02343264 | C95: 142.2562719
A96: 93 | B96: 71.86680426 | C96: 161.0542333
A97: 94 | B97: 69.76365263 | C97: 154.4144852
A98: 95 | B98: 74.33300956 | C98: 182.4972003
A99: 96 | B99: 73.02050503 | C99: 166.3569692
A100: 97 | B100: 73.72562423 | C100: 172.5475412
A101: 98 | B101: 73.44736251 | C101: 191.6079086
A102: 99 | B102: 65.68425633 | C102: 145.8722328
A103: 100 | B103: 66.90422679 | C103: 162.0671608
A104: 101 | B104: 69.98935182 | C104: 163.1720923
A105: 102 | B105: 61.70660735 | C105: 143.2161385
A106: 103 | B106: 72.8797388 | C106: 151.9934375
A107: 104 | B107: 72.72441064 | C107: 146.282265
A108: 105 | B108: 74.25481157 | C108: 190.2721726
A109: 106 | B109: 71.07392189 | C109: 169.5453319
A110: 107 | B110: 71.63434532 | C110: 163.1166295
A111: 108 | B111: 74.88879892 | C111: 187.7338789
A112: 109 | B112: 67.23987899 | C112: 128.7208613
A113: 110 | B113: 68.45309637 | C113: 163.8499386
A114: 111 | B114: 69.46022372 | C114: 147.9869717
A115: 112 | B115: 66.94801339 | C115: 130.9928233
A116: 113 | B116: 68.52590306 | C116: 164.9782672
A117: 114 | B117: 72.72947936 | C117: 159.7872454
A118: 115 | B118: 67.60130747 | C118: 158.36545
A119: 116 | B119: 69.46428852 | C119: 165.2429747
A120: 117 | B120: 72.8921763 | C120: 183.0687773
A121: 118 | B121: 69.46149311 | C121: 167.1568824
A122: 119 | B122: 70.13856871 | C122: 171.4376218
A123: 120 | B123: 74.07380549 | C123: 169.4258314
A124: 121 | B124: 71.08467338 | C124: 150.4930786
A125: 122 | B125: 68.60783197 | C125: 174.687818
A126: 123 | B126: 66.778743 | C126: 163.4793871
A127: 124 | B127: 71.75534784 | C127: 178.1132371
A128: 125 | B128: 70.65050248 | C128: 137.1021237
A129: 126 | B129: 69.51645331 | C129: 157.5480065
A130: 127 | B130: 68.44588647 | C130: 151.0278191
A131: 128 | B131: 71.43323974 | C131: 177.7176602
A132: 129 | B132: 70.56909432 | C132: 149.0256826
A133: 130 | B133: 73.13835112 | C133: 181.7555694
A134: 131 | B134: 68.04412365 | C134: 160.2559421
A135: 132 | B135: 74.44816055 | C135: 160.5860637
A136: 133 | B136: 71.31721668 | C136: 156.7163784
A137: 134 | B137: 65.4866644 | C137: 155.4070582
A138: 135 | B138: 72.10576305 | C138: 175.2602497
A139: 136 | B139: 67.24449669 | C139: 162.8415976
A140: 137 | B140: 72.9894045 | C140: 185.1229971
A141: 138 | B141: 70.56581793 | C141: 157.9144596
A142: 139 | B142: 74.25289638 | C142: 185.5930556
A143: 140 | B143: 72.83372344 | C143: 159.5829288
A144: 141 | B144: 69.42765162 | C144: 154.7573044
A145: 142 | B145: 70.58374559 | C145: 163.5098044
A146: 143 | B146: 70.19783199 | C146: 162.8784682
A147: 144 | B147: 69.55423261 | C147: 155.7723622
A148: 145 | B148: 65.36845854 | C148: 150.620445
A149: 146 | B149: 64.1395842 | C149: 159.1163422
A150: 147 | B150: 70.17105734 | C150: 155.3583007
A151: 148 | B151: 71.01263772 | C151: 157.6891746
A152: 149 | B152: 69.54449121 | C152: 177.5828891
A153: 150 | B153: 73.73128276 | C153: 179.8091735
A154: 151 | B154: 71.92076096 | C154: 165.1340506
A155: 152 | B155: 66.15342039 | C155: 171.5220038
A156: 153 | B156: 72.66845163 | C156: 158.444664
A157: 154 | B157: 69.79607975 | C157: 158.0682468
A158: 155 | B158: 63.16520992 | C158: 123.7715368
A159: 156 | B159: 71.19677464 | C159: 170.7136141
A160: 157 | B160: 70.1912902 | C160: 153.1454769
A161: 158 | B161: 65.83530092 | C161: 156.725842
A162: 159 | B162: 70.97647682 | C162: 138.888788
A163: 160 | B163: 73.77189976 | C163: 152.7023355
A164: 161 | B164: 68.93452288 | C164: 145.3280275
A165: 162 | B165: 66.03873886 | C165: 161.8673202
A166: 163 | B166: 69.35133254 | C166: 148.9728655
A167: 164 | B167: 66.67259933 | C167: 155.5323073
A168: 165 | B168: 72.27454733 | C168: 188.8804769
A169: 166 | B169: 74.24456298 | C169: 174.9467824
A170: 167 | B170: 72.02685183 | C170: 176.5044519
A171: 168 | B171: 72.78742424 | C171: 158.3937318
A172: 169 | B172: 73.53635403 | C172: 172.5084512
A173: 170 | B173: 65.37285737 | C173: 145.8842592
A174: 171 | B174: 67.76076707 | C174: 158.8954329
A175: 172 | B175: 72.17007281 | C175: 174.3288405
A176: 173 | B176: 68.39012804 | C176: 169.9482842
A177: 174 | B177: 72.42067417 | C177: 159.5886426
A178: 175 | B178: 70.29179473 | C178: 201.7485895
A179: 176 | B179: 69.98153809 | C179: 167.1649034
A180: 177 | B180: 64.79821554 | C180: 146.8034034
A181: 178 | B181: 74.75303801 | C181: 160.8131997
A182: 179 | B182: 74.15042674 | C182: 191.6449847
A183: 180 | B183: 70.34341469 | C183: 146.3603351
A184: 181 | B184: 72.27041405 | C184: 165.1482464
A185: 182 | B185: 73.14382308 | C185: 180.6961538
A186: 183 | B186: 72.24764765 | C186: 157.0869113
A187: 184 | B187: 68.54167893 | C187: 148.0982625
A188: 185 | B188: 68.49678867 | C188: 152.2014575
A189: 186 | B189: 76.24707247 | C189: 161.1450957
A190: 187 | B190: 65.9794391 | C190: 159.1120505
A191: 188 | B191: 71.180661 | C191: 161.5746363
A192: 189 | B192: 67.80139281 | C192: 158.5008364
A193: 190 | B193: 68.45905656 | C193: 156.7266533
A194: 191 | B194: 66.81630819 | C194: 142.8457982
A195: 192 | B195: 67.08095164 | C195: 150.7550458
A196: 193 | B196: 70.28233238 | C196: 160.9989407
A197: 194 | B197: 67.10876509 | C197: 162.5844465
A198: 195 | B198: 67.38319238 | C198: 142.201884
A199: 196 | B199: 72.072698 | C199: 178.4418879
A200: 197 | B200: 73.99964359 | C200: 186.7099983
A201: 198 | B201: 69.01831506 | C201: 148.5578991
... 802 more rows

Sheet Goodman-Kruskal Gamma
A1: Calculating the Goodman-Kruskal Gamma Correlation Coefficient
A3: Observation Number | B3: X | C3: Y | F3: Comparison of Manually Calculated Correlation with Macro Calculation | K3: Goodman-Kruskal Gamma Applied to the Paired Data Series From the "Simulated Data" Worksheet
A4: 1 | B4: 69.59024759 | C4: 179.2035405 | F4: Calculated Goodman-Kruskal Gamma = | H4: =(H13-H14)/(H13+H14) -> 0.3121881882
A5: 2 | B5: 75.90042113 | C5: 148.634771 | F5: VBA Goodman-Kruskal Gamma = | H5: =gkgamma(B4:B1003,C4:C1003) -> 0.3121881882 | K5: U1(0,1), U2(0,1) | L5: 0.01114714715
A6: 3 | B6: 68.70319257 | C6: 148.2832815 | K6: N1(0,1), N2(0,1) | L6: -0.01344944945
A7: 4 | B7: 70.30671509 | C7: 161.1189805 | K7: X, Y (Correlated) | L7: 0.3121881882
A8: 5 | B8: 67.3750767 | C8: 167.5735679 | K8: Ranks of (X, Y) | L8: 0.3121881882
A9: 6 | B9: 70.30370117 | C9: 166.757326 | K9: (X, Y) with duplicates | L9: 0.3122308381
A10: 7 | B10: 72.046436 | C10: 158.1402947 | K10: Ranks of (X, Y) with duplicates | L10: 0.3122308381
A11: 8 | B11: 69.65903862 | C11: 151.4591575 | F11: Intermediate Calculations for the Goodman-Kruskal Gamma Correlation
A12: 9 | B12: 74.29144862 | C12: 185.9929006
A13: 10 | B13: 65.64948847 | C13: 147.6030784 | F13: # of Concordant Pairs = | H13: 327719
A14: 11 | B14: 69.74269715 | C14: 154.6594908 | F14: # of Discordant Pairs = | H14: 171781 | K14: Notes:
A15: 12 | B15: 69.92351191 | C15: 155.0106918 | F15: # of Unique Pairs = | H15: =COMBIN(1000,2) -> 499500 | K15: 1. Goodman-Kruskal's Gamma Correlation is too complicated to show as a manual example, so only the intermediate and final results of the macro are shown in this worksheet. 2. Ties are not counted or incorporated into the Goodman-Kruskal Gamma correlation.
A16: 13 | B16: 71.27244255 | C16: 167.9248667
A17: 14 | B17: 68.20918455 | C17: 170.8602726
A18: 15 | B18: 71.98267049 | C18: 177.2631872
A19: 16 | B19: 64.96950385 | C19: 170.4605236
A20: 17 | B20: 67.56420314 | C20: 158.2215903
A21: 18 | B21: 72.34811075 | C21: 168.0844596
A22: 19 | B22: 73.39999773 | C22: 186.4382187
A23: 20 | B23: 70.63087883 | C23: 145.0970574
A24: 21 | B24: 70.11967655 | C24: 138.1029989
A25: 22 | B25: 66.18716528 | C25: 144.0183644
A26: 23 | B26: 73.78144069 | C26: 194.1955585
A27: 24 | B27: 67.09498212 | C27: 159.5028359
A28: 25 | B28: 69.93828021 | C28: 159.3274787
A29: 26 | B29: 69.15218537 | C29: 169.6787571
A30: 27 | B30: 69.97904194 | C30: 169.2641729
A31: 28 | B31: 65.23138892 | C31: 150.1850862
A32: 29 | B32: 69.18991845 | C32: 162.13541
A33: 30 | B33: 70.7218467 | C33: 179.8605007
A34: 31 | B34: 73.08646681 | C34: 167.345485
A35: 32 | B35: 72.42004776 | C35: 176.7791011
A36: 33 | B36: 64.43216286 | C36: 134.4075192
A37: 34 | B37: 70.27480576 | C37: 157.565493
A38: 35 | B38: 68.1393137 | C38: 139.4283219
A39: 36 | B39: 74.47045905 | C39: 176.306214
A40: 37 | B40: 66.39420939 | C40: 143.0109076
A41: 38 | B41: 71.51880731 | C41: 168.2380568
A42: 39 | B42: 71.11033365 | C42: 154.6312858
A43: 40 | B43: 69.82809183 | C43: 178.5105441
A44: 41 | B44: 71.00384778 | C44: 174.7647687
A45: 42 | B45: 68.16229315 | C45: 165.5278601
A46: 43 | B46: 69.41568546 | C46: 142.5146991
A47: 44 | B47: 70.85962855 | C47: 175.8377286
A48: 45 | B48: 68.00908012 | C48: 170.5361346
A49: 46 | B49: 71.79456065 | C49: 161.165496
A50: 47 | B50: 67.75641297 | C50: 154.8749646
A51: 48 | B51: 68.65060179 | C51: 159.3540304
A52: 49 | B52: 71.65713108 | C52: 187.6360219
A53: 50 | B53: 68.95997709 | C53: 167.8543877
A54: 51 | B54: 68.44237462 | C54: 163.8016713
A55: 52 | B55: 72.64891234 | C55: 164.4651827
A56: 53 | B56: 64.16689684 | C56: 157.7714021
A57: 54 | B57: 69.53677122 | C57: 160.6378795
A58: 55 | B58: 68.52794302 | C58: 142.8477662
A59: 56 | B59: 68.5118249 | C59: 133.197115
A60: 57 | B60: 70.28039146 | C60: 179.5151704
A61: 58 | B61: 68.95148951 | C61: 154.5936208
A62: 59 | B62: 76.13678496 | C62: 167.102771
A63: 60 | B63: 72.68803547 | C63: 162.4174685
A64: 61 | B64: 71.29852334 | C64: 165.1235083
A65: 62 | B65: 73.96392728 | C65: 175.8806819
A66: 63 | B66: 68.34454044 | C66: 174.4574496
A67: 64 | B67: 69.95782012 | C67: 161.4350221
A68: 65 | B68: 71.61445169 | C68: 154.6414632
A69: 66 | B69: 72.77260559 | C69: 185.8068797
A70: 67 | B70: 67.59161206 | C70: 168.3994952
A71: 68 | B71: 70.62542637 | C71: 181.3665741
A72: 69 | B72: 70.56596848 | C72: 152.4950221
A73: 70 | B73: 70.66886091 | C73: 160.9386736
A74: 71 | B74: 69.85923458 | C74: 173.2838986
A75: 72 | B75: 72.80264454 | C75: 153.6540441
A76: 73 | B76: 69.22604171 | C76: 159.74142
A77: 74 | B77: 66.61983866 | C77: 177.7115498
A78: 75 | B78: 66.12264851 | C78: 170.86176
A79: 76 | B79: 75.29848228 | C79: 167.9362434
A80: 77 | B80: 78.77680626 | C80: 177.5387429
A81: 78 | B81: 76.09356413 | C81: 178.3484859
A82: 79 | B82: 65.89089868 | C82: 163.5776839
A83: 80 | B83: 70.2867311 | C83: 147.2331273
A84: 81 | B84: 71.81489191 | C84: 163.8140279
A85: 82 | B85: 70.25339556 | C85: 176.2836325
A86: 83 | B86: 69.38942282 | C86: 158.2411932
A87: 84 | B87: 72.04563341 | C87: 191.6844267
A88: 85 | B88: 69.89492867 | C88: 166.0528146
A89: 86 | B89: 66.57922064 | C89: 142.1133517
A90: 87 | B90: 71.9959069 | C90: 173.1354722
A91: 88 | B91: 66.76504149 | C91: 156.1266388
A92: 89 | B92: 71.15381831 | C92: 162.3342115
A93: 90 | B93: 67.91843379 | C93: 163.9815261
A94: 91 | B94: 69.51163441 | C94: 152.2586653
A95: 92 | B95: 71.02343264 | C95: 142.2562719
A96: 93 | B96: 71.86680426 | C96: 161.0542333
A97: 94 | B97: 69.76365263 | C97: 154.4144852
A98: 95 | B98: 74.33300956 | C98: 182.4972003
A99: 96 | B99: 73.02050503 | C99: 166.3569692
A100: 97 | B100: 73.72562423 | C100: 172.5475412
A101: 98 | B101: 73.44736251 | C101: 191.6079086
A102: 99 | B102: 65.68425633 | C102: 145.8722328
A103: 100 | B103: 66.90422679 | C103: 162.0671608
A104: 101 | B104: 69.98935182 | C104: 163.1720923
A105: 102 | B105: 61.70660735 | C105: 143.2161385
A106: 103 | B106: 72.8797388 | C106: 151.9934375
A107: 104 | B107: 72.72441064 | C107: 146.282265
A108: 105 | B108: 74.25481157 | C108: 190.2721726
A109: 106 | B109: 71.07392189 | C109: 169.5453319
A110: 107 | B110: 71.63434532 | C110: 163.1166295
A111: 108 | B111: 74.88879892 | C111: 187.7338789
A112: 109 | B112: 67.23987899 | C112: 128.7208613
A113: 110 | B113: 68.45309637 | C113: 163.8499386
A114: 111 | B114: 69.46022372 | C114: 147.9869717
A115: 112 | B115: 66.94801339 | C115: 130.9928233
A116: 113 | B116: 68.52590306 | C116: 164.9782672
A117: 114 | B117: 72.72947936 | C117: 159.7872454
A118: 115 | B118: 67.60130747 | C118: 158.36545
A119: 116 | B119: 69.46428852 | C119: 165.2429747
A120: 117 | B120: 72.8921763 | C120: 183.0687773
A121: 118 | B121: 69.46149311 | C121: 167.1568824
A122: 119 | B122: 70.13856871 | C122: 171.4376218
A123: 120 | B123: 74.07380549 | C123: 169.4258314
A124: 121 | B124: 71.08467338 | C124: 150.4930786
A125: 122 | B125: 68.60783197 | C125: 174.687818
A126: 123 | B126: 66.778743 | C126: 163.4793871
A127: 124 | B127: 71.75534784 | C127: 178.1132371
A128: 125 | B128: 70.65050248 | C128: 137.1021237
A129: 126 | B129: 69.51645331 | C129: 157.5480065
A130: 127 | B130: 68.44588647 | C130: 151.0278191
A131: 128 | B131: 71.43323974 | C131: 177.7176602
A132: 129 | B132: 70.56909432 | C132: 149.0256826
A133: 130 | B133: 73.13835112 | C133: 181.7555694
A134: 131 | B134: 68.04412365 | C134: 160.2559421
A135: 132 | B135: 74.44816055 | C135: 160.5860637
A136: 133 | B136: 71.31721668 | C136: 156.7163784
A137: 134 | B137: 65.4866644 | C137: 155.4070582
A138: 135 | B138: 72.10576305 | C138: 175.2602497
A139: 136 | B139: 67.24449669 | C139: 162.8415976
A140: 137 | B140: 72.9894045 | C140: 185.1229971
A141: 138 | B141: 70.56581793 | C141: 157.9144596
A142: 139 | B142: 74.25289638 | C142: 185.5930556
A143: 140 | B143: 72.83372344 | C143: 159.5829288
A144: 141 | B144: 69.42765162 | C144: 154.7573044
A145: 142 | B145: 70.58374559 | C145: 163.5098044
A146: 143 | B146: 70.19783199 | C146: 162.8784682
A147: 144 | B147: 69.55423261 | C147: 155.7723622
A148: 145 | B148: 65.36845854 | C148: 150.620445
A149: 146 | B149: 64.1395842 | C149: 159.1163422
A150: 147 | B150: 70.17105734 | C150: 155.3583007
A151: 148 | B151: 71.01263772 | C151: 157.6891746
A152: 149 | B152: 69.54449121 | C152: 177.5828891
A153: 150 | B153: 73.73128276 | C153: 179.8091735
A154: 151 | B154: 71.92076096 | C154: 165.1340506
A155: 152 | B155: 66.15342039 | C155: 171.5220038
A156: 153 | B156: 72.66845163 | C156: 158.444664
A157: 154 | B157: 69.79607975 | C157: 158.0682468
A158: 155 | B158: 63.16520992 | C158: 123.7715368
A159: 156 | B159: 71.19677464 | C159: 170.7136141
A160: 157 | B160: 70.1912902 | C160: 153.1454769
A161: 158 | B161: 65.83530092 | C161: 156.725842
A162: 159 | B162: 70.97647682 | C162: 138.888788
A163: 160 | B163: 73.77189976 | C163: 152.7023355
A164: 161 | B164: 68.93452288 | C164: 145.3280275
A165: 162 | B165: 66.03873886 | C165: 161.8673202
A166: 163 | B166: 69.35133254 | C166: 148.9728655
A167: 164 | B167: 66.67259933 | C167: 155.5323073
A168: 165 | B168: 72.27454733 | C168: 188.8804769
A169: 166 | B169: 74.24456298 | C169: 174.9467824
A170: 167 | B170: 72.02685183 | C170: 176.5044519
A171: 168 | B171: 72.78742424 | C171: 158.3937318
A172: 169 | B172: 73.53635403 | C172: 172.5084512
A173: 170 | B173: 65.37285737 | C173: 145.8842592
A174: 171 | B174: 67.76076707 | C174: 158.8954329
A175: 172 | B175: 72.17007281 | C175: 174.3288405
A176: 173 | B176: 68.39012804 | C176: 169.9482842
A177: 174 | B177: 72.42067417 | C177: 159.5886426
A178: 175 | B178: 70.29179473 | C178: 201.7485895
A179: 176 | B179: 69.98153809 | C179: 167.1649034
A180: 177 | B180: 64.79821554 | C180: 146.8034034
A181: 178 | B181: 74.75303801 | C181: 160.8131997
A182: 179 | B182: 74.15042674 | C182: 191.6449847
A183: 180 | B183: 70.34341469 | C183: 146.3603351
A184: 181 | B184: 72.27041405 | C184: 165.1482464
A185: 182 | B185: 73.14382308 | C185: 180.6961538
A186: 183 | B186: 72.24764765 | C186: 157.0869113
A187: 184 | B187: 68.54167893 | C187: 148.0982625
A188: 185 | B188: 68.49678867 | C188: 152.2014575
A189: 186 | B189: 76.24707247 | C189: 161.1450957
A190: 187 | B190: 65.9794391 | C190: 159.1120505
A191: 188 | B191: 71.180661 | C191: 161.5746363
A192: 189 | B192: 67.80139281 | C192: 158.5008364
A193: 190 | B193: 68.45905656 | C193: 156.7266533
A194: 191 | B194: 66.81630819 | C194: 142.8457982
A195: 192 | B195: 67.08095164 | C195: 150.7550458
A196: 193 | B196: 70.28233238 | C196: 160.9989407
A197: 194 | B197: 67.10876509 | C197: 162.5844465
A198: 195 | B198: 67.38319238 | C198: 142.201884
A199: 196 | B199: 72.072698 | C199: 178.4418879
A200: 197 | B200: 73.99964359 | C200: 186.7099983
A201: 198 | B201: 69.01831506 | C201: 148.5578991
... 803 more rows

Sheet Correlation Median Estimator
A1: Calculating the Correlation Median Estimator
A3: Observation Number | B3: X | C3: Y | D3: |X-Xmed| | E3: |Y-Ymed| | F3: (X-Xmed)∙(Y-Ymed) | I3: Comparison of Manually Calculated Correlation with Macro Calculation | N3: Correlation Median Estimator Applied to the Paired Data Series From the "Simulated Data" Worksheet
A4: 1 | B4: 69.59024759 | C4: 179.2035405 | D4: =ABS($B4-$K$11) -> 0.4390982852 | E4: =ABS($C4-$K$12) -> 17.59747277 | F4: =($B4-$K$11)*($C4-$K$12) -> -7.727020118 | I4: Calculated CorrMed = | K4: =K15/(K13*K14) -> 0.318789587
A5: 2 | B5: 75.90042113 | C5: 148.634771 | D5: =ABS($B5-$K$11) -> 5.871075258 | E5: =ABS($C5-$K$12) -> 12.97129672 | F5: =($B5-$K$11)*($C5-$K$12) -> -76.15545922 | I5: VBA CorrMed = | K5: =corrmed(B4:B1003,C4:C1003) -> 0.318789587 | N5: U1(0,1), U2(0,1) | O5: =corrmed('Simulated Data'!$B$4:$B$1003,'Simulated Data'!$C$4:$C$1003) -> 0.006884551672
A6: 3 | B6: 68.70319257 | C6: 148.2832815 | D6: 1.326153306 | E6: 13.32278619 | F6: 17.66805694 | N6: N1(0,1), N2(0,1) | O6: =corrmed('Simulated Data'!$D$4:$D$1003,'Simulated Data'!$E$4:$E$1003) -> 0.001034364956
A7: 4 | B7: 70.30671509 | C7: 161.1189805 | D7: 0.277369215 | E7: 0.4870871986 | F7: -0.1351029939 | N7: X, Y (Correlated) | O7: =corrmed('Simulated Data'!$F$4:$F$1003,'Simulated Data'!$G$4:$G$1003) -> 0.318789587
A8: 5 | B8: 67.3750767 | C8: 167.5735679 | D8: 2.65426917 | E8: 5.967500184 | F8: -15.83935176 | N8: Ranks of (X, Y) | O8: =corrmed('Simulated Data'!$H$4:$H$1003,'Simulated Data'!$I$4:$I$1003) -> 0.321384
A9: 6 | B9: 70.30370117 | C9: 166.757326 | D9: 0.2743552947 | E9: 5.151258305 | F9: 1.41327499 | I9: Intermediate Calculations for the Correlation Median Estimator | N9: (X, Y) with duplicates | O9: =corrmed('Simulated Data'!$J$4:$J$1003,'Simulated Data'!$K$4:$K$1003) -> 0.3187944596
A10: 7 | B10: 72.046436 | C10: 158.1402947 | D10: 2.017090123 | E10: 3.465773034 | F10: -6.990776556 | N10: Ranks of (X, Y) with duplicates | O10: =corrmed('Simulated Data'!$L$4:$L$1003,'Simulated Data'!$M$4:$M$1003) -> 0.321384
A11: 8 | B11: 69.65903862 | C11: 151.4591575 | D11: 0.3703072547 | E11: 10.14691016 | F11: 3.757474446 | I11: Median of X = | K11: =MEDIAN(B4:B1003) -> 70.02934587
A12: 9 | B12: 74.29144862 | C12: 185.9929006 | D12: 4.262102741 | E12: 24.38683285 | F12: 103.9391871 | I12: Median of Y = | K12: =MEDIAN(C4:C1003) -> 161.6060677
A13: 10 | B13: 65.64948847 | C13: 147.6030784 | D13: 4.3798574 | E13: 14.00298929 | F13: 61.33109628 | I13: MAD of X = | K13: =MEDIAN(D4:D1003) -> 1.997685084
A14: 11 | B14: 69.74269715 | C14: 154.6594908 | D14: 0.2866487282 | E14: 6.946576894 | F14: 1.991227432 | I14: MAD of Y = | K14: =MEDIAN(E4:E1003) -> 9.424211347 | N14: Notes:
A15: 12 | B15: 69.92351191 | C15: 155.0106918 | D15: 0.1058339633 | E15: 6.595375873 | F15: 0.6980147681 | I15: Co-Median of (X,Y) = | K15: =MEDIAN(F4:F1003) -> 6.00172609
A16: 13 | B16: 71.27244255 | C16: 167.9248667 | D16: 1.243096677 | E16: 6.318798972 | F16: 7.854878008
A17: 14 | B17: 68.20918455 | C17: 170.8602726 | D17: 1.820161321 | E17: 9.254204872 | F17: -16.84414576
A18: 15 | B18: 71.98267049 | C18: 177.2631872 | D18: 1.953324613 | E18: 15.65711948 | F18: 30.58343685
A19: 16 | B19: 64.96950385 | C19: 170.4605236 | D19: 5.059842029 | E19: 8.854455938 | F19: -44.80214829
A20: 17 | B20: 67.56420314 | C20: 158.2215903 | D20: 2.465142736 | E20: 3.384477397 | F20: 8.343219872
A21: 18 | B21: 72.34811075 | C21: 168.0844596 | D21: 2.318764877 | E21: 6.478391849 | F21: 15.02186748
A22: 19 | B22: 73.39999773 | C22: 186.4382187 | D22: 3.370651855 | E22: 24.83215102 | F22: 83.70053587
A23: 20 | B23: 70.63087883 | C23: 145.0970574 | D23: 0.6015329586 | E23: 16.50901026 | F23: -9.930713785
A24: 21 | B24: 70.11967655 | C24: 138.1029989 | D24: 0.09033067942 | E24: 23.50306878 | F24: -2.123048172
A25: 22 | B25: 66.18716528 | C25: 144.0183644 | D25: 3.842180597 | E25: 17.58770334 | F25: 67.57513251
A26: 23 | B26: 73.78144069 | C26: 194.1955585 | D26: 3.752094816 | E26: 32.58949077 | F26: 122.2788594
A27: 24 | B27: 67.09498212 | C27: 159.5028359 | D27: 2.934363749 | E27: 2.103231827 | F27: 6.17164723
A28: 25 | B28: 69.93828021 | C28: 159.3274787 | D28: 0.09106566053 | E28: 2.278588963 | F28: 0.207501209
A29: 26 | B29: 69.15218537 | C29: 169.6787571 | D29: 0.8771605076 | E29: 8.072689437 | F29: -7.081044364
A30: 27 | B30: 69.97904194 | C30: 169.2641729 | D30: 0.05030393558 | E30: 7.658105196 | F30: -0.3852328305
A31: 28 | B31: 65.23138892 | C31: 150.1850862 | D31: 4.797956953 | E31: 11.4209815 | F31: 54.79737761
A32: 29 | B32: 69.18991845 | C32: 162.13541 | D32: 0.8394274194 | E32: 0.5293422763 | F32: -0.444344421
A33: 30 | B33: 70.7218467 | C33: 179.8605007 | D33: 0.6925008251 | E33: 18.25443296 | F33: 12.64120989
A34: 31 | B34: 73.08646681 | C34: 167.345485 | D34: 3.057120935 | E34: 5.739417298 | F34: 17.54609277
A35: 32 | B35: 72.42004776 | C35: 176.7791011 | D35: 2.39070189 | E35: 15.17303341 | F35: 36.27419965
A36: 33 | B36: 64.43216286 | C36: 134.4075192 | D36: 5.597183012 | E36: 27.19854848 | F36: 152.2352535
A37: 34 | B37: 70.27480576 | C37: 157.565493 | D37: 0.2454598865 | E37: 4.040574729 | F37: -0.9917990143
A38: 35 | B38: 68.1393137 | C38: 139.4283219 | D38: 1.890032176 | E38: 22.17774582 | F38: 41.91665317
A39: 36 | B39: 74.47045905 | C39: 176.306214 | D39: 4.441113179 | E39: 14.70014629 | F39: 65.28501341
A40: 37 | B40: 66.39420939 | C40: 143.0109076 | D40: 3.635136488 | E40: 18.59516013 | F40: 67.5959451
A41: 38 | B41: 71.51880731 | C41: 168.2380568 | D41: 1.489461439 | E41: 6.631989127 | F41: 9.878092066
A42: 39 | B42: 71.11033365 | C42: 154.6312858 | D42: 1.080987771 | E42: 6.97478191 | F42: -7.53965395
A43: 40 | B43: 69.82809183 | C43: 178.5105441 | D43: 0.2012540454 | E43: 16.9044764 | F43: -3.402094261
A44: 41 | B44: 71.00384778 | C44: 174.7647687 | D44: 0.9745019064 | E44: 13.15870104 | F44: 12.82317925
A45: 42 | B45: 68.16229315 | C45: 165.5278601 | D45: 1.867052722 | E45: 3.921792392 | F45: -7.32219316
A46: 43 | B46: 69.41568546 | C46: 142.5146991 | D46: 0.6136604182 | E46: 19.0913686 | F46: 11.71561724
A47: 44 | B47: 70.85962855 | C47: 175.8377286 | D47: 0.8302826731 | E47: 14.23166095 | F47: 11.81630149
A48: 45 | B48: 68.00908012 | C48: 170.5361346 | D48: 2.020265752 | E48: 8.930066873 | F48: -18.04110826
A49: 46 | B49: 71.79456065 | C49: 161.165496 | D49: 1.765214777 | E49: 0.4405716558 | F49: -0.7777035972
A50: 47 | B50: 67.75641297 | C50: 154.8749646 | D50: 2.272932902 | E50: 6.731103107 | F50: 15.29934572
A51: 48 | B51: 68.65060179 | C51: 159.3540304 | D51: 1.378744084 | E51: 2.25203734 | F51: 3.10498316
A52: 49 | B52: 71.65713108 | C52: 187.6360219 | D52: 1.627785208 | E52: 26.02995418 | F52: 42.37117438
A53: 50 | B53: 68.95997709 | C53: 167.8543877 | D53: 1.069368789 | E53: 6.248320019 | F53: -6.681758412
A54: 51 | B54: 68.44237462 | C54: 163.8016713 | D54: 1.586971258 | E54: 2.195603554 | F54: -3.484359733
A55: 52 | B55: 72.64891234 | C55: 164.4651827 | D55: 2.619566462 | E55: 2.859114969 | F55: 7.489641682
A56: 53 | B56: 64.16689684 | C56: 157.7714021 | D56: 5.862449035 | E56: 3.834665634 | F56: 22.48053185
A57: 54 | B57: 69.53677122 | C57: 160.6378795 | D57: 0.492574659 | E57: 0.9681881789 | F57: 0.4769049621
A58: 55 | B58: 68.52794302 | C58: 142.8477662 | D58: 1.501402859 | E58: 18.75830146 | F58: 28.16376743
A59: 56 | B59: 68.5118249 | C59: 133.197115 | D59: 1.517520973 | E59: 28.40895273 | F59: 43.11118159
A60: 57 | B60: 70.28039146 | C60: 179.5151704 | D60: 0.2510455851 | E60: 17.90910269 | F60: 4.496001164
A61: 58 | B61: 68.95148951 | C61: 154.5936208 | D61: 1.077856362 | E61: 7.012446929 | F61: 7.558410538
A62: 59 | B62: 76.13678496 | C62: 167.102771 | D62: 6.107439083 | E62: 5.49670332 | F62: 33.57078068
A63: 60 | B63: 72.68803547 | C63: 162.4174685 | D63: 2.658689592 | E63: 0.8114007986 | F63: 2.157262858
A64: 61 | B64: 71.29852334 | C64: 165.1235083 | D64: 1.269177467 | E64: 3.517440635 | F64: 4.464256395
A65: 62 | B65: 73.96392728 | C65: 175.8806819 | D65: 3.934581408 | E65: 14.27461422 | F65: 56.16463172
A66: 63 | B66: 68.34454044 | C66: 174.4574496 | D66: 1.684805435 | E66: 12.85138188 | F66: -21.65207804
A67: 64 | B67: 69.95782012 | C67: 161.4350221 | D67: 0.07152575029 | E67: 0.1710456039 | F67: 0.01223416515
A68: 65 | B68: 71.61445169 | C68: 154.6414632 | D68: 1.585105813 | E68: 6.964604474 | F68: -11.03963504
A69: 66 | B69: 72.77260559 | C69: 185.8068797 | D69: =ABS($B69-$K$11) -> 2.743259714 | E69: =ABS($C69-$K$12) -> 24.20081199 | F69: =($B69-$K$11)*($C69-$K$12) -> 66.38911257
A70: 67 | B70: 67.59161206 | C70: 168.3994952 | D70: 2.437733818 | E70: 6.793427458 | F70: -16.56056785
A71: 68 | B71: 70.62542637 | C71: 181.3665741 | D71: 0.5960804993 | E71: 19.76050644 | F71: 11.77885255
A72: 69 | B72: 70.56596848 | C72: 152.4950221 | D72: 0.5366226061 | E72: 9.111045639 | F72: -4.889193055
A73: 70 | B73: 70.66886091 | C73: 160.9386736 | D73: 0.639515037 | E73: 0.6673941138 | F73: -0.4268085714
A74: 71 | B74: 69.85923458 | C74: 173.2838986 | D74: 0.1701112947 | E74: 11.67783091 | F74: -1.986530935
A75: 72 | B75: 72.80264454 | C75: 153.6540441 | D75: 2.773298665 | E75: 7.952023603 | F75: -22.05333644
A76: 73 | B76: 69.22604171 | C76: 159.74142 | D76: 0.8033041633 | E76: 1.864647675 | F76: 1.49787924
A77: 74 | B77: 66.61983866 | C77: 177.7115498 | D77: 3.409507217 | E77: 16.10548208 | F77: -54.9117574
A78: 75 | B78: 66.12264851 | C78: 170.86176 | D78: 3.906697367 | E78: 9.255692306 | F78: -36.15918876
A79: 76 | B79: 75.29848228 | C79: 167.9362434 | D79: 5.269136411 | E79: 6.330175728 | F79: 33.35455941
A80: 77 | B80: 78.77680626 | C80: 177.5387429 | D80: 8.74746039 | E80: 15.93267519 | F80: 139.3704451
A81: 78 | B81: 76.09356413 | C81: 178.3484859 | D81: 6.06421826 | E81: 16.74241817 | F81: 101.529678
A82: 79 | B82: 65.89089868 | C82: 163.5776839 | D82: 4.138447194 | E82: 1.97161617 | F82: -8.159429405
A83: 80 | B83: 70.2867311 | C83: 147.2331273 | D83: 0.2573852266 | E83: 14.37294039 | F83: -3.699382519
A84: 81 | B84: 71.81489191 | C84: 163.8140279 | D84: 1.78554604 | E84: 2.207960232 | F84: 3.942414648
A85: 82 | B85: 70.25339556 | C85: 176.2836325 | D85: 0.2240496889 | E85: 14.67756475 | F85: 3.288503816
A86: 83 | B86: 69.38942282 | C86: 158.2411932 | D86: 0.6399230558 | E86: 3.364874483 | F86: 2.153260762
A87: 84 | B87: 72.04563341 | C87: 191.6844267 | D87: 2.016287534 | E87: 30.07835898 | F87: 60.64662024
A88: 85 | B88: 69.89492867 | C88: 166.0528146 | D88: 0.1344172021 | E88: 4.446746893 | F88: -0.5977192758
A89: 86 | B89: 66.57922064 | C89: 142.1133517 | D89: 3.450125233 | E89: 19.49271601 | F89: 67.25231136
A90: 87 | B90: 71.9959069 | C90: 173.1354722 | D90: 1.966561026 | E90: 11.52940454 | F90: 22.67327763
A91: 88 | B91: 66.76504149 | C91: 156.1266388 | D91: 3.26430438 | E91: 5.479428951 | F91: 17.88652392
A92: 89 | B92: 71.15381831 | C92: 162.3342115 | D92: 1.124472435 | E92: 0.7281437965 | F92: 0.8187776277
A93: 90 | B93: 67.91843379 | C93: 163.9815261 | D93: 2.110912083 | E93: 2.375458397 | F93: -5.014383835
A94: 91 | B94: 69.51163441 | C94: 152.2586653 | D94: 0.5177114641 | E94: 9.347402361 | F94: 4.839257362
A95: 92 | B95: 71.02343264 | C95: 142.2562719 | D95: 0.9940867675 | E95: 19.34979582 | F95: -19.23537598
A96: 93 | B96: 71.86680426 | C96: 161.0542333 | D96: 1.837458384 | E96: 0.5518343859 | F96: -1.013972719
A97: 94 | B97: 69.76365263 | C97: 154.4144852 | D97: 0.2656932428 | E97: 7.191582458 | F97: 1.910754864
A98: 95 | B98: 74.33300956 | C98: 182.4972003 | D98: 4.303663686 | E98: 20.89113259 | F98: 89.90840868
A99: 96 | B99: 73.02050503 | C99: 166.3569692 | D99: 2.991159158 | E99: 4.750901535 | F99: 14.21070263
A100: 97 | B100: 73.72562423 | C100: 172.5475412 | D100: 3.696278355 | E100: 10.94147345 | F100: 40.4427315
A101: 98 | B101: 73.44736251 | C101: 191.6079086 | D101: 3.41801664 | E101: 30.00184087 | F101: 102.5467913
A102: 99 | B102: 65.68425633 | C102: 145.8722328 | D102: 4.345089548 | E102: 15.73383489 | F102: 68.36492154
A103: 100 | B103: 66.90422679 | C103: 162.0671608 | D103: 3.125119083 | E103: 0.4610931362 | F103: -1.440970959
A104: 101 | B104: 69.98935182 | C104: 163.1720923 | D104: 0.03999405257 | E104: 1.566024627 | F104: -0.06263167125
A105: 102 | B105: 61.70660735 | C105: 143.2161385 | D105: 8.322738525 | E105: 18.38992921 | F105: 153.0545723
A106: 103 | B106: 72.8797388 | C106: 151.9934375 | D106: 2.850392925 | E106: 9.612630232 | F106: -27.3997732
A107: 104 | B107: 72.72441064 | C107: 146.282265 | D107: 2.695064764 | E107: 15.32380271 | F107: -41.29864072
A108: 105 | B108: 74.25481157 | C108: 190.2721726 | D108: 4.225465694 | E108: 28.66610491 | F108: 121.1276428
A109: 106 | B109: 71.07392189 | C109: 169.5453319 | D109: 1.044576015 | E109: 7.939264167 | F109: 8.293164922
A110: 107 | B110: 71.63434532 | C110: 163.1166295 | D110: 1.604999445 | E110: 1.510561774 | F110: 2.42445081
A111: 108 | B111: 74.88879892 | C111: 187.7338789 | D111: 4.859453046 | E111: 26.12781117 | F111: 126.9668716
A112: 109 | B112: 67.23987899 | C112: 128.7208613 | D112: 2.789466881 | E112: 32.88520641 | F112: 91.73219416
A113: 110 | B113: 68.45309637 | C113: 163.8499386 | D113: 1.576249502 | E113: 2.243870866 | F113: -3.536900336
A114: 111 | B114: 69.46022372 | C114: 147.9869717 | D114: 0.5691221577 | E114: 13.619096 | F114: 7.750929302
A115: 112 | B115: 66.94801339 | C115: 130.9928233 | D115: 3.081332487 | E115: 30.61324442 | F115: 94.32958459
A116: 113 | B116: 68.52590306 | C116: 164.9782672 | D116: 1.503442814 | E116: 3.372199521 | F116: -5.069909139
A117: 114 | B117: 72.72947936 | C117: 159.7872454 | D117: 2.700133483 | E117: 1.818822308 | F117: -4.911063014
A118: 115 | B118: 67.60130747 | C118: 158.36545 | D118: 2.4280384 | E118: 3.240617742 | F118: 7.868344318
A119: 116 | B119: 69.46428852 | C119: 165.2429747 | D119: 0.5650573575 | E119: 3.636906951 | F119: -2.055061031
A120: 117 | B120: 72.8921763 | C120: 183.0687773 | D120: 2.862830431 | E120: 21.46270963 | F120: 61.44409826
A121: 118 | B121: 69.46149311 | C121: 167.1568824 | D121: 0.5678527664 | E121: 5.550814742 | F121: -3.152045507
A122: 119 | B122: 70.13856871 | C122: 171.4376218 | D122: 0.1092228389 | E122: 9.831554056 | F122: 1.073830245
A123: 120 | B123: 74.07380549 | C123: 169.4258314 | D123: 4.044459615 | E123: 7.819763687 | F123: 31.62671843
A124: 121 | B124: 71.08467338 | C124: 150.4930786 | D124: 1.055327505 | E124: 11.11298913 | F124: -11.72784309
A125: 122 | B125: 68.60783197 | C125: 174.687818 | D125: 1.421513901 | E125: 13.08175025 | F125: -18.59588984
A126: 123 | B126: 66.778743 | C126: 163.4793871 | D126: 3.250602871 | E126: 1.873319408 | F126: -6.089417446
A127: 124 | B127: 71.75534784 | C127: 178.1132371 | D127: 1.726001965 | E127: 16.50716942 | F127: 28.49140685
A128: 125 | B128: 70.65050248 | C128: 137.1021237 | D128: 0.6211566082 | E128: 24.50394403 | F128: -15.22078676
A129: 126 | B129: 69.51645331 | C129: 157.5480065 | D129: 0.5128925669 | E129: 4.058061166 | F129: 2.081349408
A130: 127 | B130: 68.44588647 | C130: 151.0278191 | D130: 1.583459403 | E130: 10.5782486 | F130: 16.7502272
A131: 128 | B131: 71.43323974 | C131: 177.7176602 | D131: 1.403893861 | E131: 16.11159247 | F131: 22.61896576
A132: 129 | B132: 70.56909432 | C132: 149.0256826 | D132: 0.539748444 | E132: 12.5803851 | F132: -6.790243282
A133: 130 | B133: 73.13835112 | C133: 181.7555694 | D133: =ABS($B133-$K$11) -> 3.109005249 | E133: =ABS($C133-$K$12) -> 20.1495017 | F133: =($B133-$K$11)*($C133-$K$12) -> 62.64490655
A134: 131 | B134: 68.04412365 | C134: 160.2559421 | D134: 1.985222223 | E134: 1.350125595 | F134: 2.680299335
A135: 132 | B135: 74.44816055 | C135: 160.5860637 | D135: 4.418814675 | E135: 1.020003966 | F135: -4.507208495
A136: 133 | B136: 71.31721668 | C136: 156.7163784 | D136: 1.287870807 | E136: 4.889689255 | F136: -6.297288047
A137: 134 | B137: 65.4866644 | C137: 155.4070582 | D137: 4.542681471 | E137: 6.199009535 | F137: 28.16012575
A138: 135 | B138: 72.10576305 | C138: 175.2602497 | D138: 2.076417178 | E138: 13.65418204 | F138: 28.35177814
A139: 136 | B139: 67.24449669 | C139: 162.8415976 | D139: 2.784849181 | E139: 1.23552988 | F139: -3.440764374
A140: 137 | B140: 72.9894045 | C140: 185.1229971 | D140: 2.960058625 | E140: 23.51692944 | F140: 69.61148983
A141: 138 | B141: 70.56581793 | C141: 157.9144596 | D141: 0.5364720595 | E141: 3.69160808 | F141: -1.98044459
A142: 139 | B142: 74.25289638 | C142: 185.5930556 | D142: 4.223550505 | E142: 23.98698789 | F142: 101.3102548
A143: 140 | B143: 72.83372344 | C143: 159.5829288 | D143: 2.804377564 | E143: 2.02313892 | F143: -5.673645395
A144: 141 | B144: 69.42765162 | C144: 154.7573044 | D144: 0.6016942516 | E144: 6.848763266 | F144: 4.120861487
A145: 142 | B145: 70.58374559 | C145: 163.5098044 | D145: 0.5543997186 | E145: 1.903736741 | F145: 1.055431113
A146: 143 | B146: 70.19783199 | C146: 162.8784682 | D146: 0.1684861209 | E146: 1.272400465 | F146: 0.2143818185
A147: 144 | B147: 69.55423261 | C147: 155.7723622 | D147: 0.4751132618 | E147: 5.833705542 | F147: 2.771670868
A148: 145 | B148: 65.36845854 | C148: 150.620445 | D148: 4.660887337 | E148: 10.98562268 | F148: 51.20274964
A149: 146 | B149: 64.1395842 | C149: 159.1163422 | D149: 5.889761671 | E149: 2.489725471 | F149: 14.66388965
A150: 147 | B150: 70.17105734 | C150: 155.3583007 | D150: 0.1417114657 | E150: 6.247766972 | F150: -0.8853802151
A151: 148 | B151: 71.01263772 | C151: 157.6891746 | D151: 0.9832918424 | E151: 3.916893057 | F151: -3.85144899
A152: 149 | B152: 69.54449121 | C152: 177.5828891 | D152: 0.4848546598 | E152: 15.97682141 | F152: -7.746436312
A153: 150 | B153: 73.73128276 | C153: 179.8091735 | D153: 3.701936887 | E153: 18.20310584 | F153: 67.38674896
A154: 151 | B154: 71.92076096 | C154: 165.1340506 | D154: 1.89141509 | E154: 3.527982875 | F154: 6.672880047
A155: 152 | B155: 66.15342039 | C155: 171.5220038 | D155: 3.875925482 | E155: 9.915936111 | F155: -38.43342945
A156: 153 | B156: 72.66845163 | C156: 158.444664 | D156: 2.639105751 | E156: 3.161403717 | F156: -8.343278731
A157: 154 | B157: 69.79607975 | C157: 158.0682468 | D157: 0.2332661253 | E157: 3.537820912 | F157: 0.8252537761
A158: 155 | B158: 63.16520992 | C158: 123.7715368 | D158: 6.864135955 | E158: 37.83453089 | F158: 259.7013638
A159: 156 | B159: 71.19677464 | C159: 170.7136141 | D159: 1.167428763 | E159: 9.107546397 | F159: 10.63241163
A160: 157 | B160: 70.1912902 | C160: 153.1454769 | D160: 0.1619443215 | E160: 8.460590839 | F160: -1.370144643
A161: 158 | B161: 65.83530092 | C161: 156.725842 | D161: 4.194044957 | E161: 4.880225659 | F161: 20.46788581
A162: 159 | B162: 70.97647682 | C162: 138.888788 | D162: 0.9471309417 | E162: 22.7172797 | F162: -21.51623851
A163: 160 | B163: 73.77189976 | C163: 152.7023355 | D163: 3.742553884 | E163: 8.903732178 | F163: -33.32269744
A164: 161 | B164: 68.93452288 | C164: 145.3280275 | D164: 1.094822992 | E164: 16.27804025 | F164: 17.82157273
A165: 162 | B165: 66.03873886 | C165: 161.8673202 | D165: 3.990607016 | E165: 0.2612524463 | F165: -1.042555845
A166: 163 | B166: 69.35133254 | C166: 148.9728655 | D166: 0.6780133335 | E166: 12.63320219 | F166: 8.565479529
A167: 164 | B167: 66.67259933 | C167: 155.5323073 | D167: 3.356746546 | E167: 6.073760383 | F167: 20.38807419
A168: 165 | B168: 72.27454733 | C168: 188.8804769 | D168: 2.245201455 | E168: 27.2744092 | F168: 61.23654321
A169: 166 | B169: 74.24456298 | C169: 174.9467824 | D169: 4.215217103 | E169: 13.34071474 | F169: 56.23400894
A170: 167 | B170: 72.02685183 | C170: 176.5044519 | D170: 1.997505952 | E170: 14.8983842 | F170: 29.75961111
A171: 168 | B171: 72.78742424 | C171: 158.3937318 | D171: 2.758078364 | E171: 3.212335948 | F171: -8.859874276
A172: 169 | B172: 73.53635403 | C172: 172.5084512 | D172: 3.507008158 | E172: 10.90238352 | F172: 38.23474795
A173: 170 | B173: 65.37285737 | C173: 145.8842592 | D173: 4.656488508 | E173: 15.72180853 | F173: 73.20842076
A174: 171 | B174: 67.76076707 | C174: 158.8954329 | D174: 2.268578804 | E174: 2.71063485 | F174: 6.149288766
A175: 172 | B175: 72.17007281 | C175: 174.3288405 | D175: 2.140726933 | E175: 12.72277283 | F175: 27.23598245
A176: 173 | B176: 68.39012804 | C176: 169.9482842 | D176: 1.63921783 | E176: 8.342216457 | F176: -13.67470996
A177: 174 | B177: 72.42067417 | C177: 159.5886426 | D177: 2.391328299 | E177: 2.01742514 | F177: -4.824325829
A178: 175 | B178: 70.29179473 | C178: 201.7485895 | D178: 0.2624488606 | E178: 40.14252184 | F178: 10.53535912
A179: 176 | B179: 69.98153809 | C179: 167.1649034 | D179: 0.04780778585 | E179: 5.558835654 | F179: -0.2657556245
A180: 177 | B180: 64.79821554 | C180: 146.8034034 | D180: 5.23113033 | E180: 14.8026643 | F180: 77.4346662
A181: 178 | B181: 74.75303801 | C181: 160.8131997 | D181: 4.723692139 | E181: 0.7928679762 | F181: -3.745264226
A182: 179 | B182: 74.15042674 | C182: 191.6449847 | D182: 4.121080864 | E182: 30.03891702 | F182: 123.7928061
A183: 180 | B183: 70.34341469 | C183: 146.3603351 | D183: 0.3140688196 | E183: 15.24573259 | F183: -4.788209238
A184: 181 | B184: 72.27041405 | C184: 165.1482464 | D184: 2.241068179 | E184: 3.54217874 | F184: 7.938264057
A185: 182 | B185: 73.14382308 | C185: 180.6961538 | D185: 3.114477207 | E185: 19.09008609 | F185: 59.45563801
A186: 183 | B186: 72.24764765 | C186: 157.0869113 | D186: 2.218301781 | E186: 4.519156422 | F186: -10.02485274
A187: 184 | B187: 68.54167893 | C187: 148.0982625 | D187: 1.48766694 | E187: 13.50780518 | F187: 20.09511521
A188: 185 | B188: 68.49678867 | C188: 152.2014575 | D188: 1.532557209 | E188: 9.404610213 | F188: 14.41310318
A189: 186 | B189: 76.24707247 | C189: 161.1450957 | D189: 6.217726592 | E189: 0.4609719769 | F189: -2.866197719
A190: 187 | B190: 65.9794391 | C190: 159.1120505 | D190: 4.049906776 | E190: 2.49401724 | F190: 10.10053732
A191: 188 | B191: 71.180661 | C191: 161.5746363 | D191: 1.151315125 | E191: 0.03143142314 | F191: -0.03618747286
A192: 189 | B192: 67.80139281 | C192: 158.5008364 | D192: 2.22795306 | E192: 3.105231287 | F192: 6.918309548
A193: 190 | B193: 68.45905656 | C193: 156.7266533 | D193: 1.570289316 | E193: 4.879414379 | F193: 7.662092269
A194: 191 | B194: 66.81630819 | C194: 142.8457982 | D194: 3.213037681 | E194: 18.76026946 | F194: 60.27745268
A195: 192 | B195: 67.08095164 | C195: 150.7550458 | D195: 2.948394232 | E195: 10.85102191 | F195: 31.99309042
A196: 193 | B196: 70.28233238 | C196: 160.9989407 | D196: 0.2529865069 | E196: 0.6071270179 | F196: -0.1535949435
A197: 194 | B197: 67.10876509 | C197: 162.5844465 | D197: =ABS($B197-$K$11) -> 2.920580788 | E197: =ABS($C197-$K$12) -> 0.9783787923 | F197: =($B197-$K$11)*($C197-$K$12) -> -2.857434304
A198: 195 | B198: 67.38319238 | C198: 142.201884 | D198: 2.646153496 | E198: 19.40418366 | F198: 51.34644842
A199: 196 | B199: 72.072698 | C199: 178.4418879 | D199: 2.043352126 | E199: 16.8358202 | F199: 34.40150901
A200: 197 | B200: 73.99964359 | C200: 186.7099983 | D200: 3.970297715 | E200: 25.1039306 | F200: 99.67007831
A201: 198 | B201: 69.01831506 | C201: 148.5578991 | D201: 1.011030812 | E201: 13.04816856 | F201: 13.19210046
... 803 more rows

Sheet Tukey Biweight MidCorrelation
A1: Calculating the Tukey Biweight Midcorrelation Coefficient
A3: Obs. Number | B3: X | C3: Y | D3: |X-medx| | E3: |Y-medy| | F3: U(i) | G3: V(i) | H3: a(i) | I3: b(i) | J3: MidVar(X) | K3: MidVar(Y) | L3: MidCovar(X,Y) | O3: Comparison of Manually Calculated Correlation with Macro Calculation | S3: Tukey Biweight MidCorrelation Applied to the Paired Data Series From the "Simulated Data" Worksheet
A4: 1 | B4: 69.59024759 | C4: 179.2035405 | D4: 0.4390982852 | E4: 17.59747277 | F4: =($B4-$Q$13)/(9*$Q$15) -> -0.02442261733 | G4: =($C4-$Q$14)/(9*$Q$16) -> 0.2074735679 | H4: =OR(F4>=-1,F4<=1)*1 -> 1 | I4: =OR(G4>=-1,G4<=1)*1 -> 1 | J4: =H4*(D4^2)*(1-F4^2)^4 -> 0.1923477048 | K4: =I4*(E4^2)*(1-G4^2)^4 -> 259.696536 | L4: =$H4*($B4-$Q$13)*(1-$F4^2)^2*$I4*($C4-$Q$14)*(1-$G4^2)^2 -> -7.067675194 | O4: Calculated Tukey BiWeight = | Q4: =Q19/(SQRT(Q17)*SQRT(Q18)) -> 0.4651696651
A5: 2 | B5: 75.90042113 | C5: 148.634771 | D5: 5.871075258 | E5: 12.97129672 | F5: 0.3265488142 | G5: -0.1529311194 | H5: =OR(F5>=-1,F5<=1)*1 -> 1 | I5: =OR(G5>=-1,G5<=1)*1 -> 1 | J5: =H5*(D5^2)*(1-F5^2)^4 -> 21.95597489 | K5: =I5*(E5^2)*(1-G5^2)^4 -> 153.0576857 | L5: -57.97008457 | O5: VBA Tukey Biweight = | Q5: =BiWeight(B4:B1003,C4:C1003) -> 0.4651696651 | S5: U1(0,1), U2(0,1) | T5: =BiWeight('Simulated Data'!$B$4:$B$1003,'Simulated Data'!$C$4:$C$1003) -> 0.01681616991
A6: 3 | B6: 68.70319257 | C6: 148.2832815 | D6: 1.326153306 | E6: 13.32278619 | F6: -0.07376055839 | G6: -0.1570751676 | H6: 1 | I6: 1 | J6: 1.72072051 | K6: 160.617108 | L6: 16.62459479 | S6: N1(0,1), N2(0,1) | T6: =BiWeight('Simulated Data'!$D$4:$D$1003,'Simulated Data'!$E$4:$E$1003) -> -0.02224664079
A7: 4 | B7: 70.30671509 | C7: 161.1189805 | D7: 0.277369215 | E7: 0.4870871986 | F7: 0.01542725723 | G7: -0.005742740464 | H7: 1 | I7: 1 | J7: 0.07686046662 | K7: 0.237222643 | L7: -0.1350297857 | S7: X, Y (Correlated) | T7: =BiWeight('Simulated Data'!$F$4:$F$1003,'Simulated Data'!$G$4:$G$1003) -> 0.4651696651
A8: 5 | B8: 67.3750767 | C8: 167.5735679 | D8: 2.65426917 | E8: 5.967500184 | F8: -0.1476302741 | G8: 0.07035661145 | H8: 1 | I8: 1 | J8: 6.450746496 | K8: 34.91117018 | L8: -15.00676876 | S8: Ranks of (X, Y) | T8: =BiWeight('Simulated Data'!$H$4:$H$1003,'Simulated Data'!$I$4:$I$1003) -> 0.4457079734
A9: 6 | B9: 70.30370117 | C9: 166.757326 | D9: 0.2743552947 | E9: 5.151258305 | F9: 0.01525962319 | G9: 0.0607331492 | H9: 1 | I9: 1 | J9: 0.07520074312 | K9: 26.14611707 | L9: 1.402215188 | S9: (X, Y) with duplicates | T9: =BiWeight('Simulated Data'!$J$4:$J$1003,'Simulated Data'!$K$4:$K$1003) -> 0.4651693445
A10: 7 | B10: 72.046436 | C10: 158.1402947 | D10: 2.017090123 | E10: 3.465773034 | F10: 0.1121904181 | G10: -0.04086133878 | H10: 1 | I10: 1 | J10: 3.867644194 | K10: 11.9315629 | L10: -6.793161265 | S10: Ranks of (X, Y) with duplicates | T10: =BiWeight('Simulated Data'!$L$4:$L$1003,'Simulated Data'!$M$4:$M$1003) -> 0.4457303061
A11: 8 | B11: 69.65903862 | C11: 151.4591575 | D11: 0.3703072547 | E11: 10.14691016 | F11: -0.0205964648 | G11: -0.119631704 | H11: 1 | I11: 1 | J11: 0.1368949251 | K11: 97.19097931 | L11: 3.64759535 | O11: Intermediate Calculations for the Tukey Biweight Midcorrelation Coefficient
A12: 9 | B12: 74.29144862 | C12: 185.9929006 | D12: 4.262102741 | E12: 24.38683285 | F12: 0.2370578701 | G12: 0.2875198777 | H12: 1 | I12: 1 | J12: 14.41366039 | K12: 421.1313604 | L12: 77.91048971
A13: 10 | B13: 65.64948847 | C13: 147.6030784 | D13: 4.3798574 | E13: 14.00298929 | F13: -0.2436073764 | G13: -0.1650947376 | H13: 1 | I13: 1 | J13: 15.01904225 | K13: 175.5639203 | L13: 51.34979977 | O13: Median(X) = | Q13: 70.02934587
A14: 11 | B14: 69.74269715 | C14: 154.6594908 | D14: 0.2866487282 | E14: 6.946576894 | F14: -0.01594338314 | G14: -0.08189989047 | H14: 1 | I14: 1 | J14: 0.08208398011 | K14: 46.97320129 | L14: 1.963605694 | O14: Median(Y) = | Q14: 161.6060677 | S14: Notes:
A15: 12 | B15: 69.92351191 | C15: 155.0106918 | D15: 0.1058339633 | E15: 6.595375873 | F15: -0.005886477979 | G15: -0.07775924313 | H15: 1 | I15: 1 | J15: 0.01119927541 | K15: 42.4564201 | L15: 0.6895514059 | O15: MAD(x) = | Q15: 1.997685084
A16: 13 | B16: 71.27244255 | C16: 167.9248667 | D16: 1.243096677 | E16: 6.318798972 | F16: 0.06914095427 | G16: 0.07449841146 | H16: 1 | I16: 1 | J16: 1.515951714 | K16: 39.04818595 | L16: 7.693839381 | O16: MAD(y) = | Q16: 9.424211347
A17: 14 | B17: 68.20918455 | C17: 170.8602726 | D17: 1.820161321 | E17: 9.254204872 | F17: -0.1012372512 | G17: 0.1091067409 | H17: 1 | I17: 1 | J17: 3.17924204 | K17: 81.63460403 | L17: -16.11012616 | O17: Sum of MidVar(X) | Q17: 6470.479287
A18: 15 | B18: 71.98267049 | C18: 177.2631872 | D18: 1.953324613 | E18: 15.65711948 | F18: 0.1086437847 | G18: 0.1845968727 | H18: 1 | I18: 1 | J18: 3.638497993 | K18: 213.4005575 | L18: 27.86498699 | O18: Sum of MidVar(Y) | Q18: 142597.9314
A19: 16 | B19: 64.96950385 | C19: 170.4605236 | D19: 5.059842029 | E19: 8.854455938 | F19: -0.2814280761 | G19: 0.1043937154 | H19: 1 | I19: 1 | J19: 18.40483102 | K19: 75.03916595 | L19: -37.16292736 | O19: Sum of MidCoVar(X,Y) | Q19: 14129.80681
A20: 17 | B20: 67.56420314 | C20: 158.2215903 | D20: 2.465142736 | E20: 3.384477397 | F20: -0.1371110745 | G20: -0.03990286617 | H20: 1 | I20: 1 | J20: 5.632682595 | K20: 11.38190692 | L20: 8.006913826
A21: 18 | B21: 72.34811075 | C21: 168.0844596 | D21: 2.318764877 | E21: 6.478391849 | F21: 0.1289695478 | G21: 0.07638000572 | H21: 1 | I21: 1 | J21: 5.027773358 | K21: 40.99871236 | L21: 14.35730594
A22: 19 | B22: 73.39999773 | C22: 186.4382187 | D22: 3.370651855 | E22: 24.83215102 | F22: 0.1874754313 | G22: 0.2927701628 | H22: 1 | I22: 1 | J22: 9.846283462 | K22: 430.8799251 | L22: 65.134982
A23: 20 | B23: 70.63087883 | C23: 145.0970574 | D23: 0.6015329586 | E23: 16.50901026 | F23: 0.03345722303 | G23: -0.1946406342 | H23: 1 | I23: 1 | J23: 0.3602244559 | K23: 233.5339687 | L23: -9.171948911
A24: 21 | B24: 70.11967655 | C24: 138.1029989 | D24: 0.09033067942 | E24: 23.50306878 | F24: 0.005024186363 | G24: -0.2771003314 | H24: 1 | I24: 1 | J24: 0.008158807799 | K24: 401.2927524 | L24: -1.809439261
A25: 22 | B25: 66.18716528 | C25: 144.0183644 | D25: 3.842180597 | E25: 17.58770334 | F25: -0.2137018285 | G25: -0.2073583866 | H25: 1 | I25: 1 | J25: 12.24482653 | K25: 259.4600822 | L25: 56.36527031
A26: 23 | B26: 73.78144069 | C26: 194.1955585 | D26: 3.752094816 | E26: 32.58949077 | F26: 0.2086912634 | G26: 0.3842289181 | H26: 1 | I26: 1 | J26: 11.78129372 | K26: 560.614051 | L26: 81.26966716
A27: 24 | B27: 67.09498212 | C27: 159.5028359 | D27: 2.934363749 | E27: 2.103231827 | F27: -0.163209116 | G27: -0.02479702721 | H27: 1 | I27: 1 | J27: 7.729063 | K27: 4.412714034 | L27: 5.840046641
A28: 25 | B28: 69.93828021 | C28: 159.3274787 | D28: 0.09106566053 | E28: 2.278588963 | F28: -0.005065065964 | G28: -0.0268644815 | H28: 1 | I28: 1 | J28: 0.008292103542 | K28: 5.176995699 | L28: 0.2071911783
A29: 26 | B29: 69.15218537 | C29: 169.6787571 | D29: 0.8771605076 | E29: 8.072689437 | F29: -0.04878760892 | G29: 0.09517671664 | H29: 1 | I29: 1 | J29: 0.7621111705 | K29: 62.83887033 | L29: -6.920274924
A30: 27 | B30: 69.97904194 | C30: 169.2641729 | D30: 0.05030393558 | E30: 7.658105196 | F30: -0.002797901541 | G30: 0.09028878343 | H30: 1 | I30: 1 | J30: 0.002530406699 | K30: 56.75747029 | L30: -0.3789716124
A31: 28 | B31: 65.23138892 | C31: 150.1850862 | D31: 4.797956953 | E31: 11.4209815 | F31: -0.2668620457 | G31: -0.1346529591 | H31: 1 | I31: 1 | J31: 17.13060924 | K31: 121.2328482 | L31: 45.57183943
A32: 29 | B32: 69.18991845 | C32: 162.13541 | D32: 0.8394274194 | E32: 0.5293422763 | F32: -0.04668889707 | G32: 0.006240926302 | H32: 1 | I32: 1 | J32: 0.6985144202 | K32: 0.2801595933 | L32: -0.442374859
A33: 30 | B33: 70.7218467 | C33: 179.8605007 | D33: 0.6925008251 | E33: 18.25443296 | F33: 0.0385168497 | G33: 0.2152191048 | H33: 1 | I33: 1 | J33: 0.4767179342 | K33: 275.6441224 | L33: 11.46318004
A34: 31 | B34: 73.08646681 | C34: 167.345485 | D34: 3.057120935 | E34: 5.739417298 | F34: 0.1700368624 | G34: 0.06766752247 | H34: 1 | I34: 1 | J34: 8.311102368 | K34: 32.34171047 | L34: 16.39497687
A35: 32 | B35: 72.42004776 | C35: 176.7791011 | D35: 2.39070189 | E35: 15.17303341 | F35: 0.1329706796 | G35: 0.1788895154 | H35: 1 | I35: 1 | J35: 5.321825989 | K35: 202.1359871 | L35: 32.798362
A36: 33 | B36: 64.43216286 | C36: 134.4075192 | D36: 5.597183012 | E36: 27.19854848 | F36: -0.3113149458 | G36: -0.3206699034 | H36: 1 | I36: 1 | J36: 20.8376957 | K36: 479.2829738 | L36: 99.93574316
A37: 34 | B37: 70.27480576 | C37: 157.565493 | D37: 0.2454598865 | E37: 4.040574729 | F37: 0.01365246251 | G37: -0.04763823 | H37: 1 | I37: 1 | J37: 0.06020564808 | K37: 16.1785447 | L37: -0.9869345312
A38: 35 | B38: 68.1393137 | C38: 139.4283219 | D38: 1.890032176 | E38: 22.17774582 | F38: -0.1051234635 | G38: -0.2614748215 | H38: 1 | I38: 1 | J38: 3.41691424 | K38: 370.5189075 | L38: 35.58133403
A39: 36 | B39: 74.47045905 | C39: 176.306214 | D39: 4.441113179 | E39: 14.70014629 | F39: 0.2470144187 | G39: 0.1733141933 | H39: 1 | I39: 1 | J39: 15.33261471 | K39: 191.2769048 | L39: 54.15510212
A40: 37 | B40: 66.39420939 | C40: 143.0109076 | D40: 3.635136488 | E40: 18.59516013 | F40: -0.202186049 | G40: -0.2192362658 | H40: 1 | I40: 1 | J40: 11.18239128 | K40: 283.9421484 | L40: 56.34848893
A41: 38 | B41: 71.51880731 | C41: 168.2380568 | D41: 1.489461439 | E41: 6.631989127 | F41: 0.08284374586 | G41: 0.07819091207 | H41: 1 | I41: 1 | J41: 2.158216586 | K41: 42.91748068 | L41: 9.624199636
A42: 39 | B42: 71.11033365 | C42: 154.6312858 | D42: 1.080987771 | E42: 6.97478191 | F42: 0.06012446771 | G42: -0.08223242659 | H42: 1 | I42: 1 | J42: 1.151729178 | K42: 47.34501638 | L42: -7.384350806
A43: 40 | B43: 69.82809183 | C43: 178.5105441 | D43: 0.2012540454 | E43: 16.9044764 | F43: -0.01119373658 | G43: 0.1993031657 | H43: 1 | I43: 1 | J43: 0.04048289443 | K43: 242.9919091 | L43: -3.136401729
A44: 41 | B44: 71.00384778 | C44: 174.7647687 | D44: 0.9745019064 | E44: 13.15870104 | F44: 0.05420173103 | G44: 0.1551406095 | H44: 1 | I44: 1 | J44: 0.9385433685 | K44: 157.0735972 | L44: 12.14167958
A45: 42 | B45: 68.16229315 | C45: 165.5278601 | D45: 1.867052722 | E45: 3.921792392 | F45: -0.1038453478 | G45: 0.04623779054 | H45: 1 | I45: 1 | J45: 3.337935533 | K45: 15.24934722 | L45: -7.134517358
A46: 43 | B46: 69.41568546 | C46: 142.5146991 | D46: 0.6136604182 | E46: 19.0913686 | F46: -0.03413175152 | G46: -0.2250865457 | H46: 1 | I46: 1 | J46: 0.3748273497 | K46: 296.0424652 | L46: 10.5339837
A47: 44 | B47: 70.85962855 | C47: 175.8377286 | D47: 0.8302826731 | E47: 14.23166095 | F47: 0.04618026689 | G47: 0.1677907681 | H47: 1 | I47: 1 | J47: 0.6835074593 | K47: 180.6764067 | L47: 11.11277066
A48: 45 | B48: 68.00908012 | C48: 170.5361346 | D48: 2.020265752 | E48: 8.930066873 | F48: -0.1123670463 | G48: 0.1052851656 | H48: 1 | I48: 1 | J48: 3.879208564 | K48: 76.26852359 | L48: -17.20062527
A49: 46 | B49: 71.79456065 | C49: 161.165496 | D49: 1.765214777 | E49: 0.4405716558 | F49: 0.09818112815 | G49: -0.005194323896 | H49: 1 | I49: 1 | J49: 2.997562803 | K49: 0.1940824363 | L49: -0.7627413008
A50: 47 | B50: 67.75641297 | C50: 154.8749646 | D50: 2.272932902 | E50: 6.731103107 | F50: -0.1264203764 | G50: -0.07935946231 | H50: 1 | I50: 1 | J50: 4.843788867 | K50: 44.17710723 | L50: 14.62821179
A51: 48 | B51: 68.65060179 | C51: 159.3540304 | D51: 1.378744084 | E51: 2.25203734 | F51: -0.07668565398 | G51: -0.02655143883 | H51: 1 | I51: 1 | J51: 1.8566129 | K51: 5.057385611 | L51: 3.064246623
A52: 49 | B52: 71.65713108 | C52: 187.6360219 | D52: 1.627785208 | E52: 26.02995418 | F52: 0.09053730468 | G52: 0.3068922188 | H52: 1 | I52: 1 | J52: 2.563869167 | K52: 456.1513809 | L52: 34.19813534
A53: 50 | B53: 68.95997709 | C53: 167.8543877 | D53: 1.069368789 | E53: 6.248320019 | F53: -0.05947822071 | G53: 0.07366746715 | H53: 1 | I53: 1 | J53: 1.127453321 | K53: 38.20088038 | L53: -6.562751668
A54: 51 | B54: 68.44237462 | C54: 163.8016713 | D54: 1.586971258 | E54: 2.195603554 | F54: -0.08826723548 | G54: 0.02588608653 | H54: 1 | I54: 1 | J54: 2.440903369 | K54: 4.807766812 | L54: -3.425681569
A55: 52 | B55: 72.64891234 | C55: 164.4651827 | D55: 2.619566462 | E55: 2.859114969 | F55: 0.1457001119 | G55: 0.03370886213 | H55: 1 | I55: 1 | J55: 6.297730372 | K55: 8.137447183 | L55: 7.158732309
A56: 53 | B56: 64.16689684 | C56: 157.7714021 | D56: 5.862449035 | E56: 3.834665634 | F56: -0.3260690243 | G56: -0.04521056921 | H56: 1 | I56: 1 | J56: 21.92221108 | K56: 14.58480359 | L56: 17.88102746
A57: 54 | B57: 69.53677122 | C57: 160.6378795 | D57: 0.492574659 | E57: 0.9681881789 | F57: -0.02739696967 | G57: -0.01141490363 | H57: 1 | I57: 1 | J57: 0.2419021486 | K57: 0.9368998783 | L57: 0.4760652199
A58: 55 | B58: 68.52794302 | C58: 142.8477662 | D58: 1.501402859 | E58: 18.75830146 | F58: -0.08350792684 | G58: -0.2211596961 | H58: 1 | I58: 1 | J58: 2.19198562 | K58: 287.9191429 | L58: 25.12199476
A59: 56 | B59: 68.5118249 | C59: 133.197115 | D59: 1.517520973 | E59: 28.40895273 | F59: -0.08440441527 | G59: -0.3349405258 | H59: 1 | I59: 1 | J59: 2.237944291 | K59: 501.4181577 | L59: 33.49844628
A60: 57 | B60: 70.28039146 | C60: 179.5151704 | D60: 0.2510455851 | E60: 17.90910269 | F60: 0.0139631387 | G60: 0.2111476733 | H60: 1 | I60: 1 | J60: 0.06297474929 | K60: 267.2507259 | L60: 4.102444084
A61: 58 | B61: 68.95148951 | C61: 154.5936208 | D61: 1.077856362 | E61: 7.012446929 | F61: -0.05995029897 | G61: -0.0826764958 | H61: 1 | I61: 1 | J61: 1.145162317 | K61: 47.84362691 | L61: 7.401940194
A62: 59 | B62: 76.13678496 | C62: 167.102771 | D62: 6.107439083 | E62: 5.49670332 | F62: 0.3396953544 | G62: 0.06480593345 | H62: 1 | I62: 1 | J62: 22.84125196 | K62: 29.70936811 | L62: 26.04993594
A63: 60 | B63: 72.68803547 | C63: 162.4174685 | D63: 2.658689592 | E63: 0.8114007986 | F63: 0.1478761378 | G63: 0.009566386084 | H63: 1 | I63: 1 | J63: 6.470327907 | K63: 0.6581302836 | L63: 2.063569417
A64: 61 | B64: 71.29852334 | C64: 165.1235083 | D64: 1.269177467 | E64: 3.517440635 | F64: 0.07059156604 | G64: 0.04147049793 | H64: 1 | I64: 1 | J64: 1.57894286 | K64: 12.28749569 | L64: 4.404685412
A65: 62 | B65: 73.96392728 | C65: 175.8806819 | D65: 3.934581408 | E65: 14.27461422 | F65: 0.2188411554 | G65: 0.1682971857 | H65: 1 | I65: 1 | J65: 12.72163495 | K65: 181.641369 | L65: 48.07052307
A66: 63 | B66: 68.34454044 | C66: 174.4574496 | D66: 1.684805435 | E66: 12.85138188 | F66: -0.09370876589 | G66: 0.1515173278 | H66: 1 | I66: 1 | J66: 2.740169316 | K66: 150.5058838 | L66: -20.30791975
A67: 64 | B67: 69.95782012 | C67: 161.4350221 | D67: 0.07152575029 | E67: 0.1710456039 | F67: -0.003978257459 | G67: -0.002016621486 | H67: 1 | I67: 1 | J67: 0.005115609092 | K67: 0.02925612268 | L67: 0.0122336784
A68: 65 | B68: 71.61445169 | C68: 154.6414632 | D68: 1.585105813 | E68: 6.964604474 | F68: =($B68-$Q$13)/(9*$Q$15) -> 0.08816347959 | G68: =($C68-$Q$14)/(9*$Q$16) -> -0.08211243498 | H68: 1 | I68: 1 | J68: 2.435348017 | K68: 47.21069689 | L68: =$H68*($B68-$Q$13)*(1-$F68^2)^2*$I68*($C68-$Q$14)*(1-$G68^2)^2 -> -10.72261522
A69: 66 | B69: 72.77260559 | C69: 185.8068797 | D69: 2.743259714 | E69: 24.20081199 | F69: 0.1525799223 | G69: 0.2853266985 | H69: =OR(F69>=-1,F69<=1)*1 -> 1 | I69: =OR(G69>=-1,G69<=1)*1 -> 1 | J69: =H69*(D69^2)*(1-F69^2)^4 -> 6.848777372 | K69: =I69*(E69^2)*(1-G69^2)^4 -> 417.0078428 | L69: 53.44149958
A70: 67 | B70: 67.59161206 | C70: 168.3994952 | D70: 2.437733818 | E70: 6.793427458 | F70: -0.1355865923 | G70: 0.08009426416 | H70: 1 | I70: 1 | J70: 5.517464751 | K70: 44.97776083 | L70: -15.75319682
A71: 68 | B71: 70.62542637 | C71: 181.3665741 | D71: 0.5960804993 | E71: 19.76050644 | F71: 0.03315395761 | G71: 0.2329756566 | H71: 1 | I71: 1 | J71: 0.3537523213 | K71: 312.3566387 | L71: 10.5117499
A72: 69 | B72: 70.56596848 | C72: 152.4950221 | D72: 0.5366226061 | E72: 9.111045639 | F72: 0.02984691355 | G72: -0.1074188987 | H72: 1 | I72: 1 | J72: 0.2869390749 | K72: 79.24555585 | L72: -4.768505687
A73: 70 | B73: 70.66886091 | C73: 160.9386736 | D73: 0.639515037 | E73: 0.6673941138 | F73: 0.03556978369 | G73: -0.007868552477 | H73: 1 | I73: 1 | J73: 0.4069136283 | K73: 0.4453046035 | L73: -0.4256765344
A74: 71 | B74: 69.85923458 | C74: 173.2838986 | D74: 0.1701112947 | E74: 11.67783091 | F74: -0.009461578862 | G74: 0.1376812043 | H74: 1 | I74: 1 | J74: 0.02892749173 | K74: 126.3217423 | L74: -1.911588647
A75: 72 | B75: 72.80264454 | C75: 153.6540441 | D75: 2.773298665 | E75: 7.952023603 | F75: 0.1542506867 | G75: -0.09375407082 | H75: 1 | I75: 1 | J75: 6.984904407 | K75: 61.04053418 | L75: -20.64854223
A76: 73 | B76: 69.22604171 | C76: 159.74142 | D76: 0.8033041633 | E76: 1.864647675 | F76: -0.04467972398 | G76: -0.02198412868 | H76: 1 | I76: 1 | J76: 0.6401602151 | K76: 3.470194231 | L76: 1.490463111
A77: 74 | B77: 66.61983866 | C77: 177.7115498 | D77: 3.409507217 | E77: 16.10548208 | F77: -0.1896365639 | G77: 0.1898830516 | H77: 1 | I77: 1 | J77: 10.04060293 | K77: 223.9522577 | L77: -47.4195708
A78: 75 | B78: 66.12264851 | C78: 170.86176 | D78: 3.906697367 | E78: 9.255692306 | F78: -0.217290247 | G78: 0.1091242777 | H78: 1 | I78: 1 | J78: 12.577638 | K78: 81.65958335 | L78: -32.04816186
A79: 76 | B79: 75.29848228 | C79: 167.9362434 | D79: 5.269136411 | E79: 6.330175728 | F79: 0.2930690157 | G79: 0.074632543 | H79: 1 | I79: 1 | J79: 19.38535565 | K79: 39.18576904 | L79: 27.56138729
A80: 77 | B80: 78.77680626 | C80: 177.5387429 | D80: 8.74746039 | E80: 15.93267519 | F80: 0.4865331634 | G80: 0.1878456646 | H80: 1 | I80: 1 | J80: 25.97239354 | K80: 219.8729184 | L80: 75.56868376
A81: 78 | B81: 76.09356413 | C81: 178.3484859 | D81: 6.06421826 | E81: 16.74241817 | F81: 0.3372914151 | G81: 0.197392505 | H81: 1 | I81: 1 | J81: 22.68528608 | K81: 239.1086874 | L81: 73.64950086
A82: 79 | B82: 65.89089868 | C82: 163.5776839 | D82: 4.138447194 | E82: 1.97161617 | F82: -0.2301801569 | G82: 0.02324528337 | H82: 1 | I82: 1 | J82: 13.77546005 | K82: 3.878875287 | L82: -7.309807902
A83: 80 | B83: 70.2867311 | C83: 147.2331273 | D83: 0.2573852266 | E83: 14.37294039 | F83: 0.01431574913 | G83: -0.1694564476 | H83: 1 | I83: 1 | J83: 0.06619286462 | K83: 183.8557021 | L83: -3.488543478
A84: 81 | B84: 71.81489191 | C84: 163.8140279 | D84: 1.78554604 | E84: 2.207960232 | F84: 0.09931195163 | G84: 0.02603177131 | H84: 1 | I84: 1 | J84: 3.064245126 | K84: 4.861887335 | L84: 3.859794627
A85: 82 | B85: 70.25339556 | C85: 176.2836325 | D85: 0.2240496889 | E85: 14.67756475 | F85: 0.01246162875 | G85: 0.1730479578 | H85: 1 | I85: 1 | J85: 0.05016708878 | K85: 190.762224 | L85: 3.093539305
A86: 83 | B86: 69.38942282 | C86: 158.2411932 | D86: 0.6399230558 | E86: 3.364874483 | F86: -0.03559247767 | G86: -0.03967174852 | H86: 1 | I86: 1 | J86: 0.407430391 | K86: 11.25126958 | L86: 2.141053284
A87: 84 | B87: 72.04563341 | C87: 191.6844267 | D87: 2.016287534 | E87: 30.07835898 | F87: 0.1121457781 | G87: 0.354622765 | H87: 1 | I87: 1 | J87: 3.864723757 | K87: 528.4894522 | L87: 45.19364713
A88: 85 | B88: 69.89492867 | C88: 166.0528146 | D88: 0.1344172021 | E88: 4.446746893 | F88: -0.007476275813 | G88: 0.05242698513 | H88: 1 | I88: 1 | J88: 0.01806394494 | K88: 19.55705508 | L88: -0.5943715724
A89: 86 | B89: 66.57922064 | C89: 142.1133517 | D89: 3.450125233 | E89: 19.49271601 | F89: -0.1918957353 | G89: -0.2298184171 | H89: 1 | I89: 1 | J89: 10.24453798 | K89: 305.8307842 | L89: 55.97405725
A90: 87 | B90: 71.9959069 | C90: 173.1354722 | D90: 1.966561026 | E90: 11.52940454 | F90: 0.1093799931 | G90: 0.1359312628 | H90: 1 | I90: 1 | J90: 3.685581008 | K90: 123.3715821 | L90: 21.323601
A91: 88 | B91: 66.76504149 | C91: 156.1266388 | D91: 3.26430438 | E91: 5.479428951 | F91: -0.1815603919 | G91: -0.06460226926 | H91: 1 | I91: 1 | J91: 9.318618821 | K91: 29.52605322 | L91: 16.58740592
A92: 89 | B92: 71.15381831 | C92: 162.3342115 | D92: 1.124472435 | E92: 0.7281437965 | F92: 0.0625430818 | G92: 0.00858478904 | H92: 1 | I92: 1 | J92: 1.244769942 | K92: 0.5300371077 | L92: 0.8122648951
A93: 90 | B93: 67.91843379 | C93: 163.9815261 | D93: 2.110912083 | E93: 2.375458397 | F93: -0.1174087893 | G93: 0.02800656864 | H93: 1 | I93: 1 | J93: 4.215285718 | K93: 5.625119284 | L93: -4.869444012
A94: 91 | B94: 69.51163441 | C94: 152.2586653 | D94: 0.5177114641 | E94: 9.347402361 | F94: -0.0287950771 | G94: -0.1102055359 | H94: 1 | I94: 1 | J94: 0.2671373259 | K94: 83.20591996 | L94: 4.7145951
A95: 92 | B95: 71.02343264 | C95: 142.2562719 | D95: 0.9940867675 | E95: 19.34979582 | F95: 0.05529103969 | G95: -0.2281333933 | H95: 1 | I95: 1 | J95: 0.9761795972 | K95: 302.3458026 | L95: -17.17974982
A96: 93 | B96: 71.86680426 | C96: 161.0542333 | D96: 1.837458384 | E96: 0.5518343859 | F96: 0.1021993128 | G96: -0.006506107462 | H96: 1 | I96: 1 | J96: 3.237392089 | K96: 0.3044696319 | L96: -0.9928179983
A97: 94 | B97: 69.76365263 | C97: 154.4144852 | D97: 0.2656932428 | E97: 7.191582458 | F97: -0.01477784044 | G97: -0.08478849722 | H97: 1 | I97: 1 | J97: 0.07053125385 | K97: 50.24757349 | L97: 1.88255793
A98: 95 | B98: 74.33300956 | C98: 182.4972003 | D98: 4.303663686 | E98: 20.89113259 | F98: 0.2393694871 | G98: 0.246305698 | H98: 1 | I98: 1 | J98: 14.62765886 | K98: 339.7842318 | L98: 70.4999846
A99: 96 | B99: 73.02050503 | C99: 166.3569692 | D99: 2.991159158 | E99: 4.750901535 | F99: 0.1663680728 | G99: 0.05601295736 | H99: 1 | I99: 1 | J99: 7.996848971 | K99: 22.28913321 | L99: 13.35076148
A100: 97 | B100: 73.72562423 | C100: 172.5475412 | D100: 3.696278355 | E100: 10.94147345 | F100: 0.2055867555 | G100: 0.1289995765 | H100: 1 | I100: 1 | J100: 11.4950037 | K100: 111.9438406 | L100: 35.87192304
A101: 98 | B101: 73.44736251 | C101: 191.6079086 | D101: 3.41801664 | E101: 30.00184087 | F101: 0.1901098575 | G101: 0.3537206193 | H101: 1 | I101: 1 | J101: 10.08326096 | K101: 527.3429966 | L101: 72.92007303
A102: 99 | B102: 65.68425633 | C102: 145.8722328 | D102: 4.345089548 | E102: 15.73383489 | F102: -0.2416735908 | G102: -0.1855013446 | H102: 1 | I102: 1 | J102: 14.84061719 | K102: 215.1983154 | L102: 56.51261645
A103: 100 | B103: 66.90422679 | C103: 162.0671608 | D103: 3.125119083 | E103: 0.4610931362 | F103: -0.1738189149 | G103: 0.005436271408 | H103: 1 | I103: 1 | J103: 8.638504162 | K103: 0.2125817487 | L103: -1.35513406
A104: 101 | B104: 69.98935182 | C104: 163.1720923 | D104: 0.03999405257 | E104: 1.566024627 | F104: -0.002224466536 | G104: 0.01846337374 | H104: 1 | I104: 1 | J104: 0.001599492582 | K104: 2.449090741 | L104: -0.06258835733
A105: 102 | B105: 61.70660735 | C105: 143.2161385 | D105: 8.322738525 | E105: 18.38992921 | F105: -0.4629101616 | G105: -0.2168166006 | H105: 1 | I105: 1 | J105: 26.39920635 | K105: 278.9423869 | L105: 85.81292228
A106: 103 | B106: 72.8797388 | C106: 151.9934375 | D106: 2.850392925 | E106: 9.612630232 | F106: 0.1585386643 | G106: -0.1133325629 | H106: 1 | I106: 1 | J106: 7.338178186 | K106: 87.74596542 | L106: -25.37509664
A107: 104 | B107: 72.72441064 | C107: 146.282265 | D107: 2.695064764 | E107: 15.32380271 | F107: 0.1498993224 | G107: -0.18066708 | H107: 1 | I107: 1 | J107: 6.632223201 | K107: 205.6290832 | L107: -36.92936469
A108: 105 | B108: 74.25481157 | C108: 190.2721726 | D108: 4.225465694 | E108: 28.66610491 | F108: 0.23502012 | G108: 0.3379723406 | H108: 1 | I108: 1 | J108: 14.22477293 | K108: 505.8601309 | L108: 84.82774014
A109: 106 | B109: 71.07392189 | C109: 169.5453319 | D109: 1.044576015 | E109: 7.939264167 | F109: 0.05809924825 | G109: 0.09360363754 | H109: 1 | I109: 1 | J109: 1.07648082 | K109: 60.85172664 | L109: 8.093560192
A110: 107 | B110: 71.63434532 | C110: 163.1166295 | D110: 1.604999445 | E110: 1.510561774 | F110: 0.08926996208 | G110: 0.01780946871 | H110: 1 | I110: 1 | J110: 2.494884972 | K110: 2.278903315 | L110: 2.384449964
A111: 108 | B111: 74.88879892 | C111: 187.7338789 | D111: 4.859453046 | E111: 26.12781117 | F111: 0.2702824542 | G111: 0.3080459492 | H111: 1 | I111: 1 | J111: 17.43392339 | K111: 458.1493582 | L111: 89.37192408
A112: 109 | B112: 67.23987899 | C112: 128.7208613 | D112: 2.789466881 | E112: 32.88520641 | F112: -0.1551499619 | G112: -0.3877153948 | H112: 1 | I112: 1 | J112: 7.058532253 | K112: 563.658589 | L112: 63.07616293
A113: 110 | B113: 68.45309637 | C113: 163.8499386 | D113: 1.576249502 | E113: 2.243870866 | F113: -0.08767089218 | G113: 0.02645515639 | H113: 1 | I113: 1 | J113: 2.409051448 | K113: 5.020875886 | L113: -3.477865484
A114: 111 | B114: 69.46022372 | C114: 147.9869717 | D114: 0.5691221577 | E114: 13.619096 | F114: -0.03165453645 | G114: -0.1605686495 | H114: 1 | I114: 1 | J114: 0.3226037765 | K114: 167.0785283 | L114: 7.34167312
A115: 112 | B115: 66.94801339 | C115: 130.9928233 | D115: 3.081332487 | E115: 30.61324442 | F115: -0.1713835074 | G115: -0.3609290451 | H115: 1 | I115: 1 | J115: 8.427288048 | K115: 536.2372372 | L115: 67.22369865
A116: 113 | B116: 68.52590306 | C116: 164.9782672 | D116: 1.503442814 | E116: 3.372199521 | F116: -0.08362138904 | G116: 0.03975811046 | H116: 1 | I116: 1 | J116: 2.197778284 | K116: 11.29999841 | L116: -4.98346176
A117: 114 | B117: 72.72947936 | C117: 159.7872454 | D117: 2.700133483 | E117: 1.818822308 | F117: 0.1501812442 | G117: -0.02144384926 | H117: 1 | I117: 1 | J117: 6.654889394 | K117: 3.302033987 | L117: -4.687714897
A118: 115 | B118: 67.60130747 | C118: 158.36545 | D118: 2.4280384 | E118: 3.240617742 | F118: -0.1350473338 | G118: -0.03820676603 | H118: 1 | I118: 1 | J118: 5.476919533 | K118: 10.44041833 | L118: 7.561833844
A119: 116 | B119: 69.46428852 | C119: 165.2429747 | D119: 0.5650573575 | E119: 3.636906951 | F119: -0.03142845253 | G119: 0.04287900148 | H119: 1 | I119: 1 | J119: 0.3180301741 | K119: 13.13008234 | L119: -2.043468221
A120: 117 | B120: 72.8921763 | C120: 183.0687773 | D120: 2.862830431 | E120: 21.46270963 | F120: 0.1592304376 | G120: 0.2530445707 | H120: 1 | I120: 1 | J120: 7.395682812 | K120: 353.5199521 | L120: 51.13239124
A121: 118 | B121: 69.46149311 | C121: 167.1568824 | D121: 0.5678527664 | E121: 5.550814742 | F121: -0.03158393299 | G121: 0.06544390515 | H121: 1 | I121: 1 | J121: 0.321172028 | K121: 30.2870741 | L121: -3.118871753
A122: 119 | B122: 70.13856871 | C122: 171.4376218 | D122: 0.1092228389 | E122: 9.831554056 | F122: 0.006074967016 | G122: 0.1159136669 | H122: 1 | I122: 1 | J122: 0.01192786758 | K122: 91.56836017 | L122: 1.045091037
A123: 120 | B123: 74.07380549 | C123: 169.4258314 | D123: 4.044459615 | E123: 7.819763687 | F123: 0.224952574 | G123: 0.09219473119 | H123: 1 | I123: 1 | J123: 13.28957884 | K123: 59.09603761 | L123: 28.02430108
A124: 121 | B124: 71.08467338 | C124: 150.4930786 | D124: 1.055327505 | E124: 11.11298913 | F124: 0.0586972454 | G124: -0.1310217402 | H124: 1 | I124: 1 | J124: 1.098446641 | K124: 115.2341589 | L124: -11.25071441
A125: 122 | B125: 68.60783197 | C125: 174.687818 | D125: 1.421513901 | E125: 13.08175025 | F125: -0.07906450837 | G125: 0.1542333626 | H125: 1 | I125: 1 | J125: 1.970646369 | K125: 155.4205349 | L125: -17.50082606
A126: 123 | B126: 66.778743 | C126: 163.4793871 | D126: 3.250602871 | E126: 1.873319408 | F126: -0.1807983148 | G126: 0.0220863681 | H126: 1 | I126: 1 | J126: 9.251114921 | K126: 3.50248311 | L126: -5.692264379
A127: 124 | B127: 71.75534784 | C127: 178.1132371 | D127: 1.726001965 | E127: 16.50716942 | F127: 0.09600011415 | G127: 0.1946189307 | H127: 1 | I127: 1 | J127: 2.870770479 | K127: 233.490092 | L127: 25.89008427
A128: 125 | B128: 70.65050248 | C128: 137.1021237 | D128: 0.6211566082 | E128: 24.50394403 | F128: 0.03454868911 | G128: -0.2889006143 | H128: 1 | I128: 1 | J128: 0.383996676 | K128: 423.7121524 | L128: -12.75555009
A129: 126 | B129: 69.51645331 | C129: 157.5480065 | D129: 0.5128925669 | E129: 4.058061166 | F129: -0.02852705036 | G129: -0.04784439445 | H129: 1 | I129: 1 | J129: 0.2622035287 | K129: 16.31759198 | L129: 2.068460828
A130: 127 | B130: 68.44588647 | C130: 151.0278191 | D130: 1.583459403 | E130: 10.5782486 | F130: -0.08807190635 | G130: -0.1247171685 | H130: 1 | I130: 1 | J130: 2.43044969 | K130: 105.0980059 | L130: 15.98234701
A131: 128 | B131: 71.43323974 | C131: 177.7176602 | D131: 1.403893861 | E131: 16.11159247 | F131: 0.07808448291 | G131: 0.1899550928 | H131: 1 | I131: 1 | J131: 1.923287593 | K131: 224.0967758 | L131: 20.76060087
A132: 129 | B132: 70.56909432 | C132: 149.0256826 | D132: 0.539748444 | E132: 12.5803851 | F132: =($B132-$Q$13)/(9*$Q$15) -> 0.03002077245 | G132: =($C132-$Q$14)/(9*$Q$16) -> -0.1483222855 | H132: 1 | I132: 1 | J132: 0.2902795667 | K132: 144.7918702 | L132: =$H132*($B132-$Q$13)*(1-$F132^2)^2*$I132*($C132-$Q$14)*(1-$G132^2)^2 -> -6.483064193
A133: 130 | B133: 73.13835112 | C133: 181.7555694 | D133: 3.109005249 | E133: 20.1495017 | F133: 0.1729226646 | G133: 0.2375618966 | H133: =OR(F133>=-1,F133<=1)*1 -> 1 | I133: =OR(G133>=-1,G133<=1)*1 -> 1 | J133: =H133*(D133^2)*(1-F133^2)^4 -> 8.560613773 | K133: =I133*(E133^2)*(1-G133^2)^4 -> 321.8212428 | L133: 52.48797351
A134: 131 | B134: 68.04412365 | C134: 160.2559421 | D134: 1.985222223 | E134: 1.350125595 | F134: -0.1104179276 | G134: -0.01591793196 | H134: 1 | I134: 1 | J134: 3.752392021 | K134: 1.820992336 | L134: 2.614015515
A135: 132 | B135: 74.44816055 | C135: 160.5860637 | D135: 4.418814675 | E135: 1.020003966 | F135: 0.2457741774 | G135: -0.01202580989 | H135: 1 | I135: 1 | J135: 15.2185916 | K135: 1.039806366 | L135: -3.977987988
A136: 133 | B136: 71.31721668 | C136: 156.7163784 | D136: 1.287870807 | E136: 4.889689255 | F136: 0.07163128837 | G136: -0.05764925956 | H136: 1 | I136: 1 | J136: 1.624830712 | K136: 23.59280095 | L136: -6.191470549
A137: 134 | B137: 65.4866644 | C137: 155.4070582 | D137: 4.542681471 | E137: 6.199009535 | F137: -0.2526636404 | G137: -0.07308609833 | H137: 1 | I137: 1 | J137: 15.84991389 | K137: 37.61321584 | L137: 24.41651556
A138: 135 | B138: 72.10576305 | C138: 175.2602497 | D138: 2.076417178 | E138: 13.65418204 | F138: 0.1154901849 | G138: 0.1609823127 | H138: 1 | I138: 1 | J138: 4.086042367 | K138: 167.8488059 | L138: 26.18849618
A139: 136 | B139: 67.24449669 | C139: 162.8415976 | D139: 2.784849181 | E139: 1.23552988 | F139: -0.1548931257 | G139: 0.01456685262 | H139: 1 | I139: 1 | J139: 7.037478529 | K139: 1.525238816 | L139: -3.276253259
A140: 137 | B140: 72.9894045 | C140: 185.1229971 | D140: 2.960058625 | E140: 23.51692944 | F140: 0.1646382633 | G140: 0.277263748 | H140: 1 | I140: 1 | J140: 7.849882531 | K140: 401.6085341 | L140: 56.14783893
A141: 138 | B141: 70.56581793 | C141: 157.9144596 | D141: 0.5364720595 | E141: 3.69160808 | F141: 0.02983854016 | G141: -0.04352392582 | H141: 1 | I141: 1 | J141: 0.2867786729 | K141: 13.52499966 | L141: -1.969436837
A142: 139 | B142: 74.25289638 | C142: 185.5930556 | D142: 4.223550505 | E142: 23.98698789 | F142: 0.2349135974 | G142: 0.2828057201 | H142: 1 | I142: 1 | J142: 14.21489344 | K142: 412.2325221 | L142: 76.54960075
A143: 140 | B143: 72.83372344 | C143: 159.5829288 | D143: 2.804377564 | E143: 2.02313892 | F143: 0.155979293 | G143: -0.02385273473 | H143: 1 | I143: 1 | J143: 7.126652665 | K143: 4.083783931 | L143: -5.394785411
A144: 141 | B144: 69.42765162 | C144: 154.7573044 | D144: 0.6016942516 | E144: 6.848763266 | F144: -0.03346619414 | G144: -0.08074667133 | H144: 1 | I144: 1 | J144: 0.360416794 | K144: 45.69416865 | L144: 4.058194891
A145: 142 | B145: 70.58374559 | C145: 163.5098044 | D145: 0.5543997186 | E145: 1.903736741 | F145: 0.03083567536 | G145: 0.02244498735 | H145: 1 | I145: 1 | J145: 0.3061917185 | K145: 3.616915906 | L145: 1.052363861
A146: 143 | B146: 70.19783199 | C146: 162.8784682 | D146: 0.1684861209 | E146: 1.272400465 | F146: 0.009371186803 | G146: 0.01500155548 | H146: 1 | I146: 1 | J146: 0.02837760235 | K146: 1.61754603 | L146: 0.2142477025
A147: 144 | B147: 69.55423261 | C147: 155.7723622 | D147: 0.4751132618 | E147: 5.833705542 | F147: -0.02642576793 | G147: -0.06877917746 | H147: 1 | I147: 1 | J147: 0.2251027362 | K147: 33.39270943 | L147: 2.741676542
A148: 145 | B148: 65.36845854 | C148: 150.620445 | D148: 4.660887337 | E148: 10.98562268 | F148: -0.2592382427 | G148: -0.1295200943 | H148: 1 | I148: 1 | J148: 16.44686176 | K148: 112.7873009 | L148: 43.0696778
A149: 146 | B149: 64.1395842 | C149: 159.1163422 | D149: 5.889761671 | E149: 2.489725471 | F149: -0.3275881513 | G149: -0.0293537733 | H149: 1 | I149: 1 | J149: 22.02877485 | K149: 6.177396112 | L149: 11.66535332
A150: 147 | B150: 70.17105734 | C150: 155.3583007 | D150: 0.1417114657 | E150: 6.247766972 | F150: 0.007881982271 | G150: -0.07366094674 | H150: 1 | I150: 1 | J150: 0.02007714952 | K150: 38.19426582 | L150: -0.8756894346
A151: 148 | B151: 71.01263772 | C151: 157.6891746 | D151: 0.9832918424 | E151: 3.916893057 | F151: 0.05469062668 | G151: -0.04618002755 | H151: 1 | I151: 1 | J151: 0.9553468468 | K151: 15.21159575 | L151: -3.812131954
A152: 149 | B152: 69.54449121 | C152: 177.5828891 | D152: 0.4848546598 | E152: 15.97682141 | F152: -0.02696758383 | G152: 0.1883661469 | H152: 1 | I152: 1 | J152: 0.2344009268 | K152: 220.9136035 | L152: -7.195995651
A153: 150 | B153: 73.73128276 | C153: 179.8091735 | D153: 3.701936887 | E153: 18.20310584 | F153: 0.2059014827 | G153: 0.2146139598 | H153: 1 | I153: 1 | J153: 11.52399013 | K153: 274.3953655 | L153: 56.23281502
A154: 151 | B154: 71.92076096 | C154: 165.1340506 | D154: 1.89141509 | E154: 3.527982875 | F154: 0.1052003811 | G154: 0.04159479056 | H154: 1 | I154: 1 | J154: 3.421692399 | K154: 12.36074924 | L154: 6.503436146
A155: 152 | B155: 66.15342039 | C155: 171.5220038 | D155: 3.875925482 | E155: 9.915936111 | F155: -0.2155787168 | G155: 0.1169085283 | H155: 1 | I155: 1 | J155: 12.41882943 | K155: 93.05948199 | L155: -33.99543842
A156: 153 | B156: 72.66845163 | C156: 158.444664 | D156: 2.639105751 | E156: 3.161403717 | F156: 0.1467868858 | G156: -0.03727283554 | H156: 1 | I156: 1 | J156: 6.383730528 | K156: 9.939049234 | L156: -7.965438595
A157: 154 | B157: 69.79607975 | C157: 158.0682468 | D157: 0.2332661253 | E157: 3.537820912 | F157: -0.01297424633 | G157: -0.04171078066 | H157: 1 | I157: 1 | J157: 0.05437645681 | K157: 12.42930181 | L157: 0.8221078963
A158: 155 | B158: 63.16520992 | C158: 123.7715368 | D158: 6.864135955 | E158: 37.83453089 | F158: -0.3817827839 | G158: -0.4460677515 | H158: 1 | I158: 1 | J158: 25.08968701 | K158: 589.3290764 | L158: 121.5980348
A159: 156 | B159: 71.19677464 | C159: 170.7136141 | D159: 1.167428763 | E159: 9.107546397 | F159: 0.06493230994 | G159: 0.1073776428 | H159: 1 | I159: 1 | J159: 1.340049981 | K159: 79.18753613 | L159: 10.30122596
A160: 157 | B160: 70.1912902 | C160: 153.1454769 | D160: 0.1619443215 | E160: 8.460590839 | F160: 0.00900733236 | G160: -0.09975006016 | H160: 1 | I160: 1 | J160: 0.02621745325 | K160: 68.77486827 | L160: -1.342796296
A161: 158 | B161: 65.83530092 | C161: 156.725842 | D161: 4.194044957 | E161: 4.880225659 | F161: -0.2332725007 | G161: -0.0575376841 | H161: 1 | I161: 1 | J161: 14.06262881 | K161: 23.50277765 | L161: 18.17995704
A162: 159 | B162: 70.97647682 | C162: 138.888788 | D162: 0.9471309417 | E162: 22.7172797 | F162: 0.05267935979 | G162: -0.2678359064 | H162: 1 | I162: 1 | J162: 0.8871406495 | K162: 383.1762173 | L162: -18.43722317
A163: 160 | B163: 73.77189976 | C163: 152.7023355 | D163: 3.742553884 | E163: 8.903732178 | F163: 0.2081605973 | G163: -0.1049746805 | H163: 1 | I163: 1 | J163: 11.73230189 | K163: 75.83937897 | L163: -29.82902093
A164: 161 | B164: 68.93452288 | C164: 145.3280275 | D164: 1.094822992 | E164: 16.27804025 | F164: -0.06089398177 | G164: -0.1919175061 | H164: 1 | I164: 1 | J164: 1.180957467 | K164: 228.0404154 | L164: 16.41054634
A165: 162 | B165: 66.03873886 | C165: 161.8673202 | D165: 3.990607016 | E165: 0.2612524463 | F165: -0.221957296 | G165: 0.003080156898 | H165: 1 | I165: 1 | J165: 13.01115279 | K165: 0.06825025057 | L165: -0.9423451798
A166: 163 | B166: 69.35133254 | C166: 148.9728655 | D166: 0.6780133335 | E166: 12.63320219 | F166: -0.03771105638 | G166: -0.1489449971 | H166: 1 | I166: 1 | J166: 0.4570926404 | K166: 145.8996881 | L166: 8.166374574
A167: 164 | B167: 66.67259933 | C167: 155.5323073 | D167: 3.356746546 | E167: 6.073760383 | F167: -0.186702019 | G167: -0.07160941536 | H167: 1 | I167: 1 | J167: 9.776932192 | K167: 36.13967989 | L167: 18.79721255
A168: 165 | B168: 72.27454733 | C168: 188.8804769 | D168: 2.245201455 | E168: 27.2744092 | F168: 0.1248779551 | G168: 0.3215642985 | H168: 1 | I168: 1 | J168: 4.7337656 | K168: 480.7271724 | L168: 47.70377083
A169: 166 | B169: 74.24456298 | C169: 174.9467824 | D169: 4.215217103 | E169: 13.34071474 | F169: 0.2344500941 | G169: 0.1572865445 | H169: 1 | I169: 1 | J169: 14.17189982 | K169: 161.005801 | L169: 47.76775149
A170: 167 | B170: 72.02685183 | C170: 176.5044519 | D170: 1.997505952 | E170: 14.8983842 | F170: 0.1111011478 | G170: 0.1756514112 | H170: 1 | I170: 1 | J170: 3.796644472 | K170: 195.8106066 | L170: 27.26578913
A171: 168 | B171: 72.78742424 | C171: 158.3937318 | D171: 2.758078364 | E171: 3.212335948 | F171: 0.1534041346 | G171: -0.0378733247 | H171: 1 | I171: 1 | J171: 6.915821748 | K171: 10.26002309 | L171: -8.423567583
A172: 169 | B172: 73.53635403 | C172: 172.5084512 | D172: 3.507008158 | E172: 10.90238352 | F172: 0.1950595598 | G172: 0.1285387076 | H172: 1 | I172: 1 | J172: 10.53141535 | K172: 111.1990703 | L172: 34.22109869
A173: 170 | B173: 65.37285737 | C173: 145.8842592 | D173: 4.656488508 | E173: 15.72180853 | F173: -0.2589935802 | G173: -0.1853595543 | H173: 1 | I173: 1 | J173: 16.42475937 | K173: 214.9162716 | L173: 59.41336587
A174: 171 | B174: 67.76076707 | C174: 158.8954329 | D174: 2.268578804 | E174: 2.71063485 | F174: -0.1261782017 | G174: -0.0319582869 | H174: 1 | I174: 1 | J174: 4.826448819 | K174: 7.317570126 | L174: 5.942884627
A175: 172 | B175: 72.17007281 | C175: 174.3288405 | D175: 2.140726933 | E175: 12.72277283 | F175: 0.1190670892 | G175: 0.1500010317 | H175: 1 | I175: 1 | J175: 4.328310232 | K175: 147.7848991 | L175: 25.29147863
A176: 173 | B176: 68.39012804 | C176: 169.9482842 | D176: 1.63921783 | E176: 8.342216457 | F176: -0.09117318635 | G176: 0.09835443047 | H176: 1 | I176: 1 | J176: 2.5987985 | K176: 66.93855694 | L176: -13.1893829
A177: 174 | B177: 72.42067417 | C177: 159.5886426 | D177: 2.391328299 | E177: 2.01742514 | F177: 0.1330055205 | G177: -0.02378536947 | H177: 1 | I177: 1 | J177: 5.324414275 | K177: 4.06080169 | L177: -4.649880696
A178: 175 | B178: 70.29179473 | C178: 201.7485895 | D178: 0.2624488606 | E178: 40.14252184 | F178: 0.01459738812 | G178: 0.4732788814 | H178: 1 | I178: 1 | J178: 0.06882071486 | K178: 584.3487036 | L178: 6.341553083
A179: 176 | B179: 69.98153809 | C179: 167.1649034 | D179: 0.04780778585 | E179: 5.558835654 | F179: -0.00265906586 | G179: 0.06553847142 | H179: 1 | I179: 1 | J179: 0.002285519746 | K179: 30.37315543 | L179: -0.2634738061
A180: 177 | B180: 64.79821554 | C180: 146.8034034 | D180: 5.23113033 | E180: 14.8026643 | F180: -0.29095512 | G180: -0.174522877 | H180: 1 | I180: 1 | J180: 19.2101413 | K180: 193.6180621 | L180: 60.98713249
A181: 178 | B181: 74.75303801 | C181: 160.8131997 | D181: 4.723692139 | E181: 0.7928679762 | F181: 0.2627314416 | G181: -0.009347884778 | H181: 1 | I181: 1 | J181: 16.76138885 | K181: 0.6284199269 | L181: -3.245487753
A182: 179 | B182: 74.15042674 | C182: 191.6449847 | D182: 4.121080864 | E182: 30.03891702 | F182: 0.2292142428 | G182: 0.3541577458 | H182: 1 | I182: 1 | J182: 13.68570997 | K182: 527.8996775 | L182: 84.99812866
A183: 180 | B183: 70.34341469 | C183: 146.3603351 | D183: 0.3140688196 | E183: 15.24573259 | F183: 0.01746848679 | G183: -0.1797466361 | H183: 1 | I183: 1 | J183: 0.09851888028 | K183: 203.818531 | L183: -4.481068338
A184: 181 | B184: 72.27041405 | C184: 165.1482464 | D184: 2.241068179 | E184: 3.54217874 | F184: 0.1246480626 | G184: 0.0417621593 | H184: 1 | I184: 1 | J184: 4.717451947 | K184: 12.45972696 | L184: 7.666691802
A185: 182 | B185: 73.14382308 | C185: 180.6961538 | D185: 3.114477207 | E185: 19.09008609 | F185: 0.1732270145 | G185: 0.2250714249 | H185: 1 | I185: 1 | J185: 8.587043097 | K185: 296.0111812 | L185: 50.4168699
A186: 183 | B186: 72.24764765 | C186: 157.0869113 | D186: 2.218301781 | E186: 4.519156422 | F186: 0.1233817971 | G186: -0.05328069086 | H186: 1 | I186: 1 | J186: 4.627993319 | K186: 20.19185311 | L186: -9.666838227
A187: 184 | B187: 68.54167893 | C187: 148.0982625 | D187: 1.48766694 | E187: 13.50780518 | F187: -0.08274393599 | G187: -0.1592565348 | H187: 1 | I187: 1 | J187: 2.153162616 | K187: 164.6424383 | L187: 18.82822198
A188: 185 | B188: 68.49678867 | C188: 152.2014575 | D188: 1.532557209 | E188: 9.404610213 | F188: -0.08524072971 | G188: -0.1108800144 | H188: 1 | I188: 1 | J188: 2.281208635 | K188: 84.17666287 | L188: 13.85729159
A189: 186 | B189: 76.24707247 | C189: 161.1450957 | D189: 6.217726592 | E189: 0.4609719769 | F189: 0.3458295383 | G189: -0.005434842944 | H189: 1 | I189: 1 | J189: 23.2266827 | K189: 0.2124700583 | L189: -2.221480278
A190: 187 | B190: 65.9794391 | C190: 159.1120505 | D190: 4.049906776 | E190: 2.49401724 | F190: -0.2252555447 | G190: -0.0294043731 | H190: 1 | I190: 1 | J190: 13.31774411 | K190: 6.19863778 | L190: 9.08580606
A191: 188 | B191: 71.180661 | C191: 161.5746363 | D191: 1.151315125 | E191: 0.03143142314 | F191: 0.06403607044 | G191: -0.0003705753426 | H191: 1 | I191: 1 | J191: 1.303917971 | K191: 0.0009879338179 | L191: -0.03589128946
A192: 189 | B192: 67.80139281 | C192: 158.5008364 | D192: 2.22795306 | E192: 3.105231287 | F192: -0.1239186006 | G192: -0.03661056462 | H192: 1 | I192: 1 | J192: 4.665834682 | K192: 9.590868734 | L192: 6.68949983
A193: 190 | B193: 68.45905656 | C193: 156.7266533 | D193: 1.570289316 | E193: 4.879414379 | F193: -0.08733938702 | G193: -0.05752811914 | H193: 1 | I193: 1 | J193: 2.391426652 | K193: 23.49506796 | L193: 7.495780926
A194: 191 | B194: 66.81630819 | C194: 142.8457982 | D194: 3.213037681 | E194: 18.76026946 | F194: -0.1787089415 | G194: -0.2211828988 | H194: 1 | I194: 1 | J194: 9.066639087 | K194: 287.9671288 | L194: 51.09690818
A195: 192 | B195: 67.08095164 | C195: 150.7550458 | D195: 2.948394232 | E195: 10.85102191 | F195: -0.1639894905 | G195: -0.1279331561 | H195: 1 | I195: 1 | J195: 7.794967167 | K195: 110.2234075 | L195: 29.31190616
A196: 193 | B196: 70.28233238 | C196: 160.9989407 | D196: 0.2529865069 | E196: 0.6071270179 | F196: =($B196-$Q$13)/(9*$Q$15) -> 0.01407109264 | G196: =($C196-$Q$14)/(9*$Q$16) -> -0.007158005594 | H196: 1 | I196: 1 | J196: 0.06395149911 | K196: 0.3685276771 | L196: =$H196*($B196-$Q$13)*(1-$F196^2)^2*$I196*($C196-$Q$14)*(1-$G196^2)^2 -> -0.1535183944
A197: 194 | B197: 67.10876509 | C197: 162.5844465 | D197: 2.920580788 | E197: 0.9783787923 | F197: -0.1624425086 | G197: 0.01153505059 | H197: =OR(F197>=-1,F197<=1)*1 -> 1 | I197: =OR(G197>=-1,G197<=1)*1 -> 1 | J197: =H197*(D197^2)*(1-F197^2)^4 -> 7.664483434 | K197: =I197*(E197^2)*(1-G197^2)^4 -> 0.9567156995 | L197: -2.707901702
A198: 195 | B198: 67.38319238 | C198: 142.201884 | D198: 2.646153496 | E198: 19.40418366 | F198: -0.1471788809 | G198: -0.2287746239 | H198: 1 | I198: 1 | J198: 6.414848808 | K198: 303.6721279 | L198: 44.13627519
A199: 196 | B199: 72.072698 | C199: 178.4418879 | D199: 2.043352126 | E199: 16.8358202 | F199: 0.113651109 | G199: 0.1984937116 | H199: 1 | I199: 1 | J199: 3.963709945 | K199: 241.3455708 | L199: 30.92933622
A200: 197 | B200: 73.99964359 | C200: 186.7099983 | D200: 3.970297715 | E200: 25.1039306 | F200: 0.2208276941 | G200: 0.2959744343 | H200: 1 | I200: 1 | J200: 12.90617858 | K200: 436.7399393 | L200: 75.0775842
A201: 198 | B201: 69.01831506 | C201: 148.5578991 | D201: 1.011030812 | E201: 13.04816856 | F201: -0.05623346635 | G201: -0.1538374357 | H201: 1 | I201: 1 | J201: 1.009315099 | K201: 154.7009028 | L201: 12.49567754
... 802 more rows

Sheet Fisher-Yates Normal Scores
A1: Calculating the Fisher-Yates Normal Scores Correlation Coefficient
A3: Observation Number | B3: X | C3: Y | D3: Xrnk | E3: Yrnk | F3: Rankit of X | G3: Rankit of Y | H3: Rankit X∙ Rankit Y | I3: (Rankit X)2 | L3: Comparison of Manually Calculated Correlation with Macro Calculation | P3: Normal Scores Correlation Applied to the Paired Data Series From the "Simulated Data" Worksheet
A4: 1 | B4: 69.59024759 | C4: 179.2035405 | D4: 452 | E4: 892 | F4: =_xlfn.NORM.INV((D4-0.375)/(COUNTA($A$4:$A$1003)+(1-2*0.375)),0,1) -> -0.1218418821 | G4: =_xlfn.NORM.INV((E4-0.375)/(COUNTA($A$4:$A$1003)+(1-2*0.375)),0,1) -> 1.234019331 | H4: =F4*G4 -> -0.1503552378 | I4: =F4^2 -> 0.01484544423 | L4: Calculated Normal Scores Correlation = | N4: =N16/N17 -> 0.4751965909
A5: 2 | B5: 75.90042113 | C5: 148.634771 | D5: 977 | E5: 171 | F5: =_xlfn.NORM.INV((D5-0.375)/(COUNTA($A$4:$A$1003)+(1-2*0.375)),0,1) -> 1.984158346 | G5: =_xlfn.NORM.INV((E5-0.375)/(COUNTA($A$4:$A$1003)+(1-2*0.375)),0,1) -> -0.951866465 | H5: =F5*G5 -> -1.888653791 | I5: =F5^2 -> 3.936884342 | L5: VBA Normal Scores Correlation = | N5: =scorecorr(B4:B1003,C4:C1003) -> 0.4751965909 | P5: U1(0,1), U2(0,1) | Q5: =scorecorr('Simulated Data'!$B$4:$B$1003,'Simulated Data'!$C$4:$C$1003) -> -0.002759795024
A6: 3 | B6: 68.70319257 | C6: 148.2832815 | D6: 350 | E6: 162 | F6: -0.3865691084 | G6: -0.9879661883 | H6: 0.3819172086 | I6: 0.1494356756 | P6: N1(0,1), N2(0,1) | Q6: =scorecorr('Simulated Data'!$D$4:$D$1003,'Simulated Data'!$E$4:$E$1003) -> -0.02417178578
A7: 4 | B7: 70.30671509 | C7: 161.1189805 | D7: 544 | E7: 482 | F7: 0.1092278838 | G7: -0.04637765297 | H7: -0.005065732889 | I7: 0.01193073059 | P7: X, Y (Correlated) | Q7: =scorecorr('Simulated Data'!$F$4:$F$1003,'Simulated Data'!$G$4:$G$1003) -> 0.4751965909
A8: 5 | B8: 67.3750767 | C8: 167.5735679 | D8: 190 | E8: 656 | F8: -0.879453913 | G8: 0.4001069702 | H8: -0.3518756406 | I8: 0.7734391852 | P8: Ranks of (X, Y) | Q8: =scorecorr('Simulated Data'!$H$4:$H$1003,'Simulated Data'!$I$4:$I$1003) -> 0.4751965909
A9: 6 | B9: 70.30370117 | C9: 166.757326 | D9: 543 | E9: 634 | F9: 0.1067072325 | G9: 0.3410489477 | H9: 0.03639238935 | I9: 0.01138643346 | P9: (X, Y) with duplicates | Q9: =scorecorr('Simulated Data'!$J$4:$J$1003,'Simulated Data'!$K$4:$K$1003) -> 0.4752030196
A10: 7 | B10: 72.046436 | C10: 158.1402947 | D10: 757 | E10: 392 | F10: 0.694883653 | G10: -0.2753410409 | H10: -0.1913299883 | I10: 0.4828632913 | P10: Ranks of (X, Y) with duplicates | Q10: =scorecorr('Simulated Data'!$L$4:$L$1003,'Simulated Data'!$M$4:$M$1003) -> 0.4752030196
A11: 8 | B11: 69.65903862 | C11: 151.4591575 | D11: 458 | E11: 226 | F11: -0.1067072325 | G11: -0.7535204692 | H11: 0.08040608388 | I11: 0.01138643346
A12: 9 | B12: 74.29144862 | C12: 185.9929006 | D12: 923 | E12: 956 | F12: 1.421363206 | G12: 1.699485772 | H12: 2.415586546 | I12: 2.020273364 | L12: Intermediate Calculations for the Fisher-Yates Normal Scores Correlation
A13: 10 | B13: 65.64948847 | C13: 147.6030784 | D13: 69 | E13: 153 | F13: -1.486239829 | G13: -1.025401657 | H13: 1.523992783 | I13: 2.208908828
A14: 11 | B14: 69.74269715 | C14: 154.6594908 | D14: 464 | E14: 300 | F14: -0.09159698697 | G14: -0.5256948754 | H14: 0.04815206665 | I14: 0.008390008022 | L14: Number of Observations = | N14: 1000 | P14: Notes:
A15: 12 | B15: 69.92351191 | C15: 155.0106918 | D15: 488 | E15: 311 | F15: -0.03133014692 | G15: -0.4942994319 | H15: 0.01548647382 | I15: 0.0009815781061 | L15: Rankit Correction Factor = | N15: 0.375
A16: 13 | B16: 71.27244255 | C16: 167.9248667 | D16: 656 | E16: 661 | F16: 0.4001069702 | G16: 0.4137185641 | H16: 0.1655316812 | I16: 0.1600855876 | L16: Sum of Rankit(X)∙Rankit(Y) = | N16: 473.1909227
A17: 14 | B17: 68.20918455 | C17: 170.8602726 | D17: 281 | E17: 735 | F17: -0.5811939829 | G17: 0.6263014725 | H17: -0.3640026473 | I17: 0.3377864457 | L17: Sum of Rankit(X)2 = | N17: 995.7792875
A18: 15 | B18: 71.98267049 | C18: 177.2631872 | D18: 748 | E18: 860 | F18: 0.6664496768 | G18: 1.077673015 | H18: 0.7182148326 | I18: 0.4441551717
A19: 16 | B19: 64.96950385 | C19: 170.4605236 | D19: 47 | E19: 727 | F19: -1.678617092 | G19: 0.6020915158 | H19: -1.010681109 | I19: 2.817755341
A20: 17 | B20: 67.56420314 | C20: 158.2215903 | D20: 204 | E20: 396 | F20: -0.8289225878 | G20: -0.2649444739 | H20: 0.2196184589 | I20: 0.6871126566
A21: 18 | B21: 72.34811075 | C21: 168.0844596 | D21: 788 | E21: 668 | F21: 0.797529264 | G21: 0.4329050803 | H21: 0.3452544701 | I21: 0.636052927
A22: 19 | B22: 73.39999773 | C22: 186.4382187 | D22: 874 | E22: 957 | F22: 1.14264334 | G22: 1.710203802 | H22: 1.954152984 | I22: 1.305633803
A23: 20 | B23: 70.63087883 | C23: 145.0970574 | D23: 580 | E23: 111 | F23: 0.2005637056 | G23: -1.223357492 | H23: -0.2453611118 | I23: 0.04022580001
A24: 21 | B24: 70.11967655 | C24: 138.1029989 | D24: 512 | E24: 36 | F24: 0.02882301077 | G24: -1.803994355 | H24: -0.05199654871 | I24: 0.0008307659498
A25: 22 | B25: 66.18716528 | C25: 144.0183644 | D25: 105 | E25: 99 | F25: -1.255774607 | G25: -1.289567978 | H25: 1.619406721 | I25: 1.576969864
A26: 23 | B26: 73.78144069 | C26: 194.1955585 | D26: 901 | E26: 991 | F26: 1.283833555 | G26: 2.340747289 | H26: 3.005129915 | I26: 1.648228598
A27: 24 | B27: 67.09498212 | C27: 159.5028359 | D27: 173 | E27: 439 | F27: -0.9440116225 | G27: -0.1547343581 | H27: 0.1460710325 | I27: 0.8911579433
A28: 25 | B28: 69.93828021 | C28: 159.3274787 | D28: 490 | E28: 432 | F28: -0.02631605578 | G28: -0.1725130008 | H28: 0.004539861751 | I28: 0.0006925347917
A29: 26 | B29: 69.15218537 | C29: 169.6787571 | D29: 396 | E29: 709 | F29: -0.2649444739 | G29: 0.5488560756 | H29: -0.1454163842 | I29: 0.07019557425
A30: 27 | B30: 69.97904194 | C30: 169.2641729 | D30: 494 | E30: 695 | F30: -0.01628973193 | G30: 0.5085078637 | H30: -0.008283456785 | I30: 0.0002653553664
A31: 28 | B31: 65.23138892 | C31: 150.1850862 | D31: 55 | E31: 196 | F31: -1.601696704 | G31: -0.8575296931 | H31: 1.373502483 | I31: 2.565432332
A32: 29 | B32: 69.18991845 | C32: 162.13541 | D32: 399 | E32: 522 | F32: -0.2571658604 | G32: 0.0539051327 | H32: -0.01386255983 | I32: 0.06613427978
A33: 30 | B33: 70.7218467 | C33: 179.8605007 | D33: 592 | E33: 902 | F33: 0.2313463532 | G33: 1.289567978 | H33: 0.298336849 | I33: 0.05352113515
A34: 31 | B34: 73.08646681 | C34: 167.345485 | D34: 857 | E34: 650 | F34: 1.064332267 | G34: 0.3838700961 | H34: 0.4085653298 | I34: 1.132803175
A35: 32 | B35: 72.42004776 | C35: 176.7791011 | D35: 799 | E35: 854 | F35: 0.836010115 | G35: 1.051178304 | H35: 0.8787956947 | I35: 0.6989129123
A36: 33 | B36: 64.43216286 | C36: 134.4075192 | D36: 30 | E36: 19 | F36: -1.886443679 | G36: -2.083115577 | H36: 3.929680214 | I36: 3.558669755
A37: 34 | B37: 70.27480576 | C37: 157.565493 | D37: 532 | E37: 376 | F37: 0.07902121831 | G37: -0.3172390328 | H37: -0.02506861487 | I37: 0.006244352943
A38: 35 | B38: 68.1393137 | C38: 139.4283219 | D38: 270 | E38: 50 | F38: -0.614151497 | G38: -1.648621537 | H38: 1.012503385 | I38: 0.3771820612
A39: 36 | B39: 74.47045905 | C39: 176.306214 | D39: 937 | E39: 845 | F39: 1.525164008 | G39: 1.01276545 | H39: 1.544633413 | I39: 2.32612525
A40: 37 | B40: 66.39420939 | C40: 143.0109076 | D40: 113 | E40: 89 | F40: -1.212832933 | G40: -1.349408791 | H40: 1.636607422 | I40: 1.470963722
A41: 38 | B41: 71.51880731 | C41: 168.2380568 | D41: 686 | E41: 672 | F41: 0.4830042384 | G41: 0.4439403255 | H41: 0.2144250588 | I41: 0.2332930943
A42: 39 | B42: 71.11033365 | C42: 154.6312858 | D42: 637 | E42: 297 | F42: 0.3490280745 | G42: -0.5343466469 | H42: -0.1865019813 | I42: 0.1218205968
A43: 40 | B43: 69.82809183 | C43: 178.5105441 | D43: 479 | E43: 882 | F43: -0.0539051327 | G43: 1.182037801 | H43: -0.0637179045 | I43: 0.002905763331
A44: 41 | B44: 71.00384778 | C44: 174.7647687 | D44: 620 | E44: 815 | F44: 0.304089462 | G44: 0.8943078319 | H44: 0.2719495874 | I44: 0.09247040087
A45: 42 | B45: 68.16229315 | C45: 165.5278601 | D45: 273 | E45: 610 | F45: -0.6050982431 | G45: 0.2779447955 | H45: -0.1681839074 | I45: 0.3661438838
A46: 43 | B46: 69.41568546 | C46: 142.5146991 | D46: 421 | E46: 81 | F46: -0.2005637056 | G46: -1.401014632 | H46: 0.2809926863 | I46: 0.04022580001
A47: 44 | B47: 70.85962855 | C47: 175.8377286 | D47: 606 | E47: 836 | F47: 0.2675408883 | G47: 0.9757916811 | H47: 0.2610641731 | I47: 0.0715781269
A48: 45 | B48: 68.00908012 | C48: 170.5361346 | D48: 250 | E48: 730 | F48: -0.6758667993 | G48: 0.611128186 | H48: -0.413041251 | I48: 0.4567959304
A49: 46 | B49: 71.79456065 | C49: 161.165496 | D49: 719 | E49: 484 | F49: 0.5782294436 | G49: -0.04136081903 | H49: -0.02391604337 | I49: 0.3343492894
A50: 47 | B50: 67.75641297 | C50: 154.8749646 | D50: 222 | E50: 307 | F50: -0.7669029574 | G50: -0.505658045 | H50: 0.3877906502 | I50: 0.5881401461
A51: 48 | B51: 68.65060179 | C51: 159.3540304 | D51: 345 | E51: 434 | F51: -0.4001069702 | G51: -0.1674280681 | H51: 0.06698913708 | I51: 0.1600855876
A52: 49 | B52: 71.65713108 | C52: 187.6360219 | D52: 703 | E52: 965 | F52: 0.5314583087 | G52: 1.803994355 | H52: 0.9587477886 | I52: 0.2824479339
A53: 50 | B53: 68.95997709 | C53: 167.8543877 | D53: 369 | E53: 659 | F53: -0.3357415987 | G53: 0.4082648663 | H53: -0.1370714989 | I53: 0.1127224211
A54: 51 | B54: 68.44237462 | C54: 163.8016713 | D54: 312 | E54: 562 | F54: -0.4914697722 | G54: 0.1547343581 | H54: -0.07604725975 | I54: 0.241542537
A55: 52 | B55: 72.64891234 | C55: 164.4651827 | D55: 813 | E55: 587 | F55: 0.8868564129 | G55: 0.2184952753 | H55: 0.1937739361 | I55: 0.7865142972
A56: 53 | B56: 64.16689684 | C56: 157.7714021 | D56: 23 | E56: 382 | F56: -2.002428272 | G56: -0.3014659182 | H56: 0.6036638776 | I56: 4.009718985
A57: 54 | B57: 69.53677122 | C57: 160.6378795 | D57: 442 | E57: 469 | F57: -0.1471302132 | G57: -0.07902121831 | H57: 0.0116264087 | I57: 0.02164729964
A58: 55 | B58: 68.52794302 | C58: 142.8477662 | D58: 330 | E58: 87 | F58: -0.4411764944 | G58: -1.361972074 | H58: 0.6008700653 | I58: 0.1946366992
A59: 56 | B59: 68.5118249 | C59: 133.197115 | D59: 328 | E59: 13 | F59: -0.4467075519 | G59: -2.237653052 | H59: 0.9995765167 | I59: 0.1995476369
A60: 57 | B60: 70.28039146 | C60: 179.5151704 | D60: 536 | E60: 896 | F60: 0.08908073777 | G60: 1.255774607 | H60: 0.1118653285 | I60: 0.007935377841
A61: 58 | B61: 68.95148951 | C61: 154.5936208 | D61: 368 | E61: 295 | F61: -0.3383940817 | G61: -0.5401367556 | H61: 0.1827790814 | I61: 0.1145105546
A62: 59 | B62: 76.13678496 | C62: 167.102771 | D62: 983 | E62: 643 | F62: 2.105576109 | G62: 0.3650538195 | H62: 0.7686486009 | I62: 4.433450753
A63: 60 | B63: 72.68803547 | C63: 162.4174685 | D63: 818 | E63: 530 | F63: 0.9055790336 | G63: 0.07399451925 | H63: 0.06700788523 | I63: 0.8200733862
A64: 61 | B64: 71.29852334 | C64: 165.1235083 | D64: 661 | E64: 600 | F64: 0.4137185641 | G64: 0.2519887784 | H64: 0.1042524355 | I64: 0.1711630503
A65: 62 | B65: 73.96392728 | C65: 175.8806819 | D65: 906 | E65: 838 | F65: 1.312941387 | G65: 0.9838918165 | H65: 1.291792287 | I65: 1.723815087
A66: 63 | B66: 68.34454044 | C66: 174.4574496 | D66: 298 | E66: 806 | F66: -0.5314583087 | G66: 0.8611549433 | H66: -0.4576679497 | I66: 0.2824479339
A67: 64 | B67: 69.95782012 | C67: 161.4350221 | D67: 493 | E67: 494 | F67: -0.01879612001 | G67: -0.01628973193 | H67: 0.0003061837563 | I67: 0.0003532941273
A68: 65 | B68: 71.61445169 | C68: 154.6414632 | D68: 696 | E68: 299 | F68: 0.5113618183 | G68: -0.5285743973 | H68: -0.2702927649 | I68: 0.2614909092
A69: 66 | B69: 72.77260559 | C69: 185.8068797 | D69: 825 | E69: 954 | F69: =_xlfn.NORM.INV((D69-0.375)/(COUNTA($A$4:$A$1003)+(1-2*0.375)),0,1) -> 0.9323373531 | G69: =_xlfn.NORM.INV((E69-0.375)/(COUNTA($A$4:$A$1003)+(1-2*0.375)),0,1) -> 1.678617092 | H69: =F69*G69 -> 1.565037416 | I69: =F69^2 -> 0.86925294
A70: 67 | B70: 67.59161206 | C70: 168.3994952 | D70: 206 | E70: 676 | F70: -0.8218764574 | G70: 0.4550299002 | H70: -0.3739783624 | I70: 0.6754809112
A71: 68 | B71: 70.62542637 | C71: 181.3665741 | D71: 579 | E71: 916 | F71: 0.1980074432 | G71: 1.374754082 | H71: 0.2722115409 | I71: 0.03920694757
A72: 69 | B72: 70.56596848 | C72: 152.4950221 | D72: 567 | E72: 251 | F72: 0.1674280681 | G72: -0.6727211354 | H72: -0.1126324001 | I72: 0.028032158
A73: 70 | B73: 70.66886091 | C73: 160.9386736 | D73: 586 | E73: 478 | F73: 0.2159294519 | G73: -0.05641495045 | H73: -0.01218164933 | I73: 0.04662552819
A74: 71 | B74: 69.85923458 | C74: 173.2838986 | D74: 482 | E74: 792 | F74: -0.04637765297 | G74: 0.8113830786 | H74: -0.03763004285 | I74: 0.002150886695
A75: 72 | B75: 72.80264454 | C75: 153.6540441 | D75: 829 | E75: 275 | F75: 0.947931733 | G75: -0.5990902219 | H75: -0.5678966322 | I75: 0.8985745703
A76: 73 | B76: 69.22604171 | C76: 159.74142 | D76: 405 | E76: 446 | F76: -0.241654694 | G76: -0.1370044936 | H76: 0.03310777899 | I76: 0.05839699115
A77: 74 | B77: 66.61983866 | C77: 177.7115498 | D77: 128 | E77: 869 | F77: -1.137842623 | G77: 1.118896716 | H77: -1.273128375 | I77: 1.294685835
A78: 75 | B78: 66.12264851 | C78: 170.86176 | D78: 102 | E78: 736 | F78: -1.272489647 | G78: 0.6293533972 | H78: -0.8008456823 | I78: 1.619229902
A79: 76 | B79: 75.29848228 | C79: 167.9362434 | D79: 970 | E79: 662 | F79: 1.871797016 | G79: 0.4164500242 | H79: 0.7795099125 | I79: 3.503624068
A80: 77 | B80: 78.77680626 | C80: 177.5387429 | D80: 997 | E80: 864 | F80: 2.685220917 | G80: 1.095764827 | H80: 2.942370634 | I80: 7.210411374
A81: 78 | B81: 76.09356413 | C81: 178.3484859 | D81: 981 | E81: 880 | F81: 2.061659238 | G81: 1.172018316 | H81: 2.416302388 | I81: 4.250438813
A82: 79 | B82: 65.89089868 | C82: 163.5776839 | D82: 84 | E82: 558 | F82: -1.38123018 | G82: 0.1445974093 | H82: -0.1997223057 | I82: 1.907796811
A83: 80 | B83: 70.2867311 | C83: 147.2331273 | D83: 538 | E83: 146 | F83: 0.09411381625 | G83: -1.055542669 | H83: -0.09934114876 | I83: 0.00885741041
A84: 81 | B84: 71.81489191 | C84: 163.8140279 | D84: 721 | E84: 563 | F84: 0.5841636388 | G84: 0.157271041 | H84: 0.09187202356 | I84: 0.3412471569
A85: 82 | B85: 70.25339556 | C85: 176.2836325 | D85: 531 | E85: 844 | F85: 0.07650762713 | G85: 1.008589162 | H85: 0.07716476356 | I85: 0.005853417009
A86: 83 | B86: 69.38942282 | C86: 158.2411932 | D86: 416 | E86: 397 | F86: -0.2133650493 | G86: -0.2623498444 | H86: 0.05597628748 | I86: 0.04552464426
A87: 84 | B87: 72.04563341 | C87: 191.6844267 | D87: 756 | E87: 983 | F87: 0.691696862 | G87: 2.105576109 | H87: 1.456420388 | I87: 0.4784445489
A88: 85 | B88: 69.89492867 | C88: 166.0528146 | D88: 484 | E88: 616 | F88: -0.04136081903 | G88: 0.293607642 | H88: -0.01214385255 | I88: 0.001710717351
A89: 86 | B89: 66.57922064 | C89: 142.1133517 | D89: 121 | E89: 75 | F89: -1.172018316 | G89: -1.442317956 | H89: 1.690423063 | I89: 1.373626933
A90: 87 | B90: 71.9959069 | C90: 173.1354722 | D90: 750 | E90: 790 | F90: 0.6727211354 | G90: 0.8044368719 | H90: 0.5411616858 | I90: 0.452553726
A91: 88 | B91: 66.76504149 | C91: 156.1266388 | D91: 148 | E91: 341 | F91: -1.04683387 | G91: -0.4109901872 | H91: 0.4302384484 | I91: 1.095861152
A92: 89 | B92: 71.15381831 | C92: 162.3342115 | D92: 643 | E92: 529 | F92: 0.3650538195 | G92: 0.07148187861 | H92: 0.02609473281 | I92: 0.1332642911
A93: 90 | B93: 67.91843379 | C93: 163.9815261 | D93: 238 | E93: 572 | F93: -0.7141551977 | G93: 0.1801488144 | H93: -0.1286542122 | I93: 0.5100176464
A94: 91 | B94: 69.51163441 | C94: 152.2586653 | D94: 436 | E94: 243 | F94: -0.162347461 | G94: -0.6980775168 | H94: 0.1133311124 | I94: 0.02635669808
A95: 92 | B95: 71.02343264 | C95: 142.2562719 | D95: 625 | E95: 78 | F95: 0.3172390328 | G95: -1.421363206 | H95: -0.4509118888 | I95: 0.1006406039
A96: 93 | B96: 71.86680426 | C96: 161.0542333 | D96: 729 | E96: 481 | F96: 0.6081104506 | G96: -0.04888649984 | H96: -0.02972839145 | I96: 0.3697983202
A97: 94 | B97: 69.76365263 | C97: 154.4144852 | D97: 467 | E97: 294 | F97: -0.08404991486 | G97: -0.5430386026 | H97: 0.04564234831 | I97: 0.007064388189
A98: 95 | B98: 74.33300956 | C98: 182.4972003 | D98: 925 | E98: 930 | F98: 1.435262895 | G98: 1.471282639 | H98: 2.11167738 | I98: 2.059979578
A99: 96 | B99: 73.02050503 | C99: 166.3569692 | D99: 854 | E99: 623 | F99: 1.051178304 | G99: 0.3119727476 | H99: 0.3279389837 | I99: 1.104975827
A100: 97 | B100: 73.72562423 | C100: 172.5475412 | D100: 896 | E100: 778 | F100: 1.255774607 | G100: 0.7635445313 | H100: 0.9588398338 | I100: 1.576969864
A101: 98 | B101: 73.44736251 | C101: 191.6079086 | D101: 876 | E101: 980 | F101: 1.152324621 | G101: 2.041112058 | H101: 2.35202368 | I101: 1.327852033
A102: 99 | B102: 65.68425633 | C102: 145.8722328 | D102: 71 | E102: 122 | F102: -1.471282639 | G102: -1.167052416 | H102: 1.717063958 | I102: 2.164672605
A103: 100 | B103: 66.90422679 | C103: 162.0671608 | D103: 157 | E103: 517 | F103: -1.008589162 | G103: 0.04136081903 | H103: -0.04171607381 | I103: 1.017252098
A104: 101 | B104: 69.98935182 | C104: 163.1720923 | D104: 497 | E104: 548 | F104: -0.008771118672 | G104: 0.1193175953 | H104: -0.001046548788 | I104: 7.693252277e-05
A105: 102 | B105: 61.70660735 | C105: 143.2161385 | D105: 2 | E105: 93 | F105: -2.943123501 | G105: -1.324901874 | H105: 3.899349843 | I105: 8.661975943
A106: 103 | B106: 72.8797388 | C106: 151.9934375 | D106: 840 | E106: 234 | F106: 0.9920570273 | G106: -0.7271513962 | H106: -0.7213756525 | I106: 0.9841771453
A107: 104 | B107: 72.72441064 | C107: 146.282265 | D107: 822 | E107: 129 | F107: 0.920788788 | G107: -1.133067987 | H107: -1.043316299 | I107: 0.847851992
A108: 105 | B108: 74.25481157 | C108: 190.2721726 | D108: 920 | E108: 976 | F108: 1.401014632 | G108: 1.966527659 | H108: 2.755134025 | I108: 1.962842
A109: 106 | B109: 71.07392189 | C109: 169.5453319 | D109: 632 | E109: 705 | F109: 0.3357415987 | G109: 0.5372394499 | H109: 0.1803736318 | I109: 0.1127224211
A110: 107 | B110: 71.63434532 | C110: 163.1166295 | D110: 700 | E110: 544 | F110: 0.5228197058 | G110: 0.1092278838 | H110: 0.05710649006 | I110: 0.2733404448
A111: 108 | B111: 74.88879892 | C111: 187.7338789 | D111: 958 | E111: 966 | F111: 1.721121973 | G111: 1.816898269 | H111: 3.127103533 | I111: 2.962260846
A112: 109 | B112: 67.23987899 | C112: 128.7208613 | D112: 182 | E112: 6 | F112: -0.9093617407 | G112: -2.534923509 | H112: 2.305162455 | I112: 0.8269387755
A113: 110 | B113: 68.45309637 | C113: 163.8499386 | D113: 315 | E113: 566 | F113: -0.4830042384 | G113: 0.1648872325 | H113: -0.07964123216 | I113: 0.2332930943
A114: 111 | B114: 69.46022372 | C114: 147.9869717 | D114: 425 | E114: 155 | F114: -0.1903463435 | G114: -1.016959478 | H114: 0.1935745181 | I114: 0.03623173048
A115: 112 | B115: 66.94801339 | C115: 130.9928233 | D115: 161 | E115: 9 | F115: -0.9920570273 | G115: -2.381427426 | H115: 2.362511813 | I115: 0.9841771453
A116: 113 | B116: 68.52590306 | C116: 164.9782672 | D116: 329 | E116: 597 | F116: -0.4439403255 | G116: 0.2442357536 | H116: -0.1084261 | I116: 0.1970830126
A117: 114 | B117: 72.72947936 | C117: 159.7872454 | D117: 823 | E117: 448 | F117: 0.9246246051 | G117: -0.1319469615 | H117: -0.1220014071 | I117: 0.8549306603
A118: 115 | B118: 67.60130747 | C118: 158.36545 | D118: 207 | E118: 401 | F118: -0.8183686568 | G118: -0.2519887784 | H118: 0.2062197181 | I118: 0.6697272584
A119: 116 | B119: 69.46428852 | C119: 165.2429747 | D119: 427 | E119: 606 | F119: -0.185245171 | G119: 0.2675408883 | H119: -0.0495606576 | I119: 0.03431577338
A120: 117 | B120: 72.8921763 | C120: 183.0687773 | D120: 842 | E120: 934 | F120: 1.000288921 | G120: 1.50153711 | H120: 1.501970935 | I120: 1.000577925
A121: 118 | B121: 69.46149311 | C121: 167.1568824 | D121: 426 | E121: 644 | F121: -0.1877951464 | G121: 0.367733804 | H121: -0.06905862356 | I121: 0.03526701701
A122: 119 | B122: 70.13856871 | C122: 171.4376218 | D122: 515 | E122: 750 | F122: 0.03634502587 | G122: 0.6727211354 | H122: 0.02445006707 | I122: 0.001320960905
A123: 120 | B123: 74.07380549 | C123: 169.4258314 | D123: 911 | E123: 701 | F123: 1.343206249 | G123: 0.5256948754 | H123: 0.7061166419 | I123: 1.804203028
A124: 121 | B124: 71.08467338 | C124: 150.4930786 | D124: 635 | E124: 203 | F124: 0.3437062197 | G124: -0.8324611243 | H124: -0.2861220661 | I124: 0.1181339655
A125: 122 | B125: 68.60783197 | C125: 174.687818 | D125: 340 | E125: 812 | F125: -0.4137185641 | G125: 0.8831491137 | H125: -0.3653751832 | I125: 0.1711630503
A126: 123 | B126: 66.778743 | C126: 163.4793871 | D126: 149 | E126: 553 | F126: -1.042509106 | G126: 0.1319469615 | H126: -0.1375559088 | I126: 1.086825235
A127: 124 | B127: 71.75534784 | C127: 178.1132371 | D127: 713 | E127: 879 | F127: 0.5605472454 | G127: 1.167052416 | H127: 0.6541880167 | I127: 0.3142132143
A128: 125 | B128: 70.65050248 | C128: 137.1021237 | D128: 582 | E128: 30 | F128: 0.2056801823 | G128: -1.886443679 | H128: -0.3880040799 | I128: 0.04230433739
A129: 126 | B129: 69.51645331 | C129: 157.5480065 | D129: 438 | E129: 375 | F129: -0.157271041 | G129: -0.3198754693 | H129: 0.05030714803 | I129: 0.02473418032
A130: 127 | B130: 68.44588647 | C130: 151.0278191 | D130: 313 | E130: 220 | F130: -0.4886440423 | G130: -0.7736459098 | H130: 0.3780374647 | I130: 0.2387730001
A131: 128 | B131: 71.43323974 | C131: 177.7176602 | D131: 677 | E131: 870 | F131: 0.457811006 | G131: 1.123595411 | H131: 0.5143943454 | I131: 0.2095909172
A132: 129 | B132: 70.56909432 | C132: 149.0256826 | D132: 568 | E132: 175 | F132: 0.1699699851 | G132: -0.9362145965 | H132: -0.159128381 | I132: 0.02888979584
A133: 130 | B133: 73.13835112 | C133: 181.7555694 | D133: 862 | E133: 922 | F133: =_xlfn.NORM.INV((D133-0.375)/(COUNTA($A$4:$A$1003)+(1-2*0.375)),0,1) -> 1.086674461 | G133: =_xlfn.NORM.INV((E133-0.375)/(COUNTA($A$4:$A$1003)+(1-2*0.375)),0,1) -> 1.414515167 | H133: =F133*G133 -> 1.537117506 | I133: =F133^2 -> 1.180861383
A134: 131 | B134: 68.04412365 | C134: 160.2559421 | D134: 260 | E134: 463 | F134: -0.6447021544 | G134: -0.09411381625 | H134: 0.06067538009 | I134: 0.4156408678
A135: 132 | B135: 74.44816055 | C135: 160.5860637 | D135: 934 | E135: 468 | F135: 1.50153711 | G135: -0.08153530886 | H135: -0.122428292 | I135: 2.254613692
A136: 133 | B136: 71.31721668 | C136: 156.7163784 | D136: 663 | E136: 355 | F136: 0.419184595 | G136: -0.3731017291 | H136: -0.1563984972 | I136: 0.1757157246
A137: 134 | B137: 65.4866644 | C137: 155.4070582 | D137: 64 | E137: 321 | F137: -1.525164008 | G137: -0.4661757195 | H137: 0.7109944286 | I137: 2.32612525
A138: 135 | B138: 72.10576305 | C138: 175.2602497 | D138: 763 | E138: 831 | F138: 0.7141551977 | G138: 0.9558159894 | H138: 0.6826009568 | I138: 0.5100176464
A139: 136 | B139: 67.24449669 | C139: 162.8415976 | D139: 183 | E139: 537 | F139: -0.9055790336 | G139: 0.09159698697 | H139: -0.08294831094 | I139: 0.8200733862
A140: 137 | B140: 72.9894045 | C140: 185.1229971 | D140: 851 | E140: 948 | F140: 1.038203752 | G140: 1.620039956 | H140: 1.681931561 | I140: 1.077867031
A141: 138 | B141: 70.56581793 | C141: 157.9144596 | D141: 566 | E141: 383 | F141: 0.1648872325 | G141: -0.2988444478 | H141: -0.04927563395 | I141: 0.02718779945
A142: 139 | B142: 74.25289638 | C142: 185.5930556 | D142: 918 | E142: 950 | F142: 1.387764731 | G142: 1.6389451 | H142: 2.274470205 | I142: 1.925890948
A143: 140 | B143: 72.83372344 | C143: 159.5829288 | D143: 832 | E143: 442 | F143: 0.9597804799 | G143: -0.1471302132 | H143: -0.1412127066 | I143: 0.9211785695
A144: 141 | B144: 69.42765162 | C144: 154.7573044 | D144: 422 | E144: 302 | F144: -0.1980074432 | G144: -0.5199488517 | H144: 0.1029537427 | I144: 0.03920694757
A145: 142 | B145: 70.58374559 | C145: 163.5098044 | D145: 570 | E145: 555 | F145: 0.1750571326 | G145: 0.1370044936 | H145: 0.02398361381 | I145: 0.03064499967
A146: 143 | B146: 70.19783199 | C146: 162.8784682 | D146: 528 | E146: 538 | F146: 0.06896968917 | G146: 0.09411381625 | H146: 0.006491000654 | I146: 0.004756818025
A147: 144 | B147: 69.55423261 | C147: 155.7723622 | D147: 446 | E147: 330 | F147: -0.1370044936 | G147: -0.4411764944 | H147: 0.06044316223 | I147: 0.01877023128
A148: 145 | B148: 65.36845854 | C148: 150.620445 | D148: 60 | E148: 207 | F148: -1.558055067 | G148: -0.8183686568 | H148: 1.275063432 | I148: 2.427535591
A149: 146 | B149: 64.1395842 | C149: 159.1163422 | D149: 21 | E149: 429 | F149: -2.041112058 | G149: -0.1801488144 | H149: 0.3677039175 | I149: 4.166138435
A150: 147 | B150: 70.17105734 | C150: 155.3583007 | D150: 521 | E150: 319 | F150: 0.05139565446 | G150: -0.471770335 | H150: -0.02424694512 | I150: 0.002641513297
A151: 148 | B151: 71.01263772 | C151: 157.6891746 | D151: 622 | E151: 379 | F151: 0.3093428551 | G151: -0.3093428551 | H151: -0.09569300202 | I151: 0.09569300202
A152: 149 | B152: 69.54449121 | C152: 177.5828891 | D152: 444 | E152: 867 | F152: -0.1420655327 | G152: 1.109572692 | H152: -0.1576320355 | I152: 0.02018261557
A153: 150 | B153: 73.73128276 | C153: 179.8091735 | D153: 897 | E153: 901 | F153: 1.261307166 | G153: 1.283833555 | H153: 1.619308463 | I153: 1.590895767
A154: 151 | B154: 71.92076096 | C154: 165.1340506 | D154: 740 | E154: 601 | F154: 0.6416203446 | G154: 0.2545764665 | H154: 0.1633414402 | I154: 0.4116766667
A155: 152 | B155: 66.15342039 | C155: 171.5220038 | D155: 103 | E155: 754 | F155: -1.266878604 | G155: 0.6853442446 | H155: -0.8682479598 | I155: 1.604981397
A156: 153 | B156: 72.66845163 | C156: 158.444664 | D156: 815 | E156: 407 | F156: 0.8943078319 | G156: -0.2364973823 | H156: -0.2115014612 | I156: 0.7997864983
A157: 154 | B157: 69.79607975 | C157: 158.0682468 | D157: 474 | E157: 389 | F157: -0.06645793494 | G157: -0.2831579822 | H157: 0.01881809476 | I157: 0.004416657117
A158: 155 | B158: 63.16520992 | C158: 123.7715368 | D158: 7 | E158: 3 | F158: -2.477067402 | G158: -2.79136111 | H158: 6.914389614 | I158: 6.135862915
A159: 156 | B159: 71.19677464 | C159: 170.7136141 | D159: 648 | E159: 731 | F159: 0.3784804266 | G159: 0.614151497 | H159: 0.2324443206 | I159: 0.1432474333
A160: 157 | B160: 70.1912902 | C160: 153.1454769 | D160: 525 | E160: 265 | F160: 0.06143566813 | G160: -0.6293533972 | H160: -0.03866474645 | I160: 0.003774341318
A161: 158 | B161: 65.83530092 | C161: 156.725842 | D161: 80 | E161: 356 | F161: -1.407732827 | G161: -0.3704164324 | H161: 0.5214473716 | I161: 1.981711713
A162: 159 | B162: 70.97647682 | C162: 138.888788 | D162: 617 | E162: 44 | F162: 0.2962250294 | G162: -1.710203802 | H162: -0.5066051715 | I162: 0.08774926805
A163: 160 | B163: 73.77189976 | C163: 152.7023355 | D163: 899 | E163: 258 | F163: 1.272489647 | G163: -0.6508842337 | H163: -0.8282434488 | I163: 1.619229902
A164: 161 | B164: 68.93452288 | C164: 145.3280275 | D164: 367 | E164: 113 | F164: -0.3410489477 | G164: -1.212832933 | H164: 0.4136353954 | I164: 0.1163143847
A165: 162 | B165: 66.03873886 | C165: 161.8673202 | D165: 95 | E165: 507 | F165: -1.312941387 | G165: 0.01628973193 | H165: -0.02138746324 | I165: 1.723815087
A166: 163 | B166: 69.35133254 | C166: 148.9728655 | D166: 413 | E166: 174 | F166: -0.2210625379 | G166: -0.9401059654 | H166: 0.2078222106 | I166: 0.04886864566
A167: 164 | B167: 66.67259933 | C167: 155.5323073 | D167: 135 | E167: 322 | F167: -1.104946656 | G167: -0.4633838849 | H167: 0.5120144739 | I167: 1.220907112
A168: 165 | B168: 72.27454733 | C168: 188.8804769 | D168: 781 | E168: 971 | F168: 0.7736459098 | G168: 1.886443679 | H168: 1.459439437 | I168: 0.5985279937
A169: 166 | B169: 74.24456298 | C169: 174.9467824 | D169: 917 | E169: 823 | F169: 1.38123018 | G169: 0.9246246051 | H169: 1.27711941 | I169: 1.907796811
A170: 167 | B170: 72.02685183 | C170: 176.5044519 | D170: 753 | E170: 850 | F170: 0.6821782935 | G170: 1.033917557 | H170: 0.7053161149 | I170: 0.4653672241
A171: 168 | B171: 72.78742424 | C171: 158.3937318 | D171: 828 | E171: 403 | F171: 0.9440116225 | G171: -0.2468184414 | H171: -0.2329994773 | I171: 0.8911579433
A172: 169 | B172: 73.53635403 | C172: 172.5084512 | D172: 885 | E172: 777 | F172: 1.197293436 | G172: 0.7601946952 | H172: 0.9101761187 | I172: 1.433511572
A173: 170 | B173: 65.37285737 | C173: 145.8842592 | D173: 61 | E173: 123 | F173: -1.54967436 | G173: -1.162115129 | H173: 1.800900019 | I173: 2.401490624
A174: 171 | B174: 67.76076707 | C174: 158.8954329 | D174: 223 | E174: 421 | F174: -0.7635445313 | G174: -0.2005637056 | H174: 0.1531393206 | I174: 0.5830002512
A175: 172 | B175: 72.17007281 | C175: 174.3288405 | D175: 771 | E175: 804 | F175: 0.7402715895 | G175: 0.853915678 | H175: 0.6321295162 | I175: 0.5480020262
A176: 173 | B176: 68.39012804 | C176: 169.9482842 | D176: 305 | E176: 717 | F176: -0.5113618183 | G176: 0.572315541 | H176: -0.2926603157 | I176: 0.2614909092
A177: 174 | B177: 72.42067417 | C177: 159.5886426 | D177: 800 | E177: 443 | F177: 0.8395696669 | G177: -0.1445974093 | H177: -0.1213995988 | I177: 0.7048772256
A178: 175 | B178: 70.29179473 | C178: 201.7485895 | D178: 539 | E178: 999 | F178: 0.09663124184 | G178: 2.943123501 | H178: 0.2843976788 | I178: 0.009337596899
A179: 176 | B179: 69.98153809 | C179: 167.1649034 | D179: 495 | E179: 645 | F179: -0.01378344618 | G179: 0.3704164324 | H179: -0.005105614961 | I179: 0.0001899833887
A180: 177 | B180: 64.79821554 | C180: 146.8034034 | D180: 41 | E180: 139 | F180: -1.743595248 | G180: -1.086674461 | H180: 1.894720425 | I180: 3.040124388
A181: 178 | B181: 74.75303801 | C181: 160.8131997 | D181: 951 | E181: 474 | F181: 1.648621537 | G181: -0.06645793494 | H181: -0.1095639828 | I181: 2.717952972
A182: 179 | B182: 74.15042674 | C182: 191.6449847 | D182: 914 | E182: 982 | F182: 1.361972074 | G182: 2.083115577 | H182: 2.837145244 | I182: 1.854967931
A183: 180 | B183: 70.34341469 | C183: 146.3603351 | D183: 550 | E183: 132 | F183: 0.1243669455 | G183: -1.118896716 | H183: -0.1391537669 | I183: 0.01546713713
A184: 181 | B184: 72.27041405 | C184: 165.1482464 | D184: 780 | E184: 602 | F184: 0.7702700558 | G184: 0.2571658604 | H184: 0.1980871617 | I184: 0.5933159589
A185: 182 | B185: 73.14382308 | C185: 180.6961538 | D185: 863 | E185: 910 | F185: 1.091208372 | G185: 1.337054956 | H185: 1.459005562 | I185: 1.190735712
A186: 183 | B186: 72.24764765 | C186: 157.0869113 | D186: 778 | E186: 364 | F186: 0.7635445313 | G186: -0.3490280745 | H186: -0.2664984775 | I186: 0.5830002512
A187: 184 | B187: 68.54167893 | C187: 148.0982625 | D187: 333 | E187: 158 | F187: -0.4329050803 | G187: -1.004430392 | H187: 0.4348230194 | I187: 0.1874068086
A188: 185 | B188: 68.49678867 | C188: 152.2014575 | D188: 322 | E188: 241 | F188: -0.4633838849 | G188: -0.7044867197 | H188: 0.326447793 | I188: 0.2147246247
A189: 186 | B189: 76.24707247 | C189: 161.1450957 | D189: 986 | E189: 483 | F189: 2.180199329 | G189: -0.04386909798 | H189: -0.09564337799 | I189: 4.753269115
A190: 187 | B190: 65.9794391 | C190: 159.1120505 | D190: 91 | E190: 428 | F190: -1.337054956 | G190: -0.1826963996 | H190: 0.2442751265 | I190: 1.787715956
A191: 188 | B191: 71.180661 | C191: 161.5746363 | D191: 646 | E191: 499 | F191: 0.3731017291 | G191: -0.003759011514 | H191: -0.001402493696 | I191: 0.1392049003
A192: 189 | B192: 67.80139281 | C192: 158.5008364 | D192: 229 | E192: 409 | F192: -0.7435715569 | G192: -0.2313463532 | H192: 0.172022568 | I192: 0.5528986602
A193: 190 | B193: 68.45905656 | C193: 156.7266533 | D193: 317 | E193: 357 | F193: -0.4773797559 | G193: -0.367733804 | H193: 0.1755486736 | I193: 0.2278914314
A194: 191 | B194: 66.81630819 | C194: 142.8457982 | D194: 152 | E194: 86 | F194: -1.029650273 | G194: -1.368335134 | H194: 1.408906644 | I194: 1.060179685
A195: 192 | B195: 67.08095164 | C195: 150.7550458 | D195: 171 | E195: 213 | F195: -0.951866465 | G195: -0.797529264 | H195: 0.7591413613 | I195: 0.9060497671
A196: 193 | B196: 70.28233238 | C196: 160.9989407 | D196: 537 | E196: 480 | F196: 0.09159698697 | G196: -0.05139565446 | H196: -0.004707687092 | I196: 0.008390008022
A197: 194 | B197: 67.10876509 | C197: 162.5844465 | D197: 176 | E197: 533 | F197: =_xlfn.NORM.INV((D197-0.375)/(COUNTA($A$4:$A$1003)+(1-2*0.375)),0,1) -> -0.9323373531 | G197: =_xlfn.NORM.INV((E197-0.375)/(COUNTA($A$4:$A$1003)+(1-2*0.375)),0,1) -> 0.08153530886 | H197: =F197*G197 -> -0.07601841404 | I197: =F197^2 -> 0.86925294
A198: 195 | B198: 67.38319238 | C198: 142.201884 | D198: 191 | E198: 76 | F198: -0.875770682 | G198: -1.435262895 | H198: 1.256961164 | I198: 0.7669742875
A199: 196 | B199: 72.072698 | C199: 178.4418879 | D199: 759 | E199: 881 | F199: 0.7012785174 | G199: 1.177013288 | H199: 0.8254141338 | I199: 0.4917915589
A200: 197 | B200: 73.99964359 | C200: 186.7099983 | D200: 908 | E200: 960 | F200: 1.324901874 | G200: 1.743595248 | H200: 2.310092612 | I200: 1.755364977
A201: 198 | B201: 69.01831506 | C201: 148.5578991 | D201: 379 | E201: 168 | F201: -0.3093428551 | G201: -0.9637601131 | H201: 0.2981323051 | I201: 0.09569300202
... 803 more rows

Sheet Bivariate Alpha-Trimmed
A1: Calculating the Bivariate Alpha-Trimmed Correlation Coefficient
A3: Obs. Number | B3: X | C3: Y | D3: (X-medx)^2 | E3: (Y-medy)^2 | F3: (X-Xmed)∙(Y-Ymed) | G3: Trimmed (X-medx)^2 | H3: Trimmed (Y-medy)^2 | I3: Trimmed (X-Xmed)∙(Y-Ymed) | L3: Comparison of Manually Calculated Correlation with Macro Calculation | P3: Alpha-Trimmed Correlation Applied to the Paired Data Series From the "Simulated Data" Worksheet
A4: 1 | B4: 69.59024759 | C4: 179.2035405 | D4: 0.1928073041 | E4: 309.671048 | F4: -7.727020118 | G4: =AND(D4<$N$14,D4>$N$17)*D4 -> 0.1928073041 | H4: =AND(E4<$N$15,E4>$N$18)*E4 -> 309.671048 | I4: =AND(F4<$N$16,F4>$N$19)*F4 -> -7.727020118 | L4: Calculated Alpha-Trimmed Correlation = | N4: =N22/(SQRT(N20*N21)) -> 0.4677841203
A5: 2 | B5: 75.90042113 | C5: 148.634771 | D5: 34.46952468 | E5: 168.2545385 | F5: -76.15545922 | G5: 0 | H5: 168.2545385 | I5: 0 | L5: VBA Alpha-Trimmed Correlation = | N5: =bvtcorr(B4:B1003,C4:C1003,N9) -> 0.4677841203 | P5: U1(0,1), U2(0,1) | Q5: =bvtcorr('Simulated Data'!$B$4:$B$1003,'Simulated Data'!$C$4:$C$1003,N9) -> 0.02162318195
A6: 3 | B6: 68.70319257 | C6: 148.2832815 | D6: 1.75868259 | E6: 177.4966318 | F6: 17.66805694 | G6: 1.75868259 | H6: 177.4966318 | I6: 17.66805694 | P6: N1(0,1), N2(0,1) | Q6: =bvtcorr('Simulated Data'!$D$4:$D$1003,'Simulated Data'!$E$4:$E$1003,N9) -> -0.02651371222
A7: 4 | B7: 70.30671509 | C7: 161.1189805 | D7: 0.07693368143 | E7: 0.2372539391 | F7: -0.1351029939 | G7: 0.07693368143 | H7: 0 | I7: -0.1351029939 | L7: Intermediate Calculations for the Alpha-Trimmed Correlation | P7: X, Y (Correlated) | Q7: =bvtcorr('Simulated Data'!$F$4:$F$1003,'Simulated Data'!$G$4:$G$1003,N9) -> 0.4677841203
A8: 5 | B8: 67.3750767 | C8: 167.5735679 | D8: 7.045144825 | E8: 35.61105844 | F8: -15.83935176 | G8: 7.045144825 | H8: 35.61105844 | I8: -15.83935176 | P8: Ranks of (X, Y) | Q8: =bvtcorr('Simulated Data'!$H$4:$H$1003,'Simulated Data'!$I$4:$I$1003,N9) -> 0.4562855114
A9: 6 | B9: 70.30370117 | C9: 166.757326 | D9: 0.07527082772 | E9: 26.53546212 | F9: 1.41327499 | G9: 0.07527082772 | H9: 26.53546212 | I9: 1.41327499 | L9: alpha (% of Obs to be trimmed) = | N9: 0.1 | P9: (X, Y) with duplicates | Q9: =bvtcorr('Simulated Data'!$J$4:$J$1003,'Simulated Data'!$K$4:$K$1003,N9) -> 0.4677841255
A10: 7 | B10: 72.046436 | C10: 158.1402947 | D10: 4.068652566 | E10: 12.01158272 | F10: -6.990776556 | G10: 4.068652566 | H10: 12.01158272 | I10: -6.990776556 | L10: # of Observations = | N10: 1000 | P10: Ranks of (X, Y) with duplicates | Q10: =bvtcorr('Simulated Data'!$L$4:$L$1003,'Simulated Data'!$M$4:$M$1003,N9) -> 0.4563092209
A11: 8 | B11: 69.65903862 | C11: 151.4591575 | D11: 0.1371274629 | E11: 102.9597858 | F11: 3.757474446 | G11: 0.1371274629 | H11: 102.9597858 | I11: 3.757474446 | L11: # of Observations to be Trimmed = | N11: 50
A12: 9 | B12: 74.29144862 | C12: 185.9929006 | D12: 18.16551978 | E12: 594.7176163 | F12: 103.9391871 | G12: 18.16551978 | H12: 594.7176163 | I12: 103.9391871 | L12: Median(X) = | N12: 70.02934587
A13: 10 | B13: 65.64948847 | C13: 147.6030784 | D13: 19.18315084 | E13: 196.0837091 | F13: 61.33109628 | G13: 19.18315084 | H13: 196.0837091 | I13: 61.33109628 | L13: Median(Y) = | N13: 161.6060677
A14: 11 | B14: 69.74269715 | C14: 154.6594908 | D14: 0.08216749336 | E14: 48.25493054 | F14: 1.991227432 | G14: 0.08216749336 | H14: 48.25493054 | I14: 1.991227432 | L14: Upper Trim Cutoff for (X-medx)2 = | N14: =_xlfn.PERCENTILE.INC(D$4:D$1003,(1000-$N$11)/999) -> 34.00418937 | P14: Notes:
A15: 12 | B15: 69.92351191 | C15: 155.0106918 | D15: 0.01120082779 | E15: 43.4989829 | F15: 0.6980147681 | G15: 0 | H15: 43.4989829 | I15: 0.6980147681 | L15: Upper Trim Cutoff for (Y-medy)2 = | N15: =_xlfn.PERCENTILE.INC(E$4:E$1003,(1000-$N$11)/999) -> 731.1598005
A16: 13 | B16: 71.27244255 | C16: 167.9248667 | D16: 1.545289349 | E16: 39.92722045 | F16: 7.854878008 | G16: 1.545289349 | H16: 39.92722045 | I16: 7.854878008 | L16: Upper Trim of (X-Xmed)∙(Y-Ymed) = | N16: =_xlfn.PERCENTILE.INC(F$4:F$1003,(1000-$N$11)/999) -> 112.6545233
A17: 14 | B17: 68.20918455 | C17: 170.8602726 | D17: 3.312987234 | E17: 85.64030782 | F17: -16.84414576 | G17: 3.312987234 | H17: 85.64030782 | I17: -16.84414576 | L17: Lower Trim Cutoff for (X-medx)2 = | N17: =_xlfn.PERCENTILE.INC($D$4:$D$1003,($N$11-1)/999) -> 0.03647709849
A18: 15 | B18: 71.98267049 | C18: 177.2631872 | D18: 3.815477044 | E18: 245.1453904 | F18: 30.58343685 | G18: 3.815477044 | H18: 245.1453904 | I18: 30.58343685 | L18: Lower Trim Cutoff for (Y-medy)2 = | N18: =_xlfn.PERCENTILE.INC(E$4:E$1003,($N$11-1)/999) -> 0.4276148964
A19: 16 | B19: 64.96950385 | C19: 170.4605236 | D19: 25.60200136 | E19: 78.40138995 | F19: -44.80214829 | G19: 25.60200136 | H19: 78.40138995 | I19: 0 | L19: Lower Trim of (X-Xmed)∙(Y-Ymed) = | N19: =_xlfn.PERCENTILE.INC(F$4:F$1003,($N$11-1)/999) -> -30.06157724
A20: 17 | B20: 67.56420314 | C20: 158.2215903 | D20: 6.07692871 | E20: 11.45468725 | F20: 8.343219872 | G20: 6.07692871 | H20: 11.45468725 | I20: 8.343219872 | L20: Sum of trimmed (X-medx)2 = | N20: 6372.160461
A21: 18 | B21: 72.34811075 | C21: 168.0844596 | D21: 5.376670557 | E21: 41.96956095 | F21: 15.02186748 | G21: 5.376670557 | H21: 41.96956095 | I21: 15.02186748 | L21: Sum of trimmed (Y-medy)2 = | N21: 140129.6325
A22: 19 | B22: 73.39999773 | C22: 186.4382187 | D22: 11.36129392 | E22: 616.635724 | F22: 83.70053587 | G22: 11.36129392 | H22: 616.635724 | I22: 83.70053587 | L22: Sum of Trimmed (X-Xmed)∙(Y-Ymed) = | N22: 13978.28266
A23: 20 | B23: 70.63087883 | C23: 145.0970574 | D23: 0.3618419003 | E23: 272.5474197 | F23: -9.930713785 | G23: 0.3618419003 | H23: 272.5474197 | I23: -9.930713785
A24: 21 | B24: 70.11967655 | C24: 138.1029989 | D24: 0.008159631644 | E24: 552.3942423 | F24: -2.123048172 | G24: 0 | H24: 552.3942423 | I24: -2.123048172
A25: 22 | B25: 66.18716528 | C25: 144.0183644 | D25: 14.76235174 | E25: 309.3273087 | F25: 67.57513251 | G25: 14.76235174 | H25: 309.3273087 | I25: 67.57513251
A26: 23 | B26: 73.78144069 | C26: 194.1955585 | D26: 14.07821551 | E26: 1062.074909 | F26: 122.2788594 | G26: 14.07821551 | H26: 0 | I26: 0
A27: 24 | B27: 67.09498212 | C27: 159.5028359 | D27: 8.610490613 | E27: 4.423584119 | F27: 6.17164723 | G27: 8.610490613 | H27: 4.423584119 | I27: 6.17164723
A28: 25 | B28: 69.93828021 | C28: 159.3274787 | D28: 0.008292954528 | E28: 5.191967662 | F28: 0.207501209 | G28: 0 | H28: 5.191967662 | I28: 0.207501209
A29: 26 | B29: 69.15218537 | C29: 169.6787571 | D29: 0.7694105562 | E29: 65.16831474 | F29: -7.081044364 | G29: 0.7694105562 | H29: 65.16831474 | I29: -7.081044364
A30: 27 | B30: 69.97904194 | C30: 169.2641729 | D30: 0.002530485935 | E30: 58.6465752 | F30: -0.3852328305 | G30: 0 | H30: 58.6465752 | I30: -0.3852328305
A31: 28 | B31: 65.23138892 | C31: 150.1850862 | D31: 23.02039093 | E31: 130.4388185 | F31: 54.79737761 | G31: 23.02039093 | H31: 130.4388185 | I31: 54.79737761
A32: 29 | B32: 69.18991845 | C32: 162.13541 | D32: 0.7046383925 | E32: 0.2802032454 | F32: -0.444344421 | G32: 0.7046383925 | H32: 0 | I32: -0.444344421
A33: 30 | B33: 70.7218467 | C33: 179.8605007 | D33: 0.4795573928 | E33: 333.2243228 | F33: 12.64120989 | G33: 0.4795573928 | H33: 333.2243228 | I33: 12.64120989
A34: 31 | B34: 73.08646681 | C34: 167.345485 | D34: 9.345988409 | E34: 32.94091092 | F34: 17.54609277 | G34: 9.345988409 | H34: 32.94091092 | I34: 17.54609277
A35: 32 | B35: 72.42004776 | C35: 176.7791011 | D35: 5.715455526 | E35: 230.2209429 | F35: 36.27419965 | G35: 5.715455526 | H35: 230.2209429 | I35: 36.27419965
A36: 33 | B36: 64.43216286 | C36: 134.4075192 | D36: 31.32845767 | E36: 739.7610395 | F36: 152.2352535 | G36: 31.32845767 | H36: 0 | I36: 0
A37: 34 | B37: 70.27480576 | C37: 157.565493 | D37: 0.06025055586 | E37: 16.32624414 | F37: -0.9917990143 | G37: 0.06025055586 | H37: 16.32624414 | I37: -0.9917990143
A38: 35 | B38: 68.1393137 | C38: 139.4283219 | D38: 3.572221625 | E38: 491.8524095 | F38: 41.91665317 | G38: 3.572221625 | H38: 491.8524095 | I38: 41.91665317
A39: 36 | B39: 74.47045905 | C39: 176.306214 | D39: 19.72348626 | E39: 216.0943009 | F39: 65.28501341 | G39: 19.72348626 | H39: 216.0943009 | I39: 65.28501341
A40: 37 | B40: 66.39420939 | C40: 143.0109076 | D40: 13.21421729 | E40: 345.7799803 | F40: 67.5959451 | G40: 13.21421729 | H40: 345.7799803 | I40: 67.5959451
A41: 38 | B41: 71.51880731 | C41: 168.2380568 | D41: 2.218495377 | E41: 43.98327978 | F41: 9.878092066 | G41: 2.218495377 | H41: 43.98327978 | I41: 9.878092066
A42: 39 | B42: 71.11033365 | C42: 154.6312858 | D42: 1.168534561 | E42: 48.64758269 | F42: -7.53965395 | G42: 1.168534561 | H42: 48.64758269 | I42: -7.53965395
A43: 40 | B43: 69.82809183 | C43: 178.5105441 | D43: 0.04050319077 | E43: 285.7613225 | F43: -3.402094261 | G43: 0.04050319077 | H43: 285.7613225 | I43: -3.402094261
A44: 41 | B44: 71.00384778 | C44: 174.7647687 | D44: 0.9496539656 | E44: 173.1514129 | F44: 12.82317925 | G44: 0.9496539656 | H44: 173.1514129 | I44: 12.82317925
A45: 42 | B45: 68.16229315 | C45: 165.5278601 | D45: 3.485885866 | E45: 15.38045557 | F45: -7.32219316 | G45: 3.485885866 | H45: 15.38045557 | I45: -7.32219316
A46: 43 | B46: 69.41568546 | C46: 142.5146991 | D46: 0.3765791088 | E46: 364.480355 | F46: 11.71561724 | G46: 0.3765791088 | H46: 364.480355 | I46: 11.71561724
A47: 44 | B47: 70.85962855 | C47: 175.8377286 | D47: 0.6893693173 | E47: 202.5401733 | F47: 11.81630149 | G47: 0.6893693173 | H47: 202.5401733 | I47: 11.81630149
A48: 45 | B48: 68.00908012 | C48: 170.5361346 | D48: 4.081473708 | E48: 79.74609436 | F48: -18.04110826 | G48: 4.081473708 | H48: 79.74609436 | I48: -18.04110826
A49: 46 | B49: 71.79456065 | C49: 161.165496 | D49: 3.115983209 | E49: 0.1941033839 | F49: -0.7777035972 | G49: 3.115983209 | H49: 0 | I49: -0.7777035972
A50: 47 | B50: 67.75641297 | C50: 154.8749646 | D50: 5.166223976 | E50: 45.30774904 | F50: 15.29934572 | G50: 5.166223976 | H50: 45.30774904 | I50: 15.29934572
A51: 48 | B51: 68.65060179 | C51: 159.3540304 | D51: 1.900935249 | E51: 5.071672182 | F51: 3.10498316 | G51: 1.900935249 | H51: 5.071672182 | I51: 3.10498316
A52: 49 | B52: 71.65713108 | C52: 187.6360219 | D52: 2.649684683 | E52: 677.5585146 | F52: 42.37117438 | G52: 2.649684683 | H52: 677.5585146 | I52: 42.37117438
A53: 50 | B53: 68.95997709 | C53: 167.8543877 | D53: 1.143549607 | E53: 39.04150305 | F53: -6.681758412 | G53: 1.143549607 | H53: 39.04150305 | I53: -6.681758412
A54: 51 | B54: 68.44237462 | C54: 163.8016713 | D54: 2.518477772 | E54: 4.820674964 | F54: -3.484359733 | G54: 2.518477772 | H54: 4.820674964 | I54: -3.484359733
A55: 52 | B55: 72.64891234 | C55: 164.4651827 | D55: 6.862128448 | E55: 8.174538403 | F55: 7.489641682 | G55: 6.862128448 | H55: 8.174538403 | I55: 7.489641682
A56: 53 | B56: 64.16689684 | C56: 157.7714021 | D56: 34.36830869 | E56: 14.70466053 | F56: 22.48053185 | G56: 0 | H56: 14.70466053 | I56: 22.48053185
A57: 54 | B57: 69.53677122 | C57: 160.6378795 | D57: 0.2426297947 | E57: 0.9373883498 | F57: 0.4769049621 | G57: 0.2426297947 | H57: 0.9373883498 | I57: 0.4769049621
A58: 55 | B58: 68.52794302 | C58: 142.8477662 | D58: 2.254210544 | E58: 351.8738736 | F58: 28.16376743 | G58: 2.254210544 | H58: 351.8738736 | I58: 28.16376743
A59: 56 | B59: 68.5118249 | C59: 133.197115 | D59: 2.302869903 | E59: 807.0685954 | F59: 43.11118159 | G59: 2.302869903 | H59: 0 | I59: 43.11118159
A60: 57 | B60: 70.28039146 | C60: 179.5151704 | D60: 0.0630238858 | E60: 320.7359592 | F60: 4.496001164 | G60: 0.0630238858 | H60: 320.7359592 | I60: 4.496001164
A61: 58 | B61: 68.95148951 | C61: 154.5936208 | D61: 1.161774338 | E61: 49.17441193 | F61: 7.558410538 | G61: 1.161774338 | H61: 49.17441193 | I61: 7.558410538
A62: 59 | B62: 76.13678496 | C62: 167.102771 | D62: 37.30081215 | E62: 30.21374739 | F62: 33.57078068 | G62: 0 | H62: 30.21374739 | I62: 33.57078068
A63: 60 | B63: 72.68803547 | C63: 162.4174685 | D63: 7.068630347 | E63: 0.6583712559 | F63: 2.157262858 | G63: 7.068630347 | H63: 0.6583712559 | I63: 2.157262858
A64: 61 | B64: 71.29852334 | C64: 165.1235083 | D64: 1.610811442 | E64: 12.37238862 | F64: 4.464256395 | G64: 1.610811442 | H64: 12.37238862 | I64: 4.464256395
A65: 62 | B65: 73.96392728 | C65: 175.8806819 | D65: 15.48093085 | E65: 203.7646112 | F65: 56.16463172 | G65: 15.48093085 | H65: 203.7646112 | I65: 56.16463172
A66: 63 | B66: 68.34454044 | C66: 174.4574496 | D66: 2.838569353 | E66: 165.1580163 | F66: -21.65207804 | G66: 2.838569353 | H66: 165.1580163 | I66: -21.65207804
A67: 64 | B67: 69.95782012 | C67: 161.4350221 | D67: 0.005115932954 | E67: 0.0292565986 | F67: 0.01223416515 | G67: 0 | H67: 0 | I67: 0.01223416515
A68: 65 | B68: 71.61445169 | C68: 154.6414632 | D68: 2.512560439 | E68: 48.50571547 | F68: -11.03963504 | G68: =AND(D68<$N$14,D68>$N$17)*D68 -> 2.512560439 | H68: =AND(E68<$N$15,E68>$N$18)*E68 -> 48.50571547 | I68: =AND(F68<$N$16,F68>$N$19)*F68 -> -11.03963504
A69: 66 | B69: 72.77260559 | C69: 185.8068797 | D69: 7.52547386 | E69: 585.6793008 | F69: 66.38911257 | G69: 7.52547386 | H69: 585.6793008 | I69: 66.38911257
A70: 67 | B70: 67.59161206 | C70: 168.3994952 | D70: 5.942546167 | E70: 46.15065663 | F70: -16.56056785 | G70: 5.942546167 | H70: 46.15065663 | I70: -16.56056785
A71: 68 | B71: 70.62542637 | C71: 181.3665741 | D71: 0.3553119616 | E71: 390.4776148 | F71: 11.77885255 | G71: 0.3553119616 | H71: 390.4776148 | I71: 11.77885255
A72: 69 | B72: 70.56596848 | C72: 152.4950221 | D72: 0.2879638213 | E72: 83.01115263 | F72: -4.889193055 | G72: 0.2879638213 | H72: 83.01115263 | I72: -4.889193055
A73: 70 | B73: 70.66886091 | C73: 160.9386736 | D73: 0.4089794825 | E73: 0.4454149032 | F73: -0.4268085714 | G73: 0.4089794825 | H73: 0.4454149032 | I73: -0.4268085714
A74: 71 | B74: 69.85923458 | C74: 173.2838986 | D74: 0.02893785257 | E74: 136.3717347 | F74: -1.986530935 | G74: 0 | H74: 136.3717347 | I74: -1.986530935
A75: 72 | B75: 72.80264454 | C75: 153.6540441 | D75: 7.691185484 | E75: 63.23467938 | F75: -22.05333644 | G75: 7.691185484 | H75: 63.23467938 | I75: -22.05333644
A76: 73 | B76: 69.22604171 | C76: 159.74142 | D76: 0.6452975788 | E76: 3.476910951 | F76: 1.49787924 | G76: 0.6452975788 | H76: 3.476910951 | I76: 1.49787924
A77: 74 | B77: 66.61983866 | C77: 177.7115498 | D77: 11.62473946 | E77: 259.3865532 | F77: -54.9117574 | G77: 11.62473946 | H77: 259.3865532 | I77: 0
A78: 75 | B78: 66.12264851 | C78: 170.86176 | D78: 15.26228432 | E78: 85.66784006 | F78: -36.15918876 | G78: 15.26228432 | H78: 85.66784006 | I78: 0
A79: 76 | B79: 75.29848228 | C79: 167.9362434 | D79: 27.76379851 | E79: 40.07112474 | F79: 33.35455941 | G79: 27.76379851 | H79: 40.07112474 | I79: 33.35455941
A80: 77 | B80: 78.77680626 | C80: 177.5387429 | D80: 76.51806328 | E80: 253.8501388 | F80: 139.3704451 | G80: 0 | H80: 253.8501388 | I80: 0
A81: 78 | B81: 76.09356413 | C81: 178.3484859 | D81: 36.7747431 | E81: 280.3085661 | F81: 101.529678 | G81: 0 | H81: 280.3085661 | I81: 101.529678
A82: 79 | B82: 65.89089868 | C82: 163.5776839 | D82: 17.12674518 | E82: 3.88727032 | F82: -8.159429405 | G82: 17.12674518 | H82: 3.88727032 | I82: -8.159429405
A83: 80 | B83: 70.2867311 | C83: 147.2331273 | D83: 0.06624715487 | E83: 206.5814154 | F83: -3.699382519 | G83: 0.06624715487 | H83: 206.5814154 | I83: -3.699382519
A84: 81 | B84: 71.81489191 | C84: 163.8140279 | D84: 3.188174661 | E84: 4.875088384 | F84: 3.942414648 | G84: 3.188174661 | H84: 4.875088384 | I84: 3.942414648
A85: 82 | B85: 70.25339556 | C85: 176.2836325 | D85: 0.05019826311 | E85: 215.430907 | F85: 3.288503816 | G85: 0.05019826311 | H85: 215.430907 | I85: 3.288503816
A86: 83 | B86: 69.38942282 | C86: 158.2411932 | D86: 0.4095015173 | E86: 11.32238029 | F86: 2.153260762 | G86: 0.4095015173 | H86: 11.32238029 | I86: 2.153260762
A87: 84 | B87: 72.04563341 | C87: 191.6844267 | D87: 4.065415419 | E87: 904.7076788 | F87: 60.64662024 | G87: 4.065415419 | H87: 0 | I87: 60.64662024
A88: 85 | B88: 69.89492867 | C88: 166.0528146 | D88: 0.01806798422 | E88: 19.77355793 | F88: -0.5977192758 | G88: 0 | H88: 19.77355793 | I88: -0.5977192758
A89: 86 | B89: 66.57922064 | C89: 142.1133517 | D89: 11.90336412 | E89: 379.9659774 | F89: 67.25231136 | G89: 11.90336412 | H89: 379.9659774 | I89: 67.25231136
A90: 87 | B90: 71.9959069 | C90: 173.1354722 | D90: 3.867362271 | E90: 132.9271691 | F90: 22.67327763 | G90: 3.867362271 | H90: 132.9271691 | I90: 22.67327763
A91: 88 | B91: 66.76504149 | C91: 156.1266388 | D91: 10.65568308 | E91: 30.02414163 | F91: 17.88652392 | G91: 10.65568308 | H91: 30.02414163 | I91: 17.88652392
A92: 89 | B92: 71.15381831 | C92: 162.3342115 | D92: 1.264438256 | E92: 0.5301933885 | F92: 0.8187776277 | G92: 1.264438256 | H92: 0.5301933885 | I92: 0.8187776277
A93: 90 | B93: 67.91843379 | C93: 163.9815261 | D93: 4.455949824 | E93: 5.642802598 | F93: -5.014383835 | G93: 4.455949824 | H93: 5.642802598 | I93: -5.014383835
A94: 91 | B94: 69.51163441 | C94: 152.2586653 | D94: 0.2680251601 | E94: 87.37393089 | F94: 4.839257362 | G94: 0.2680251601 | H94: 87.37393089 | I94: 4.839257362
A95: 92 | B95: 71.02343264 | C95: 142.2562719 | D95: 0.9882085013 | E95: 374.4145984 | F95: -19.23537598 | G95: 0.9882085013 | H95: 374.4145984 | I95: -19.23537598
A96: 93 | B96: 71.86680426 | C96: 161.0542333 | D96: 3.376253314 | E96: 0.3045211895 | F96: -1.013972719 | G96: 3.376253314 | H96: 0 | I96: -1.013972719
A97: 94 | B97: 69.76365263 | C97: 154.4144852 | D97: 0.07059289925 | E97: 51.71885826 | F97: 1.910754864 | G97: 0.07059289925 | H97: 51.71885826 | I97: 1.910754864
A98: 95 | B98: 74.33300956 | C98: 182.4972003 | D98: 18.52152113 | E98: 436.4394207 | F98: 89.90840868 | G98: 18.52152113 | H98: 436.4394207 | I98: 89.90840868
A99: 96 | B99: 73.02050503 | C99: 166.3569692 | D99: 8.947033107 | E99: 22.5710654 | F99: 14.21070263 | G99: 8.947033107 | H99: 22.5710654 | I99: 14.21070263
A100: 97 | B100: 73.72562423 | C100: 172.5475412 | D100: 13.66247368 | E100: 119.7158413 | F100: 40.4427315 | G100: 13.66247368 | H100: 119.7158413 | I100: 40.4427315
A101: 98 | B101: 73.44736251 | C101: 191.6079086 | D101: 11.68283775 | E101: 900.1104554 | F101: 102.5467913 | G101: 11.68283775 | H101: 0 | I101: 102.5467913
A102: 99 | B102: 65.68425633 | C102: 145.8722328 | D102: 18.87980318 | E102: 247.5535605 | F102: 68.36492154 | G102: 18.87980318 | H102: 247.5535605 | I102: 68.36492154
A103: 100 | B103: 66.90422679 | C103: 162.0671608 | D103: 9.766369282 | E103: 0.2126068803 | F103: -1.440970959 | G103: 9.766369282 | H103: 0 | I103: -1.440970959
A104: 101 | B104: 69.98935182 | C104: 163.1720923 | D104: 0.001599524241 | E104: 2.452433132 | F104: -0.06263167125 | G104: 0 | H104: 2.452433132 | I104: -0.06263167125
A105: 102 | B105: 61.70660735 | C105: 143.2161385 | D105: 69.26797656 | E105: 338.1894964 | F105: 153.0545723 | G105: 0 | H105: 338.1894964 | I105: 0
A106: 103 | B106: 72.8797388 | C106: 151.9934375 | D106: 8.124739826 | E106: 92.40265997 | F106: -27.3997732 | G106: 8.124739826 | H106: 92.40265997 | I106: -27.3997732
A107: 104 | B107: 72.72441064 | C107: 146.282265 | D107: 7.263374081 | E107: 234.8189293 | F107: -41.29864072 | G107: 7.263374081 | H107: 234.8189293 | I107: 0
A108: 105 | B108: 74.25481157 | C108: 190.2721726 | D108: 17.85456033 | E108: 821.7455705 | F108: 121.1276428 | G108: 17.85456033 | H108: 0 | I108: 0
A109: 106 | B109: 71.07392189 | C109: 169.5453319 | D109: 1.09113905 | E109: 63.03191552 | F109: 8.293164922 | G109: 1.09113905 | H109: 63.03191552 | I109: 8.293164922
A110: 107 | B110: 71.63434532 | C110: 163.1166295 | D110: 2.576023219 | E110: 2.281796874 | F110: 2.42445081 | G110: 2.576023219 | H110: 2.281796874 | I110: 2.42445081
A111: 108 | B111: 74.88879892 | C111: 187.7338789 | D111: 23.6142839 | E111: 682.6625164 | F111: 126.9668716 | G111: 23.6142839 | H111: 682.6625164 | I111: 0
A112: 109 | B112: 67.23987899 | C112: 128.7208613 | D112: 7.781125482 | E112: 1081.4368 | F112: 91.73219416 | G112: 7.781125482 | H112: 0 | I112: 91.73219416
A113: 110 | B113: 68.45309637 | C113: 163.8499386 | D113: 2.484562494 | E113: 5.034956462 | F113: -3.536900336 | G113: 2.484562494 | H113: 5.034956462 | I113: -3.536900336
A114: 111 | B114: 69.46022372 | C114: 147.9869717 | D114: 0.3239000304 | E114: 185.4797759 | F114: 7.750929302 | G114: 0.3239000304 | H114: 185.4797759 | I114: 7.750929302
A115: 112 | B115: 66.94801339 | C115: 130.9928233 | D115: 9.494609898 | E115: 937.1707341 | F115: 94.32958459 | G115: 9.494609898 | H115: 0 | I115: 94.32958459
A116: 113 | B116: 68.52590306 | C116: 164.9782672 | D116: 2.260340296 | E116: 11.37172961 | F116: -5.069909139 | G116: 2.260340296 | H116: 11.37172961 | I116: -5.069909139
A117: 114 | B117: 72.72947936 | C117: 159.7872454 | D117: 7.290720828 | E117: 3.308114588 | F117: -4.911063014 | G117: 7.290720828 | H117: 3.308114588 | I117: -4.911063014
A118: 115 | B118: 67.60130747 | C118: 158.36545 | D118: 5.895370473 | E118: 10.50160335 | F118: 7.868344318 | G118: 5.895370473 | H118: 10.50160335 | I118: 7.868344318
A119: 116 | B119: 69.46428852 | C119: 165.2429747 | D119: 0.3192898173 | E119: 13.22709217 | F119: -2.055061031 | G119: 0.3192898173 | H119: 13.22709217 | I119: -2.055061031
A120: 117 | B120: 72.8921763 | C120: 183.0687773 | D120: 8.195798075 | E120: 460.6479048 | F120: 61.44409826 | G120: 8.195798075 | H120: 460.6479048 | I120: 61.44409826
A121: 118 | B121: 69.46149311 | C121: 167.1568824 | D121: 0.3224567644 | E121: 30.8115443 | F121: -3.152045507 | G121: 0.3224567644 | H121: 30.8115443 | I121: -3.152045507
A122: 119 | B122: 70.13856871 | C122: 171.4376218 | D122: 0.01192962855 | E122: 96.65945517 | F122: 1.073830245 | G122: 0 | H122: 96.65945517 | I122: 1.073830245
A123: 120 | B123: 74.07380549 | C123: 169.4258314 | D123: 16.35765358 | E123: 61.14870412 | F123: 31.62671843 | G123: 16.35765358 | H123: 61.14870412 | I123: 31.62671843
A124: 121 | B124: 71.08467338 | C124: 150.4930786 | D124: 1.113716142 | E124: 123.4985275 | F124: -11.72784309 | G124: 1.113716142 | H124: 123.4985275 | I124: -11.72784309
A125: 122 | B125: 68.60783197 | C125: 174.687818 | D125: 2.020701772 | E125: 171.1321897 | F125: -18.59588984 | G125: 2.020701772 | H125: 171.1321897 | I125: -18.59588984
A126: 123 | B126: 66.778743 | C126: 163.4793871 | D126: 10.56641903 | E126: 3.509325604 | F126: -6.089417446 | G126: 10.56641903 | H126: 3.509325604 | I126: -6.089417446
A127: 124 | B127: 71.75534784 | C127: 178.1132371 | D127: 2.979082783 | E127: 272.4866423 | F127: 28.49140685 | G127: 2.979082783 | H127: 272.4866423 | I127: 28.49140685
A128: 125 | B128: 70.65050248 | C128: 137.1021237 | D128: 0.385835532 | E128: 600.4432728 | F128: -15.22078676 | G128: 0.385835532 | H128: 600.4432728 | I128: -15.22078676
A129: 126 | B129: 69.51645331 | C129: 157.5480065 | D129: 0.2630587852 | E129: 16.46786043 | F129: 2.081349408 | G129: 0.2630587852 | H129: 16.46786043 | I129: 2.081349408
A130: 127 | B130: 68.44588647 | C130: 151.0278191 | D130: 2.50734368 | E130: 111.8993433 | F130: 16.7502272 | G130: 2.50734368 | H130: 111.8993433 | I130: 16.7502272
A131: 128 | B131: 71.43323974 | C131: 177.7176602 | D131: 1.970917974 | E131: 259.5834118 | F131: 22.61896576 | G131: 1.970917974 | H131: 259.5834118 | I131: 22.61896576
A132: 129 | B132: 70.56909432 | C132: 149.0256826 | D132: 0.2913283828 | E132: 158.2660892 | F132: -6.790243282 | G132: =AND(D132<$N$14,D132>$N$17)*D132 -> 0.2913283828 | H132: =AND(E132<$N$15,E132>$N$18)*E132 -> 158.2660892 | I132: =AND(F132<$N$16,F132>$N$19)*F132 -> -6.790243282
A133: 130 | B133: 73.13835112 | C133: 181.7555694 | D133: 9.665913639 | E133: 406.0024187 | F133: 62.64490655 | G133: 9.665913639 | H133: 406.0024187 | I133: 62.64490655
A134: 131 | B134: 68.04412365 | C134: 160.2559421 | D134: 3.941107275 | E134: 1.822839122 | F134: 2.680299335 | G134: 3.941107275 | H134: 1.822839122 | I134: 2.680299335
A135: 132 | B135: 74.44816055 | C135: 160.5860637 | D135: 19.52592313 | E135: 1.040408092 | F135: -4.507208495 | G135: 19.52592313 | H135: 1.040408092 | I135: -4.507208495
A136: 133 | B136: 71.31721668 | C136: 156.7163784 | D136: 1.658611215 | E136: 23.90906101 | F136: -6.297288047 | G136: 1.658611215 | H136: 23.90906101 | I136: -6.297288047
A137: 134 | B137: 65.4866644 | C137: 155.4070582 | D137: 20.63595495 | E137: 38.42771921 | F137: 28.16012575 | G137: 20.63595495 | H137: 38.42771921 | I137: 28.16012575
A138: 135 | B138: 72.10576305 | C138: 175.2602497 | D138: 4.311508297 | E138: 186.4366872 | F138: 28.35177814 | G138: 4.311508297 | H138: 186.4366872 | I138: 28.35177814
A139: 136 | B139: 67.24449669 | C139: 162.8415976 | D139: 7.755384961 | E139: 1.526534084 | F139: -3.440764374 | G139: 7.755384961 | H139: 1.526534084 | I139: -3.440764374
A140: 137 | B140: 72.9894045 | C140: 185.1229971 | D140: 8.761947065 | E140: 553.0459703 | F140: 69.61148983 | G140: 8.761947065 | H140: 553.0459703 | I140: 69.61148983
A141: 138 | B141: 70.56581793 | C141: 157.9144596 | D141: 0.2878022706 | E141: 13.62797022 | F141: -1.98044459 | G141: 0.2878022706 | H141: 13.62797022 | I141: -1.98044459
A142: 139 | B142: 74.25289638 | C142: 185.5930556 | D142: 17.83837887 | E142: 575.375588 | F142: 101.3102548 | G142: 17.83837887 | H142: 575.375588 | I142: 101.3102548
A143: 140 | B143: 72.83372344 | C143: 159.5829288 | D143: 7.864533519 | E143: 4.093091089 | F143: -5.673645395 | G143: 7.864533519 | H143: 4.093091089 | I143: -5.673645395
A144: 141 | B144: 69.42765162 | C144: 154.7573044 | D144: 0.3620359724 | E144: 46.90555827 | F144: 4.120861487 | G144: 0.3620359724 | H144: 46.90555827 | I144: 4.120861487
A145: 142 | B145: 70.58374559 | C145: 163.5098044 | D145: 0.307359048 | E145: 3.624213578 | F145: 1.055431113 | G145: 0.307359048 | H145: 3.624213578 | I145: 1.055431113
A146: 143 | B146: 70.19783199 | C146: 162.8784682 | D146: 0.02838757293 | E146: 1.619002943 | F146: 0.2143818185 | G146: 0 | H146: 1.619002943 | I146: 0.2143818185
A147: 144 | B147: 69.55423261 | C147: 155.7723622 | D147: 0.2257326115 | E147: 34.03212035 | F147: 2.771670868 | G147: 0.2257326115 | H147: 34.03212035 | I147: 2.771670868
A148: 145 | B148: 65.36845854 | C148: 150.620445 | D148: 21.72387076 | E148: 120.6839057 | F148: 51.20274964 | G148: 21.72387076 | H148: 120.6839057 | I148: 51.20274964
A149: 146 | B149: 64.1395842 | C149: 159.1163422 | D149: 34.68929255 | E149: 6.19873292 | F149: 14.66388965 | G149: 0 | H149: 6.19873292 | I149: 14.66388965
A150: 147 | B150: 70.17105734 | C150: 155.3583007 | D150: 0.02008213952 | E150: 39.03459213 | F150: -0.8853802151 | G150: 0 | H150: 39.03459213 | I150: -0.8853802151
A151: 148 | B151: 71.01263772 | C151: 157.6891746 | D151: 0.9668628473 | E151: 15.34205122 | F151: -3.85144899 | G151: 0.9668628473 | H151: 15.34205122 | I151: -3.85144899
A152: 149 | B152: 69.54449121 | C152: 177.5828891 | D152: 0.2350840411 | E152: 255.2588225 | F152: -7.746436312 | G152: 0.2350840411 | H152: 255.2588225 | I152: -7.746436312
A153: 150 | B153: 73.73128276 | C153: 179.8091735 | D153: 13.70433672 | E153: 331.3530621 | F153: 67.38674896 | G153: 13.70433672 | H153: 331.3530621 | I153: 67.38674896
A154: 151 | B154: 71.92076096 | C154: 165.1340506 | D154: 3.577451043 | E154: 12.44666317 | F154: 6.672880047 | G154: 3.577451043 | H154: 12.44666317 | I154: 6.672880047
A155: 152 | B155: 66.15342039 | C155: 171.5220038 | D155: 15.02279834 | E155: 98.32578895 | F155: -38.43342945 | G155: 15.02279834 | H155: 98.32578895 | I155: 0
A156: 153 | B156: 72.66845163 | C156: 158.444664 | D156: 6.964879166 | E156: 9.994473462 | F156: -8.343278731 | G156: 6.964879166 | H156: 9.994473462 | I156: -8.343278731
A157: 154 | B157: 69.79607975 | C157: 158.0682468 | D157: 0.05441308521 | E157: 12.5161768 | F157: 0.8252537761 | G157: 0.05441308521 | H157: 12.5161768 | I157: 0.8252537761
A158: 155 | B158: 63.16520992 | C158: 123.7715368 | D158: 47.11636241 | E158: 1431.451727 | F158: 259.7013638 | G158: 0 | H158: 0 | I158: 0
A159: 156 | B159: 71.19677464 | C159: 170.7136141 | D159: 1.362889918 | E159: 82.94740137 | F159: 10.63241163 | G159: 1.362889918 | H159: 82.94740137 | I159: 10.63241163
A160: 157 | B160: 70.1912902 | C160: 153.1454769 | D160: 0.02622596328 | E160: 71.58159735 | F160: -1.370144643 | G160: 0 | H160: 71.58159735 | I160: -1.370144643
A161: 158 | B161: 65.83530092 | C161: 156.725842 | D161: 17.5900131 | E161: 23.81660248 | F161: 20.46788581 | G161: 17.5900131 | H161: 23.81660248 | I161: 20.46788581
A162: 159 | B162: 70.97647682 | C162: 138.888788 | D162: 0.8970570207 | E162: 516.0747968 | F162: -21.51623851 | G162: 0.8970570207 | H162: 516.0747968 | I162: -21.51623851
A163: 160 | B163: 73.77189976 | C163: 152.7023355 | D163: 14.00670957 | E163: 79.2764467 | F163: -33.32269744 | G163: 14.00670957 | H163: 79.2764467 | I163: 0
A164: 161 | B164: 68.93452288 | C164: 145.3280275 | D164: 1.198637383 | E164: 264.9745944 | F164: 17.82157273 | G164: 1.198637383 | H164: 264.9745944 | I164: 17.82157273
A165: 162 | B165: 66.03873886 | C165: 161.8673202 | D165: 15.92494435 | E165: 0.06825284069 | F165: -1.042555845 | G165: 15.92494435 | H165: 0 | I165: -1.042555845
A166: 163 | B166: 69.35133254 | C166: 148.9728655 | D166: 0.4597020804 | E166: 159.5977976 | F166: 8.565479529 | G166: 0.4597020804 | H166: 159.5977976 | I166: 8.565479529
A167: 164 | B167: 66.67259933 | C167: 155.5323073 | D167: 11.26774737 | E167: 36.89056519 | F167: 20.38807419 | G167: 11.26774737 | H167: 36.89056519 | I167: 20.38807419
A168: 165 | B168: 72.27454733 | C168: 188.8804769 | D168: 5.040929572 | E168: 743.8933973 | F168: 61.23654321 | G168: 5.040929572 | H168: 0 | I168: 61.23654321
A169: 166 | B169: 74.24456298 | C169: 174.9467824 | D169: 17.76805523 | E169: 177.9746698 | F169: 56.23400894 | G169: 17.76805523 | H169: 177.9746698 | I169: 56.23400894
A170: 167 | B170: 72.02685183 | C170: 176.5044519 | D170: 3.990030027 | E170: 221.9618518 | F170: 29.75961111 | G170: 3.990030027 | H170: 221.9618518 | I170: 29.75961111
A171: 168 | B171: 72.78742424 | C171: 158.3937318 | D171: 7.606996264 | E171: 10.31910224 | F171: -8.859874276 | G171: 7.606996264 | H171: 10.31910224 | I171: -8.859874276
A172: 169 | B172: 73.53635403 | C172: 172.5084512 | D172: 12.29910622 | E172: 118.8619665 | F172: 38.23474795 | G172: 12.29910622 | H172: 118.8619665 | I172: 38.23474795
A173: 170 | B173: 65.37285737 | C173: 145.8842592 | D173: 21.68288523 | E173: 247.1752635 | F173: 73.20842076 | G173: 21.68288523 | H173: 247.1752635 | I173: 73.20842076
A174: 171 | B174: 67.76076707 | C174: 158.8954329 | D174: 5.14644979 | E174: 7.34754129 | F174: 6.149288766 | G174: 5.14644979 | H174: 7.34754129 | I174: 6.149288766
A175: 172 | B175: 72.17007281 | C175: 174.3288405 | D175: 4.582711801 | E175: 161.8689484 | F175: 27.23598245 | G175: 4.582711801 | H175: 161.8689484 | I175: 27.23598245
A176: 173 | B176: 68.39012804 | C176: 169.9482842 | D176: 2.687035094 | E176: 69.59257542 | F176: -13.67470996 | G176: 2.687035094 | H176: 69.59257542 | I176: -13.67470996
A177: 174 | B177: 72.42067417 | C177: 159.5886426 | D177: 5.718451034 | E177: 4.070004196 | F177: -4.824325829 | G177: 5.718451034 | H177: 4.070004196 | I177: -4.824325829
A178: 175 | B178: 70.29179473 | C178: 201.7485895 | D178: 0.06887940442 | E178: 1611.42206 | F178: 10.53535912 | G178: 0.06887940442 | H178: 0 | I178: 10.53535912
A179: 176 | B179: 69.98153809 | C179: 167.1649034 | D179: 0.002285584388 | E179: 30.90065383 | F179: -0.2657556245 | G179: 0 | H179: 30.90065383 | I179: -0.2657556245
A180: 177 | B180: 64.79821554 | C180: 146.8034034 | D180: 27.36472453 | E180: 219.1188704 | F180: 77.4346662 | G180: 27.36472453 | H180: 219.1188704 | I180: 77.4346662
A181: 178 | B181: 74.75303801 | C181: 160.8131997 | D181: 22.31326742 | E181: 0.6286396276 | F181: -3.745264226 | G181: 22.31326742 | H181: 0.6286396276 | I181: -3.745264226
A182: 179 | B182: 74.15042674 | C182: 191.6449847 | D182: 16.98330749 | E182: 902.3365359 | F182: 123.7928061 | G182: 16.98330749 | H182: 0 | I182: 0
A183: 180 | B183: 70.34341469 | C183: 146.3603351 | D183: 0.09863922345 | E183: 232.4323622 | F183: -4.788209238 | G183: 0.09863922345 | H183: 232.4323622 | I183: -4.788209238
A184: 181 | B184: 72.27041405 | C184: 165.1482464 | D184: 5.022386582 | E184: 12.54703022 | F184: 7.938264057 | G184: 5.022386582 | H184: 12.54703022 | I184: 7.938264057
A185: 182 | B185: 73.14382308 | C185: 180.6961538 | D185: 9.699968274 | E185: 364.4313869 | F185: 59.45563801 | G185: 9.699968274 | H185: 364.4313869 | I185: 59.45563801
A186: 183 | B186: 72.24764765 | C186: 157.0869113 | D186: 4.92086279 | E186: 20.42277477 | F186: -10.02485274 | G186: 4.92086279 | H186: 20.42277477 | I186: -10.02485274
A187: 184 | B187: 68.54167893 | C187: 148.0982625 | D187: 2.213152926 | E187: 182.4608008 | F187: 20.09511521 | G187: 2.213152926 | H187: 182.4608008 | I187: 20.09511521
A188: 185 | B188: 68.49678867 | C188: 152.2014575 | D188: 2.348731598 | E188: 88.44669325 | F188: 14.41310318 | G188: 2.348731598 | H188: 88.44669325 | I188: 14.41310318
A189: 186 | B189: 76.24707247 | C189: 161.1450957 | D189: 38.66012397 | E189: 0.2124951635 | F189: -2.866197719 | G189: 0 | H189: 0 | I189: -2.866197719
A190: 187 | B190: 65.9794391 | C190: 159.1120505 | D190: 16.40174489 | E190: 6.220121993 | F190: 10.10053732 | G190: 16.40174489 | H190: 6.220121993 | I190: 10.10053732
A191: 188 | B191: 71.180661 | C191: 161.5746363 | D191: 1.325526517 | E191: 0.0009879343606 | F191: -0.03618747286 | G191: 1.325526517 | H191: 0 | I191: -0.03618747286
A192: 189 | B192: 67.80139281 | C192: 158.5008364 | D192: 4.963774839 | E192: 9.642461345 | F192: 6.918309548 | G192: 4.963774839 | H192: 9.642461345 | I192: 6.918309548
A193: 190 | B193: 68.45905656 | C193: 156.7266533 | D193: 2.465808537 | E193: 23.80868468 | F193: 7.662092269 | G193: 2.465808537 | H193: 23.80868468 | I193: 7.662092269
A194: 191 | B194: 66.81630819 | C194: 142.8457982 | D194: 10.32361114 | E194: 351.9477102 | F194: 60.27745268 | G194: 10.32361114 | H194: 351.9477102 | I194: 60.27745268
A195: 192 | B195: 67.08095164 | C195: 150.7550458 | D195: 8.693028544 | E195: 117.7446766 | F195: 31.99309042 | G195: 8.693028544 | H195: 117.7446766 | I195: 31.99309042
A196: 193 | B196: 70.28233238 | C196: 160.9989407 | D196: 0.06400217266 | E196: 0.3686032158 | F196: -0.1535949435 | G196: =AND(D196<$N$14,D196>$N$17)*D196 -> 0.06400217266 | H196: =AND(E196<$N$15,E196>$N$18)*E196 -> 0 | I196: =AND(F196<$N$16,F196>$N$19)*F196 -> -0.1535949435
A197: 194 | B197: 67.10876509 | C197: 162.5844465 | D197: 8.529792137 | E197: 0.9572250613 | F197: -2.857434304 | G197: 8.529792137 | H197: 0.9572250613 | I197: -2.857434304
A198: 195 | B198: 67.38319238 | C198: 142.201884 | D198: 7.002128325 | E198: 376.5223434 | F198: 51.34644842 | G198: 7.002128325 | H198: 376.5223434 | I198: 51.34644842
A199: 196 | B199: 72.072698 | C199: 178.4418879 | D199: 4.175287912 | E199: 283.4448419 | F199: 34.40150901 | G199: 4.175287912 | H199: 283.4448419 | I199: 34.40150901
A200: 197 | B200: 73.99964359 | C200: 186.7099983 | D200: 15.76326395 | E200: 630.2073317 | F200: 99.67007831 | G200: 15.76326395 | H200: 630.2073317 | I200: 99.67007831
A201: 198 | B201: 69.01831506 | C201: 148.5578991 | D201: 1.022183304 | E201: 170.2547028 | F201: 13.19210046 | G201: 1.022183304 | H201: 170.2547028 | I201: 13.19210046
... 802 more rows

Sheet Univariate Alpha-Winsorized
A1: Calculating the Univariate Alpha-Winsorized Pearson Correlation Coefficient
A5: Observation Number | B5: X | C5: Y | D5: Winsorized X | E5: Winsorized Y | H5: Comparison of Manually Calculated Correlation with Macro Calculation | M5: Alpha-Trimmed Correlation Applied to the Paired Data Series From the "Simulated Data" Worksheet
A6: 1 | B6: 69.59024759 | C6: 179.2035405 | D6: =IF($B6>$J$20,$J$20,IF($B6<$J$19,$J$19,$B6)) -> 69.59024759 | E6: =IF($C6>$J$22,$J$22,IF($C6<$J$21,$J$21,$C6)) -> 179.2035405 | H6: Calculated Winsorized = | J6: =CORREL(D6:D1005,E6:E1005) -> 0.462652869
A7: 2 | B7: 75.90042113 | C7: 148.634771 | D7: 74.74398993 | E7: 148.634771 | H7: VBA Winsorized = | J7: =UVWCorr(B6:B1005,C6:C1005,J16) -> 0.462652869 | M7: U1(0,1), U2(0,1) | N7: =UVWCorr('Simulated Data'!$B$4:$B$1003,'Simulated Data'!$C$4:$C$1003,J16) -> 0.01850096984
A8: 3 | B8: 68.70319257 | C8: 148.2832815 | D8: 68.70319257 | E8: 148.2832815 | M8: N1(0,1), N2(0,1) | N8: =UVWCorr('Simulated Data'!$D$4:$D$1003,'Simulated Data'!$E$4:$E$1003,J16) -> -0.02257191187
A9: 4 | B9: 70.30671509 | C9: 161.1189805 | D9: 70.30671509 | E9: 161.1189805 | M9: X, Y (Correlated) | N9: =UVWCorr('Simulated Data'!$F$4:$F$1003,'Simulated Data'!$G$4:$G$1003,J16) -> 0.462652869
A10: 5 | B10: 67.3750767 | C10: 167.5735679 | D10: 67.3750767 | E10: 167.5735679 | M10: Ranks of (X, Y) | N10: =UVWCorr('Simulated Data'!$H$4:$H$1003,'Simulated Data'!$I$4:$I$1003,J16) -> 0.4450384813
A11: 6 | B11: 70.30370117 | C11: 166.757326 | D11: 70.30370117 | E11: 166.757326 | M11: (X, Y) with duplicates | N11: =UVWCorr('Simulated Data'!$J$4:$J$1003,'Simulated Data'!$K$4:$K$1003,J16) -> 0.462652933
A12: 7 | B12: 72.046436 | C12: 158.1402947 | D12: 72.046436 | E12: 158.1402947 | M12: Ranks of (X, Y) with duplicates | N12: =UVWCorr('Simulated Data'!$L$4:$L$1003,'Simulated Data'!$M$4:$M$1003,J16) -> 0.4450605584
A13: 8 | B13: 69.65903862 | C13: 151.4591575 | D13: 69.65903862 | E13: 151.4591575
A14: 9 | B14: 74.29144862 | C14: 185.9929006 | D14: 74.29144862 | E14: 185.5930556 | H14: Intermediate Calculations for the Alpha-Winsorized Correlation
A15: 10 | B15: 65.64948847 | C15: 147.6030784 | D15: 65.64948847 | E15: 147.6030784
A16: 11 | B16: 69.74269715 | C16: 154.6594908 | D16: 69.74269715 | E16: 154.6594908 | H16: Alpha-Winsorizing Factor = | J16: 0.1 | M16: Notes:
A17: 12 | B17: 69.92351191 | C17: 155.0106918 | D17: 69.92351191 | E17: 155.0106918 | H17: Sample Size = | J17: =COUNT(A6:A1005) -> 1000
A18: 13 | B18: 71.27244255 | C18: 167.9248667 | D18: 71.27244255 | E18: 167.9248667 | H18: Number of Obs to Winsorize = | J18: =FLOOR(J16*J17,2) -> 100
A19: 14 | B19: 68.20918455 | C19: 170.8602726 | D19: 68.20918455 | E19: 170.8602726 | H19: Lower X Cutoff Value = | J19: =SMALL($B$6:$B$1005,$J$18/2+1) -> 65.08036494
A20: 15 | B20: 71.98267049 | C20: 177.2631872 | D20: 71.98267049 | E20: 177.2631872 | H20: Upper X Cutoff Value = | J20: =LARGE($B$6:$B$1005,$J$18/2+1) -> 74.74398993
A21: 16 | B21: 64.96950385 | C21: 170.4605236 | D21: 65.08036494 | E21: 170.4605236 | H21: Lower Y Cutoff Value = | J21: =SMALL($C$6:$C$1005,$J$18/2+1) -> 139.4727544
A22: 17 | B22: 67.56420314 | C22: 158.2215903 | D22: 67.56420314 | E22: 158.2215903 | H22: Upper Y Cutoff Value = | J22: =LARGE($C$6:$C$1005,$J$18/2+1) -> 185.5930556
A23: 18 | B23: 72.34811075 | C23: 168.0844596 | D23: 72.34811075 | E23: 168.0844596
A24: 19 | B24: 73.39999773 | C24: 186.4382187 | D24: 73.39999773 | E24: 185.5930556
A25: 20 | B25: 70.63087883 | C25: 145.0970574 | D25: 70.63087883 | E25: 145.0970574
A26: 21 | B26: 70.11967655 | C26: 138.1029989 | D26: 70.11967655 | E26: 139.4727544
A27: 22 | B27: 66.18716528 | C27: 144.0183644 | D27: 66.18716528 | E27: 144.0183644
A28: 23 | B28: 73.78144069 | C28: 194.1955585 | D28: 73.78144069 | E28: 185.5930556
A29: 24 | B29: 67.09498212 | C29: 159.5028359 | D29: 67.09498212 | E29: 159.5028359
A30: 25 | B30: 69.93828021 | C30: 159.3274787 | D30: 69.93828021 | E30: 159.3274787
A31: 26 | B31: 69.15218537 | C31: 169.6787571 | D31: 69.15218537 | E31: 169.6787571
A32: 27 | B32: 69.97904194 | C32: 169.2641729 | D32: 69.97904194 | E32: 169.2641729
A33: 28 | B33: 65.23138892 | C33: 150.1850862 | D33: 65.23138892 | E33: 150.1850862
A34: 29 | B34: 69.18991845 | C34: 162.13541 | D34: 69.18991845 | E34: 162.13541
A35: 30 | B35: 70.7218467 | C35: 179.8605007 | D35: 70.7218467 | E35: 179.8605007
A36: 31 | B36: 73.08646681 | C36: 167.345485 | D36: 73.08646681 | E36: 167.345485
A37: 32 | B37: 72.42004776 | C37: 176.7791011 | D37: 72.42004776 | E37: 176.7791011
A38: 33 | B38: 64.43216286 | C38: 134.4075192 | D38: 65.08036494 | E38: 139.4727544
A39: 34 | B39: 70.27480576 | C39: 157.565493 | D39: 70.27480576 | E39: 157.565493
A40: 35 | B40: 68.1393137 | C40: 139.4283219 | D40: 68.1393137 | E40: 139.4727544
A41: 36 | B41: 74.47045905 | C41: 176.306214 | D41: 74.47045905 | E41: 176.306214
A42: 37 | B42: 66.39420939 | C42: 143.0109076 | D42: 66.39420939 | E42: 143.0109076
A43: 38 | B43: 71.51880731 | C43: 168.2380568 | D43: 71.51880731 | E43: 168.2380568
A44: 39 | B44: 71.11033365 | C44: 154.6312858 | D44: 71.11033365 | E44: 154.6312858
A45: 40 | B45: 69.82809183 | C45: 178.5105441 | D45: 69.82809183 | E45: 178.5105441
A46: 41 | B46: 71.00384778 | C46: 174.7647687 | D46: 71.00384778 | E46: 174.7647687
A47: 42 | B47: 68.16229315 | C47: 165.5278601 | D47: 68.16229315 | E47: 165.5278601
A48: 43 | B48: 69.41568546 | C48: 142.5146991 | D48: 69.41568546 | E48: 142.5146991
A49: 44 | B49: 70.85962855 | C49: 175.8377286 | D49: 70.85962855 | E49: 175.8377286
A50: 45 | B50: 68.00908012 | C50: 170.5361346 | D50: 68.00908012 | E50: 170.5361346
A51: 46 | B51: 71.79456065 | C51: 161.165496 | D51: 71.79456065 | E51: 161.165496
A52: 47 | B52: 67.75641297 | C52: 154.8749646 | D52: 67.75641297 | E52: 154.8749646
A53: 48 | B53: 68.65060179 | C53: 159.3540304 | D53: 68.65060179 | E53: 159.3540304
A54: 49 | B54: 71.65713108 | C54: 187.6360219 | D54: 71.65713108 | E54: 185.5930556
A55: 50 | B55: 68.95997709 | C55: 167.8543877 | D55: 68.95997709 | E55: 167.8543877
A56: 51 | B56: 68.44237462 | C56: 163.8016713 | D56: 68.44237462 | E56: 163.8016713
A57: 52 | B57: 72.64891234 | C57: 164.4651827 | D57: 72.64891234 | E57: 164.4651827
A58: 53 | B58: 64.16689684 | C58: 157.7714021 | D58: 65.08036494 | E58: 157.7714021
A59: 54 | B59: 69.53677122 | C59: 160.6378795 | D59: 69.53677122 | E59: 160.6378795
A60: 55 | B60: 68.52794302 | C60: 142.8477662 | D60: 68.52794302 | E60: 142.8477662
A61: 56 | B61: 68.5118249 | C61: 133.197115 | D61: 68.5118249 | E61: 139.4727544
A62: 57 | B62: 70.28039146 | C62: 179.5151704 | D62: 70.28039146 | E62: 179.5151704
A63: 58 | B63: 68.95148951 | C63: 154.5936208 | D63: 68.95148951 | E63: 154.5936208
A64: 59 | B64: 76.13678496 | C64: 167.102771 | D64: 74.74398993 | E64: 167.102771
A65: 60 | B65: 72.68803547 | C65: 162.4174685 | D65: 72.68803547 | E65: 162.4174685
A66: 61 | B66: 71.29852334 | C66: 165.1235083 | D66: 71.29852334 | E66: 165.1235083
A67: 62 | B67: 73.96392728 | C67: 175.8806819 | D67: 73.96392728 | E67: 175.8806819
A68: 63 | B68: 68.34454044 | C68: 174.4574496 | D68: 68.34454044 | E68: 174.4574496
A69: 64 | B69: 69.95782012 | C69: 161.4350221 | D69: 69.95782012 | E69: 161.4350221
A70: 65 | B70: 71.61445169 | C70: 154.6414632 | D70: =IF($B70>$J$20,$J$20,IF($B70<$J$19,$J$19,$B70)) -> 71.61445169 | E70: =IF($C70>$J$22,$J$22,IF($C70<$J$21,$J$21,$C70)) -> 154.6414632
A71: 66 | B71: 72.77260559 | C71: 185.8068797 | D71: 72.77260559 | E71: 185.5930556
A72: 67 | B72: 67.59161206 | C72: 168.3994952 | D72: 67.59161206 | E72: 168.3994952
A73: 68 | B73: 70.62542637 | C73: 181.3665741 | D73: 70.62542637 | E73: 181.3665741
A74: 69 | B74: 70.56596848 | C74: 152.4950221 | D74: 70.56596848 | E74: 152.4950221
A75: 70 | B75: 70.66886091 | C75: 160.9386736 | D75: 70.66886091 | E75: 160.9386736
A76: 71 | B76: 69.85923458 | C76: 173.2838986 | D76: 69.85923458 | E76: 173.2838986
A77: 72 | B77: 72.80264454 | C77: 153.6540441 | D77: 72.80264454 | E77: 153.6540441
A78: 73 | B78: 69.22604171 | C78: 159.74142 | D78: 69.22604171 | E78: 159.74142
A79: 74 | B79: 66.61983866 | C79: 177.7115498 | D79: 66.61983866 | E79: 177.7115498
A80: 75 | B80: 66.12264851 | C80: 170.86176 | D80: 66.12264851 | E80: 170.86176
A81: 76 | B81: 75.29848228 | C81: 167.9362434 | D81: 74.74398993 | E81: 167.9362434
A82: 77 | B82: 78.77680626 | C82: 177.5387429 | D82: 74.74398993 | E82: 177.5387429
A83: 78 | B83: 76.09356413 | C83: 178.3484859 | D83: 74.74398993 | E83: 178.3484859
A84: 79 | B84: 65.89089868 | C84: 163.5776839 | D84: 65.89089868 | E84: 163.5776839
A85: 80 | B85: 70.2867311 | C85: 147.2331273 | D85: 70.2867311 | E85: 147.2331273
A86: 81 | B86: 71.81489191 | C86: 163.8140279 | D86: 71.81489191 | E86: 163.8140279
A87: 82 | B87: 70.25339556 | C87: 176.2836325 | D87: 70.25339556 | E87: 176.2836325
A88: 83 | B88: 69.38942282 | C88: 158.2411932 | D88: 69.38942282 | E88: 158.2411932
A89: 84 | B89: 72.04563341 | C89: 191.6844267 | D89: 72.04563341 | E89: 185.5930556
A90: 85 | B90: 69.89492867 | C90: 166.0528146 | D90: 69.89492867 | E90: 166.0528146
A91: 86 | B91: 66.57922064 | C91: 142.1133517 | D91: 66.57922064 | E91: 142.1133517
A92: 87 | B92: 71.9959069 | C92: 173.1354722 | D92: 71.9959069 | E92: 173.1354722
A93: 88 | B93: 66.76504149 | C93: 156.1266388 | D93: 66.76504149 | E93: 156.1266388
A94: 89 | B94: 71.15381831 | C94: 162.3342115 | D94: 71.15381831 | E94: 162.3342115
A95: 90 | B95: 67.91843379 | C95: 163.9815261 | D95: 67.91843379 | E95: 163.9815261
A96: 91 | B96: 69.51163441 | C96: 152.2586653 | D96: 69.51163441 | E96: 152.2586653
A97: 92 | B97: 71.02343264 | C97: 142.2562719 | D97: 71.02343264 | E97: 142.2562719
A98: 93 | B98: 71.86680426 | C98: 161.0542333 | D98: 71.86680426 | E98: 161.0542333
A99: 94 | B99: 69.76365263 | C99: 154.4144852 | D99: 69.76365263 | E99: 154.4144852
A100: 95 | B100: 74.33300956 | C100: 182.4972003 | D100: 74.33300956 | E100: 182.4972003
A101: 96 | B101: 73.02050503 | C101: 166.3569692 | D101: 73.02050503 | E101: 166.3569692
A102: 97 | B102: 73.72562423 | C102: 172.5475412 | D102: 73.72562423 | E102: 172.5475412
A103: 98 | B103: 73.44736251 | C103: 191.6079086 | D103: 73.44736251 | E103: 185.5930556
A104: 99 | B104: 65.68425633 | C104: 145.8722328 | D104: 65.68425633 | E104: 145.8722328
A105: 100 | B105: 66.90422679 | C105: 162.0671608 | D105: 66.90422679 | E105: 162.0671608
A106: 101 | B106: 69.98935182 | C106: 163.1720923 | D106: 69.98935182 | E106: 163.1720923
A107: 102 | B107: 61.70660735 | C107: 143.2161385 | D107: 65.08036494 | E107: 143.2161385
A108: 103 | B108: 72.8797388 | C108: 151.9934375 | D108: 72.8797388 | E108: 151.9934375
A109: 104 | B109: 72.72441064 | C109: 146.282265 | D109: 72.72441064 | E109: 146.282265
A110: 105 | B110: 74.25481157 | C110: 190.2721726 | D110: 74.25481157 | E110: 185.5930556
A111: 106 | B111: 71.07392189 | C111: 169.5453319 | D111: 71.07392189 | E111: 169.5453319
A112: 107 | B112: 71.63434532 | C112: 163.1166295 | D112: 71.63434532 | E112: 163.1166295
A113: 108 | B113: 74.88879892 | C113: 187.7338789 | D113: 74.74398993 | E113: 185.5930556
A114: 109 | B114: 67.23987899 | C114: 128.7208613 | D114: 67.23987899 | E114: 139.4727544
A115: 110 | B115: 68.45309637 | C115: 163.8499386 | D115: 68.45309637 | E115: 163.8499386
A116: 111 | B116: 69.46022372 | C116: 147.9869717 | D116: 69.46022372 | E116: 147.9869717
A117: 112 | B117: 66.94801339 | C117: 130.9928233 | D117: 66.94801339 | E117: 139.4727544
A118: 113 | B118: 68.52590306 | C118: 164.9782672 | D118: 68.52590306 | E118: 164.9782672
A119: 114 | B119: 72.72947936 | C119: 159.7872454 | D119: 72.72947936 | E119: 159.7872454
A120: 115 | B120: 67.60130747 | C120: 158.36545 | D120: 67.60130747 | E120: 158.36545
A121: 116 | B121: 69.46428852 | C121: 165.2429747 | D121: 69.46428852 | E121: 165.2429747
A122: 117 | B122: 72.8921763 | C122: 183.0687773 | D122: 72.8921763 | E122: 183.0687773
A123: 118 | B123: 69.46149311 | C123: 167.1568824 | D123: 69.46149311 | E123: 167.1568824
A124: 119 | B124: 70.13856871 | C124: 171.4376218 | D124: 70.13856871 | E124: 171.4376218
A125: 120 | B125: 74.07380549 | C125: 169.4258314 | D125: 74.07380549 | E125: 169.4258314
A126: 121 | B126: 71.08467338 | C126: 150.4930786 | D126: 71.08467338 | E126: 150.4930786
A127: 122 | B127: 68.60783197 | C127: 174.687818 | D127: 68.60783197 | E127: 174.687818
A128: 123 | B128: 66.778743 | C128: 163.4793871 | D128: 66.778743 | E128: 163.4793871
A129: 124 | B129: 71.75534784 | C129: 178.1132371 | D129: 71.75534784 | E129: 178.1132371
A130: 125 | B130: 70.65050248 | C130: 137.1021237 | D130: 70.65050248 | E130: 139.4727544
A131: 126 | B131: 69.51645331 | C131: 157.5480065 | D131: 69.51645331 | E131: 157.5480065
A132: 127 | B132: 68.44588647 | C132: 151.0278191 | D132: 68.44588647 | E132: 151.0278191
A133: 128 | B133: 71.43323974 | C133: 177.7176602 | D133: 71.43323974 | E133: 177.7176602
A134: 129 | B134: 70.56909432 | C134: 149.0256826 | D134: =IF($B134>$J$20,$J$20,IF($B134<$J$19,$J$19,$B134)) -> 70.56909432 | E134: =IF($C134>$J$22,$J$22,IF($C134<$J$21,$J$21,$C134)) -> 149.0256826
A135: 130 | B135: 73.13835112 | C135: 181.7555694 | D135: 73.13835112 | E135: 181.7555694
A136: 131 | B136: 68.04412365 | C136: 160.2559421 | D136: 68.04412365 | E136: 160.2559421
A137: 132 | B137: 74.44816055 | C137: 160.5860637 | D137: 74.44816055 | E137: 160.5860637
A138: 133 | B138: 71.31721668 | C138: 156.7163784 | D138: 71.31721668 | E138: 156.7163784
A139: 134 | B139: 65.4866644 | C139: 155.4070582 | D139: 65.4866644 | E139: 155.4070582
A140: 135 | B140: 72.10576305 | C140: 175.2602497 | D140: 72.10576305 | E140: 175.2602497
A141: 136 | B141: 67.24449669 | C141: 162.8415976 | D141: 67.24449669 | E141: 162.8415976
A142: 137 | B142: 72.9894045 | C142: 185.1229971 | D142: 72.9894045 | E142: 185.1229971
A143: 138 | B143: 70.56581793 | C143: 157.9144596 | D143: 70.56581793 | E143: 157.9144596
A144: 139 | B144: 74.25289638 | C144: 185.5930556 | D144: 74.25289638 | E144: 185.5930556
A145: 140 | B145: 72.83372344 | C145: 159.5829288 | D145: 72.83372344 | E145: 159.5829288
A146: 141 | B146: 69.42765162 | C146: 154.7573044 | D146: 69.42765162 | E146: 154.7573044
A147: 142 | B147: 70.58374559 | C147: 163.5098044 | D147: 70.58374559 | E147: 163.5098044
A148: 143 | B148: 70.19783199 | C148: 162.8784682 | D148: 70.19783199 | E148: 162.8784682
A149: 144 | B149: 69.55423261 | C149: 155.7723622 | D149: 69.55423261 | E149: 155.7723622
A150: 145 | B150: 65.36845854 | C150: 150.620445 | D150: 65.36845854 | E150: 150.620445
A151: 146 | B151: 64.1395842 | C151: 159.1163422 | D151: 65.08036494 | E151: 159.1163422
A152: 147 | B152: 70.17105734 | C152: 155.3583007 | D152: 70.17105734 | E152: 155.3583007
A153: 148 | B153: 71.01263772 | C153: 157.6891746 | D153: 71.01263772 | E153: 157.6891746
A154: 149 | B154: 69.54449121 | C154: 177.5828891 | D154: 69.54449121 | E154: 177.5828891
A155: 150 | B155: 73.73128276 | C155: 179.8091735 | D155: 73.73128276 | E155: 179.8091735
A156: 151 | B156: 71.92076096 | C156: 165.1340506 | D156: 71.92076096 | E156: 165.1340506
A157: 152 | B157: 66.15342039 | C157: 171.5220038 | D157: 66.15342039 | E157: 171.5220038
A158: 153 | B158: 72.66845163 | C158: 158.444664 | D158: 72.66845163 | E158: 158.444664
A159: 154 | B159: 69.79607975 | C159: 158.0682468 | D159: 69.79607975 | E159: 158.0682468
A160: 155 | B160: 63.16520992 | C160: 123.7715368 | D160: 65.08036494 | E160: 139.4727544
A161: 156 | B161: 71.19677464 | C161: 170.7136141 | D161: 71.19677464 | E161: 170.7136141
A162: 157 | B162: 70.1912902 | C162: 153.1454769 | D162: 70.1912902 | E162: 153.1454769
A163: 158 | B163: 65.83530092 | C163: 156.725842 | D163: 65.83530092 | E163: 156.725842
A164: 159 | B164: 70.97647682 | C164: 138.888788 | D164: 70.97647682 | E164: 139.4727544
A165: 160 | B165: 73.77189976 | C165: 152.7023355 | D165: 73.77189976 | E165: 152.7023355
A166: 161 | B166: 68.93452288 | C166: 145.3280275 | D166: 68.93452288 | E166: 145.3280275
A167: 162 | B167: 66.03873886 | C167: 161.8673202 | D167: 66.03873886 | E167: 161.8673202
A168: 163 | B168: 69.35133254 | C168: 148.9728655 | D168: 69.35133254 | E168: 148.9728655
A169: 164 | B169: 66.67259933 | C169: 155.5323073 | D169: 66.67259933 | E169: 155.5323073
A170: 165 | B170: 72.27454733 | C170: 188.8804769 | D170: 72.27454733 | E170: 185.5930556
A171: 166 | B171: 74.24456298 | C171: 174.9467824 | D171: 74.24456298 | E171: 174.9467824
A172: 167 | B172: 72.02685183 | C172: 176.5044519 | D172: 72.02685183 | E172: 176.5044519
A173: 168 | B173: 72.78742424 | C173: 158.3937318 | D173: 72.78742424 | E173: 158.3937318
A174: 169 | B174: 73.53635403 | C174: 172.5084512 | D174: 73.53635403 | E174: 172.5084512
A175: 170 | B175: 65.37285737 | C175: 145.8842592 | D175: 65.37285737 | E175: 145.8842592
A176: 171 | B176: 67.76076707 | C176: 158.8954329 | D176: 67.76076707 | E176: 158.8954329
A177: 172 | B177: 72.17007281 | C177: 174.3288405 | D177: 72.17007281 | E177: 174.3288405
A178: 173 | B178: 68.39012804 | C178: 169.9482842 | D178: 68.39012804 | E178: 169.9482842
A179: 174 | B179: 72.42067417 | C179: 159.5886426 | D179: 72.42067417 | E179: 159.5886426
A180: 175 | B180: 70.29179473 | C180: 201.7485895 | D180: 70.29179473 | E180: 185.5930556
A181: 176 | B181: 69.98153809 | C181: 167.1649034 | D181: 69.98153809 | E181: 167.1649034
A182: 177 | B182: 64.79821554 | C182: 146.8034034 | D182: 65.08036494 | E182: 146.8034034
A183: 178 | B183: 74.75303801 | C183: 160.8131997 | D183: 74.74398993 | E183: 160.8131997
A184: 179 | B184: 74.15042674 | C184: 191.6449847 | D184: 74.15042674 | E184: 185.5930556
A185: 180 | B185: 70.34341469 | C185: 146.3603351 | D185: 70.34341469 | E185: 146.3603351
A186: 181 | B186: 72.27041405 | C186: 165.1482464 | D186: 72.27041405 | E186: 165.1482464
A187: 182 | B187: 73.14382308 | C187: 180.6961538 | D187: 73.14382308 | E187: 180.6961538
A188: 183 | B188: 72.24764765 | C188: 157.0869113 | D188: 72.24764765 | E188: 157.0869113
A189: 184 | B189: 68.54167893 | C189: 148.0982625 | D189: 68.54167893 | E189: 148.0982625
A190: 185 | B190: 68.49678867 | C190: 152.2014575 | D190: 68.49678867 | E190: 152.2014575
A191: 186 | B191: 76.24707247 | C191: 161.1450957 | D191: 74.74398993 | E191: 161.1450957
A192: 187 | B192: 65.9794391 | C192: 159.1120505 | D192: 65.9794391 | E192: 159.1120505
A193: 188 | B193: 71.180661 | C193: 161.5746363 | D193: 71.180661 | E193: 161.5746363
A194: 189 | B194: 67.80139281 | C194: 158.5008364 | D194: 67.80139281 | E194: 158.5008364
A195: 190 | B195: 68.45905656 | C195: 156.7266533 | D195: 68.45905656 | E195: 156.7266533
A196: 191 | B196: 66.81630819 | C196: 142.8457982 | D196: 66.81630819 | E196: 142.8457982
A197: 192 | B197: 67.08095164 | C197: 150.7550458 | D197: 67.08095164 | E197: 150.7550458
A198: 193 | B198: 70.28233238 | C198: 160.9989407 | D198: =IF($B198>$J$20,$J$20,IF($B198<$J$19,$J$19,$B198)) -> 70.28233238 | E198: =IF($C198>$J$22,$J$22,IF($C198<$J$21,$J$21,$C198)) -> 160.9989407
A199: 194 | B199: 67.10876509 | C199: 162.5844465 | D199: 67.10876509 | E199: 162.5844465
A200: 195 | B200: 67.38319238 | C200: 142.201884 | D200: 67.38319238 | E200: 142.201884
A201: 196 | B201: 72.072698 | C201: 178.4418879 | D201: 72.072698 | E201: 178.4418879
A202: 197 | B202: 73.99964359 | C202: 186.7099983 | D202: 73.99964359 | E202: 185.5930556
A203: 198 | B203: 69.01831506 | C203: 148.5578991 | D203: 69.01831506 | E203: 148.5578991
... 803 more rows

Sheet Median Correlation Coefficient
A1: Calculating the Median Correlation Coefficient
A3: Observation Number | B3: X | C3: Y | D3: |X-Xmed| | E3: |Y-Ymed| | F3: |u| | G3: |v| | J3: Comparison of Manually Calculated Correlation with Macro Calculation | O3: Median Correlation Applied to the Paired Data Series From the "Simulated Data" Worksheet
A4: 1 | B4: 69.59024759 | C4: 179.2035405 | D4: 0.4390982852 | E4: 17.59747277 | F4: =ABS(($B4-$L$11)/(SQRT(2)*$L$13)+($C4-$L$12)/(SQRT(2)*$L$14)) -> 1.164929116 | G4: =ABS(($B4-$L$11)/(SQRT(2)*$L$13)-($C4-$L$12)/(SQRT(2)*$L$14)) -> 1.475778286 | J4: Calculated Median Correlation = | L4: =(L15^2-L16^2)/(L15^2+L16^2) -> 0.4694290879
A5: 2 | B5: 75.90042113 | C5: 148.634771 | D5: 5.871075258 | E5: 12.97129672 | F5: 1.104896244 | G5: 3.051391612 | J5: VBA Median Correlation = | L5: =medcorr(B4:B1003,C4:C1003) -> 0.4694290879 | O5: U1(0,1), U2(0,1) | P5: =medcorr('Simulated Data'!$B$4:$B$1003,'Simulated Data'!$C$4:$C$1003) -> 0.04561684883
A6: 3 | B6: 68.70319257 | C6: 148.2832815 | D6: 1.326153306 | E6: 13.32278619 | F6: 1.469029564 | G6: 0.530210926 | O6: N1(0,1), N2(0,1) | P6: =medcorr('Simulated Data'!$D$4:$D$1003,'Simulated Data'!$E$4:$E$1003) -> -0.03399823228
A7: 4 | B7: 70.30671509 | C7: 161.1189805 | D7: 0.277369215 | E7: 0.4870871986 | F7: 0.06163188733 | G7: 0.1347250404 | O7: X, Y (Correlated) | P7: =medcorr('Simulated Data'!$F$4:$F$1003,'Simulated Data'!$G$4:$G$1003) -> 0.4694290879
A8: 5 | B8: 67.3750767 | C8: 167.5735679 | D8: 2.65426917 | E8: 5.967500184 | F8: 0.4917665781 | G8: 1.387260045 | O8: Ranks of (X, Y) | P8: =medcorr('Simulated Data'!$H$4:$H$1003,'Simulated Data'!$I$4:$I$1003) -> 0.5991544461
A9: 6 | B9: 70.30370117 | C9: 166.757326 | D9: 0.2743552947 | E9: 5.151258305 | F9: 0.4836150421 | G9: 0.2893917475 | J9: Intermediate Calculations for the Median Correlation | O9: (X, Y) with duplicates | P9: =medcorr('Simulated Data'!$J$4:$J$1003,'Simulated Data'!$K$4:$K$1003) -> 0.4694108112
A10: 7 | B10: 72.046436 | C10: 158.1402947 | D10: 2.017090123 | E10: 3.465773034 | F10: 0.4539354811 | G10: 0.9740154165 | O10: Ranks of (X, Y) with duplicates | P10: =medcorr('Simulated Data'!$L$4:$L$1003,'Simulated Data'!$M$4:$M$1003) -> 0.5991544461
A11: 8 | B11: 69.65903862 | C11: 151.4591575 | D11: 0.3703072547 | E11: 10.14691016 | F11: 0.8924066017 | G11: 0.630256403 | J11: Median of X = | L11: 70.02934587
A12: 9 | B12: 74.29144862 | C12: 185.9929006 | D12: 4.262102741 | E12: 24.38683285 | F12: 3.338392345 | G12: 0.3211382497 | J12: Median of Y = | L12: 161.6060677
A13: 10 | B13: 65.64948847 | C13: 147.6030784 | D13: 4.3798574 | E13: 14.00298929 | F13: 2.600964327 | G13: 0.499651374 | J13: MAD of X = | L13: 1.997685084
A14: 11 | B14: 69.74269715 | C14: 154.6594908 | D14: 0.2866487282 | E14: 6.946576894 | F14: 0.6226707804 | G14: 0.4197446424 | J14: MAD of Y = | L14: 9.424211347 | O14: Notes:
A15: 12 | B15: 69.92351191 | C15: 155.0106918 | D15: 0.1058339633 | E15: 6.595375873 | F15: 0.5323181095 | G15: 0.4573954766 | J15: Median of |u| = | L15: 1.186067281
A16: 13 | B16: 71.27244255 | C16: 167.9248667 | D16: 1.243096677 | E16: 6.318798972 | F16: 0.914115326 | G16: 0.03409464879 | J16: Median of |v| = | L16: 0.7126999488
